Workbook

Sheet Surface
CH4: Range formatting controls hidden under second chart
BE5: Unhide everything first to see the overall layout…BJS | CH5: Add column to end of transposed return row beginning in CL10
W6: Choose asset | BE6: Hidden min and max range for color coding conditional formatting under cable graph to avoid impact on other regions | CH6: (update formula for row and column in cell CE14 as a single "array" and then copy to remainder of new area)
W7: Illinois | CL7: below seems to require that copy across a single row first, excluding original address, and then downward - e.g. update CL14, then copy right, then down
C8: =IF(CH12<38,"2023 data are preliminary only as average of historic returns","") ->  | BE8: 0 1 controls here | BG8: Note the treatment to start and end at different dates | CL8: easiest may be to "f2" to locate the ranges first
CL10: =TRANSPOSE(CH14:CH65) -> 1.110188521 | CM10: 1.140380989 | CN10: 1.327654152 | CO10: 1.235224802 | CP10: 1.314030367 | CQ10: 1.423753043 | CR10: 1.162047685 | CS10: 1.18756079 | CT10: 1.142259988 | CU10: 1.115335723 | CV10: 0.9751364007 | CW10: 0.9617413282 | CX10: 1.059902387 | CY10: 0.81651619 | CZ10: 0.9604306555 | DA10: 0.9913707002 | DB10: 1.154983033 | DC10: 1.156708945 | DD10: 1.066908534 | DE10: 1.094726317 | DF10: 1.108021197 | DG10: 1.061953627 | DH10: 1.130976869 | DI10: 1.133631056 | DJ10: 1.088853486 | DK10: 1.086319949 | DL10: 1.117185234 | DM10: 1.082087642 | DN10: 1.060557732 | DO10: 1.055627411 | DP10: 1.068443602 | DQ10: 1.075328117 | DR10: 1.094337564 | DS10: 1.287971893 | DT10: 1.149061885 | DU10: 1.14900451 | DV10: 1.161126765 | DW10: 1.009070279 | DX10: 1.092115473 | DY10: 1.171596629 | DZ10: 1.182058863 | EA10: 1.171520235 | EB10: 1.080571639 | EC10: 1.020514314 | ED10: 1.010335014 | EE10: 1.008573654 | EF10: 1.044339142 | EG10: 1.024072857 | EH10: 1.038976928 | EI10: 1.089596311 | EJ10: 1.148050803 | EK10: 1.066084118
Y11: Sell (end of year)
D12: 1972 | E12: 1973 | F12: 1974 | G12: 1975 | H12: 1976 | I12: 1977 | J12: 1978 | K12: 1979 | L12: 1980 | M12: 1981 | N12: 1982 | O12: 1983 | P12: 1984 | Q12: 1985 | R12: 1986 | S12: 1987 | T12: 1988 | U12: 1989 | V12: 1990 | W12: 1991 | X12: 1992 | Y12: 1993 | Z12: 1994 | AA12: 1995 | AB12: 1996 | AC12: 1997 | AD12: 1998 | AE12: 1999 | AF12: 2000 | AG12: 2001 | AH12: 2002 | AI12: 2003 | AJ12: 2004 | AK12: 2005 | AL12: 2006 | AM12: 2007 | AN12: 2008 | AO12: 2009 | AP12: 2010 | AQ12: 2011 | AR12: 2012 | AS12: 2013 | AT12: 2014 | AU12: 2015 | AV12: 2016 | AW12: 2017 | AX12: 2018 | AY12: 2019 | AZ12: 2020 | BA12: 2021 | BB12: 2022 | BC12: 2023p | CH12: =MATCH(CH13,Data!C3:CS3,0) -> 49 | CL12: Purchased
C13: 1972 | BF13: 1 | BG13: 2 | BH13: 3 | BI13: 4 | BJ13: 5 | BK13: 6 | BL13: 7 | BM13: 8 | BN13: 9 | BO13: 10 | BP13: 11 | BQ13: 12 | BR13: 13 | BS13: 14 | BT13: 15 | BU13: 16 | BV13: 17 | BW13: 18 | BX13: 19 | BY13: 20 | BZ13: 21 | CA13: 22 | CB13: 23 | CC13: 24 | CD13: 25 | CE13: 26 | CH13: =W7 -> Illinois | CL13: 1972 | CM13: 1973 | CN13: 1974 | CO13: 1975 | CP13: 1976 | CQ13: 1977 | CR13: 1978 | CS13: 1979 | CT13: 1980 | CU13: 1981 | CV13: 1982 | CW13: 1983 | CX13: 1984 | CY13: 1985 | CZ13: 1986 | DA13: 1987 | DB13: 1988 | DC13: 1989 | DD13: 1990 | DE13: 1991 | DF13: 1992 | DG13: 1993 | DH13: 1994 | DI13: 1995 | DJ13: 1996 | DK13: 1997 | DL13: 1998 | DM13: 1999 | DN13: 2000 | DO13: 2001 | DP13: 2002 | DQ13: 2003 | DR13: 2004 | DS13: 2005 | DT13: 2006 | DU13: 2007 | DV13: 2008 | DW13: 2009 | DX13: 2010 | DY13: 2011 | DZ13: 2012 | EA13: 2013 | EB13: 2014 | EC13: 2015 | ED13: 2016 | EE13: 2017 | EF13: 2018 | EG13: 2019 | EH13: 2020 | EI13: 2021 | EJ13: 2022 | EK13: 2023
C14: 1973 | BE14: 1972 | BF14: =CH14-1 -> 0.1101885211 | CG14: 1972 | CH14: =HLOOKUP($W$7,dat,MATCH(CG14,Data!$B$3:$B$60,0),0)+1 -> 1.110188521 | CJ14: Sold | CK14: 1972 | CL14: =PRODUCT(IF(($CL$13:$EK$13<=CL$13*TRANSPOSE($CK$14:$CK$65>=$CK14)),$CL$10:$EK$10,1)) -> 1.110188521 | CM14: =PRODUCT(IF(($CL$13:$EK$13<=CM$13*TRANSPOSE($CK$14:$CK$65>=$CK14)),$CL$10:$EK$10,1)) -> 1.266037883 | CN14: =PRODUCT(IF(($CL$13:$EK$13<=CN$13*TRANSPOSE($CK$14:$CK$65>=$CK14)),$CL$10:$EK$10,1)) -> 1.680860453 | CO14: =PRODUCT(IF(($CL$13:$EK$13<=CO$13*TRANSPOSE($CK$14:$CK$65>=$CK14)),$CL$10:$EK$10,1)) -> 2.07624052 | CP14: =PRODUCT(IF(($CL$13:$EK$13<=CP$13*TRANSPOSE($CK$14:$CK$65>=$CK14)),$CL$10:$EK$10,1)) -> 2.728243092 | CQ14: =PRODUCT(IF(($CL$13:$EK$13<=CQ$13*TRANSPOSE($CK$14:$CK$65>=$CK14)),$CL$10:$EK$10,1)) -> 3.884344403 | CR14: =PRODUCT(IF(($CL$13:$EK$13<=CR$13*TRANSPOSE($CK$14:$CK$65>=$CK14)),$CL$10:$EK$10,1)) -> 4.51379342 | CS14: =PRODUCT(IF(($CL$13:$EK$13<=CS$13*TRANSPOSE($CK$14:$CK$65>=$CK14)),$CL$10:$EK$10,1)) -> 5.360404081 | CT14: =PRODUCT(IF(($CL$13:$EK$13<=CT$13*TRANSPOSE($CK$14:$CK$65>=$CK14)),$CL$10:$EK$10,1)) -> 6.122975102 | CU14: =PRODUCT(IF(($CL$13:$EK$13<=CU$13*TRANSPOSE($CK$14:$CK$65>=$CK14)),$CL$10:$EK$10,1)) -> 6.829172862 | CV14: =PRODUCT(IF(($CL$13:$EK$13<=CV$13*TRANSPOSE($CK$14:$CK$65>=$CK14)),$CL$10:$EK$10,1)) -> 6.659375044 | CW14: =PRODUCT(IF(($CL$13:$EK$13<=CW$13*TRANSPOSE($CK$14:$CK$65>=$CK14)),$CL$10:$EK$10,1)) -> 6.4045962 | CX14: =PRODUCT(IF(($CL$13:$EK$13<=CX$13*TRANSPOSE($CK$14:$CK$65>=$CK14)),$CL$10:$EK$10,1)) -> 6.7882468 | CY14: =PRODUCT(IF(($CL$13:$EK$13<=CY$13*TRANSPOSE($CK$14:$CK$65>=$CK14)),$CL$10:$EK$10,1)) -> 5.542713414 | CZ14: =PRODUCT(IF(($CL$13:$EK$13<=CZ$13*TRANSPOSE($CK$14:$CK$65>=$CK14)),$CL$10:$EK$10,1)) -> 5.323391877 | DA14: =PRODUCT(IF(($CL$13:$EK$13<=DA$13*TRANSPOSE($CK$14:$CK$65>=$CK14)),$CL$10:$EK$10,1)) -> 5.277454733 | DB14: =PRODUCT(IF(($CL$13:$EK$13<=DB$13*TRANSPOSE($CK$14:$CK$65>=$CK14)),$CL$10:$EK$10,1)) -> 6.095370672 | DC14: =PRODUCT(IF(($CL$13:$EK$13<=DC$13*TRANSPOSE($CK$14:$CK$65>=$CK14)),$CL$10:$EK$10,1)) -> 7.050569778 | DD14: =PRODUCT(IF(($CL$13:$EK$13<=DD$13*TRANSPOSE($CK$14:$CK$65>=$CK14)),$CL$10:$EK$10,1)) -> 7.522313068 | DE14: =PRODUCT(IF(($CL$13:$EK$13<=DE$13*TRANSPOSE($CK$14:$CK$65>=$CK14)),$CL$10:$EK$10,1)) -> 8.234874081 | DF14: =PRODUCT(IF(($CL$13:$EK$13<=DF$13*TRANSPOSE($CK$14:$CK$65>=$CK14)),$CL$10:$EK$10,1)) -> 9.124415036 | DG14: =PRODUCT(IF(($CL$13:$EK$13<=DG$13*TRANSPOSE($CK$14:$CK$65>=$CK14)),$CL$10:$EK$10,1)) -> 9.68970564 | DH14: =PRODUCT(IF(($CL$13:$EK$13<=DH$13*TRANSPOSE($CK$14:$CK$65>=$CK14)),$CL$10:$EK$10,1)) -> 10.95883295 | DI14: =PRODUCT(IF(($CL$13:$EK$13<=DI$13*TRANSPOSE($CK$14:$CK$65>=$CK14)),$CL$10:$EK$10,1)) -> 12.42327336 | DJ14: =PRODUCT(IF(($CL$13:$EK$13<=DJ$13*TRANSPOSE($CK$14:$CK$65>=$CK14)),$CL$10:$EK$10,1)) -> 13.5271245 | DK14: =PRODUCT(IF(($CL$13:$EK$13<=DK$13*TRANSPOSE($CK$14:$CK$65>=$CK14)),$CL$10:$EK$10,1)) -> 14.6947852 | DL14: =PRODUCT(IF(($CL$13:$EK$13<=DL$13*TRANSPOSE($CK$14:$CK$65>=$CK14)),$CL$10:$EK$10,1)) -> 16.41679705 | DM14: =PRODUCT(IF(($CL$13:$EK$13<=DM$13*TRANSPOSE($CK$14:$CK$65>=$CK14)),$CL$10:$EK$10,1)) -> 17.76441321 | DN14: =PRODUCT(IF(($CL$13:$EK$13<=DN$13*TRANSPOSE($CK$14:$CK$65>=$CK14)),$CL$10:$EK$10,1)) -> 18.84018578 | DO14: =PRODUCT(IF(($CL$13:$EK$13<=DO$13*TRANSPOSE($CK$14:$CK$65>=$CK14)),$CL$10:$EK$10,1)) -> 19.88821653 | DP14: =PRODUCT(IF(($CL$13:$EK$13<=DP$13*TRANSPOSE($CK$14:$CK$65>=$CK14)),$CL$10:$EK$10,1)) -> 21.24943771 | DQ14: =PRODUCT(IF(($CL$13:$EK$13<=DQ$13*TRANSPOSE($CK$14:$CK$65>=$CK14)),$CL$10:$EK$10,1)) -> 22.85011783 | DR14: =PRODUCT(IF(($CL$13:$EK$13<=DR$13*TRANSPOSE($CK$14:$CK$65>=$CK14)),$CL$10:$EK$10,1)) -> 25.00574229 | DS14: =PRODUCT(IF(($CL$13:$EK$13<=DS$13*TRANSPOSE($CK$14:$CK$65>=$CK14)),$CL$10:$EK$10,1)) -> 32.20669324 | DT14: =PRODUCT(IF(($CL$13:$EK$13<=DT$13*TRANSPOSE($CK$14:$CK$65>=$CK14)),$CL$10:$EK$10,1)) -> 37.00748363 | DU14: =PRODUCT(IF(($CL$13:$EK$13<=DU$13*TRANSPOSE($CK$14:$CK$65>=$CK14)),$CL$10:$EK$10,1)) -> 42.52176561 | DV14: =PRODUCT(IF(($CL$13:$EK$13<=DV$13*TRANSPOSE($CK$14:$CK$65>=$CK14)),$CL$10:$EK$10,1)) -> 49.37316014 | DW14: =PRODUCT(IF(($CL$13:$EK$13<=DW$13*TRANSPOSE($CK$14:$CK$65>=$CK14)),$CL$10:$EK$10,1)) -> 49.82098848 | DX14: =PRODUCT(IF(($CL$13:$EK$13<=DX$13*TRANSPOSE($CK$14:$CK$65>=$CK14)),$CL$10:$EK$10,1)) -> 54.41027241 | DY14: =PRODUCT(IF(($CL$13:$EK$13<=DY$13*TRANSPOSE($CK$14:$CK$65>=$CK14)),$CL$10:$EK$10,1)) -> 63.74689172 | DZ14: =PRODUCT(IF(($CL$13:$EK$13<=DZ$13*TRANSPOSE($CK$14:$CK$65>=$CK14)),$CL$10:$EK$10,1)) -> 75.35257833 | EA14: =PRODUCT(IF(($CL$13:$EK$13<=EA$13*TRANSPOSE($CK$14:$CK$65>=$CK14)),$CL$10:$EK$10,1)) -> 88.27707031 | EB14: =PRODUCT(IF(($CL$13:$EK$13<=EB$13*TRANSPOSE($CK$14:$CK$65>=$CK14)),$CL$10:$EK$10,1)) -> 95.38969858 | EC14: =PRODUCT(IF(($CL$13:$EK$13<=EC$13*TRANSPOSE($CK$14:$CK$65>=$CK14)),$CL$10:$EK$10,1)) -> 97.34655278 | ED14: =PRODUCT(IF(($CL$13:$EK$13<=ED$13*TRANSPOSE($CK$14:$CK$65>=$CK14)),$CL$10:$EK$10,1)) -> 98.35263082 | EE14: =PRODUCT(IF(($CL$13:$EK$13<=EE$13*TRANSPOSE($CK$14:$CK$65>=$CK14)),$CL$10:$EK$10,1)) -> 99.19587227 | EF14: =PRODUCT(IF(($CL$13:$EK$13<=EF$13*TRANSPOSE($CK$14:$CK$65>=$CK14)),$CL$10:$EK$10,1)) -> 103.5941321 | EG14: =PRODUCT(IF(($CL$13:$EK$13<=EG$13*TRANSPOSE($CK$14:$CK$65>=$CK14)),$CL$10:$EK$10,1)) -> 106.0879388 | EH14: =PRODUCT(IF(($CL$13:$EK$13<=EH$13*TRANSPOSE($CK$14:$CK$65>=$CK14)),$CL$10:$EK$10,1)) -> 110.2229208 | EI14: =PRODUCT(IF(($CL$13:$EK$13<=EI$13*TRANSPOSE($CK$14:$CK$65>=$CK14)),$CL$10:$EK$10,1)) -> 120.0984879 | EJ14: =PRODUCT(IF(($CL$13:$EK$13<=EJ$13*TRANSPOSE($CK$14:$CK$65>=$CK14)),$CL$10:$EK$10,1)) -> 137.8791654 | EK14: =PRODUCT(IF(($CL$13:$EK$13<=EK$13*TRANSPOSE($CK$14:$CK$65>=$CK14)),$CL$10:$EK$10,1)) -> 146.9907884
C15: 1974 | BE15: 1973 | BF15: 0.1403809886 | BG15: =PRODUCT(CH14:CH15)^(1/BG$13)-1 -> 0.1251834887 | CG15: 1973 | CH15: =HLOOKUP($W$7,dat,MATCH(CG15,Data!$B$3:$B$60,0),0)+1 -> 1.140380989 | CK15: 1973 | CL15: =PRODUCT(IF(($CL$13:$EK$13<=CL$13*TRANSPOSE($CK$14:$CK$65>=$CK15)),$CL$10:$EK$10,1)) -> 1 | CM15: =PRODUCT(IF(($CL$13:$EK$13<=CM$13*TRANSPOSE($CK$14:$CK$65>=$CK15)),$CL$10:$EK$10,1)) -> 1.140380989 | CN15: =PRODUCT(IF(($CL$13:$EK$13<=CN$13*TRANSPOSE($CK$14:$CK$65>=$CK15)),$CL$10:$EK$10,1)) -> 1.514031555 | CO15: =PRODUCT(IF(($CL$13:$EK$13<=CO$13*TRANSPOSE($CK$14:$CK$65>=$CK15)),$CL$10:$EK$10,1)) -> 1.870169327 | CP15: =PRODUCT(IF(($CL$13:$EK$13<=CP$13*TRANSPOSE($CK$14:$CK$65>=$CK15)),$CL$10:$EK$10,1)) -> 2.457459287 | CQ15: =PRODUCT(IF(($CL$13:$EK$13<=CQ$13*TRANSPOSE($CK$14:$CK$65>=$CK15)),$CL$10:$EK$10,1)) -> 3.498815137 | CR15: =PRODUCT(IF(($CL$13:$EK$13<=CR$13*TRANSPOSE($CK$14:$CK$65>=$CK15)),$CL$10:$EK$10,1)) -> 4.06579003 | CS15: =PRODUCT(IF(($CL$13:$EK$13<=CS$13*TRANSPOSE($CK$14:$CK$65>=$CK15)),$CL$10:$EK$10,1)) -> 4.82837282 | CT15: =PRODUCT(IF(($CL$13:$EK$13<=CT$13*TRANSPOSE($CK$14:$CK$65>=$CK15)),$CL$10:$EK$10,1)) -> 5.515257081 | CU15: =PRODUCT(IF(($CL$13:$EK$13<=CU$13*TRANSPOSE($CK$14:$CK$65>=$CK15)),$CL$10:$EK$10,1)) -> 6.151363243 | CV15: =PRODUCT(IF(($CL$13:$EK$13<=CV$13*TRANSPOSE($CK$14:$CK$65>=$CK15)),$CL$10:$EK$10,1)) -> 5.998418212 | CW15: =PRODUCT(IF(($CL$13:$EK$13<=CW$13*TRANSPOSE($CK$14:$CK$65>=$CK15)),$CL$10:$EK$10,1)) -> 5.768926699 | CX15: =PRODUCT(IF(($CL$13:$EK$13<=CX$13*TRANSPOSE($CK$14:$CK$65>=$CK15)),$CL$10:$EK$10,1)) -> 6.114499178 | CY15: =PRODUCT(IF(($CL$13:$EK$13<=CY$13*TRANSPOSE($CK$14:$CK$65>=$CK15)),$CL$10:$EK$10,1)) -> 4.992587572 | CZ15: =PRODUCT(IF(($CL$13:$EK$13<=CZ$13*TRANSPOSE($CK$14:$CK$65>=$CK15)),$CL$10:$EK$10,1)) -> 4.795034155 | DA15: =PRODUCT(IF(($CL$13:$EK$13<=DA$13*TRANSPOSE($CK$14:$CK$65>=$CK15)),$CL$10:$EK$10,1)) -> 4.753656367 | DB15: =PRODUCT(IF(($CL$13:$EK$13<=DB$13*TRANSPOSE($CK$14:$CK$65>=$CK15)),$CL$10:$EK$10,1)) -> 5.490392448 | DC15: =PRODUCT(IF(($CL$13:$EK$13<=DC$13*TRANSPOSE($CK$14:$CK$65>=$CK15)),$CL$10:$EK$10,1)) -> 6.350786055 | DD15: =PRODUCT(IF(($CL$13:$EK$13<=DD$13*TRANSPOSE($CK$14:$CK$65>=$CK15)),$CL$10:$EK$10,1)) -> 6.775707841 | DE15: =PRODUCT(IF(($CL$13:$EK$13<=DE$13*TRANSPOSE($CK$14:$CK$65>=$CK15)),$CL$10:$EK$10,1)) -> 7.417545691 | DF15: =PRODUCT(IF(($CL$13:$EK$13<=DF$13*TRANSPOSE($CK$14:$CK$65>=$CK15)),$CL$10:$EK$10,1)) -> 8.218797855 | DG15: =PRODUCT(IF(($CL$13:$EK$13<=DG$13*TRANSPOSE($CK$14:$CK$65>=$CK15)),$CL$10:$EK$10,1)) -> 8.72798219 | DH15: =PRODUCT(IF(($CL$13:$EK$13<=DH$13*TRANSPOSE($CK$14:$CK$65>=$CK15)),$CL$10:$EK$10,1)) -> 9.871145969 | DI15: =PRODUCT(IF(($CL$13:$EK$13<=DI$13*TRANSPOSE($CK$14:$CK$65>=$CK15)),$CL$10:$EK$10,1)) -> 11.19023763 | DJ15: =PRODUCT(IF(($CL$13:$EK$13<=DJ$13*TRANSPOSE($CK$14:$CK$65>=$CK15)),$CL$10:$EK$10,1)) -> 12.18452924 | DK15: =PRODUCT(IF(($CL$13:$EK$13<=DK$13*TRANSPOSE($CK$14:$CK$65>=$CK15)),$CL$10:$EK$10,1)) -> 13.23629719 | DL15: =PRODUCT(IF(($CL$13:$EK$13<=DL$13*TRANSPOSE($CK$14:$CK$65>=$CK15)),$CL$10:$EK$10,1)) -> 14.78739577 | DM15: =PRODUCT(IF(($CL$13:$EK$13<=DM$13*TRANSPOSE($CK$14:$CK$65>=$CK15)),$CL$10:$EK$10,1)) -> 16.00125823 | DN15: =PRODUCT(IF(($CL$13:$EK$13<=DN$13*TRANSPOSE($CK$14:$CK$65>=$CK15)),$CL$10:$EK$10,1)) -> 16.97025813 | DO15: =PRODUCT(IF(($CL$13:$EK$13<=DO$13*TRANSPOSE($CK$14:$CK$65>=$CK15)),$CL$10:$EK$10,1)) -> 17.91426965 | DP15: =PRODUCT(IF(($CL$13:$EK$13<=DP$13*TRANSPOSE($CK$14:$CK$65>=$CK15)),$CL$10:$EK$10,1)) -> 19.14038679 | DQ15: =PRODUCT(IF(($CL$13:$EK$13<=DQ$13*TRANSPOSE($CK$14:$CK$65>=$CK15)),$CL$10:$EK$10,1)) -> 20.58219609 | DR15: =PRODUCT(IF(($CL$13:$EK$13<=DR$13*TRANSPOSE($CK$14:$CK$65>=$CK15)),$CL$10:$EK$10,1)) -> 22.52387032 | DS15: =PRODUCT(IF(($CL$13:$EK$13<=DS$13*TRANSPOSE($CK$14:$CK$65>=$CK15)),$CL$10:$EK$10,1)) -> 29.01011191 | DT15: =PRODUCT(IF(($CL$13:$EK$13<=DT$13*TRANSPOSE($CK$14:$CK$65>=$CK15)),$CL$10:$EK$10,1)) -> 33.33441386 | DU15: =PRODUCT(IF(($CL$13:$EK$13<=DU$13*TRANSPOSE($CK$14:$CK$65>=$CK15)),$CL$10:$EK$10,1)) -> 38.30139188 | DV15: =PRODUCT(IF(($CL$13:$EK$13<=DV$13*TRANSPOSE($CK$14:$CK$65>=$CK15)),$CL$10:$EK$10,1)) -> 44.47277125 | DW15: =PRODUCT(IF(($CL$13:$EK$13<=DW$13*TRANSPOSE($CK$14:$CK$65>=$CK15)),$CL$10:$EK$10,1)) -> 44.87615169 | DX15: =PRODUCT(IF(($CL$13:$EK$13<=DX$13*TRANSPOSE($CK$14:$CK$65>=$CK15)),$CL$10:$EK$10,1)) -> 49.00993964 | DY15: =PRODUCT(IF(($CL$13:$EK$13<=DY$13*TRANSPOSE($CK$14:$CK$65>=$CK15)),$CL$10:$EK$10,1)) -> 57.41988005 | DZ15: =PRODUCT(IF(($CL$13:$EK$13<=DZ$13*TRANSPOSE($CK$14:$CK$65>=$CK15)),$CL$10:$EK$10,1)) -> 67.87367811 | EA15: =PRODUCT(IF(($CL$13:$EK$13<=EA$13*TRANSPOSE($CK$14:$CK$65>=$CK15)),$CL$10:$EK$10,1)) -> 79.51538736 | EB15: =PRODUCT(IF(($CL$13:$EK$13<=EB$13*TRANSPOSE($CK$14:$CK$65>=$CK15)),$CL$10:$EK$10,1)) -> 85.92207248 | EC15: =PRODUCT(IF(($CL$13:$EK$13<=EC$13*TRANSPOSE($CK$14:$CK$65>=$CK15)),$CL$10:$EK$10,1)) -> 87.68470483 | ED15: =PRODUCT(IF(($CL$13:$EK$13<=ED$13*TRANSPOSE($CK$14:$CK$65>=$CK15)),$CL$10:$EK$10,1)) -> 88.59092752 | EE15: =PRODUCT(IF(($CL$13:$EK$13<=EE$13*TRANSPOSE($CK$14:$CK$65>=$CK15)),$CL$10:$EK$10,1)) -> 89.35047551 | EF15: =PRODUCT(IF(($CL$13:$EK$13<=EF$13*TRANSPOSE($CK$14:$CK$65>=$CK15)),$CL$10:$EK$10,1)) -> 93.3121989 | EG15: =PRODUCT(IF(($CL$13:$EK$13<=EG$13*TRANSPOSE($CK$14:$CK$65>=$CK15)),$CL$10:$EK$10,1)) -> 95.55849012 | EH15: =PRODUCT(IF(($CL$13:$EK$13<=EH$13*TRANSPOSE($CK$14:$CK$65>=$CK15)),$CL$10:$EK$10,1)) -> 99.28306654 | EI15: =PRODUCT(IF(($CL$13:$EK$13<=EI$13*TRANSPOSE($CK$14:$CK$65>=$CK15)),$CL$10:$EK$10,1)) -> 108.178463 | EJ15: =PRODUCT(IF(($CL$13:$EK$13<=EJ$13*TRANSPOSE($CK$14:$CK$65>=$CK15)),$CL$10:$EK$10,1)) -> 124.1943713 | EK15: =PRODUCT(IF(($CL$13:$EK$13<=EK$13*TRANSPOSE($CK$14:$CK$65>=$CK15)),$CL$10:$EK$10,1)) -> 132.4016468
C16: 1975 | BE16: 1974 | BF16: 0.3276541524 | BG16: =PRODUCT(CH15:CH16)^(1/BG$13)-1 -> 0.2304598957 | BH16: =PRODUCT(CH14:CH16)^(1/BH$13)-1 -> 0.1889873109 | CG16: 1974 | CH16: =HLOOKUP($W$7,dat,MATCH(CG16,Data!$B$3:$B$60,0),0)+1 -> 1.327654152 | CK16: 1974 | CL16: =PRODUCT(IF(($CL$13:$EK$13<=CL$13*TRANSPOSE($CK$14:$CK$65>=$CK16)),$CL$10:$EK$10,1)) -> 1 | CM16: =PRODUCT(IF(($CL$13:$EK$13<=CM$13*TRANSPOSE($CK$14:$CK$65>=$CK16)),$CL$10:$EK$10,1)) -> 1 | CN16: =PRODUCT(IF(($CL$13:$EK$13<=CN$13*TRANSPOSE($CK$14:$CK$65>=$CK16)),$CL$10:$EK$10,1)) -> 1.327654152 | CO16: =PRODUCT(IF(($CL$13:$EK$13<=CO$13*TRANSPOSE($CK$14:$CK$65>=$CK16)),$CL$10:$EK$10,1)) -> 1.639951337 | CP16: =PRODUCT(IF(($CL$13:$EK$13<=CP$13*TRANSPOSE($CK$14:$CK$65>=$CK16)),$CL$10:$EK$10,1)) -> 2.154945857 | CQ16: =PRODUCT(IF(($CL$13:$EK$13<=CQ$13*TRANSPOSE($CK$14:$CK$65>=$CK16)),$CL$10:$EK$10,1)) -> 3.068110721 | CR16: =PRODUCT(IF(($CL$13:$EK$13<=CR$13*TRANSPOSE($CK$14:$CK$65>=$CK16)),$CL$10:$EK$10,1)) -> 3.56529096 | CS16: =PRODUCT(IF(($CL$13:$EK$13<=CS$13*TRANSPOSE($CK$14:$CK$65>=$CK16)),$CL$10:$EK$10,1)) -> 4.23399975 | CT16: =PRODUCT(IF(($CL$13:$EK$13<=CT$13*TRANSPOSE($CK$14:$CK$65>=$CK16)),$CL$10:$EK$10,1)) -> 4.836328504 | CU16: =PRODUCT(IF(($CL$13:$EK$13<=CU$13*TRANSPOSE($CK$14:$CK$65>=$CK16)),$CL$10:$EK$10,1)) -> 5.394129948 | CV16: =PRODUCT(IF(($CL$13:$EK$13<=CV$13*TRANSPOSE($CK$14:$CK$65>=$CK16)),$CL$10:$EK$10,1)) -> 5.260012463 | CW16: =PRODUCT(IF(($CL$13:$EK$13<=CW$13*TRANSPOSE($CK$14:$CK$65>=$CK16)),$CL$10:$EK$10,1)) -> 5.058771372 | CX16: =PRODUCT(IF(($CL$13:$EK$13<=CX$13*TRANSPOSE($CK$14:$CK$65>=$CK16)),$CL$10:$EK$10,1)) -> 5.361803852 | CY16: =PRODUCT(IF(($CL$13:$EK$13<=CY$13*TRANSPOSE($CK$14:$CK$65>=$CK16)),$CL$10:$EK$10,1)) -> 4.377999653 | CZ16: =PRODUCT(IF(($CL$13:$EK$13<=CZ$13*TRANSPOSE($CK$14:$CK$65>=$CK16)),$CL$10:$EK$10,1)) -> 4.204765076 | DA16: =PRODUCT(IF(($CL$13:$EK$13<=DA$13*TRANSPOSE($CK$14:$CK$65>=$CK16)),$CL$10:$EK$10,1)) -> 4.168480898 | DB16: =PRODUCT(IF(($CL$13:$EK$13<=DB$13*TRANSPOSE($CK$14:$CK$65>=$CK16)),$CL$10:$EK$10,1)) -> 4.814524709 | DC16: =PRODUCT(IF(($CL$13:$EK$13<=DC$13*TRANSPOSE($CK$14:$CK$65>=$CK16)),$CL$10:$EK$10,1)) -> 5.569003796 | DD16: =PRODUCT(IF(($CL$13:$EK$13<=DD$13*TRANSPOSE($CK$14:$CK$65>=$CK16)),$CL$10:$EK$10,1)) -> 5.941617677 | DE16: =PRODUCT(IF(($CL$13:$EK$13<=DE$13*TRANSPOSE($CK$14:$CK$65>=$CK16)),$CL$10:$EK$10,1)) -> 6.504445238 | DF16: =PRODUCT(IF(($CL$13:$EK$13<=DF$13*TRANSPOSE($CK$14:$CK$65>=$CK16)),$CL$10:$EK$10,1)) -> 7.207063198 | DG16: =PRODUCT(IF(($CL$13:$EK$13<=DG$13*TRANSPOSE($CK$14:$CK$65>=$CK16)),$CL$10:$EK$10,1)) -> 7.653566902 | DH16: =PRODUCT(IF(($CL$13:$EK$13<=DH$13*TRANSPOSE($CK$14:$CK$65>=$CK16)),$CL$10:$EK$10,1)) -> 8.65600713 | DI16: =PRODUCT(IF(($CL$13:$EK$13<=DI$13*TRANSPOSE($CK$14:$CK$65>=$CK16)),$CL$10:$EK$10,1)) -> 9.812718501 | DJ16: =PRODUCT(IF(($CL$13:$EK$13<=DJ$13*TRANSPOSE($CK$14:$CK$65>=$CK16)),$CL$10:$EK$10,1)) -> 10.68461274 | DK16: =PRODUCT(IF(($CL$13:$EK$13<=DK$13*TRANSPOSE($CK$14:$CK$65>=$CK16)),$CL$10:$EK$10,1)) -> 11.60690797 | DL16: =PRODUCT(IF(($CL$13:$EK$13<=DL$13*TRANSPOSE($CK$14:$CK$65>=$CK16)),$CL$10:$EK$10,1)) -> 12.9670662 | DM16: =PRODUCT(IF(($CL$13:$EK$13<=DM$13*TRANSPOSE($CK$14:$CK$65>=$CK16)),$CL$10:$EK$10,1)) -> 14.03150209 | DN16: =PRODUCT(IF(($CL$13:$EK$13<=DN$13*TRANSPOSE($CK$14:$CK$65>=$CK16)),$CL$10:$EK$10,1)) -> 14.88121803 | DO16: =PRODUCT(IF(($CL$13:$EK$13<=DO$13*TRANSPOSE($CK$14:$CK$65>=$CK16)),$CL$10:$EK$10,1)) -> 15.70902166 | DP16: =PRODUCT(IF(($CL$13:$EK$13<=DP$13*TRANSPOSE($CK$14:$CK$65>=$CK16)),$CL$10:$EK$10,1)) -> 16.78420369 | DQ16: =PRODUCT(IF(($CL$13:$EK$13<=DQ$13*TRANSPOSE($CK$14:$CK$65>=$CK16)),$CL$10:$EK$10,1)) -> 18.04852614 | DR16: =PRODUCT(IF(($CL$13:$EK$13<=DR$13*TRANSPOSE($CK$14:$CK$65>=$CK16)),$CL$10:$EK$10,1)) -> 19.75118013 | DS16: =PRODUCT(IF(($CL$13:$EK$13<=DS$13*TRANSPOSE($CK$14:$CK$65>=$CK16)),$CL$10:$EK$10,1)) -> 25.43896487 | DT16: =PRODUCT(IF(($CL$13:$EK$13<=DT$13*TRANSPOSE($CK$14:$CK$65>=$CK16)),$CL$10:$EK$10,1)) -> 29.23094492 | DU16: =PRODUCT(IF(($CL$13:$EK$13<=DU$13*TRANSPOSE($CK$14:$CK$65>=$CK16)),$CL$10:$EK$10,1)) -> 33.58648755 | DV16: =PRODUCT(IF(($CL$13:$EK$13<=DV$13*TRANSPOSE($CK$14:$CK$65>=$CK16)),$CL$10:$EK$10,1)) -> 38.99816964 | DW16: =PRODUCT(IF(($CL$13:$EK$13<=DW$13*TRANSPOSE($CK$14:$CK$65>=$CK16)),$CL$10:$EK$10,1)) -> 39.35189392 | DX16: =PRODUCT(IF(($CL$13:$EK$13<=DX$13*TRANSPOSE($CK$14:$CK$65>=$CK16)),$CL$10:$EK$10,1)) -> 42.97681225 | DY16: =PRODUCT(IF(($CL$13:$EK$13<=DY$13*TRANSPOSE($CK$14:$CK$65>=$CK16)),$CL$10:$EK$10,1)) -> 50.35148834 | DZ16: =PRODUCT(IF(($CL$13:$EK$13<=DZ$13*TRANSPOSE($CK$14:$CK$65>=$CK16)),$CL$10:$EK$10,1)) -> 59.51842304 | EA16: =PRODUCT(IF(($CL$13:$EK$13<=EA$13*TRANSPOSE($CK$14:$CK$65>=$CK16)),$CL$10:$EK$10,1)) -> 69.72703698 | EB16: =PRODUCT(IF(($CL$13:$EK$13<=EB$13*TRANSPOSE($CK$14:$CK$65>=$CK16)),$CL$10:$EK$10,1)) -> 75.34505866 | EC16: =PRODUCT(IF(($CL$13:$EK$13<=EC$13*TRANSPOSE($CK$14:$CK$65>=$CK16)),$CL$10:$EK$10,1)) -> 76.89071083 | ED16: =PRODUCT(IF(($CL$13:$EK$13<=ED$13*TRANSPOSE($CK$14:$CK$65>=$CK16)),$CL$10:$EK$10,1)) -> 77.68537744 | EE16: =PRODUCT(IF(($CL$13:$EK$13<=EE$13*TRANSPOSE($CK$14:$CK$65>=$CK16)),$CL$10:$EK$10,1)) -> 78.35142501 | EF16: =PRODUCT(IF(($CL$13:$EK$13<=EF$13*TRANSPOSE($CK$14:$CK$65>=$CK16)),$CL$10:$EK$10,1)) -> 81.82545994 | EG16: =PRODUCT(IF(($CL$13:$EK$13<=EG$13*TRANSPOSE($CK$14:$CK$65>=$CK16)),$CL$10:$EK$10,1)) -> 83.79523254 | EH16: =PRODUCT(IF(($CL$13:$EK$13<=EH$13*TRANSPOSE($CK$14:$CK$65>=$CK16)),$CL$10:$EK$10,1)) -> 87.06131331 | EI16: =PRODUCT(IF(($CL$13:$EK$13<=EI$13*TRANSPOSE($CK$14:$CK$65>=$CK16)),$CL$10:$EK$10,1)) -> 94.8616858 | EJ16: =PRODUCT(IF(($CL$13:$EK$13<=EJ$13*TRANSPOSE($CK$14:$CK$65>=$CK16)),$CL$10:$EK$10,1)) -> 108.9060345 | EK16: =PRODUCT(IF(($CL$13:$EK$13<=EK$13*TRANSPOSE($CK$14:$CK$65>=$CK16)),$CL$10:$EK$10,1)) -> 116.1029937
C17: 1976 | BE17: 1975 | BF17: 0.2352248017 | BG17: 0.2806058477 | BH17: 0.2320461519 | BI17: =PRODUCT($CH14:$CH17)^(1/BI$13)-1 -> 0.2003818373 | CG17: 1975 | CH17: =HLOOKUP($W$7,dat,MATCH(CG17,Data!$B$3:$B$60,0),0)+1 -> 1.235224802 | CK17: 1975 | CL17: =PRODUCT(IF(($CL$13:$EK$13<=CL$13*TRANSPOSE($CK$14:$CK$65>=$CK17)),$CL$10:$EK$10,1)) -> 1 | CM17: =PRODUCT(IF(($CL$13:$EK$13<=CM$13*TRANSPOSE($CK$14:$CK$65>=$CK17)),$CL$10:$EK$10,1)) -> 1 | CN17: =PRODUCT(IF(($CL$13:$EK$13<=CN$13*TRANSPOSE($CK$14:$CK$65>=$CK17)),$CL$10:$EK$10,1)) -> 1 | CO17: =PRODUCT(IF(($CL$13:$EK$13<=CO$13*TRANSPOSE($CK$14:$CK$65>=$CK17)),$CL$10:$EK$10,1)) -> 1.235224802 | CP17: =PRODUCT(IF(($CL$13:$EK$13<=CP$13*TRANSPOSE($CK$14:$CK$65>=$CK17)),$CL$10:$EK$10,1)) -> 1.623122899 | CQ17: =PRODUCT(IF(($CL$13:$EK$13<=CQ$13*TRANSPOSE($CK$14:$CK$65>=$CK17)),$CL$10:$EK$10,1)) -> 2.310926166 | CR17: =PRODUCT(IF(($CL$13:$EK$13<=CR$13*TRANSPOSE($CK$14:$CK$65>=$CK17)),$CL$10:$EK$10,1)) -> 2.685406402 | CS17: =PRODUCT(IF(($CL$13:$EK$13<=CS$13*TRANSPOSE($CK$14:$CK$65>=$CK17)),$CL$10:$EK$10,1)) -> 3.189083348 | CT17: =PRODUCT(IF(($CL$13:$EK$13<=CT$13*TRANSPOSE($CK$14:$CK$65>=$CK17)),$CL$10:$EK$10,1)) -> 3.642762308 | CU17: =PRODUCT(IF(($CL$13:$EK$13<=CU$13*TRANSPOSE($CK$14:$CK$65>=$CK17)),$CL$10:$EK$10,1)) -> 4.062902932 | CV17: =PRODUCT(IF(($CL$13:$EK$13<=CV$13*TRANSPOSE($CK$14:$CK$65>=$CK17)),$CL$10:$EK$10,1)) -> 3.961884541 | CW17: =PRODUCT(IF(($CL$13:$EK$13<=CW$13*TRANSPOSE($CK$14:$CK$65>=$CK17)),$CL$10:$EK$10,1)) -> 3.810308101 | CX17: =PRODUCT(IF(($CL$13:$EK$13<=CX$13*TRANSPOSE($CK$14:$CK$65>=$CK17)),$CL$10:$EK$10,1)) -> 4.038554651 | CY17: =PRODUCT(IF(($CL$13:$EK$13<=CY$13*TRANSPOSE($CK$14:$CK$65>=$CK17)),$CL$10:$EK$10,1)) -> 3.297545257 | CZ17: =PRODUCT(IF(($CL$13:$EK$13<=CZ$13*TRANSPOSE($CK$14:$CK$65>=$CK17)),$CL$10:$EK$10,1)) -> 3.167063552 | DA17: =PRODUCT(IF(($CL$13:$EK$13<=DA$13*TRANSPOSE($CK$14:$CK$65>=$CK17)),$CL$10:$EK$10,1)) -> 3.139734012 | DB17: =PRODUCT(IF(($CL$13:$EK$13<=DB$13*TRANSPOSE($CK$14:$CK$65>=$CK17)),$CL$10:$EK$10,1)) -> 3.626339511 | DC17: =PRODUCT(IF(($CL$13:$EK$13<=DC$13*TRANSPOSE($CK$14:$CK$65>=$CK17)),$CL$10:$EK$10,1)) -> 4.194619349 | DD17: =PRODUCT(IF(($CL$13:$EK$13<=DD$13*TRANSPOSE($CK$14:$CK$65>=$CK17)),$CL$10:$EK$10,1)) -> 4.475275181 | DE17: =PRODUCT(IF(($CL$13:$EK$13<=DE$13*TRANSPOSE($CK$14:$CK$65>=$CK17)),$CL$10:$EK$10,1)) -> 4.899201517 | DF17: =PRODUCT(IF(($CL$13:$EK$13<=DF$13*TRANSPOSE($CK$14:$CK$65>=$CK17)),$CL$10:$EK$10,1)) -> 5.428419129 | DG17: =PRODUCT(IF(($CL$13:$EK$13<=DG$13*TRANSPOSE($CK$14:$CK$65>=$CK17)),$CL$10:$EK$10,1)) -> 5.764729382 | DH17: =PRODUCT(IF(($CL$13:$EK$13<=DH$13*TRANSPOSE($CK$14:$CK$65>=$CK17)),$CL$10:$EK$10,1)) -> 6.519775587 | DI17: =PRODUCT(IF(($CL$13:$EK$13<=DI$13*TRANSPOSE($CK$14:$CK$65>=$CK17)),$CL$10:$EK$10,1)) -> 7.391020081 | DJ17: =PRODUCT(IF(($CL$13:$EK$13<=DJ$13*TRANSPOSE($CK$14:$CK$65>=$CK17)),$CL$10:$EK$10,1)) -> 8.047737979 | DK17: =PRODUCT(IF(($CL$13:$EK$13<=DK$13*TRANSPOSE($CK$14:$CK$65>=$CK17)),$CL$10:$EK$10,1)) -> 8.742418311 | DL17: =PRODUCT(IF(($CL$13:$EK$13<=DL$13*TRANSPOSE($CK$14:$CK$65>=$CK17)),$CL$10:$EK$10,1)) -> 9.766900647 | DM17: =PRODUCT(IF(($CL$13:$EK$13<=DM$13*TRANSPOSE($CK$14:$CK$65>=$CK17)),$CL$10:$EK$10,1)) -> 10.56864249 | DN17: =PRODUCT(IF(($CL$13:$EK$13<=DN$13*TRANSPOSE($CK$14:$CK$65>=$CK17)),$CL$10:$EK$10,1)) -> 11.20865551 | DO17: =PRODUCT(IF(($CL$13:$EK$13<=DO$13*TRANSPOSE($CK$14:$CK$65>=$CK17)),$CL$10:$EK$10,1)) -> 11.832164 | DP17: =PRODUCT(IF(($CL$13:$EK$13<=DP$13*TRANSPOSE($CK$14:$CK$65>=$CK17)),$CL$10:$EK$10,1)) -> 12.64199992 | DQ17: =PRODUCT(IF(($CL$13:$EK$13<=DQ$13*TRANSPOSE($CK$14:$CK$65>=$CK17)),$CL$10:$EK$10,1)) -> 13.59429796 | DR17: =PRODUCT(IF(($CL$13:$EK$13<=DR$13*TRANSPOSE($CK$14:$CK$65>=$CK17)),$CL$10:$EK$10,1)) -> 14.87675092 | DS17: =PRODUCT(IF(($CL$13:$EK$13<=DS$13*TRANSPOSE($CK$14:$CK$65>=$CK17)),$CL$10:$EK$10,1)) -> 19.16083705 | DT17: =PRODUCT(IF(($CL$13:$EK$13<=DT$13*TRANSPOSE($CK$14:$CK$65>=$CK17)),$CL$10:$EK$10,1)) -> 22.01698753 | DU17: =PRODUCT(IF(($CL$13:$EK$13<=DU$13*TRANSPOSE($CK$14:$CK$65>=$CK17)),$CL$10:$EK$10,1)) -> 25.29761798 | DV17: =PRODUCT(IF(($CL$13:$EK$13<=DV$13*TRANSPOSE($CK$14:$CK$65>=$CK17)),$CL$10:$EK$10,1)) -> 29.37374132 | DW17: =PRODUCT(IF(($CL$13:$EK$13<=DW$13*TRANSPOSE($CK$14:$CK$65>=$CK17)),$CL$10:$EK$10,1)) -> 29.64016935 | DX17: =PRODUCT(IF(($CL$13:$EK$13<=DX$13*TRANSPOSE($CK$14:$CK$65>=$CK17)),$CL$10:$EK$10,1)) -> 32.37048758 | DY17: =PRODUCT(IF(($CL$13:$EK$13<=DY$13*TRANSPOSE($CK$14:$CK$65>=$CK17)),$CL$10:$EK$10,1)) -> 37.92515412 | DZ17: =PRODUCT(IF(($CL$13:$EK$13<=DZ$13*TRANSPOSE($CK$14:$CK$65>=$CK17)),$CL$10:$EK$10,1)) -> 44.82976454 | EA17: =PRODUCT(IF(($CL$13:$EK$13<=EA$13*TRANSPOSE($CK$14:$CK$65>=$CK17)),$CL$10:$EK$10,1)) -> 52.51897631 | EB17: =PRODUCT(IF(($CL$13:$EK$13<=EB$13*TRANSPOSE($CK$14:$CK$65>=$CK17)),$CL$10:$EK$10,1)) -> 56.75051633 | EC17: =PRODUCT(IF(($CL$13:$EK$13<=EC$13*TRANSPOSE($CK$14:$CK$65>=$CK17)),$CL$10:$EK$10,1)) -> 57.91471423 | ED17: =PRODUCT(IF(($CL$13:$EK$13<=ED$13*TRANSPOSE($CK$14:$CK$65>=$CK17)),$CL$10:$EK$10,1)) -> 58.51326364 | EE17: =PRODUCT(IF(($CL$13:$EK$13<=EE$13*TRANSPOSE($CK$14:$CK$65>=$CK17)),$CL$10:$EK$10,1)) -> 59.01493613 | EF17: =PRODUCT(IF(($CL$13:$EK$13<=EF$13*TRANSPOSE($CK$14:$CK$65>=$CK17)),$CL$10:$EK$10,1)) -> 61.63160774 | EG17: =PRODUCT(IF(($CL$13:$EK$13<=EG$13*TRANSPOSE($CK$14:$CK$65>=$CK17)),$CL$10:$EK$10,1)) -> 63.11525663 | EH17: =PRODUCT(IF(($CL$13:$EK$13<=EH$13*TRANSPOSE($CK$14:$CK$65>=$CK17)),$CL$10:$EK$10,1)) -> 65.57529546 | EI17: =PRODUCT(IF(($CL$13:$EK$13<=EI$13*TRANSPOSE($CK$14:$CK$65>=$CK17)),$CL$10:$EK$10,1)) -> 71.45060001 | EJ17: =PRODUCT(IF(($CL$13:$EK$13<=EJ$13*TRANSPOSE($CK$14:$CK$65>=$CK17)),$CL$10:$EK$10,1)) -> 82.02891869 | EK17: =PRODUCT(IF(($CL$13:$EK$13<=EK$13*TRANSPOSE($CK$14:$CK$65>=$CK17)),$CL$10:$EK$10,1)) -> 87.4497274
C18: 1977 | BE18: 1976 | BF18: 0.3140303668 | BG18: 0.2740184062 | BH18: 0.2916518025 | BI18: 0.2520497415 | BJ18: =PRODUCT($CH14:$CH18)^(1/BJ$13)-1 -> 0.2222966257 | CG18: 1976 | CH18: =HLOOKUP($W$7,dat,MATCH(CG18,Data!$B$3:$B$60,0),0)+1 -> 1.314030367 | CK18: 1976 | CL18: =PRODUCT(IF(($CL$13:$EK$13<=CL$13*TRANSPOSE($CK$14:$CK$65>=$CK18)),$CL$10:$EK$10,1)) -> 1 | CM18: =PRODUCT(IF(($CL$13:$EK$13<=CM$13*TRANSPOSE($CK$14:$CK$65>=$CK18)),$CL$10:$EK$10,1)) -> 1 | CN18: =PRODUCT(IF(($CL$13:$EK$13<=CN$13*TRANSPOSE($CK$14:$CK$65>=$CK18)),$CL$10:$EK$10,1)) -> 1 | CO18: =PRODUCT(IF(($CL$13:$EK$13<=CO$13*TRANSPOSE($CK$14:$CK$65>=$CK18)),$CL$10:$EK$10,1)) -> 1 | CP18: =PRODUCT(IF(($CL$13:$EK$13<=CP$13*TRANSPOSE($CK$14:$CK$65>=$CK18)),$CL$10:$EK$10,1)) -> 1.314030367 | CQ18: =PRODUCT(IF(($CL$13:$EK$13<=CQ$13*TRANSPOSE($CK$14:$CK$65>=$CK18)),$CL$10:$EK$10,1)) -> 1.870854733 | CR18: =PRODUCT(IF(($CL$13:$EK$13<=CR$13*TRANSPOSE($CK$14:$CK$65>=$CK18)),$CL$10:$EK$10,1)) -> 2.174022411 | CS18: =PRODUCT(IF(($CL$13:$EK$13<=CS$13*TRANSPOSE($CK$14:$CK$65>=$CK18)),$CL$10:$EK$10,1)) -> 2.581783772 | CT18: =PRODUCT(IF(($CL$13:$EK$13<=CT$13*TRANSPOSE($CK$14:$CK$65>=$CK18)),$CL$10:$EK$10,1)) -> 2.949068301 | CU18: =PRODUCT(IF(($CL$13:$EK$13<=CU$13*TRANSPOSE($CK$14:$CK$65>=$CK18)),$CL$10:$EK$10,1)) -> 3.289201226 | CV18: =PRODUCT(IF(($CL$13:$EK$13<=CV$13*TRANSPOSE($CK$14:$CK$65>=$CK18)),$CL$10:$EK$10,1)) -> 3.207419844 | CW18: =PRODUCT(IF(($CL$13:$EK$13<=CW$13*TRANSPOSE($CK$14:$CK$65>=$CK18)),$CL$10:$EK$10,1)) -> 3.084708221 | CX18: =PRODUCT(IF(($CL$13:$EK$13<=CX$13*TRANSPOSE($CK$14:$CK$65>=$CK18)),$CL$10:$EK$10,1)) -> 3.269489606 | CY18: =PRODUCT(IF(($CL$13:$EK$13<=CY$13*TRANSPOSE($CK$14:$CK$65>=$CK18)),$CL$10:$EK$10,1)) -> 2.669591197 | CZ18: =PRODUCT(IF(($CL$13:$EK$13<=CZ$13*TRANSPOSE($CK$14:$CK$65>=$CK18)),$CL$10:$EK$10,1)) -> 2.563957223 | DA18: =PRODUCT(IF(($CL$13:$EK$13<=DA$13*TRANSPOSE($CK$14:$CK$65>=$CK18)),$CL$10:$EK$10,1)) -> 2.541832067 | DB18: =PRODUCT(IF(($CL$13:$EK$13<=DB$13*TRANSPOSE($CK$14:$CK$65>=$CK18)),$CL$10:$EK$10,1)) -> 2.93577291 | DC18: =PRODUCT(IF(($CL$13:$EK$13<=DC$13*TRANSPOSE($CK$14:$CK$65>=$CK18)),$CL$10:$EK$10,1)) -> 3.395834785 | DD18: =PRODUCT(IF(($CL$13:$EK$13<=DD$13*TRANSPOSE($CK$14:$CK$65>=$CK18)),$CL$10:$EK$10,1)) -> 3.623045113 | DE18: =PRODUCT(IF(($CL$13:$EK$13<=DE$13*TRANSPOSE($CK$14:$CK$65>=$CK18)),$CL$10:$EK$10,1)) -> 3.966242833 | DF18: =PRODUCT(IF(($CL$13:$EK$13<=DF$13*TRANSPOSE($CK$14:$CK$65>=$CK18)),$CL$10:$EK$10,1)) -> 4.394681132 | DG18: =PRODUCT(IF(($CL$13:$EK$13<=DG$13*TRANSPOSE($CK$14:$CK$65>=$CK18)),$CL$10:$EK$10,1)) -> 4.666947566 | DH18: =PRODUCT(IF(($CL$13:$EK$13<=DH$13*TRANSPOSE($CK$14:$CK$65>=$CK18)),$CL$10:$EK$10,1)) -> 5.278209746 | DI18: =PRODUCT(IF(($CL$13:$EK$13<=DI$13*TRANSPOSE($CK$14:$CK$65>=$CK18)),$CL$10:$EK$10,1)) -> 5.983542486 | DJ18: =PRODUCT(IF(($CL$13:$EK$13<=DJ$13*TRANSPOSE($CK$14:$CK$65>=$CK18)),$CL$10:$EK$10,1)) -> 6.515201093 | DK18: =PRODUCT(IF(($CL$13:$EK$13<=DK$13*TRANSPOSE($CK$14:$CK$65>=$CK18)),$CL$10:$EK$10,1)) -> 7.07759292 | DL18: =PRODUCT(IF(($CL$13:$EK$13<=DL$13*TRANSPOSE($CK$14:$CK$65>=$CK18)),$CL$10:$EK$10,1)) -> 7.906982303 | DM18: =PRODUCT(IF(($CL$13:$EK$13<=DM$13*TRANSPOSE($CK$14:$CK$65>=$CK18)),$CL$10:$EK$10,1)) -> 8.556047838 | DN18: =PRODUCT(IF(($CL$13:$EK$13<=DN$13*TRANSPOSE($CK$14:$CK$65>=$CK18)),$CL$10:$EK$10,1)) -> 9.074182689 | DO18: =PRODUCT(IF(($CL$13:$EK$13<=DO$13*TRANSPOSE($CK$14:$CK$65>=$CK18)),$CL$10:$EK$10,1)) -> 9.578955976 | DP18: =PRODUCT(IF(($CL$13:$EK$13<=DP$13*TRANSPOSE($CK$14:$CK$65>=$CK18)),$CL$10:$EK$10,1)) -> 10.23457422 | DQ18: =PRODUCT(IF(($CL$13:$EK$13<=DQ$13*TRANSPOSE($CK$14:$CK$65>=$CK18)),$CL$10:$EK$10,1)) -> 11.00552543 | DR18: =PRODUCT(IF(($CL$13:$EK$13<=DR$13*TRANSPOSE($CK$14:$CK$65>=$CK18)),$CL$10:$EK$10,1)) -> 12.04375989 | DS18: =PRODUCT(IF(($CL$13:$EK$13<=DS$13*TRANSPOSE($CK$14:$CK$65>=$CK18)),$CL$10:$EK$10,1)) -> 15.51202422 | DT18: =PRODUCT(IF(($CL$13:$EK$13<=DT$13*TRANSPOSE($CK$14:$CK$65>=$CK18)),$CL$10:$EK$10,1)) -> 17.82427579 | DU18: =PRODUCT(IF(($CL$13:$EK$13<=DU$13*TRANSPOSE($CK$14:$CK$65>=$CK18)),$CL$10:$EK$10,1)) -> 20.48017328 | DV18: =PRODUCT(IF(($CL$13:$EK$13<=DV$13*TRANSPOSE($CK$14:$CK$65>=$CK18)),$CL$10:$EK$10,1)) -> 23.78007734 | DW18: =PRODUCT(IF(($CL$13:$EK$13<=DW$13*TRANSPOSE($CK$14:$CK$65>=$CK18)),$CL$10:$EK$10,1)) -> 23.99576928 | DX18: =PRODUCT(IF(($CL$13:$EK$13<=DX$13*TRANSPOSE($CK$14:$CK$65>=$CK18)),$CL$10:$EK$10,1)) -> 26.20615092 | DY18: =PRODUCT(IF(($CL$13:$EK$13<=DY$13*TRANSPOSE($CK$14:$CK$65>=$CK18)),$CL$10:$EK$10,1)) -> 30.70303807 | DZ18: =PRODUCT(IF(($CL$13:$EK$13<=DZ$13*TRANSPOSE($CK$14:$CK$65>=$CK18)),$CL$10:$EK$10,1)) -> 36.29279826 | EA18: =PRODUCT(IF(($CL$13:$EK$13<=EA$13*TRANSPOSE($CK$14:$CK$65>=$CK18)),$CL$10:$EK$10,1)) -> 42.51774757 | EB18: =PRODUCT(IF(($CL$13:$EK$13<=EB$13*TRANSPOSE($CK$14:$CK$65>=$CK18)),$CL$10:$EK$10,1)) -> 45.94347219 | EC18: =PRODUCT(IF(($CL$13:$EK$13<=EC$13*TRANSPOSE($CK$14:$CK$65>=$CK18)),$CL$10:$EK$10,1)) -> 46.88597099 | ED18: =PRODUCT(IF(($CL$13:$EK$13<=ED$13*TRANSPOSE($CK$14:$CK$65>=$CK18)),$CL$10:$EK$10,1)) -> 47.37053818 | EE18: =PRODUCT(IF(($CL$13:$EK$13<=EE$13*TRANSPOSE($CK$14:$CK$65>=$CK18)),$CL$10:$EK$10,1)) -> 47.7766768 | EF18: =PRODUCT(IF(($CL$13:$EK$13<=EF$13*TRANSPOSE($CK$14:$CK$65>=$CK18)),$CL$10:$EK$10,1)) -> 49.89505364 | EG18: =PRODUCT(IF(($CL$13:$EK$13<=EG$13*TRANSPOSE($CK$14:$CK$65>=$CK18)),$CL$10:$EK$10,1)) -> 51.09617013 | EH18: =PRODUCT(IF(($CL$13:$EK$13<=EH$13*TRANSPOSE($CK$14:$CK$65>=$CK18)),$CL$10:$EK$10,1)) -> 53.08774189 | EI18: =PRODUCT(IF(($CL$13:$EK$13<=EI$13*TRANSPOSE($CK$14:$CK$65>=$CK18)),$CL$10:$EK$10,1)) -> 57.84420772 | EJ18: =PRODUCT(IF(($CL$13:$EK$13<=EJ$13*TRANSPOSE($CK$14:$CK$65>=$CK18)),$CL$10:$EK$10,1)) -> 66.4080891 | EK18: =PRODUCT(IF(($CL$13:$EK$13<=EK$13*TRANSPOSE($CK$14:$CK$65>=$CK18)),$CL$10:$EK$10,1)) -> 70.79660907
C19: 1978 | BE19: 1977 | BF19: 0.4237530426 | BG19: 0.3677919187 | BH19: 0.3220930535 | BI19: 0.3234811406 | BJ19: 0.2846481605 | BK19: =PRODUCT($CH14:$CH19)^(1/BK$13)-1 -> 0.2537750453 | CG19: 1977 | CH19: =HLOOKUP($W$7,dat,MATCH(CG19,Data!$B$3:$B$60,0),0)+1 -> 1.423753043 | CK19: 1977 | CL19: =PRODUCT(IF(($CL$13:$EK$13<=CL$13*TRANSPOSE($CK$14:$CK$65>=$CK19)),$CL$10:$EK$10,1)) -> 1 | CM19: =PRODUCT(IF(($CL$13:$EK$13<=CM$13*TRANSPOSE($CK$14:$CK$65>=$CK19)),$CL$10:$EK$10,1)) -> 1 | CN19: =PRODUCT(IF(($CL$13:$EK$13<=CN$13*TRANSPOSE($CK$14:$CK$65>=$CK19)),$CL$10:$EK$10,1)) -> 1 | CO19: =PRODUCT(IF(($CL$13:$EK$13<=CO$13*TRANSPOSE($CK$14:$CK$65>=$CK19)),$CL$10:$EK$10,1)) -> 1 | CP19: =PRODUCT(IF(($CL$13:$EK$13<=CP$13*TRANSPOSE($CK$14:$CK$65>=$CK19)),$CL$10:$EK$10,1)) -> 1 | CQ19: =PRODUCT(IF(($CL$13:$EK$13<=CQ$13*TRANSPOSE($CK$14:$CK$65>=$CK19)),$CL$10:$EK$10,1)) -> 1.423753043 | CR19: =PRODUCT(IF(($CL$13:$EK$13<=CR$13*TRANSPOSE($CK$14:$CK$65>=$CK19)),$CL$10:$EK$10,1)) -> 1.654468927 | CS19: =PRODUCT(IF(($CL$13:$EK$13<=CS$13*TRANSPOSE($CK$14:$CK$65>=$CK19)),$CL$10:$EK$10,1)) -> 1.964782426 | CT19: =PRODUCT(IF(($CL$13:$EK$13<=CT$13*TRANSPOSE($CK$14:$CK$65>=$CK19)),$CL$10:$EK$10,1)) -> 2.244292351 | CU19: =PRODUCT(IF(($CL$13:$EK$13<=CU$13*TRANSPOSE($CK$14:$CK$65>=$CK19)),$CL$10:$EK$10,1)) -> 2.503139432 | CV19: =PRODUCT(IF(($CL$13:$EK$13<=CV$13*TRANSPOSE($CK$14:$CK$65>=$CK19)),$CL$10:$EK$10,1)) -> 2.440902376 | CW19: =PRODUCT(IF(($CL$13:$EK$13<=CW$13*TRANSPOSE($CK$14:$CK$65>=$CK19)),$CL$10:$EK$10,1)) -> 2.347516693 | CX19: =PRODUCT(IF(($CL$13:$EK$13<=CX$13*TRANSPOSE($CK$14:$CK$65>=$CK19)),$CL$10:$EK$10,1)) -> 2.488138546 | CY19: =PRODUCT(IF(($CL$13:$EK$13<=CY$13*TRANSPOSE($CK$14:$CK$65>=$CK19)),$CL$10:$EK$10,1)) -> 2.031605406 | CZ19: =PRODUCT(IF(($CL$13:$EK$13<=CZ$13*TRANSPOSE($CK$14:$CK$65>=$CK19)),$CL$10:$EK$10,1)) -> 1.951216112 | DA19: =PRODUCT(IF(($CL$13:$EK$13<=DA$13*TRANSPOSE($CK$14:$CK$65>=$CK19)),$CL$10:$EK$10,1)) -> 1.934378483 | DB19: =PRODUCT(IF(($CL$13:$EK$13<=DB$13*TRANSPOSE($CK$14:$CK$65>=$CK19)),$CL$10:$EK$10,1)) -> 2.234174327 | DC19: =PRODUCT(IF(($CL$13:$EK$13<=DC$13*TRANSPOSE($CK$14:$CK$65>=$CK19)),$CL$10:$EK$10,1)) -> 2.584289428 | DD19: =PRODUCT(IF(($CL$13:$EK$13<=DD$13*TRANSPOSE($CK$14:$CK$65>=$CK19)),$CL$10:$EK$10,1)) -> 2.757200446 | DE19: =PRODUCT(IF(($CL$13:$EK$13<=DE$13*TRANSPOSE($CK$14:$CK$65>=$CK19)),$CL$10:$EK$10,1)) -> 3.01837989 | DF19: =PRODUCT(IF(($CL$13:$EK$13<=DF$13*TRANSPOSE($CK$14:$CK$65>=$CK19)),$CL$10:$EK$10,1)) -> 3.344428898 | DG19: =PRODUCT(IF(($CL$13:$EK$13<=DG$13*TRANSPOSE($CK$14:$CK$65>=$CK19)),$CL$10:$EK$10,1)) -> 3.551628398 | DH19: =PRODUCT(IF(($CL$13:$EK$13<=DH$13*TRANSPOSE($CK$14:$CK$65>=$CK19)),$CL$10:$EK$10,1)) -> 4.016809565 | DI19: =PRODUCT(IF(($CL$13:$EK$13<=DI$13*TRANSPOSE($CK$14:$CK$65>=$CK19)),$CL$10:$EK$10,1)) -> 4.553580067 | DJ19: =PRODUCT(IF(($CL$13:$EK$13<=DJ$13*TRANSPOSE($CK$14:$CK$65>=$CK19)),$CL$10:$EK$10,1)) -> 4.958181529 | DK19: =PRODUCT(IF(($CL$13:$EK$13<=DK$13*TRANSPOSE($CK$14:$CK$65>=$CK19)),$CL$10:$EK$10,1)) -> 5.386171506 | DL19: =PRODUCT(IF(($CL$13:$EK$13<=DL$13*TRANSPOSE($CK$14:$CK$65>=$CK19)),$CL$10:$EK$10,1)) -> 6.017351275 | DM19: =PRODUCT(IF(($CL$13:$EK$13<=DM$13*TRANSPOSE($CK$14:$CK$65>=$CK19)),$CL$10:$EK$10,1)) -> 6.511301454 | DN19: =PRODUCT(IF(($CL$13:$EK$13<=DN$13*TRANSPOSE($CK$14:$CK$65>=$CK19)),$CL$10:$EK$10,1)) -> 6.905611102 | DO19: =PRODUCT(IF(($CL$13:$EK$13<=DO$13*TRANSPOSE($CK$14:$CK$65>=$CK19)),$CL$10:$EK$10,1)) -> 7.289752367 | DP19: =PRODUCT(IF(($CL$13:$EK$13<=DP$13*TRANSPOSE($CK$14:$CK$65>=$CK19)),$CL$10:$EK$10,1)) -> 7.788689275 | DQ19: =PRODUCT(IF(($CL$13:$EK$13<=DQ$13*TRANSPOSE($CK$14:$CK$65>=$CK19)),$CL$10:$EK$10,1)) -> 8.375396571 | DR19: =PRODUCT(IF(($CL$13:$EK$13<=DR$13*TRANSPOSE($CK$14:$CK$65>=$CK19)),$CL$10:$EK$10,1)) -> 9.165511081 | DS19: =PRODUCT(IF(($CL$13:$EK$13<=DS$13*TRANSPOSE($CK$14:$CK$65>=$CK19)),$CL$10:$EK$10,1)) -> 11.80492066 | DT19: =PRODUCT(IF(($CL$13:$EK$13<=DT$13*TRANSPOSE($CK$14:$CK$65>=$CK19)),$CL$10:$EK$10,1)) -> 13.56458438 | DU19: =PRODUCT(IF(($CL$13:$EK$13<=DU$13*TRANSPOSE($CK$14:$CK$65>=$CK19)),$CL$10:$EK$10,1)) -> 15.58576864 | DV19: =PRODUCT(IF(($CL$13:$EK$13<=DV$13*TRANSPOSE($CK$14:$CK$65>=$CK19)),$CL$10:$EK$10,1)) -> 18.09705312 | DW19: =PRODUCT(IF(($CL$13:$EK$13<=DW$13*TRANSPOSE($CK$14:$CK$65>=$CK19)),$CL$10:$EK$10,1)) -> 18.26119844 | DX19: =PRODUCT(IF(($CL$13:$EK$13<=DX$13*TRANSPOSE($CK$14:$CK$65>=$CK19)),$CL$10:$EK$10,1)) -> 19.94333737 | DY19: =PRODUCT(IF(($CL$13:$EK$13<=DY$13*TRANSPOSE($CK$14:$CK$65>=$CK19)),$CL$10:$EK$10,1)) -> 23.36554683 | DZ19: =PRODUCT(IF(($CL$13:$EK$13<=DZ$13*TRANSPOSE($CK$14:$CK$65>=$CK19)),$CL$10:$EK$10,1)) -> 27.61945171 | EA19: =PRODUCT(IF(($CL$13:$EK$13<=EA$13*TRANSPOSE($CK$14:$CK$65>=$CK19)),$CL$10:$EK$10,1)) -> 32.35674657 | EB19: =PRODUCT(IF(($CL$13:$EK$13<=EB$13*TRANSPOSE($CK$14:$CK$65>=$CK19)),$CL$10:$EK$10,1)) -> 34.96378269 | EC19: =PRODUCT(IF(($CL$13:$EK$13<=EC$13*TRANSPOSE($CK$14:$CK$65>=$CK19)),$CL$10:$EK$10,1)) -> 35.6810407 | ED19: =PRODUCT(IF(($CL$13:$EK$13<=ED$13*TRANSPOSE($CK$14:$CK$65>=$CK19)),$CL$10:$EK$10,1)) -> 36.04980477 | EE19: =PRODUCT(IF(($CL$13:$EK$13<=EE$13*TRANSPOSE($CK$14:$CK$65>=$CK19)),$CL$10:$EK$10,1)) -> 36.35888333 | EF19: =PRODUCT(IF(($CL$13:$EK$13<=EF$13*TRANSPOSE($CK$14:$CK$65>=$CK19)),$CL$10:$EK$10,1)) -> 37.97100501 | EG19: =PRODUCT(IF(($CL$13:$EK$13<=EG$13*TRANSPOSE($CK$14:$CK$65>=$CK19)),$CL$10:$EK$10,1)) -> 38.88507559 | EH19: =PRODUCT(IF(($CL$13:$EK$13<=EH$13*TRANSPOSE($CK$14:$CK$65>=$CK19)),$CL$10:$EK$10,1)) -> 40.40069639 | EI19: =PRODUCT(IF(($CL$13:$EK$13<=EI$13*TRANSPOSE($CK$14:$CK$65>=$CK19)),$CL$10:$EK$10,1)) -> 44.02044974 | EJ19: =PRODUCT(IF(($CL$13:$EK$13<=EJ$13*TRANSPOSE($CK$14:$CK$65>=$CK19)),$CL$10:$EK$10,1)) -> 50.53771266 | EK19: =PRODUCT(IF(($CL$13:$EK$13<=EK$13*TRANSPOSE($CK$14:$CK$65>=$CK19)),$CL$10:$EK$10,1)) -> 53.8774528
C20: 1979 | BE20: 1978 | BF20: 0.1620476849 | BG20: 0.2862616091 | BH20: 0.295452039 | BI20: 0.2801253709 | BJ20: 0.2894930198 | BK20: 0.2633513761 | BL20: =PRODUCT($CH14:$CH20)^(1/BL$13)-1 -> 0.2402406287 | CG20: 1978 | CH20: =HLOOKUP($W$7,dat,MATCH(CG20,Data!$B$3:$B$60,0),0)+1 -> 1.162047685 | CK20: 1978 | CL20: =PRODUCT(IF(($CL$13:$EK$13<=CL$13*TRANSPOSE($CK$14:$CK$65>=$CK20)),$CL$10:$EK$10,1)) -> 1 | CM20: =PRODUCT(IF(($CL$13:$EK$13<=CM$13*TRANSPOSE($CK$14:$CK$65>=$CK20)),$CL$10:$EK$10,1)) -> 1 | CN20: =PRODUCT(IF(($CL$13:$EK$13<=CN$13*TRANSPOSE($CK$14:$CK$65>=$CK20)),$CL$10:$EK$10,1)) -> 1 | CO20: =PRODUCT(IF(($CL$13:$EK$13<=CO$13*TRANSPOSE($CK$14:$CK$65>=$CK20)),$CL$10:$EK$10,1)) -> 1 | CP20: =PRODUCT(IF(($CL$13:$EK$13<=CP$13*TRANSPOSE($CK$14:$CK$65>=$CK20)),$CL$10:$EK$10,1)) -> 1 | CQ20: =PRODUCT(IF(($CL$13:$EK$13<=CQ$13*TRANSPOSE($CK$14:$CK$65>=$CK20)),$CL$10:$EK$10,1)) -> 1 | CR20: =PRODUCT(IF(($CL$13:$EK$13<=CR$13*TRANSPOSE($CK$14:$CK$65>=$CK20)),$CL$10:$EK$10,1)) -> 1.162047685 | CS20: =PRODUCT(IF(($CL$13:$EK$13<=CS$13*TRANSPOSE($CK$14:$CK$65>=$CK20)),$CL$10:$EK$10,1)) -> 1.380002267 | CT20: =PRODUCT(IF(($CL$13:$EK$13<=CT$13*TRANSPOSE($CK$14:$CK$65>=$CK20)),$CL$10:$EK$10,1)) -> 1.576321373 | CU20: =PRODUCT(IF(($CL$13:$EK$13<=CU$13*TRANSPOSE($CK$14:$CK$65>=$CK20)),$CL$10:$EK$10,1)) -> 1.758127538 | CV20: =PRODUCT(IF(($CL$13:$EK$13<=CV$13*TRANSPOSE($CK$14:$CK$65>=$CK20)),$CL$10:$EK$10,1)) -> 1.71441416 | CW20: =PRODUCT(IF(($CL$13:$EK$13<=CW$13*TRANSPOSE($CK$14:$CK$65>=$CK20)),$CL$10:$EK$10,1)) -> 1.648822951 | CX20: =PRODUCT(IF(($CL$13:$EK$13<=CX$13*TRANSPOSE($CK$14:$CK$65>=$CK20)),$CL$10:$EK$10,1)) -> 1.747591381 | CY20: =PRODUCT(IF(($CL$13:$EK$13<=CY$13*TRANSPOSE($CK$14:$CK$65>=$CK20)),$CL$10:$EK$10,1)) -> 1.426936656 | CZ20: =PRODUCT(IF(($CL$13:$EK$13<=CZ$13*TRANSPOSE($CK$14:$CK$65>=$CK20)),$CL$10:$EK$10,1)) -> 1.370473708 | DA20: =PRODUCT(IF(($CL$13:$EK$13<=DA$13*TRANSPOSE($CK$14:$CK$65>=$CK20)),$CL$10:$EK$10,1)) -> 1.35864748 | DB20: =PRODUCT(IF(($CL$13:$EK$13<=DB$13*TRANSPOSE($CK$14:$CK$65>=$CK20)),$CL$10:$EK$10,1)) -> 1.569214786 | DC20: =PRODUCT(IF(($CL$13:$EK$13<=DC$13*TRANSPOSE($CK$14:$CK$65>=$CK20)),$CL$10:$EK$10,1)) -> 1.81512478 | DD20: =PRODUCT(IF(($CL$13:$EK$13<=DD$13*TRANSPOSE($CK$14:$CK$65>=$CK20)),$CL$10:$EK$10,1)) -> 1.936572118 | DE20: =PRODUCT(IF(($CL$13:$EK$13<=DE$13*TRANSPOSE($CK$14:$CK$65>=$CK20)),$CL$10:$EK$10,1)) -> 2.120016463 | DF20: =PRODUCT(IF(($CL$13:$EK$13<=DF$13*TRANSPOSE($CK$14:$CK$65>=$CK20)),$CL$10:$EK$10,1)) -> 2.349023179 | DG20: =PRODUCT(IF(($CL$13:$EK$13<=DG$13*TRANSPOSE($CK$14:$CK$65>=$CK20)),$CL$10:$EK$10,1)) -> 2.494553684 | DH20: =PRODUCT(IF(($CL$13:$EK$13<=DH$13*TRANSPOSE($CK$14:$CK$65>=$CK20)),$CL$10:$EK$10,1)) -> 2.821282515 | DI20: =PRODUCT(IF(($CL$13:$EK$13<=DI$13*TRANSPOSE($CK$14:$CK$65>=$CK20)),$CL$10:$EK$10,1)) -> 3.198293476 | DJ20: =PRODUCT(IF(($CL$13:$EK$13<=DJ$13*TRANSPOSE($CK$14:$CK$65>=$CK20)),$CL$10:$EK$10,1)) -> 3.482473 | DK20: =PRODUCT(IF(($CL$13:$EK$13<=DK$13*TRANSPOSE($CK$14:$CK$65>=$CK20)),$CL$10:$EK$10,1)) -> 3.783079892 | DL20: =PRODUCT(IF(($CL$13:$EK$13<=DL$13*TRANSPOSE($CK$14:$CK$65>=$CK20)),$CL$10:$EK$10,1)) -> 4.226400994 | DM20: =PRODUCT(IF(($CL$13:$EK$13<=DM$13*TRANSPOSE($CK$14:$CK$65>=$CK20)),$CL$10:$EK$10,1)) -> 4.573336288 | DN20: =PRODUCT(IF(($CL$13:$EK$13<=DN$13*TRANSPOSE($CK$14:$CK$65>=$CK20)),$CL$10:$EK$10,1)) -> 4.85028716 | DO20: =PRODUCT(IF(($CL$13:$EK$13<=DO$13*TRANSPOSE($CK$14:$CK$65>=$CK20)),$CL$10:$EK$10,1)) -> 5.120096076 | DP20: =PRODUCT(IF(($CL$13:$EK$13<=DP$13*TRANSPOSE($CK$14:$CK$65>=$CK20)),$CL$10:$EK$10,1)) -> 5.470533893 | DQ20: =PRODUCT(IF(($CL$13:$EK$13<=DQ$13*TRANSPOSE($CK$14:$CK$65>=$CK20)),$CL$10:$EK$10,1)) -> 5.882618909 | DR20: =PRODUCT(IF(($CL$13:$EK$13<=DR$13*TRANSPOSE($CK$14:$CK$65>=$CK20)),$CL$10:$EK$10,1)) -> 6.437570847 | DS20: =PRODUCT(IF(($CL$13:$EK$13<=DS$13*TRANSPOSE($CK$14:$CK$65>=$CK20)),$CL$10:$EK$10,1)) -> 8.291410312 | DT20: =PRODUCT(IF(($CL$13:$EK$13<=DT$13*TRANSPOSE($CK$14:$CK$65>=$CK20)),$CL$10:$EK$10,1)) -> 9.527343561 | DU20: =PRODUCT(IF(($CL$13:$EK$13<=DU$13*TRANSPOSE($CK$14:$CK$65>=$CK20)),$CL$10:$EK$10,1)) -> 10.94696072 | DV20: =PRODUCT(IF(($CL$13:$EK$13<=DV$13*TRANSPOSE($CK$14:$CK$65>=$CK20)),$CL$10:$EK$10,1)) -> 12.71080909 | DW20: =PRODUCT(IF(($CL$13:$EK$13<=DW$13*TRANSPOSE($CK$14:$CK$65>=$CK20)),$CL$10:$EK$10,1)) -> 12.82609968 | DX20: =PRODUCT(IF(($CL$13:$EK$13<=DX$13*TRANSPOSE($CK$14:$CK$65>=$CK20)),$CL$10:$EK$10,1)) -> 14.00758192 | DY20: =PRODUCT(IF(($CL$13:$EK$13<=DY$13*TRANSPOSE($CK$14:$CK$65>=$CK20)),$CL$10:$EK$10,1)) -> 16.41123575 | DZ20: =PRODUCT(IF(($CL$13:$EK$13<=DZ$13*TRANSPOSE($CK$14:$CK$65>=$CK20)),$CL$10:$EK$10,1)) -> 19.39904666 | EA20: =PRODUCT(IF(($CL$13:$EK$13<=EA$13*TRANSPOSE($CK$14:$CK$65>=$CK20)),$CL$10:$EK$10,1)) -> 22.72637572 | EB20: =PRODUCT(IF(($CL$13:$EK$13<=EB$13*TRANSPOSE($CK$14:$CK$65>=$CK20)),$CL$10:$EK$10,1)) -> 24.55747706 | EC20: =PRODUCT(IF(($CL$13:$EK$13<=EC$13*TRANSPOSE($CK$14:$CK$65>=$CK20)),$CL$10:$EK$10,1)) -> 25.06125685 | ED20: =PRODUCT(IF(($CL$13:$EK$13<=ED$13*TRANSPOSE($CK$14:$CK$65>=$CK20)),$CL$10:$EK$10,1)) -> 25.32026531 | EE20: =PRODUCT(IF(($CL$13:$EK$13<=EE$13*TRANSPOSE($CK$14:$CK$65>=$CK20)),$CL$10:$EK$10,1)) -> 25.53735251 | EF20: =PRODUCT(IF(($CL$13:$EK$13<=EF$13*TRANSPOSE($CK$14:$CK$65>=$CK20)),$CL$10:$EK$10,1)) -> 26.6696568 | EG20: =PRODUCT(IF(($CL$13:$EK$13<=EG$13*TRANSPOSE($CK$14:$CK$65>=$CK20)),$CL$10:$EK$10,1)) -> 27.31167163 | EH20: =PRODUCT(IF(($CL$13:$EK$13<=EH$13*TRANSPOSE($CK$14:$CK$65>=$CK20)),$CL$10:$EK$10,1)) -> 28.3761967 | EI20: =PRODUCT(IF(($CL$13:$EK$13<=EI$13*TRANSPOSE($CK$14:$CK$65>=$CK20)),$CL$10:$EK$10,1)) -> 30.91859924 | EJ20: =PRODUCT(IF(($CL$13:$EK$13<=EJ$13*TRANSPOSE($CK$14:$CK$65>=$CK20)),$CL$10:$EK$10,1)) -> 35.49612267 | EK20: =PRODUCT(IF(($CL$13:$EK$13<=EK$13*TRANSPOSE($CK$14:$CK$65>=$CK20)),$CL$10:$EK$10,1)) -> 37.84185262
C21: 1980 | BE21: 1979 | BF21: 0.1875607902 | BG21: 0.1747349773 | BH21: 0.2524819861 | BI21: 0.2675933924 | BJ21: 0.261052519 | BK21: 0.2719161195 | BL21: 0.2522349709 | BM21: =PRODUCT($CH14:$CH21)^(1/BM$13)-1 -> 0.2335299289 | CG21: 1979 | CH21: =HLOOKUP($W$7,dat,MATCH(CG21,Data!$B$3:$B$60,0),0)+1 -> 1.18756079 | CK21: 1979 | CL21: =PRODUCT(IF(($CL$13:$EK$13<=CL$13*TRANSPOSE($CK$14:$CK$65>=$CK21)),$CL$10:$EK$10,1)) -> 1 | CM21: =PRODUCT(IF(($CL$13:$EK$13<=CM$13*TRANSPOSE($CK$14:$CK$65>=$CK21)),$CL$10:$EK$10,1)) -> 1 | CN21: =PRODUCT(IF(($CL$13:$EK$13<=CN$13*TRANSPOSE($CK$14:$CK$65>=$CK21)),$CL$10:$EK$10,1)) -> 1 | CO21: =PRODUCT(IF(($CL$13:$EK$13<=CO$13*TRANSPOSE($CK$14:$CK$65>=$CK21)),$CL$10:$EK$10,1)) -> 1 | CP21: =PRODUCT(IF(($CL$13:$EK$13<=CP$13*TRANSPOSE($CK$14:$CK$65>=$CK21)),$CL$10:$EK$10,1)) -> 1 | CQ21: =PRODUCT(IF(($CL$13:$EK$13<=CQ$13*TRANSPOSE($CK$14:$CK$65>=$CK21)),$CL$10:$EK$10,1)) -> 1 | CR21: =PRODUCT(IF(($CL$13:$EK$13<=CR$13*TRANSPOSE($CK$14:$CK$65>=$CK21)),$CL$10:$EK$10,1)) -> 1 | CS21: =PRODUCT(IF(($CL$13:$EK$13<=CS$13*TRANSPOSE($CK$14:$CK$65>=$CK21)),$CL$10:$EK$10,1)) -> 1.18756079 | CT21: =PRODUCT(IF(($CL$13:$EK$13<=CT$13*TRANSPOSE($CK$14:$CK$65>=$CK21)),$CL$10:$EK$10,1)) -> 1.356503174 | CU21: =PRODUCT(IF(($CL$13:$EK$13<=CU$13*TRANSPOSE($CK$14:$CK$65>=$CK21)),$CL$10:$EK$10,1)) -> 1.512956448 | CV21: =PRODUCT(IF(($CL$13:$EK$13<=CV$13*TRANSPOSE($CK$14:$CK$65>=$CK21)),$CL$10:$EK$10,1)) -> 1.475338905 | CW21: =PRODUCT(IF(($CL$13:$EK$13<=CW$13*TRANSPOSE($CK$14:$CK$65>=$CK21)),$CL$10:$EK$10,1)) -> 1.418894398 | CX21: =PRODUCT(IF(($CL$13:$EK$13<=CX$13*TRANSPOSE($CK$14:$CK$65>=$CK21)),$CL$10:$EK$10,1)) -> 1.50388956 | CY21: =PRODUCT(IF(($CL$13:$EK$13<=CY$13*TRANSPOSE($CK$14:$CK$65>=$CK21)),$CL$10:$EK$10,1)) -> 1.227950173 | CZ21: =PRODUCT(IF(($CL$13:$EK$13<=CZ$13*TRANSPOSE($CK$14:$CK$65>=$CK21)),$CL$10:$EK$10,1)) -> 1.17936099 | DA21: =PRODUCT(IF(($CL$13:$EK$13<=DA$13*TRANSPOSE($CK$14:$CK$65>=$CK21)),$CL$10:$EK$10,1)) -> 1.16918393 | DB21: =PRODUCT(IF(($CL$13:$EK$13<=DB$13*TRANSPOSE($CK$14:$CK$65>=$CK21)),$CL$10:$EK$10,1)) -> 1.350387602 | DC21: =PRODUCT(IF(($CL$13:$EK$13<=DC$13*TRANSPOSE($CK$14:$CK$65>=$CK21)),$CL$10:$EK$10,1)) -> 1.562005418 | DD21: =PRODUCT(IF(($CL$13:$EK$13<=DD$13*TRANSPOSE($CK$14:$CK$65>=$CK21)),$CL$10:$EK$10,1)) -> 1.666516911 | DE21: =PRODUCT(IF(($CL$13:$EK$13<=DE$13*TRANSPOSE($CK$14:$CK$65>=$CK21)),$CL$10:$EK$10,1)) -> 1.82437992 | DF21: =PRODUCT(IF(($CL$13:$EK$13<=DF$13*TRANSPOSE($CK$14:$CK$65>=$CK21)),$CL$10:$EK$10,1)) -> 2.021451623 | DG21: =PRODUCT(IF(($CL$13:$EK$13<=DG$13*TRANSPOSE($CK$14:$CK$65>=$CK21)),$CL$10:$EK$10,1)) -> 2.146687882 | DH21: =PRODUCT(IF(($CL$13:$EK$13<=DH$13*TRANSPOSE($CK$14:$CK$65>=$CK21)),$CL$10:$EK$10,1)) -> 2.42785434 | DI21: =PRODUCT(IF(($CL$13:$EK$13<=DI$13*TRANSPOSE($CK$14:$CK$65>=$CK21)),$CL$10:$EK$10,1)) -> 2.752291078 | DJ21: =PRODUCT(IF(($CL$13:$EK$13<=DJ$13*TRANSPOSE($CK$14:$CK$65>=$CK21)),$CL$10:$EK$10,1)) -> 2.996841734 | DK21: =PRODUCT(IF(($CL$13:$EK$13<=DK$13*TRANSPOSE($CK$14:$CK$65>=$CK21)),$CL$10:$EK$10,1)) -> 3.25552896 | DL21: =PRODUCT(IF(($CL$13:$EK$13<=DL$13*TRANSPOSE($CK$14:$CK$65>=$CK21)),$CL$10:$EK$10,1)) -> 3.637028884 | DM21: =PRODUCT(IF(($CL$13:$EK$13<=DM$13*TRANSPOSE($CK$14:$CK$65>=$CK21)),$CL$10:$EK$10,1)) -> 3.93558401 | DN21: =PRODUCT(IF(($CL$13:$EK$13<=DN$13*TRANSPOSE($CK$14:$CK$65>=$CK21)),$CL$10:$EK$10,1)) -> 4.173914051 | DO21: =PRODUCT(IF(($CL$13:$EK$13<=DO$13*TRANSPOSE($CK$14:$CK$65>=$CK21)),$CL$10:$EK$10,1)) -> 4.406098082 | DP21: =PRODUCT(IF(($CL$13:$EK$13<=DP$13*TRANSPOSE($CK$14:$CK$65>=$CK21)),$CL$10:$EK$10,1)) -> 4.707667305 | DQ21: =PRODUCT(IF(($CL$13:$EK$13<=DQ$13*TRANSPOSE($CK$14:$CK$65>=$CK21)),$CL$10:$EK$10,1)) -> 5.062287018 | DR21: =PRODUCT(IF(($CL$13:$EK$13<=DR$13*TRANSPOSE($CK$14:$CK$65>=$CK21)),$CL$10:$EK$10,1)) -> 5.539850843 | DS21: =PRODUCT(IF(($CL$13:$EK$13<=DS$13*TRANSPOSE($CK$14:$CK$65>=$CK21)),$CL$10:$EK$10,1)) -> 7.135172179 | DT21: =PRODUCT(IF(($CL$13:$EK$13<=DT$13*TRANSPOSE($CK$14:$CK$65>=$CK21)),$CL$10:$EK$10,1)) -> 8.198754392 | DU21: =PRODUCT(IF(($CL$13:$EK$13<=DU$13*TRANSPOSE($CK$14:$CK$65>=$CK21)),$CL$10:$EK$10,1)) -> 9.420405776 | DV21: =PRODUCT(IF(($CL$13:$EK$13<=DV$13*TRANSPOSE($CK$14:$CK$65>=$CK21)),$CL$10:$EK$10,1)) -> 10.93828528 | DW21: =PRODUCT(IF(($CL$13:$EK$13<=DW$13*TRANSPOSE($CK$14:$CK$65>=$CK21)),$CL$10:$EK$10,1)) -> 11.03749858 | DX21: =PRODUCT(IF(($CL$13:$EK$13<=DX$13*TRANSPOSE($CK$14:$CK$65>=$CK21)),$CL$10:$EK$10,1)) -> 12.05422299 | DY21: =PRODUCT(IF(($CL$13:$EK$13<=DY$13*TRANSPOSE($CK$14:$CK$65>=$CK21)),$CL$10:$EK$10,1)) -> 14.12268701 | DZ21: =PRODUCT(IF(($CL$13:$EK$13<=DZ$13*TRANSPOSE($CK$14:$CK$65>=$CK21)),$CL$10:$EK$10,1)) -> 16.69384735 | EA21: =PRODUCT(IF(($CL$13:$EK$13<=EA$13*TRANSPOSE($CK$14:$CK$65>=$CK21)),$CL$10:$EK$10,1)) -> 19.55717998 | EB21: =PRODUCT(IF(($CL$13:$EK$13<=EB$13*TRANSPOSE($CK$14:$CK$65>=$CK21)),$CL$10:$EK$10,1)) -> 21.13293403 | EC21: =PRODUCT(IF(($CL$13:$EK$13<=EC$13*TRANSPOSE($CK$14:$CK$65>=$CK21)),$CL$10:$EK$10,1)) -> 21.56646167 | ED21: =PRODUCT(IF(($CL$13:$EK$13<=ED$13*TRANSPOSE($CK$14:$CK$65>=$CK21)),$CL$10:$EK$10,1)) -> 21.78935136 | EE21: =PRODUCT(IF(($CL$13:$EK$13<=EE$13*TRANSPOSE($CK$14:$CK$65>=$CK21)),$CL$10:$EK$10,1)) -> 21.97616573 | EF21: =PRODUCT(IF(($CL$13:$EK$13<=EF$13*TRANSPOSE($CK$14:$CK$65>=$CK21)),$CL$10:$EK$10,1)) -> 22.95057005 | EG21: =PRODUCT(IF(($CL$13:$EK$13<=EG$13*TRANSPOSE($CK$14:$CK$65>=$CK21)),$CL$10:$EK$10,1)) -> 23.50305584 | EH21: =PRODUCT(IF(($CL$13:$EK$13<=EH$13*TRANSPOSE($CK$14:$CK$65>=$CK21)),$CL$10:$EK$10,1)) -> 24.41913277 | EI21: =PRODUCT(IF(($CL$13:$EK$13<=EI$13*TRANSPOSE($CK$14:$CK$65>=$CK21)),$CL$10:$EK$10,1)) -> 26.60699698 | EJ21: =PRODUCT(IF(($CL$13:$EK$13<=EJ$13*TRANSPOSE($CK$14:$CK$65>=$CK21)),$CL$10:$EK$10,1)) -> 30.54618423 | EK21: =PRODUCT(IF(($CL$13:$EK$13<=EK$13*TRANSPOSE($CK$14:$CK$65>=$CK21)),$CL$10:$EK$10,1)) -> 32.56480187
C22: 1981 | BE22: 1980 | BF22: 0.1422599882 | BG22: 0.1646901623 | BH22: 0.1638086695 | BI22: 0.2239674188 | BJ22: 0.2414721064 | BK22: 0.2404286991 | BL22: 0.2525295203 | BM22: 0.237928952 | BN22: =PRODUCT($CH14:$CH22)^(1/BN$13)-1 -> 0.2230389186 | CG22: 1980 | CH22: =HLOOKUP($W$7,dat,MATCH(CG22,Data!$B$3:$B$60,0),0)+1 -> 1.142259988 | CK22: 1980 | CL22: =PRODUCT(IF(($CL$13:$EK$13<=CL$13*TRANSPOSE($CK$14:$CK$65>=$CK22)),$CL$10:$EK$10,1)) -> 1 | CM22: =PRODUCT(IF(($CL$13:$EK$13<=CM$13*TRANSPOSE($CK$14:$CK$65>=$CK22)),$CL$10:$EK$10,1)) -> 1 | CN22: =PRODUCT(IF(($CL$13:$EK$13<=CN$13*TRANSPOSE($CK$14:$CK$65>=$CK22)),$CL$10:$EK$10,1)) -> 1 | CO22: =PRODUCT(IF(($CL$13:$EK$13<=CO$13*TRANSPOSE($CK$14:$CK$65>=$CK22)),$CL$10:$EK$10,1)) -> 1 | CP22: =PRODUCT(IF(($CL$13:$EK$13<=CP$13*TRANSPOSE($CK$14:$CK$65>=$CK22)),$CL$10:$EK$10,1)) -> 1 | CQ22: =PRODUCT(IF(($CL$13:$EK$13<=CQ$13*TRANSPOSE($CK$14:$CK$65>=$CK22)),$CL$10:$EK$10,1)) -> 1 | CR22: =PRODUCT(IF(($CL$13:$EK$13<=CR$13*TRANSPOSE($CK$14:$CK$65>=$CK22)),$CL$10:$EK$10,1)) -> 1 | CS22: =PRODUCT(IF(($CL$13:$EK$13<=CS$13*TRANSPOSE($CK$14:$CK$65>=$CK22)),$CL$10:$EK$10,1)) -> 1 | CT22: =PRODUCT(IF(($CL$13:$EK$13<=CT$13*TRANSPOSE($CK$14:$CK$65>=$CK22)),$CL$10:$EK$10,1)) -> 1.142259988 | CU22: =PRODUCT(IF(($CL$13:$EK$13<=CU$13*TRANSPOSE($CK$14:$CK$65>=$CK22)),$CL$10:$EK$10,1)) -> 1.27400337 | CV22: =PRODUCT(IF(($CL$13:$EK$13<=CV$13*TRANSPOSE($CK$14:$CK$65>=$CK22)),$CL$10:$EK$10,1)) -> 1.24232706 | CW22: =PRODUCT(IF(($CL$13:$EK$13<=CW$13*TRANSPOSE($CK$14:$CK$65>=$CK22)),$CL$10:$EK$10,1)) -> 1.194797277 | CX22: =PRODUCT(IF(($CL$13:$EK$13<=CX$13*TRANSPOSE($CK$14:$CK$65>=$CK22)),$CL$10:$EK$10,1)) -> 1.266368486 | CY22: =PRODUCT(IF(($CL$13:$EK$13<=CY$13*TRANSPOSE($CK$14:$CK$65>=$CK22)),$CL$10:$EK$10,1)) -> 1.034010371 | CZ22: =PRODUCT(IF(($CL$13:$EK$13<=CZ$13*TRANSPOSE($CK$14:$CK$65>=$CK22)),$CL$10:$EK$10,1)) -> 0.9930952586 | DA22: =PRODUCT(IF(($CL$13:$EK$13<=DA$13*TRANSPOSE($CK$14:$CK$65>=$CK22)),$CL$10:$EK$10,1)) -> 0.9845255419 | DB22: =PRODUCT(IF(($CL$13:$EK$13<=DB$13*TRANSPOSE($CK$14:$CK$65>=$CK22)),$CL$10:$EK$10,1)) -> 1.137110296 | DC22: =PRODUCT(IF(($CL$13:$EK$13<=DC$13*TRANSPOSE($CK$14:$CK$65>=$CK22)),$CL$10:$EK$10,1)) -> 1.315305651 | DD22: =PRODUCT(IF(($CL$13:$EK$13<=DD$13*TRANSPOSE($CK$14:$CK$65>=$CK22)),$CL$10:$EK$10,1)) -> 1.403310824 | DE22: =PRODUCT(IF(($CL$13:$EK$13<=DE$13*TRANSPOSE($CK$14:$CK$65>=$CK22)),$CL$10:$EK$10,1)) -> 1.53624129 | DF22: =PRODUCT(IF(($CL$13:$EK$13<=DF$13*TRANSPOSE($CK$14:$CK$65>=$CK22)),$CL$10:$EK$10,1)) -> 1.702187913 | DG22: =PRODUCT(IF(($CL$13:$EK$13<=DG$13*TRANSPOSE($CK$14:$CK$65>=$CK22)),$CL$10:$EK$10,1)) -> 1.807644628 | DH22: =PRODUCT(IF(($CL$13:$EK$13<=DH$13*TRANSPOSE($CK$14:$CK$65>=$CK22)),$CL$10:$EK$10,1)) -> 2.044404261 | DI22: =PRODUCT(IF(($CL$13:$EK$13<=DI$13*TRANSPOSE($CK$14:$CK$65>=$CK22)),$CL$10:$EK$10,1)) -> 2.317600161 | DJ22: =PRODUCT(IF(($CL$13:$EK$13<=DJ$13*TRANSPOSE($CK$14:$CK$65>=$CK22)),$CL$10:$EK$10,1)) -> 2.523527014 | DK22: =PRODUCT(IF(($CL$13:$EK$13<=DK$13*TRANSPOSE($CK$14:$CK$65>=$CK22)),$CL$10:$EK$10,1)) -> 2.741357737 | DL22: =PRODUCT(IF(($CL$13:$EK$13<=DL$13*TRANSPOSE($CK$14:$CK$65>=$CK22)),$CL$10:$EK$10,1)) -> 3.062604385 | DM22: =PRODUCT(IF(($CL$13:$EK$13<=DM$13*TRANSPOSE($CK$14:$CK$65>=$CK22)),$CL$10:$EK$10,1)) -> 3.314006359 | DN22: =PRODUCT(IF(($CL$13:$EK$13<=DN$13*TRANSPOSE($CK$14:$CK$65>=$CK22)),$CL$10:$EK$10,1)) -> 3.514695067 | DO22: =PRODUCT(IF(($CL$13:$EK$13<=DO$13*TRANSPOSE($CK$14:$CK$65>=$CK22)),$CL$10:$EK$10,1)) -> 3.710208453 | DP22: =PRODUCT(IF(($CL$13:$EK$13<=DP$13*TRANSPOSE($CK$14:$CK$65>=$CK22)),$CL$10:$EK$10,1)) -> 3.964148483 | DQ22: =PRODUCT(IF(($CL$13:$EK$13<=DQ$13*TRANSPOSE($CK$14:$CK$65>=$CK22)),$CL$10:$EK$10,1)) -> 4.262760323 | DR22: =PRODUCT(IF(($CL$13:$EK$13<=DR$13*TRANSPOSE($CK$14:$CK$65>=$CK22)),$CL$10:$EK$10,1)) -> 4.664898748 | DS22: =PRODUCT(IF(($CL$13:$EK$13<=DS$13*TRANSPOSE($CK$14:$CK$65>=$CK22)),$CL$10:$EK$10,1)) -> 6.008258473 | DT22: =PRODUCT(IF(($CL$13:$EK$13<=DT$13*TRANSPOSE($CK$14:$CK$65>=$CK22)),$CL$10:$EK$10,1)) -> 6.903860805 | DU22: =PRODUCT(IF(($CL$13:$EK$13<=DU$13*TRANSPOSE($CK$14:$CK$65>=$CK22)),$CL$10:$EK$10,1)) -> 7.932567203 | DV22: =PRODUCT(IF(($CL$13:$EK$13<=DV$13*TRANSPOSE($CK$14:$CK$65>=$CK22)),$CL$10:$EK$10,1)) -> 9.210716095 | DW22: =PRODUCT(IF(($CL$13:$EK$13<=DW$13*TRANSPOSE($CK$14:$CK$65>=$CK22)),$CL$10:$EK$10,1)) -> 9.29425986 | DX22: =PRODUCT(IF(($CL$13:$EK$13<=DX$13*TRANSPOSE($CK$14:$CK$65>=$CK22)),$CL$10:$EK$10,1)) -> 10.15040501 | DY22: =PRODUCT(IF(($CL$13:$EK$13<=DY$13*TRANSPOSE($CK$14:$CK$65>=$CK22)),$CL$10:$EK$10,1)) -> 11.89218028 | DZ22: =PRODUCT(IF(($CL$13:$EK$13<=DZ$13*TRANSPOSE($CK$14:$CK$65>=$CK22)),$CL$10:$EK$10,1)) -> 14.0572571 | EA22: =PRODUCT(IF(($CL$13:$EK$13<=EA$13*TRANSPOSE($CK$14:$CK$65>=$CK22)),$CL$10:$EK$10,1)) -> 16.46836115 | EB22: =PRODUCT(IF(($CL$13:$EK$13<=EB$13*TRANSPOSE($CK$14:$CK$65>=$CK22)),$CL$10:$EK$10,1)) -> 17.795244 | EC22: =PRODUCT(IF(($CL$13:$EK$13<=EC$13*TRANSPOSE($CK$14:$CK$65>=$CK22)),$CL$10:$EK$10,1)) -> 18.16030122 | ED22: =PRODUCT(IF(($CL$13:$EK$13<=ED$13*TRANSPOSE($CK$14:$CK$65>=$CK22)),$CL$10:$EK$10,1)) -> 18.3479882 | EE22: =PRODUCT(IF(($CL$13:$EK$13<=EE$13*TRANSPOSE($CK$14:$CK$65>=$CK22)),$CL$10:$EK$10,1)) -> 18.50529751 | EF22: =PRODUCT(IF(($CL$13:$EK$13<=EF$13*TRANSPOSE($CK$14:$CK$65>=$CK22)),$CL$10:$EK$10,1)) -> 19.32580651 | EG22: =PRODUCT(IF(($CL$13:$EK$13<=EG$13*TRANSPOSE($CK$14:$CK$65>=$CK22)),$CL$10:$EK$10,1)) -> 19.79103389 | EH22: =PRODUCT(IF(($CL$13:$EK$13<=EH$13*TRANSPOSE($CK$14:$CK$65>=$CK22)),$CL$10:$EK$10,1)) -> 20.5624276 | EI22: =PRODUCT(IF(($CL$13:$EK$13<=EI$13*TRANSPOSE($CK$14:$CK$65>=$CK22)),$CL$10:$EK$10,1)) -> 22.40474525 | EJ22: =PRODUCT(IF(($CL$13:$EK$13<=EJ$13*TRANSPOSE($CK$14:$CK$65>=$CK22)),$CL$10:$EK$10,1)) -> 25.72178577 | EK22: =PRODUCT(IF(($CL$13:$EK$13<=EK$13*TRANSPOSE($CK$14:$CK$65>=$CK22)),$CL$10:$EK$10,1)) -> 27.42158729
C23: 1982 | BE23: 1981 | BF23: 0.1153357229 | BG23: 0.1287175774 | BH23: 0.1480006719 | BI23: 0.1514964254 | BJ23: 0.2014259504 | BK23: 0.2194998201 | BL23: 0.2217339299 | BM23: 0.2344973886 | BN23: 0.2236676701 | BO23: =PRODUCT($CH14:$CH23)^(1/BO$13)-1 -> 0.2118163579 | CG23: 1981 | CH23: =HLOOKUP($W$7,dat,MATCH(CG23,Data!$B$3:$B$60,0),0)+1 -> 1.115335723 | CK23: 1981 | CL23: =PRODUCT(IF(($CL$13:$EK$13<=CL$13*TRANSPOSE($CK$14:$CK$65>=$CK23)),$CL$10:$EK$10,1)) -> 1 | CM23: =PRODUCT(IF(($CL$13:$EK$13<=CM$13*TRANSPOSE($CK$14:$CK$65>=$CK23)),$CL$10:$EK$10,1)) -> 1 | CN23: =PRODUCT(IF(($CL$13:$EK$13<=CN$13*TRANSPOSE($CK$14:$CK$65>=$CK23)),$CL$10:$EK$10,1)) -> 1 | CO23: =PRODUCT(IF(($CL$13:$EK$13<=CO$13*TRANSPOSE($CK$14:$CK$65>=$CK23)),$CL$10:$EK$10,1)) -> 1 | CP23: =PRODUCT(IF(($CL$13:$EK$13<=CP$13*TRANSPOSE($CK$14:$CK$65>=$CK23)),$CL$10:$EK$10,1)) -> 1 | CQ23: =PRODUCT(IF(($CL$13:$EK$13<=CQ$13*TRANSPOSE($CK$14:$CK$65>=$CK23)),$CL$10:$EK$10,1)) -> 1 | CR23: =PRODUCT(IF(($CL$13:$EK$13<=CR$13*TRANSPOSE($CK$14:$CK$65>=$CK23)),$CL$10:$EK$10,1)) -> 1 | CS23: =PRODUCT(IF(($CL$13:$EK$13<=CS$13*TRANSPOSE($CK$14:$CK$65>=$CK23)),$CL$10:$EK$10,1)) -> 1 | CT23: =PRODUCT(IF(($CL$13:$EK$13<=CT$13*TRANSPOSE($CK$14:$CK$65>=$CK23)),$CL$10:$EK$10,1)) -> 1 | CU23: =PRODUCT(IF(($CL$13:$EK$13<=CU$13*TRANSPOSE($CK$14:$CK$65>=$CK23)),$CL$10:$EK$10,1)) -> 1.115335723 | CV23: =PRODUCT(IF(($CL$13:$EK$13<=CV$13*TRANSPOSE($CK$14:$CK$65>=$CK23)),$CL$10:$EK$10,1)) -> 1.087604462 | CW23: =PRODUCT(IF(($CL$13:$EK$13<=CW$13*TRANSPOSE($CK$14:$CK$65>=$CK23)),$CL$10:$EK$10,1)) -> 1.04599416 | CX23: =PRODUCT(IF(($CL$13:$EK$13<=CX$13*TRANSPOSE($CK$14:$CK$65>=$CK23)),$CL$10:$EK$10,1)) -> 1.108651707 | CY23: =PRODUCT(IF(($CL$13:$EK$13<=CY$13*TRANSPOSE($CK$14:$CK$65>=$CK23)),$CL$10:$EK$10,1)) -> 0.9052320679 | CZ23: =PRODUCT(IF(($CL$13:$EK$13<=CZ$13*TRANSPOSE($CK$14:$CK$65>=$CK23)),$CL$10:$EK$10,1)) -> 0.8694126283 | DA23: =PRODUCT(IF(($CL$13:$EK$13<=DA$13*TRANSPOSE($CK$14:$CK$65>=$CK23)),$CL$10:$EK$10,1)) -> 0.8619102061 | DB23: =PRODUCT(IF(($CL$13:$EK$13<=DB$13*TRANSPOSE($CK$14:$CK$65>=$CK23)),$CL$10:$EK$10,1)) -> 0.9954916638 | DC23: =PRODUCT(IF(($CL$13:$EK$13<=DC$13*TRANSPOSE($CK$14:$CK$65>=$CK23)),$CL$10:$EK$10,1)) -> 1.151494112 | DD23: =PRODUCT(IF(($CL$13:$EK$13<=DD$13*TRANSPOSE($CK$14:$CK$65>=$CK23)),$CL$10:$EK$10,1)) -> 1.228538895 | DE23: =PRODUCT(IF(($CL$13:$EK$13<=DE$13*TRANSPOSE($CK$14:$CK$65>=$CK23)),$CL$10:$EK$10,1)) -> 1.34491386 | DF23: =PRODUCT(IF(($CL$13:$EK$13<=DF$13*TRANSPOSE($CK$14:$CK$65>=$CK23)),$CL$10:$EK$10,1)) -> 1.490193065 | DG23: =PRODUCT(IF(($CL$13:$EK$13<=DG$13*TRANSPOSE($CK$14:$CK$65>=$CK23)),$CL$10:$EK$10,1)) -> 1.58251593 | DH23: =PRODUCT(IF(($CL$13:$EK$13<=DH$13*TRANSPOSE($CK$14:$CK$65>=$CK23)),$CL$10:$EK$10,1)) -> 1.789788912 | DI23: =PRODUCT(IF(($CL$13:$EK$13<=DI$13*TRANSPOSE($CK$14:$CK$65>=$CK23)),$CL$10:$EK$10,1)) -> 2.028960293 | DJ23: =PRODUCT(IF(($CL$13:$EK$13<=DJ$13*TRANSPOSE($CK$14:$CK$65>=$CK23)),$CL$10:$EK$10,1)) -> 2.209240488 | DK23: =PRODUCT(IF(($CL$13:$EK$13<=DK$13*TRANSPOSE($CK$14:$CK$65>=$CK23)),$CL$10:$EK$10,1)) -> 2.399942014 | DL23: =PRODUCT(IF(($CL$13:$EK$13<=DL$13*TRANSPOSE($CK$14:$CK$65>=$CK23)),$CL$10:$EK$10,1)) -> 2.681179781 | DM23: =PRODUCT(IF(($CL$13:$EK$13<=DM$13*TRANSPOSE($CK$14:$CK$65>=$CK23)),$CL$10:$EK$10,1)) -> 2.901271508 | DN23: =PRODUCT(IF(($CL$13:$EK$13<=DN$13*TRANSPOSE($CK$14:$CK$65>=$CK23)),$CL$10:$EK$10,1)) -> 3.07696593 | DO23: =PRODUCT(IF(($CL$13:$EK$13<=DO$13*TRANSPOSE($CK$14:$CK$65>=$CK23)),$CL$10:$EK$10,1)) -> 3.248129578 | DP23: =PRODUCT(IF(($CL$13:$EK$13<=DP$13*TRANSPOSE($CK$14:$CK$65>=$CK23)),$CL$10:$EK$10,1)) -> 3.470443265 | DQ23: =PRODUCT(IF(($CL$13:$EK$13<=DQ$13*TRANSPOSE($CK$14:$CK$65>=$CK23)),$CL$10:$EK$10,1)) -> 3.731865221 | DR23: =PRODUCT(IF(($CL$13:$EK$13<=DR$13*TRANSPOSE($CK$14:$CK$65>=$CK23)),$CL$10:$EK$10,1)) -> 4.083920295 | DS23: =PRODUCT(IF(($CL$13:$EK$13<=DS$13*TRANSPOSE($CK$14:$CK$65>=$CK23)),$CL$10:$EK$10,1)) -> 5.259974554 | DT23: =PRODUCT(IF(($CL$13:$EK$13<=DT$13*TRANSPOSE($CK$14:$CK$65>=$CK23)),$CL$10:$EK$10,1)) -> 6.044036275 | DU23: =PRODUCT(IF(($CL$13:$EK$13<=DU$13*TRANSPOSE($CK$14:$CK$65>=$CK23)),$CL$10:$EK$10,1)) -> 6.944624941 | DV23: =PRODUCT(IF(($CL$13:$EK$13<=DV$13*TRANSPOSE($CK$14:$CK$65>=$CK23)),$CL$10:$EK$10,1)) -> 8.063589892 | DW23: =PRODUCT(IF(($CL$13:$EK$13<=DW$13*TRANSPOSE($CK$14:$CK$65>=$CK23)),$CL$10:$EK$10,1)) -> 8.136728902 | DX23: =PRODUCT(IF(($CL$13:$EK$13<=DX$13*TRANSPOSE($CK$14:$CK$65>=$CK23)),$CL$10:$EK$10,1)) -> 8.886247536 | DY23: =PRODUCT(IF(($CL$13:$EK$13<=DY$13*TRANSPOSE($CK$14:$CK$65>=$CK23)),$CL$10:$EK$10,1)) -> 10.41109765 | DZ23: =PRODUCT(IF(($CL$13:$EK$13<=DZ$13*TRANSPOSE($CK$14:$CK$65>=$CK23)),$CL$10:$EK$10,1)) -> 12.30653025 | EA23: =PRODUCT(IF(($CL$13:$EK$13<=EA$13*TRANSPOSE($CK$14:$CK$65>=$CK23)),$CL$10:$EK$10,1)) -> 14.41734922 | EB23: =PRODUCT(IF(($CL$13:$EK$13<=EB$13*TRANSPOSE($CK$14:$CK$65>=$CK23)),$CL$10:$EK$10,1)) -> 15.57897868 | EC23: =PRODUCT(IF(($CL$13:$EK$13<=EC$13*TRANSPOSE($CK$14:$CK$65>=$CK23)),$CL$10:$EK$10,1)) -> 15.89857074 | ED23: =PRODUCT(IF(($CL$13:$EK$13<=ED$13*TRANSPOSE($CK$14:$CK$65>=$CK23)),$CL$10:$EK$10,1)) -> 16.0628827 | EE23: =PRODUCT(IF(($CL$13:$EK$13<=EE$13*TRANSPOSE($CK$14:$CK$65>=$CK23)),$CL$10:$EK$10,1)) -> 16.2006003 | EF23: =PRODUCT(IF(($CL$13:$EK$13<=EF$13*TRANSPOSE($CK$14:$CK$65>=$CK23)),$CL$10:$EK$10,1)) -> 16.91892101 | EG23: =PRODUCT(IF(($CL$13:$EK$13<=EG$13*TRANSPOSE($CK$14:$CK$65>=$CK23)),$CL$10:$EK$10,1)) -> 17.32620778 | EH23: =PRODUCT(IF(($CL$13:$EK$13<=EH$13*TRANSPOSE($CK$14:$CK$65>=$CK23)),$CL$10:$EK$10,1)) -> 18.00153013 | EI23: =PRODUCT(IF(($CL$13:$EK$13<=EI$13*TRANSPOSE($CK$14:$CK$65>=$CK23)),$CL$10:$EK$10,1)) -> 19.61440082 | EJ23: =PRODUCT(IF(($CL$13:$EK$13<=EJ$13*TRANSPOSE($CK$14:$CK$65>=$CK23)),$CL$10:$EK$10,1)) -> 22.51832861 | EK23: =PRODUCT(IF(($CL$13:$EK$13<=EK$13*TRANSPOSE($CK$14:$CK$65>=$CK23)),$CL$10:$EK$10,1)) -> 24.00643248
C24: 1983 | BE24: 1982 | BF24: -0.02486359927 | BG24: 0.04288276541 | BH24: 0.07500870673 | BI24: 0.1021049393 | BJ24: 0.1138408691 | BK24: 0.1603572899 | BL24: 0.1811579384 | BM24: 0.1877847003 | BN24: 0.2025679952 | BO24: 0.1961996587 | BP24: =PRODUCT($CH14:$CH24)^(1/BP$13)-1 -> 0.1881125643 | CG24: 1982 | CH24: =HLOOKUP($W$7,dat,MATCH(CG24,Data!$B$3:$B$60,0),0)+1 -> 0.9751364007 | CK24: 1982 | CL24: =PRODUCT(IF(($CL$13:$EK$13<=CL$13*TRANSPOSE($CK$14:$CK$65>=$CK24)),$CL$10:$EK$10,1)) -> 1 | CM24: =PRODUCT(IF(($CL$13:$EK$13<=CM$13*TRANSPOSE($CK$14:$CK$65>=$CK24)),$CL$10:$EK$10,1)) -> 1 | CN24: =PRODUCT(IF(($CL$13:$EK$13<=CN$13*TRANSPOSE($CK$14:$CK$65>=$CK24)),$CL$10:$EK$10,1)) -> 1 | CO24: =PRODUCT(IF(($CL$13:$EK$13<=CO$13*TRANSPOSE($CK$14:$CK$65>=$CK24)),$CL$10:$EK$10,1)) -> 1 | CP24: =PRODUCT(IF(($CL$13:$EK$13<=CP$13*TRANSPOSE($CK$14:$CK$65>=$CK24)),$CL$10:$EK$10,1)) -> 1 | CQ24: =PRODUCT(IF(($CL$13:$EK$13<=CQ$13*TRANSPOSE($CK$14:$CK$65>=$CK24)),$CL$10:$EK$10,1)) -> 1 | CR24: =PRODUCT(IF(($CL$13:$EK$13<=CR$13*TRANSPOSE($CK$14:$CK$65>=$CK24)),$CL$10:$EK$10,1)) -> 1 | CS24: =PRODUCT(IF(($CL$13:$EK$13<=CS$13*TRANSPOSE($CK$14:$CK$65>=$CK24)),$CL$10:$EK$10,1)) -> 1 | CT24: =PRODUCT(IF(($CL$13:$EK$13<=CT$13*TRANSPOSE($CK$14:$CK$65>=$CK24)),$CL$10:$EK$10,1)) -> 1 | CU24: =PRODUCT(IF(($CL$13:$EK$13<=CU$13*TRANSPOSE($CK$14:$CK$65>=$CK24)),$CL$10:$EK$10,1)) -> 1 | CV24: =PRODUCT(IF(($CL$13:$EK$13<=CV$13*TRANSPOSE($CK$14:$CK$65>=$CK24)),$CL$10:$EK$10,1)) -> 0.9751364007 | CW24: =PRODUCT(IF(($CL$13:$EK$13<=CW$13*TRANSPOSE($CK$14:$CK$65>=$CK24)),$CL$10:$EK$10,1)) -> 0.9378289772 | CX24: =PRODUCT(IF(($CL$13:$EK$13<=CX$13*TRANSPOSE($CK$14:$CK$65>=$CK24)),$CL$10:$EK$10,1)) -> 0.9940071714 | CY24: =PRODUCT(IF(($CL$13:$EK$13<=CY$13*TRANSPOSE($CK$14:$CK$65>=$CK24)),$CL$10:$EK$10,1)) -> 0.8116229485 | CZ24: =PRODUCT(IF(($CL$13:$EK$13<=CZ$13*TRANSPOSE($CK$14:$CK$65>=$CK24)),$CL$10:$EK$10,1)) -> 0.7795075604 | DA24: =PRODUCT(IF(($CL$13:$EK$13<=DA$13*TRANSPOSE($CK$14:$CK$65>=$CK24)),$CL$10:$EK$10,1)) -> 0.7727809559 | DB24: =PRODUCT(IF(($CL$13:$EK$13<=DB$13*TRANSPOSE($CK$14:$CK$65>=$CK24)),$CL$10:$EK$10,1)) -> 0.8925488921 | DC24: =PRODUCT(IF(($CL$13:$EK$13<=DC$13*TRANSPOSE($CK$14:$CK$65>=$CK24)),$CL$10:$EK$10,1)) -> 1.032419287 | DD24: =PRODUCT(IF(($CL$13:$EK$13<=DD$13*TRANSPOSE($CK$14:$CK$65>=$CK24)),$CL$10:$EK$10,1)) -> 1.101496948 | DE24: =PRODUCT(IF(($CL$13:$EK$13<=DE$13*TRANSPOSE($CK$14:$CK$65>=$CK24)),$CL$10:$EK$10,1)) -> 1.205837698 | DF24: =PRODUCT(IF(($CL$13:$EK$13<=DF$13*TRANSPOSE($CK$14:$CK$65>=$CK24)),$CL$10:$EK$10,1)) -> 1.336093729 | DG24: =PRODUCT(IF(($CL$13:$EK$13<=DG$13*TRANSPOSE($CK$14:$CK$65>=$CK24)),$CL$10:$EK$10,1)) -> 1.418869581 | DH24: =PRODUCT(IF(($CL$13:$EK$13<=DH$13*TRANSPOSE($CK$14:$CK$65>=$CK24)),$CL$10:$EK$10,1)) -> 1.604708677 | DI24: =PRODUCT(IF(($CL$13:$EK$13<=DI$13*TRANSPOSE($CK$14:$CK$65>=$CK24)),$CL$10:$EK$10,1)) -> 1.819147591 | DJ24: =PRODUCT(IF(($CL$13:$EK$13<=DJ$13*TRANSPOSE($CK$14:$CK$65>=$CK24)),$CL$10:$EK$10,1)) -> 1.980785196 | DK24: =PRODUCT(IF(($CL$13:$EK$13<=DK$13*TRANSPOSE($CK$14:$CK$65>=$CK24)),$CL$10:$EK$10,1)) -> 2.151766473 | DL24: =PRODUCT(IF(($CL$13:$EK$13<=DL$13*TRANSPOSE($CK$14:$CK$65>=$CK24)),$CL$10:$EK$10,1)) -> 2.403921731 | DM24: =PRODUCT(IF(($CL$13:$EK$13<=DM$13*TRANSPOSE($CK$14:$CK$65>=$CK24)),$CL$10:$EK$10,1)) -> 2.601253998 | DN24: =PRODUCT(IF(($CL$13:$EK$13<=DN$13*TRANSPOSE($CK$14:$CK$65>=$CK24)),$CL$10:$EK$10,1)) -> 2.75878004 | DO24: =PRODUCT(IF(($CL$13:$EK$13<=DO$13*TRANSPOSE($CK$14:$CK$65>=$CK24)),$CL$10:$EK$10,1)) -> 2.91224383 | DP24: =PRODUCT(IF(($CL$13:$EK$13<=DP$13*TRANSPOSE($CK$14:$CK$65>=$CK24)),$CL$10:$EK$10,1)) -> 3.111568288 | DQ24: =PRODUCT(IF(($CL$13:$EK$13<=DQ$13*TRANSPOSE($CK$14:$CK$65>=$CK24)),$CL$10:$EK$10,1)) -> 3.345956867 | DR24: =PRODUCT(IF(($CL$13:$EK$13<=DR$13*TRANSPOSE($CK$14:$CK$65>=$CK24)),$CL$10:$EK$10,1)) -> 3.661606287 | DS24: =PRODUCT(IF(($CL$13:$EK$13<=DS$13*TRANSPOSE($CK$14:$CK$65>=$CK24)),$CL$10:$EK$10,1)) -> 4.716045982 | DT24: =PRODUCT(IF(($CL$13:$EK$13<=DT$13*TRANSPOSE($CK$14:$CK$65>=$CK24)),$CL$10:$EK$10,1)) -> 5.419028685 | DU24: =PRODUCT(IF(($CL$13:$EK$13<=DU$13*TRANSPOSE($CK$14:$CK$65>=$CK24)),$CL$10:$EK$10,1)) -> 6.226488401 | DV24: =PRODUCT(IF(($CL$13:$EK$13<=DV$13*TRANSPOSE($CK$14:$CK$65>=$CK24)),$CL$10:$EK$10,1)) -> 7.229742334 | DW24: =PRODUCT(IF(($CL$13:$EK$13<=DW$13*TRANSPOSE($CK$14:$CK$65>=$CK24)),$CL$10:$EK$10,1)) -> 7.295318114 | DX24: =PRODUCT(IF(($CL$13:$EK$13<=DX$13*TRANSPOSE($CK$14:$CK$65>=$CK24)),$CL$10:$EK$10,1)) -> 7.967329795 | DY24: =PRODUCT(IF(($CL$13:$EK$13<=DY$13*TRANSPOSE($CK$14:$CK$65>=$CK24)),$CL$10:$EK$10,1)) -> 9.334496726 | DZ24: =PRODUCT(IF(($CL$13:$EK$13<=DZ$13*TRANSPOSE($CK$14:$CK$65>=$CK24)),$CL$10:$EK$10,1)) -> 11.03392458 | EA24: =PRODUCT(IF(($CL$13:$EK$13<=EA$13*TRANSPOSE($CK$14:$CK$65>=$CK24)),$CL$10:$EK$10,1)) -> 12.92646593 | EB24: =PRODUCT(IF(($CL$13:$EK$13<=EB$13*TRANSPOSE($CK$14:$CK$65>=$CK24)),$CL$10:$EK$10,1)) -> 13.96797248 | EC24: =PRODUCT(IF(($CL$13:$EK$13<=EC$13*TRANSPOSE($CK$14:$CK$65>=$CK24)),$CL$10:$EK$10,1)) -> 14.25451585 | ED24: =PRODUCT(IF(($CL$13:$EK$13<=ED$13*TRANSPOSE($CK$14:$CK$65>=$CK24)),$CL$10:$EK$10,1)) -> 14.40183647 | EE24: =PRODUCT(IF(($CL$13:$EK$13<=EE$13*TRANSPOSE($CK$14:$CK$65>=$CK24)),$CL$10:$EK$10,1)) -> 14.52531284 | EF24: =PRODUCT(IF(($CL$13:$EK$13<=EF$13*TRANSPOSE($CK$14:$CK$65>=$CK24)),$CL$10:$EK$10,1)) -> 15.16935274 | EG24: =PRODUCT(IF(($CL$13:$EK$13<=EG$13*TRANSPOSE($CK$14:$CK$65>=$CK24)),$CL$10:$EK$10,1)) -> 15.53452241 | EH24: =PRODUCT(IF(($CL$13:$EK$13<=EH$13*TRANSPOSE($CK$14:$CK$65>=$CK24)),$CL$10:$EK$10,1)) -> 16.14001037 | EI24: =PRODUCT(IF(($CL$13:$EK$13<=EI$13*TRANSPOSE($CK$14:$CK$65>=$CK24)),$CL$10:$EK$10,1)) -> 17.58609576 | EJ24: =PRODUCT(IF(($CL$13:$EK$13<=EJ$13*TRANSPOSE($CK$14:$CK$65>=$CK24)),$CL$10:$EK$10,1)) -> 20.18973135 | EK24: =PRODUCT(IF(($CL$13:$EK$13<=EK$13*TRANSPOSE($CK$14:$CK$65>=$CK24)),$CL$10:$EK$10,1)) -> 21.52395193
C25: 1984 | BE25: 1983 | BF25: -0.03825867181 | BG25: -0.03158429525 | BH25: 0.01510216325 | BI25: 0.04549884181 | BJ25: 0.07248200717 | BK25: 0.08691522118 | BL25: 0.1296504989 | BM25: 0.1512025989 | BN25: 0.160248783 | BO25: 0.1759923733 | BP25: 0.1727095353 | BQ25: =PRODUCT($CH14:$CH25)^(1/BQ$13)-1 -> 0.1673676288 | CG25: 1983 | CH25: =HLOOKUP($W$7,dat,MATCH(CG25,Data!$B$3:$B$60,0),0)+1 -> 0.9617413282 | CK25: 1983 | CL25: =PRODUCT(IF(($CL$13:$EK$13<=CL$13*TRANSPOSE($CK$14:$CK$65>=$CK25)),$CL$10:$EK$10,1)) -> 1 | CM25: =PRODUCT(IF(($CL$13:$EK$13<=CM$13*TRANSPOSE($CK$14:$CK$65>=$CK25)),$CL$10:$EK$10,1)) -> 1 | CN25: =PRODUCT(IF(($CL$13:$EK$13<=CN$13*TRANSPOSE($CK$14:$CK$65>=$CK25)),$CL$10:$EK$10,1)) -> 1 | CO25: =PRODUCT(IF(($CL$13:$EK$13<=CO$13*TRANSPOSE($CK$14:$CK$65>=$CK25)),$CL$10:$EK$10,1)) -> 1 | CP25: =PRODUCT(IF(($CL$13:$EK$13<=CP$13*TRANSPOSE($CK$14:$CK$65>=$CK25)),$CL$10:$EK$10,1)) -> 1 | CQ25: =PRODUCT(IF(($CL$13:$EK$13<=CQ$13*TRANSPOSE($CK$14:$CK$65>=$CK25)),$CL$10:$EK$10,1)) -> 1 | CR25: =PRODUCT(IF(($CL$13:$EK$13<=CR$13*TRANSPOSE($CK$14:$CK$65>=$CK25)),$CL$10:$EK$10,1)) -> 1 | CS25: =PRODUCT(IF(($CL$13:$EK$13<=CS$13*TRANSPOSE($CK$14:$CK$65>=$CK25)),$CL$10:$EK$10,1)) -> 1 | CT25: =PRODUCT(IF(($CL$13:$EK$13<=CT$13*TRANSPOSE($CK$14:$CK$65>=$CK25)),$CL$10:$EK$10,1)) -> 1 | CU25: =PRODUCT(IF(($CL$13:$EK$13<=CU$13*TRANSPOSE($CK$14:$CK$65>=$CK25)),$CL$10:$EK$10,1)) -> 1 | CV25: =PRODUCT(IF(($CL$13:$EK$13<=CV$13*TRANSPOSE($CK$14:$CK$65>=$CK25)),$CL$10:$EK$10,1)) -> 1 | CW25: =PRODUCT(IF(($CL$13:$EK$13<=CW$13*TRANSPOSE($CK$14:$CK$65>=$CK25)),$CL$10:$EK$10,1)) -> 0.9617413282 | CX25: =PRODUCT(IF(($CL$13:$EK$13<=CX$13*TRANSPOSE($CK$14:$CK$65>=$CK25)),$CL$10:$EK$10,1)) -> 1.019351929 | CY25: =PRODUCT(IF(($CL$13:$EK$13<=CY$13*TRANSPOSE($CK$14:$CK$65>=$CK25)),$CL$10:$EK$10,1)) -> 0.8323173536 | CZ25: =PRODUCT(IF(($CL$13:$EK$13<=CZ$13*TRANSPOSE($CK$14:$CK$65>=$CK25)),$CL$10:$EK$10,1)) -> 0.7993831015 | DA25: =PRODUCT(IF(($CL$13:$EK$13<=DA$13*TRANSPOSE($CK$14:$CK$65>=$CK25)),$CL$10:$EK$10,1)) -> 0.792484985 | DB25: =PRODUCT(IF(($CL$13:$EK$13<=DB$13*TRANSPOSE($CK$14:$CK$65>=$CK25)),$CL$10:$EK$10,1)) -> 0.9153067114 | DC25: =PRODUCT(IF(($CL$13:$EK$13<=DC$13*TRANSPOSE($CK$14:$CK$65>=$CK25)),$CL$10:$EK$10,1)) -> 1.05874346 | DD25: =PRODUCT(IF(($CL$13:$EK$13<=DD$13*TRANSPOSE($CK$14:$CK$65>=$CK25)),$CL$10:$EK$10,1)) -> 1.129582433 | DE25: =PRODUCT(IF(($CL$13:$EK$13<=DE$13*TRANSPOSE($CK$14:$CK$65>=$CK25)),$CL$10:$EK$10,1)) -> 1.236583617 | DF25: =PRODUCT(IF(($CL$13:$EK$13<=DF$13*TRANSPOSE($CK$14:$CK$65>=$CK25)),$CL$10:$EK$10,1)) -> 1.37016086 | DG25: =PRODUCT(IF(($CL$13:$EK$13<=DG$13*TRANSPOSE($CK$14:$CK$65>=$CK25)),$CL$10:$EK$10,1)) -> 1.455047294 | DH25: =PRODUCT(IF(($CL$13:$EK$13<=DH$13*TRANSPOSE($CK$14:$CK$65>=$CK25)),$CL$10:$EK$10,1)) -> 1.645624833 | DI25: =PRODUCT(IF(($CL$13:$EK$13<=DI$13*TRANSPOSE($CK$14:$CK$65>=$CK25)),$CL$10:$EK$10,1)) -> 1.865531417 | DJ25: =PRODUCT(IF(($CL$13:$EK$13<=DJ$13*TRANSPOSE($CK$14:$CK$65>=$CK25)),$CL$10:$EK$10,1)) -> 2.031290386 | DK25: =PRODUCT(IF(($CL$13:$EK$13<=DK$13*TRANSPOSE($CK$14:$CK$65>=$CK25)),$CL$10:$EK$10,1)) -> 2.206631269 | DL25: =PRODUCT(IF(($CL$13:$EK$13<=DL$13*TRANSPOSE($CK$14:$CK$65>=$CK25)),$CL$10:$EK$10,1)) -> 2.46521587 | DM25: =PRODUCT(IF(($CL$13:$EK$13<=DM$13*TRANSPOSE($CK$14:$CK$65>=$CK25)),$CL$10:$EK$10,1)) -> 2.667579629 | DN25: =PRODUCT(IF(($CL$13:$EK$13<=DN$13*TRANSPOSE($CK$14:$CK$65>=$CK25)),$CL$10:$EK$10,1)) -> 2.829122201 | DO25: =PRODUCT(IF(($CL$13:$EK$13<=DO$13*TRANSPOSE($CK$14:$CK$65>=$CK25)),$CL$10:$EK$10,1)) -> 2.986498943 | DP25: =PRODUCT(IF(($CL$13:$EK$13<=DP$13*TRANSPOSE($CK$14:$CK$65>=$CK25)),$CL$10:$EK$10,1)) -> 3.190905688 | DQ25: =PRODUCT(IF(($CL$13:$EK$13<=DQ$13*TRANSPOSE($CK$14:$CK$65>=$CK25)),$CL$10:$EK$10,1)) -> 3.431270604 | DR25: =PRODUCT(IF(($CL$13:$EK$13<=DR$13*TRANSPOSE($CK$14:$CK$65>=$CK25)),$CL$10:$EK$10,1)) -> 3.754968314 | DS25: =PRODUCT(IF(($CL$13:$EK$13<=DS$13*TRANSPOSE($CK$14:$CK$65>=$CK25)),$CL$10:$EK$10,1)) -> 4.836293649 | DT25: =PRODUCT(IF(($CL$13:$EK$13<=DT$13*TRANSPOSE($CK$14:$CK$65>=$CK25)),$CL$10:$EK$10,1)) -> 5.557200696 | DU25: =PRODUCT(IF(($CL$13:$EK$13<=DU$13*TRANSPOSE($CK$14:$CK$65>=$CK25)),$CL$10:$EK$10,1)) -> 6.385248665 | DV25: =PRODUCT(IF(($CL$13:$EK$13<=DV$13*TRANSPOSE($CK$14:$CK$65>=$CK25)),$CL$10:$EK$10,1)) -> 7.414083126 | DW25: =PRODUCT(IF(($CL$13:$EK$13<=DW$13*TRANSPOSE($CK$14:$CK$65>=$CK25)),$CL$10:$EK$10,1)) -> 7.481330928 | DX25: =PRODUCT(IF(($CL$13:$EK$13<=DX$13*TRANSPOSE($CK$14:$CK$65>=$CK25)),$CL$10:$EK$10,1)) -> 8.170477267 | DY25: =PRODUCT(IF(($CL$13:$EK$13<=DY$13*TRANSPOSE($CK$14:$CK$65>=$CK25)),$CL$10:$EK$10,1)) -> 9.57250362 | DZ25: =PRODUCT(IF(($CL$13:$EK$13<=DZ$13*TRANSPOSE($CK$14:$CK$65>=$CK25)),$CL$10:$EK$10,1)) -> 11.31526274 | EA25: =PRODUCT(IF(($CL$13:$EK$13<=EA$13*TRANSPOSE($CK$14:$CK$65>=$CK25)),$CL$10:$EK$10,1)) -> 13.25605927 | EB25: =PRODUCT(IF(($CL$13:$EK$13<=EB$13*TRANSPOSE($CK$14:$CK$65>=$CK25)),$CL$10:$EK$10,1)) -> 14.3241217 | EC25: =PRODUCT(IF(($CL$13:$EK$13<=EC$13*TRANSPOSE($CK$14:$CK$65>=$CK25)),$CL$10:$EK$10,1)) -> 14.61797123 | ED25: =PRODUCT(IF(($CL$13:$EK$13<=ED$13*TRANSPOSE($CK$14:$CK$65>=$CK25)),$CL$10:$EK$10,1)) -> 14.76904817 | EE25: =PRODUCT(IF(($CL$13:$EK$13<=EE$13*TRANSPOSE($CK$14:$CK$65>=$CK25)),$CL$10:$EK$10,1)) -> 14.89567288 | EF25: =PRODUCT(IF(($CL$13:$EK$13<=EF$13*TRANSPOSE($CK$14:$CK$65>=$CK25)),$CL$10:$EK$10,1)) -> 15.55613423 | EG25: =PRODUCT(IF(($CL$13:$EK$13<=EG$13*TRANSPOSE($CK$14:$CK$65>=$CK25)),$CL$10:$EK$10,1)) -> 15.93061483 | EH25: =PRODUCT(IF(($CL$13:$EK$13<=EH$13*TRANSPOSE($CK$14:$CK$65>=$CK25)),$CL$10:$EK$10,1)) -> 16.55154126 | EI25: =PRODUCT(IF(($CL$13:$EK$13<=EI$13*TRANSPOSE($CK$14:$CK$65>=$CK25)),$CL$10:$EK$10,1)) -> 18.0344983 | EJ25: =PRODUCT(IF(($CL$13:$EK$13<=EJ$13*TRANSPOSE($CK$14:$CK$65>=$CK25)),$CL$10:$EK$10,1)) -> 20.70452024 | EK25: =PRODUCT(IF(($CL$13:$EK$13<=EK$13*TRANSPOSE($CK$14:$CK$65>=$CK25)),$CL$10:$EK$10,1)) -> 22.07276019
C26: 1985 | BE26: 1984 | BF26: 0.05990238688 | BG26: 0.009629600056 | BH26: -0.002001613308 | BI26: 0.02612148859 | BJ26: 0.0483638061 | BK26: 0.07037508306 | BL26: 0.08301449839 | BM26: 0.1206869633 | BN26: 0.1406816105 | BO26: 0.1498007734 | BP26: 0.1649331204 | BQ26: 0.162867075 | BR26: =PRODUCT($CH14:$CH26)^(1/BR$13)-1 -> 0.1587276107 | CG26: 1984 | CH26: =HLOOKUP($W$7,dat,MATCH(CG26,Data!$B$3:$B$60,0),0)+1 -> 1.059902387 | CK26: 1984 | CL26: =PRODUCT(IF(($CL$13:$EK$13<=CL$13*TRANSPOSE($CK$14:$CK$65>=$CK26)),$CL$10:$EK$10,1)) -> 1 | CM26: =PRODUCT(IF(($CL$13:$EK$13<=CM$13*TRANSPOSE($CK$14:$CK$65>=$CK26)),$CL$10:$EK$10,1)) -> 1 | CN26: =PRODUCT(IF(($CL$13:$EK$13<=CN$13*TRANSPOSE($CK$14:$CK$65>=$CK26)),$CL$10:$EK$10,1)) -> 1 | CO26: =PRODUCT(IF(($CL$13:$EK$13<=CO$13*TRANSPOSE($CK$14:$CK$65>=$CK26)),$CL$10:$EK$10,1)) -> 1 | CP26: =PRODUCT(IF(($CL$13:$EK$13<=CP$13*TRANSPOSE($CK$14:$CK$65>=$CK26)),$CL$10:$EK$10,1)) -> 1 | CQ26: =PRODUCT(IF(($CL$13:$EK$13<=CQ$13*TRANSPOSE($CK$14:$CK$65>=$CK26)),$CL$10:$EK$10,1)) -> 1 | CR26: =PRODUCT(IF(($CL$13:$EK$13<=CR$13*TRANSPOSE($CK$14:$CK$65>=$CK26)),$CL$10:$EK$10,1)) -> 1 | CS26: =PRODUCT(IF(($CL$13:$EK$13<=CS$13*TRANSPOSE($CK$14:$CK$65>=$CK26)),$CL$10:$EK$10,1)) -> 1 | CT26: =PRODUCT(IF(($CL$13:$EK$13<=CT$13*TRANSPOSE($CK$14:$CK$65>=$CK26)),$CL$10:$EK$10,1)) -> 1 | CU26: =PRODUCT(IF(($CL$13:$EK$13<=CU$13*TRANSPOSE($CK$14:$CK$65>=$CK26)),$CL$10:$EK$10,1)) -> 1 | CV26: =PRODUCT(IF(($CL$13:$EK$13<=CV$13*TRANSPOSE($CK$14:$CK$65>=$CK26)),$CL$10:$EK$10,1)) -> 1 | CW26: =PRODUCT(IF(($CL$13:$EK$13<=CW$13*TRANSPOSE($CK$14:$CK$65>=$CK26)),$CL$10:$EK$10,1)) -> 1 | CX26: =PRODUCT(IF(($CL$13:$EK$13<=CX$13*TRANSPOSE($CK$14:$CK$65>=$CK26)),$CL$10:$EK$10,1)) -> 1.059902387 | CY26: =PRODUCT(IF(($CL$13:$EK$13<=CY$13*TRANSPOSE($CK$14:$CK$65>=$CK26)),$CL$10:$EK$10,1)) -> 0.8654274587 | CZ26: =PRODUCT(IF(($CL$13:$EK$13<=CZ$13*TRANSPOSE($CK$14:$CK$65>=$CK26)),$CL$10:$EK$10,1)) -> 0.8311830615 | DA26: =PRODUCT(IF(($CL$13:$EK$13<=DA$13*TRANSPOSE($CK$14:$CK$65>=$CK26)),$CL$10:$EK$10,1)) -> 0.8240105336 | DB26: =PRODUCT(IF(($CL$13:$EK$13<=DB$13*TRANSPOSE($CK$14:$CK$65>=$CK26)),$CL$10:$EK$10,1)) -> 0.9517181851 | DC26: =PRODUCT(IF(($CL$13:$EK$13<=DC$13*TRANSPOSE($CK$14:$CK$65>=$CK26)),$CL$10:$EK$10,1)) -> 1.100860938 | DD26: =PRODUCT(IF(($CL$13:$EK$13<=DD$13*TRANSPOSE($CK$14:$CK$65>=$CK26)),$CL$10:$EK$10,1)) -> 1.174517929 | DE26: =PRODUCT(IF(($CL$13:$EK$13<=DE$13*TRANSPOSE($CK$14:$CK$65>=$CK26)),$CL$10:$EK$10,1)) -> 1.285775687 | DF26: =PRODUCT(IF(($CL$13:$EK$13<=DF$13*TRANSPOSE($CK$14:$CK$65>=$CK26)),$CL$10:$EK$10,1)) -> 1.424666716 | DG26: =PRODUCT(IF(($CL$13:$EK$13<=DG$13*TRANSPOSE($CK$14:$CK$65>=$CK26)),$CL$10:$EK$10,1)) -> 1.512929986 | DH26: =PRODUCT(IF(($CL$13:$EK$13<=DH$13*TRANSPOSE($CK$14:$CK$65>=$CK26)),$CL$10:$EK$10,1)) -> 1.711088818 | DI26: =PRODUCT(IF(($CL$13:$EK$13<=DI$13*TRANSPOSE($CK$14:$CK$65>=$CK26)),$CL$10:$EK$10,1)) -> 1.939743424 | DJ26: =PRODUCT(IF(($CL$13:$EK$13<=DJ$13*TRANSPOSE($CK$14:$CK$65>=$CK26)),$CL$10:$EK$10,1)) -> 2.112096388 | DK26: =PRODUCT(IF(($CL$13:$EK$13<=DK$13*TRANSPOSE($CK$14:$CK$65>=$CK26)),$CL$10:$EK$10,1)) -> 2.294412441 | DL26: =PRODUCT(IF(($CL$13:$EK$13<=DL$13*TRANSPOSE($CK$14:$CK$65>=$CK26)),$CL$10:$EK$10,1)) -> 2.5632837 | DM26: =PRODUCT(IF(($CL$13:$EK$13<=DM$13*TRANSPOSE($CK$14:$CK$65>=$CK26)),$CL$10:$EK$10,1)) -> 2.773697616 | DN26: =PRODUCT(IF(($CL$13:$EK$13<=DN$13*TRANSPOSE($CK$14:$CK$65>=$CK26)),$CL$10:$EK$10,1)) -> 2.941666452 | DO26: =PRODUCT(IF(($CL$13:$EK$13<=DO$13*TRANSPOSE($CK$14:$CK$65>=$CK26)),$CL$10:$EK$10,1)) -> 3.10530374 | DP26: =PRODUCT(IF(($CL$13:$EK$13<=DP$13*TRANSPOSE($CK$14:$CK$65>=$CK26)),$CL$10:$EK$10,1)) -> 3.317841913 | DQ26: =PRODUCT(IF(($CL$13:$EK$13<=DQ$13*TRANSPOSE($CK$14:$CK$65>=$CK26)),$CL$10:$EK$10,1)) -> 3.567768696 | DR26: =PRODUCT(IF(($CL$13:$EK$13<=DR$13*TRANSPOSE($CK$14:$CK$65>=$CK26)),$CL$10:$EK$10,1)) -> 3.904343304 | DS26: =PRODUCT(IF(($CL$13:$EK$13<=DS$13*TRANSPOSE($CK$14:$CK$65>=$CK26)),$CL$10:$EK$10,1)) -> 5.028684437 | DT26: =PRODUCT(IF(($CL$13:$EK$13<=DT$13*TRANSPOSE($CK$14:$CK$65>=$CK26)),$CL$10:$EK$10,1)) -> 5.778269617 | DU26: =PRODUCT(IF(($CL$13:$EK$13<=DU$13*TRANSPOSE($CK$14:$CK$65>=$CK26)),$CL$10:$EK$10,1)) -> 6.639257852 | DV26: =PRODUCT(IF(($CL$13:$EK$13<=DV$13*TRANSPOSE($CK$14:$CK$65>=$CK26)),$CL$10:$EK$10,1)) -> 7.709019991 | DW26: =PRODUCT(IF(($CL$13:$EK$13<=DW$13*TRANSPOSE($CK$14:$CK$65>=$CK26)),$CL$10:$EK$10,1)) -> 7.778942954 | DX26: =PRODUCT(IF(($CL$13:$EK$13<=DX$13*TRANSPOSE($CK$14:$CK$65>=$CK26)),$CL$10:$EK$10,1)) -> 8.495503965 | DY26: =PRODUCT(IF(($CL$13:$EK$13<=DY$13*TRANSPOSE($CK$14:$CK$65>=$CK26)),$CL$10:$EK$10,1)) -> 9.953303804 | DZ26: =PRODUCT(IF(($CL$13:$EK$13<=DZ$13*TRANSPOSE($CK$14:$CK$65>=$CK26)),$CL$10:$EK$10,1)) -> 11.76539097 | EA26: =PRODUCT(IF(($CL$13:$EK$13<=EA$13*TRANSPOSE($CK$14:$CK$65>=$CK26)),$CL$10:$EK$10,1)) -> 13.7833936 | EB26: =PRODUCT(IF(($CL$13:$EK$13<=EB$13*TRANSPOSE($CK$14:$CK$65>=$CK26)),$CL$10:$EK$10,1)) -> 14.89394422 | EC26: =PRODUCT(IF(($CL$13:$EK$13<=EC$13*TRANSPOSE($CK$14:$CK$65>=$CK26)),$CL$10:$EK$10,1)) -> 15.19948327 | ED26: =PRODUCT(IF(($CL$13:$EK$13<=ED$13*TRANSPOSE($CK$14:$CK$65>=$CK26)),$CL$10:$EK$10,1)) -> 15.35657015 | EE26: =PRODUCT(IF(($CL$13:$EK$13<=EE$13*TRANSPOSE($CK$14:$CK$65>=$CK26)),$CL$10:$EK$10,1)) -> 15.48823207 | EF26: =PRODUCT(IF(($CL$13:$EK$13<=EF$13*TRANSPOSE($CK$14:$CK$65>=$CK26)),$CL$10:$EK$10,1)) -> 16.17496699 | EG26: =PRODUCT(IF(($CL$13:$EK$13<=EG$13*TRANSPOSE($CK$14:$CK$65>=$CK26)),$CL$10:$EK$10,1)) -> 16.56434465 | EH26: =PRODUCT(IF(($CL$13:$EK$13<=EH$13*TRANSPOSE($CK$14:$CK$65>=$CK26)),$CL$10:$EK$10,1)) -> 17.20997193 | EI26: =PRODUCT(IF(($CL$13:$EK$13<=EI$13*TRANSPOSE($CK$14:$CK$65>=$CK26)),$CL$10:$EK$10,1)) -> 18.75192192 | EJ26: =PRODUCT(IF(($CL$13:$EK$13<=EJ$13*TRANSPOSE($CK$14:$CK$65>=$CK26)),$CL$10:$EK$10,1)) -> 21.52815901 | EK26: =PRODUCT(IF(($CL$13:$EK$13<=EK$13*TRANSPOSE($CK$14:$CK$65>=$CK26)),$CL$10:$EK$10,1)) -> 22.95082841
C27: 1986 | BE27: 1985 | BF27: -0.18348381 | BG27: -0.06971646326 | BH27: -0.05934655605 | BI27: -0.05084185362 | BJ27: -0.01971583779 | BK27: 0.005589698765 | BL27: 0.0297696939 | BM27: 0.04544354831 | BN27: 0.08194297975 | BO27: 0.1031751646 | BP27: 0.1145723149 | BQ27: 0.1309402051 | BR27: 0.1316636361 | BS27: =PRODUCT($CH14:$CH27)^(1/BS$13)-1 -> 0.1301160173 | CG27: 1985 | CH27: =HLOOKUP($W$7,dat,MATCH(CG27,Data!$B$3:$B$60,0),0)+1 -> 0.81651619 | CK27: 1985 | CL27: =PRODUCT(IF(($CL$13:$EK$13<=CL$13*TRANSPOSE($CK$14:$CK$65>=$CK27)),$CL$10:$EK$10,1)) -> 1 | CM27: =PRODUCT(IF(($CL$13:$EK$13<=CM$13*TRANSPOSE($CK$14:$CK$65>=$CK27)),$CL$10:$EK$10,1)) -> 1 | CN27: =PRODUCT(IF(($CL$13:$EK$13<=CN$13*TRANSPOSE($CK$14:$CK$65>=$CK27)),$CL$10:$EK$10,1)) -> 1 | CO27: =PRODUCT(IF(($CL$13:$EK$13<=CO$13*TRANSPOSE($CK$14:$CK$65>=$CK27)),$CL$10:$EK$10,1)) -> 1 | CP27: =PRODUCT(IF(($CL$13:$EK$13<=CP$13*TRANSPOSE($CK$14:$CK$65>=$CK27)),$CL$10:$EK$10,1)) -> 1 | CQ27: =PRODUCT(IF(($CL$13:$EK$13<=CQ$13*TRANSPOSE($CK$14:$CK$65>=$CK27)),$CL$10:$EK$10,1)) -> 1 | CR27: =PRODUCT(IF(($CL$13:$EK$13<=CR$13*TRANSPOSE($CK$14:$CK$65>=$CK27)),$CL$10:$EK$10,1)) -> 1 | CS27: =PRODUCT(IF(($CL$13:$EK$13<=CS$13*TRANSPOSE($CK$14:$CK$65>=$CK27)),$CL$10:$EK$10,1)) -> 1 | CT27: =PRODUCT(IF(($CL$13:$EK$13<=CT$13*TRANSPOSE($CK$14:$CK$65>=$CK27)),$CL$10:$EK$10,1)) -> 1 | CU27: =PRODUCT(IF(($CL$13:$EK$13<=CU$13*TRANSPOSE($CK$14:$CK$65>=$CK27)),$CL$10:$EK$10,1)) -> 1 | CV27: =PRODUCT(IF(($CL$13:$EK$13<=CV$13*TRANSPOSE($CK$14:$CK$65>=$CK27)),$CL$10:$EK$10,1)) -> 1 | CW27: =PRODUCT(IF(($CL$13:$EK$13<=CW$13*TRANSPOSE($CK$14:$CK$65>=$CK27)),$CL$10:$EK$10,1)) -> 1 | CX27: =PRODUCT(IF(($CL$13:$EK$13<=CX$13*TRANSPOSE($CK$14:$CK$65>=$CK27)),$CL$10:$EK$10,1)) -> 1 | CY27: =PRODUCT(IF(($CL$13:$EK$13<=CY$13*TRANSPOSE($CK$14:$CK$65>=$CK27)),$CL$10:$EK$10,1)) -> 0.81651619 | CZ27: =PRODUCT(IF(($CL$13:$EK$13<=CZ$13*TRANSPOSE($CK$14:$CK$65>=$CK27)),$CL$10:$EK$10,1)) -> 0.7842071796 | DA27: =PRODUCT(IF(($CL$13:$EK$13<=DA$13*TRANSPOSE($CK$14:$CK$65>=$CK27)),$CL$10:$EK$10,1)) -> 0.7774400207 | DB27: =PRODUCT(IF(($CL$13:$EK$13<=DB$13*TRANSPOSE($CK$14:$CK$65>=$CK27)),$CL$10:$EK$10,1)) -> 0.8979300329 | DC27: =PRODUCT(IF(($CL$13:$EK$13<=DC$13*TRANSPOSE($CK$14:$CK$65>=$CK27)),$CL$10:$EK$10,1)) -> 1.038643701 | DD27: =PRODUCT(IF(($CL$13:$EK$13<=DD$13*TRANSPOSE($CK$14:$CK$65>=$CK27)),$CL$10:$EK$10,1)) -> 1.108137828 | DE27: =PRODUCT(IF(($CL$13:$EK$13<=DE$13*TRANSPOSE($CK$14:$CK$65>=$CK27)),$CL$10:$EK$10,1)) -> 1.213107644 | DF27: =PRODUCT(IF(($CL$13:$EK$13<=DF$13*TRANSPOSE($CK$14:$CK$65>=$CK27)),$CL$10:$EK$10,1)) -> 1.344148984 | DG27: =PRODUCT(IF(($CL$13:$EK$13<=DG$13*TRANSPOSE($CK$14:$CK$65>=$CK27)),$CL$10:$EK$10,1)) -> 1.427423888 | DH27: =PRODUCT(IF(($CL$13:$EK$13<=DH$13*TRANSPOSE($CK$14:$CK$65>=$CK27)),$CL$10:$EK$10,1)) -> 1.6143834 | DI27: =PRODUCT(IF(($CL$13:$EK$13<=DI$13*TRANSPOSE($CK$14:$CK$65>=$CK27)),$CL$10:$EK$10,1)) -> 1.830115157 | DJ27: =PRODUCT(IF(($CL$13:$EK$13<=DJ$13*TRANSPOSE($CK$14:$CK$65>=$CK27)),$CL$10:$EK$10,1)) -> 1.992727269 | DK27: =PRODUCT(IF(($CL$13:$EK$13<=DK$13*TRANSPOSE($CK$14:$CK$65>=$CK27)),$CL$10:$EK$10,1)) -> 2.164739385 | DL27: =PRODUCT(IF(($CL$13:$EK$13<=DL$13*TRANSPOSE($CK$14:$CK$65>=$CK27)),$CL$10:$EK$10,1)) -> 2.418414876 | DM27: =PRODUCT(IF(($CL$13:$EK$13<=DM$13*TRANSPOSE($CK$14:$CK$65>=$CK27)),$CL$10:$EK$10,1)) -> 2.616936852 | DN27: =PRODUCT(IF(($CL$13:$EK$13<=DN$13*TRANSPOSE($CK$14:$CK$65>=$CK27)),$CL$10:$EK$10,1)) -> 2.775412612 | DO27: =PRODUCT(IF(($CL$13:$EK$13<=DO$13*TRANSPOSE($CK$14:$CK$65>=$CK27)),$CL$10:$EK$10,1)) -> 2.929801629 | DP27: =PRODUCT(IF(($CL$13:$EK$13<=DP$13*TRANSPOSE($CK$14:$CK$65>=$CK27)),$CL$10:$EK$10,1)) -> 3.130327805 | DQ27: =PRODUCT(IF(($CL$13:$EK$13<=DQ$13*TRANSPOSE($CK$14:$CK$65>=$CK27)),$CL$10:$EK$10,1)) -> 3.366129504 | DR27: =PRODUCT(IF(($CL$13:$EK$13<=DR$13*TRANSPOSE($CK$14:$CK$65>=$CK27)),$CL$10:$EK$10,1)) -> 3.683681962 | DS27: =PRODUCT(IF(($CL$13:$EK$13<=DS$13*TRANSPOSE($CK$14:$CK$65>=$CK27)),$CL$10:$EK$10,1)) -> 4.74447883 | DT27: =PRODUCT(IF(($CL$13:$EK$13<=DT$13*TRANSPOSE($CK$14:$CK$65>=$CK27)),$CL$10:$EK$10,1)) -> 5.451699787 | DU27: =PRODUCT(IF(($CL$13:$EK$13<=DU$13*TRANSPOSE($CK$14:$CK$65>=$CK27)),$CL$10:$EK$10,1)) -> 6.264027645 | DV27: =PRODUCT(IF(($CL$13:$EK$13<=DV$13*TRANSPOSE($CK$14:$CK$65>=$CK27)),$CL$10:$EK$10,1)) -> 7.273330155 | DW27: =PRODUCT(IF(($CL$13:$EK$13<=DW$13*TRANSPOSE($CK$14:$CK$65>=$CK27)),$CL$10:$EK$10,1)) -> 7.339301289 | DX27: =PRODUCT(IF(($CL$13:$EK$13<=DX$13*TRANSPOSE($CK$14:$CK$65>=$CK27)),$CL$10:$EK$10,1)) -> 8.0153645 | DY27: =PRODUCT(IF(($CL$13:$EK$13<=DY$13*TRANSPOSE($CK$14:$CK$65>=$CK27)),$CL$10:$EK$10,1)) -> 9.390774025 | DZ27: =PRODUCT(IF(($CL$13:$EK$13<=DZ$13*TRANSPOSE($CK$14:$CK$65>=$CK27)),$CL$10:$EK$10,1)) -> 11.10044766 | EA27: =PRODUCT(IF(($CL$13:$EK$13<=EA$13*TRANSPOSE($CK$14:$CK$65>=$CK27)),$CL$10:$EK$10,1)) -> 13.00439906 | EB27: =PRODUCT(IF(($CL$13:$EK$13<=EB$13*TRANSPOSE($CK$14:$CK$65>=$CK27)),$CL$10:$EK$10,1)) -> 14.05218481 | EC27: =PRODUCT(IF(($CL$13:$EK$13<=EC$13*TRANSPOSE($CK$14:$CK$65>=$CK27)),$CL$10:$EK$10,1)) -> 14.34045574 | ED27: =PRODUCT(IF(($CL$13:$EK$13<=ED$13*TRANSPOSE($CK$14:$CK$65>=$CK27)),$CL$10:$EK$10,1)) -> 14.48866456 | EE27: =PRODUCT(IF(($CL$13:$EK$13<=EE$13*TRANSPOSE($CK$14:$CK$65>=$CK27)),$CL$10:$EK$10,1)) -> 14.61288536 | EF27: =PRODUCT(IF(($CL$13:$EK$13<=EF$13*TRANSPOSE($CK$14:$CK$65>=$CK27)),$CL$10:$EK$10,1)) -> 15.26080815 | EG27: =PRODUCT(IF(($CL$13:$EK$13<=EG$13*TRANSPOSE($CK$14:$CK$65>=$CK27)),$CL$10:$EK$10,1)) -> 15.62817941 | EH27: =PRODUCT(IF(($CL$13:$EK$13<=EH$13*TRANSPOSE($CK$14:$CK$65>=$CK27)),$CL$10:$EK$10,1)) -> 16.23731783 | EI27: =PRODUCT(IF(($CL$13:$EK$13<=EI$13*TRANSPOSE($CK$14:$CK$65>=$CK27)),$CL$10:$EK$10,1)) -> 17.69212161 | EJ27: =PRODUCT(IF(($CL$13:$EK$13<=EJ$13*TRANSPOSE($CK$14:$CK$65>=$CK27)),$CL$10:$EK$10,1)) -> 20.31145441 | EK27: =PRODUCT(IF(($CL$13:$EK$13<=EK$13*TRANSPOSE($CK$14:$CK$65>=$CK27)),$CL$10:$EK$10,1)) -> 21.65371896
C28: 1987 | BE28: 1986 | BF28: -0.03956934453 | BG28: -0.1144452701 | BH28: -0.05977406161 | BI28: -0.05444076455 | BJ28: -0.04859798619 | BK28: -0.02305302907 | BL28: -0.0009893230725 | BM28: 0.02083568894 | BN28: 0.03563771176 | BO28: 0.06913005227 | BP28: 0.089365725 | BQ28: 0.1008328939 | BR28: 0.116812159 | BS28: 0.1184793722 | BT28: =PRODUCT($CH14:$CH28)^(1/BT$13)-1 -> 0.1179247276 | CG28: 1986 | CH28: =HLOOKUP($W$7,dat,MATCH(CG28,Data!$B$3:$B$60,0),0)+1 -> 0.9604306555 | CK28: 1986 | CL28: =PRODUCT(IF(($CL$13:$EK$13<=CL$13*TRANSPOSE($CK$14:$CK$65>=$CK28)),$CL$10:$EK$10,1)) -> 1 | CM28: =PRODUCT(IF(($CL$13:$EK$13<=CM$13*TRANSPOSE($CK$14:$CK$65>=$CK28)),$CL$10:$EK$10,1)) -> 1 | CN28: =PRODUCT(IF(($CL$13:$EK$13<=CN$13*TRANSPOSE($CK$14:$CK$65>=$CK28)),$CL$10:$EK$10,1)) -> 1 | CO28: =PRODUCT(IF(($CL$13:$EK$13<=CO$13*TRANSPOSE($CK$14:$CK$65>=$CK28)),$CL$10:$EK$10,1)) -> 1 | CP28: =PRODUCT(IF(($CL$13:$EK$13<=CP$13*TRANSPOSE($CK$14:$CK$65>=$CK28)),$CL$10:$EK$10,1)) -> 1 | CQ28: =PRODUCT(IF(($CL$13:$EK$13<=CQ$13*TRANSPOSE($CK$14:$CK$65>=$CK28)),$CL$10:$EK$10,1)) -> 1 | CR28: =PRODUCT(IF(($CL$13:$EK$13<=CR$13*TRANSPOSE($CK$14:$CK$65>=$CK28)),$CL$10:$EK$10,1)) -> 1 | CS28: =PRODUCT(IF(($CL$13:$EK$13<=CS$13*TRANSPOSE($CK$14:$CK$65>=$CK28)),$CL$10:$EK$10,1)) -> 1 | CT28: =PRODUCT(IF(($CL$13:$EK$13<=CT$13*TRANSPOSE($CK$14:$CK$65>=$CK28)),$CL$10:$EK$10,1)) -> 1 | CU28: =PRODUCT(IF(($CL$13:$EK$13<=CU$13*TRANSPOSE($CK$14:$CK$65>=$CK28)),$CL$10:$EK$10,1)) -> 1 | CV28: =PRODUCT(IF(($CL$13:$EK$13<=CV$13*TRANSPOSE($CK$14:$CK$65>=$CK28)),$CL$10:$EK$10,1)) -> 1 | CW28: =PRODUCT(IF(($CL$13:$EK$13<=CW$13*TRANSPOSE($CK$14:$CK$65>=$CK28)),$CL$10:$EK$10,1)) -> 1 | CX28: =PRODUCT(IF(($CL$13:$EK$13<=CX$13*TRANSPOSE($CK$14:$CK$65>=$CK28)),$CL$10:$EK$10,1)) -> 1 | CY28: =PRODUCT(IF(($CL$13:$EK$13<=CY$13*TRANSPOSE($CK$14:$CK$65>=$CK28)),$CL$10:$EK$10,1)) -> 1 | CZ28: =PRODUCT(IF(($CL$13:$EK$13<=CZ$13*TRANSPOSE($CK$14:$CK$65>=$CK28)),$CL$10:$EK$10,1)) -> 0.9604306555 | DA28: =PRODUCT(IF(($CL$13:$EK$13<=DA$13*TRANSPOSE($CK$14:$CK$65>=$CK28)),$CL$10:$EK$10,1)) -> 0.9521428114 | DB28: =PRODUCT(IF(($CL$13:$EK$13<=DB$13*TRANSPOSE($CK$14:$CK$65>=$CK28)),$CL$10:$EK$10,1)) -> 1.099708792 | DC28: =PRODUCT(IF(($CL$13:$EK$13<=DC$13*TRANSPOSE($CK$14:$CK$65>=$CK28)),$CL$10:$EK$10,1)) -> 1.272042996 | DD28: =PRODUCT(IF(($CL$13:$EK$13<=DD$13*TRANSPOSE($CK$14:$CK$65>=$CK28)),$CL$10:$EK$10,1)) -> 1.357153529 | DE28: =PRODUCT(IF(($CL$13:$EK$13<=DE$13*TRANSPOSE($CK$14:$CK$65>=$CK28)),$CL$10:$EK$10,1)) -> 1.485711684 | DF28: =PRODUCT(IF(($CL$13:$EK$13<=DF$13*TRANSPOSE($CK$14:$CK$65>=$CK28)),$CL$10:$EK$10,1)) -> 1.646200039 | DG28: =PRODUCT(IF(($CL$13:$EK$13<=DG$13*TRANSPOSE($CK$14:$CK$65>=$CK28)),$CL$10:$EK$10,1)) -> 1.748188101 | DH28: =PRODUCT(IF(($CL$13:$EK$13<=DH$13*TRANSPOSE($CK$14:$CK$65>=$CK28)),$CL$10:$EK$10,1)) -> 1.977160305 | DI28: =PRODUCT(IF(($CL$13:$EK$13<=DI$13*TRANSPOSE($CK$14:$CK$65>=$CK28)),$CL$10:$EK$10,1)) -> 2.241370324 | DJ28: =PRODUCT(IF(($CL$13:$EK$13<=DJ$13*TRANSPOSE($CK$14:$CK$65>=$CK28)),$CL$10:$EK$10,1)) -> 2.44052389 | DK28: =PRODUCT(IF(($CL$13:$EK$13<=DK$13*TRANSPOSE($CK$14:$CK$65>=$CK28)),$CL$10:$EK$10,1)) -> 2.651189788 | DL28: =PRODUCT(IF(($CL$13:$EK$13<=DL$13*TRANSPOSE($CK$14:$CK$65>=$CK28)),$CL$10:$EK$10,1)) -> 2.961870084 | DM28: =PRODUCT(IF(($CL$13:$EK$13<=DM$13*TRANSPOSE($CK$14:$CK$65>=$CK28)),$CL$10:$EK$10,1)) -> 3.205003016 | DN28: =PRODUCT(IF(($CL$13:$EK$13<=DN$13*TRANSPOSE($CK$14:$CK$65>=$CK28)),$CL$10:$EK$10,1)) -> 3.39909073 | DO28: =PRODUCT(IF(($CL$13:$EK$13<=DO$13*TRANSPOSE($CK$14:$CK$65>=$CK28)),$CL$10:$EK$10,1)) -> 3.588173346 | DP28: =PRODUCT(IF(($CL$13:$EK$13<=DP$13*TRANSPOSE($CK$14:$CK$65>=$CK28)),$CL$10:$EK$10,1)) -> 3.833760853 | DQ28: =PRODUCT(IF(($CL$13:$EK$13<=DQ$13*TRANSPOSE($CK$14:$CK$65>=$CK28)),$CL$10:$EK$10,1)) -> 4.122550839 | DR28: =PRODUCT(IF(($CL$13:$EK$13<=DR$13*TRANSPOSE($CK$14:$CK$65>=$CK28)),$CL$10:$EK$10,1)) -> 4.511462242 | DS28: =PRODUCT(IF(($CL$13:$EK$13<=DS$13*TRANSPOSE($CK$14:$CK$65>=$CK28)),$CL$10:$EK$10,1)) -> 5.810636566 | DT28: =PRODUCT(IF(($CL$13:$EK$13<=DT$13*TRANSPOSE($CK$14:$CK$65>=$CK28)),$CL$10:$EK$10,1)) -> 6.676781004 | DU28: =PRODUCT(IF(($CL$13:$EK$13<=DU$13*TRANSPOSE($CK$14:$CK$65>=$CK28)),$CL$10:$EK$10,1)) -> 7.671651488 | DV28: =PRODUCT(IF(($CL$13:$EK$13<=DV$13*TRANSPOSE($CK$14:$CK$65>=$CK28)),$CL$10:$EK$10,1)) -> 8.907759875 | DW28: =PRODUCT(IF(($CL$13:$EK$13<=DW$13*TRANSPOSE($CK$14:$CK$65>=$CK28)),$CL$10:$EK$10,1)) -> 8.988555742 | DX28: =PRODUCT(IF(($CL$13:$EK$13<=DX$13*TRANSPOSE($CK$14:$CK$65>=$CK28)),$CL$10:$EK$10,1)) -> 9.816540808 | DY28: =PRODUCT(IF(($CL$13:$EK$13<=DY$13*TRANSPOSE($CK$14:$CK$65>=$CK28)),$CL$10:$EK$10,1)) -> 11.50102612 | DZ28: =PRODUCT(IF(($CL$13:$EK$13<=DZ$13*TRANSPOSE($CK$14:$CK$65>=$CK28)),$CL$10:$EK$10,1)) -> 13.59488985 | EA28: =PRODUCT(IF(($CL$13:$EK$13<=EA$13*TRANSPOSE($CK$14:$CK$65>=$CK28)),$CL$10:$EK$10,1)) -> 15.92668856 | EB28: =PRODUCT(IF(($CL$13:$EK$13<=EB$13*TRANSPOSE($CK$14:$CK$65>=$CK28)),$CL$10:$EK$10,1)) -> 17.20992796 | EC28: =PRODUCT(IF(($CL$13:$EK$13<=EC$13*TRANSPOSE($CK$14:$CK$65>=$CK28)),$CL$10:$EK$10,1)) -> 17.56297783 | ED28: =PRODUCT(IF(($CL$13:$EK$13<=ED$13*TRANSPOSE($CK$14:$CK$65>=$CK28)),$CL$10:$EK$10,1)) -> 17.74449146 | EE28: =PRODUCT(IF(($CL$13:$EK$13<=EE$13*TRANSPOSE($CK$14:$CK$65>=$CK28)),$CL$10:$EK$10,1)) -> 17.89662659 | EF28: =PRODUCT(IF(($CL$13:$EK$13<=EF$13*TRANSPOSE($CK$14:$CK$65>=$CK28)),$CL$10:$EK$10,1)) -> 18.69014765 | EG28: =PRODUCT(IF(($CL$13:$EK$13<=EG$13*TRANSPOSE($CK$14:$CK$65>=$CK28)),$CL$10:$EK$10,1)) -> 19.14007291 | EH28: =PRODUCT(IF(($CL$13:$EK$13<=EH$13*TRANSPOSE($CK$14:$CK$65>=$CK28)),$CL$10:$EK$10,1)) -> 19.88609415 | EI28: =PRODUCT(IF(($CL$13:$EK$13<=EI$13*TRANSPOSE($CK$14:$CK$65>=$CK28)),$CL$10:$EK$10,1)) -> 21.66781483 | EJ28: =PRODUCT(IF(($CL$13:$EK$13<=EJ$13*TRANSPOSE($CK$14:$CK$65>=$CK28)),$CL$10:$EK$10,1)) -> 24.8757522 | EK28: =PRODUCT(IF(($CL$13:$EK$13<=EK$13*TRANSPOSE($CK$14:$CK$65>=$CK28)),$CL$10:$EK$10,1)) -> 26.51964434
C29: 1988 | BE29: 1987 | BF29: -0.008629299807 | BG29: -0.02422194563 | BH29: -0.08049174802 | BI29: -0.04724071272 | BJ29: -0.04545104065 | BK29: -0.04205023512 | BL29: -0.02100541635 | BM29: -0.00194753075 | BN29: 0.01751902348 | BO29: 0.03112348555 | BP29: 0.06181589667 | BQ29: 0.08084206334 | BR29: 0.09199972124 | BS29: 0.1073480104 | BT29: 0.1095201289 | BU29: =PRODUCT($CH14:$CH29)^(1/BU$13)-1 -> 0.1095618916 | CG29: 1987 | CH29: =HLOOKUP($W$7,dat,MATCH(CG29,Data!$B$3:$B$60,0),0)+1 -> 0.9913707002 | CK29: 1987 | CL29: =PRODUCT(IF(($CL$13:$EK$13<=CL$13*TRANSPOSE($CK$14:$CK$65>=$CK29)),$CL$10:$EK$10,1)) -> 1 | CM29: =PRODUCT(IF(($CL$13:$EK$13<=CM$13*TRANSPOSE($CK$14:$CK$65>=$CK29)),$CL$10:$EK$10,1)) -> 1 | CN29: =PRODUCT(IF(($CL$13:$EK$13<=CN$13*TRANSPOSE($CK$14:$CK$65>=$CK29)),$CL$10:$EK$10,1)) -> 1 | CO29: =PRODUCT(IF(($CL$13:$EK$13<=CO$13*TRANSPOSE($CK$14:$CK$65>=$CK29)),$CL$10:$EK$10,1)) -> 1 | CP29: =PRODUCT(IF(($CL$13:$EK$13<=CP$13*TRANSPOSE($CK$14:$CK$65>=$CK29)),$CL$10:$EK$10,1)) -> 1 | CQ29: =PRODUCT(IF(($CL$13:$EK$13<=CQ$13*TRANSPOSE($CK$14:$CK$65>=$CK29)),$CL$10:$EK$10,1)) -> 1 | CR29: =PRODUCT(IF(($CL$13:$EK$13<=CR$13*TRANSPOSE($CK$14:$CK$65>=$CK29)),$CL$10:$EK$10,1)) -> 1 | CS29: =PRODUCT(IF(($CL$13:$EK$13<=CS$13*TRANSPOSE($CK$14:$CK$65>=$CK29)),$CL$10:$EK$10,1)) -> 1 | CT29: =PRODUCT(IF(($CL$13:$EK$13<=CT$13*TRANSPOSE($CK$14:$CK$65>=$CK29)),$CL$10:$EK$10,1)) -> 1 | CU29: =PRODUCT(IF(($CL$13:$EK$13<=CU$13*TRANSPOSE($CK$14:$CK$65>=$CK29)),$CL$10:$EK$10,1)) -> 1 | CV29: =PRODUCT(IF(($CL$13:$EK$13<=CV$13*TRANSPOSE($CK$14:$CK$65>=$CK29)),$CL$10:$EK$10,1)) -> 1 | CW29: =PRODUCT(IF(($CL$13:$EK$13<=CW$13*TRANSPOSE($CK$14:$CK$65>=$CK29)),$CL$10:$EK$10,1)) -> 1 | CX29: =PRODUCT(IF(($CL$13:$EK$13<=CX$13*TRANSPOSE($CK$14:$CK$65>=$CK29)),$CL$10:$EK$10,1)) -> 1 | CY29: =PRODUCT(IF(($CL$13:$EK$13<=CY$13*TRANSPOSE($CK$14:$CK$65>=$CK29)),$CL$10:$EK$10,1)) -> 1 | CZ29: =PRODUCT(IF(($CL$13:$EK$13<=CZ$13*TRANSPOSE($CK$14:$CK$65>=$CK29)),$CL$10:$EK$10,1)) -> 1 | DA29: =PRODUCT(IF(($CL$13:$EK$13<=DA$13*TRANSPOSE($CK$14:$CK$65>=$CK29)),$CL$10:$EK$10,1)) -> 0.9913707002 | DB29: =PRODUCT(IF(($CL$13:$EK$13<=DB$13*TRANSPOSE($CK$14:$CK$65>=$CK29)),$CL$10:$EK$10,1)) -> 1.145016338 | DC29: =PRODUCT(IF(($CL$13:$EK$13<=DC$13*TRANSPOSE($CK$14:$CK$65>=$CK29)),$CL$10:$EK$10,1)) -> 1.32445064 | DD29: =PRODUCT(IF(($CL$13:$EK$13<=DD$13*TRANSPOSE($CK$14:$CK$65>=$CK29)),$CL$10:$EK$10,1)) -> 1.413067691 | DE29: =PRODUCT(IF(($CL$13:$EK$13<=DE$13*TRANSPOSE($CK$14:$CK$65>=$CK29)),$CL$10:$EK$10,1)) -> 1.546922389 | DF29: =PRODUCT(IF(($CL$13:$EK$13<=DF$13*TRANSPOSE($CK$14:$CK$65>=$CK29)),$CL$10:$EK$10,1)) -> 1.714022797 | DG29: =PRODUCT(IF(($CL$13:$EK$13<=DG$13*TRANSPOSE($CK$14:$CK$65>=$CK29)),$CL$10:$EK$10,1)) -> 1.820212726 | DH29: =PRODUCT(IF(($CL$13:$EK$13<=DH$13*TRANSPOSE($CK$14:$CK$65>=$CK29)),$CL$10:$EK$10,1)) -> 2.05861849 | DI29: =PRODUCT(IF(($CL$13:$EK$13<=DI$13*TRANSPOSE($CK$14:$CK$65>=$CK29)),$CL$10:$EK$10,1)) -> 2.333713851 | DJ29: =PRODUCT(IF(($CL$13:$EK$13<=DJ$13*TRANSPOSE($CK$14:$CK$65>=$CK29)),$CL$10:$EK$10,1)) -> 2.541072462 | DK29: =PRODUCT(IF(($CL$13:$EK$13<=DK$13*TRANSPOSE($CK$14:$CK$65>=$CK29)),$CL$10:$EK$10,1)) -> 2.760417708 | DL29: =PRODUCT(IF(($CL$13:$EK$13<=DL$13*TRANSPOSE($CK$14:$CK$65>=$CK29)),$CL$10:$EK$10,1)) -> 3.083897903 | DM29: =PRODUCT(IF(($CL$13:$EK$13<=DM$13*TRANSPOSE($CK$14:$CK$65>=$CK29)),$CL$10:$EK$10,1)) -> 3.337047811 | DN29: =PRODUCT(IF(($CL$13:$EK$13<=DN$13*TRANSPOSE($CK$14:$CK$65>=$CK29)),$CL$10:$EK$10,1)) -> 3.539131857 | DO29: =PRODUCT(IF(($CL$13:$EK$13<=DO$13*TRANSPOSE($CK$14:$CK$65>=$CK29)),$CL$10:$EK$10,1)) -> 3.736004599 | DP29: =PRODUCT(IF(($CL$13:$EK$13<=DP$13*TRANSPOSE($CK$14:$CK$65>=$CK29)),$CL$10:$EK$10,1)) -> 3.99171021 | DQ29: =PRODUCT(IF(($CL$13:$EK$13<=DQ$13*TRANSPOSE($CK$14:$CK$65>=$CK29)),$CL$10:$EK$10,1)) -> 4.292398223 | DR29: =PRODUCT(IF(($CL$13:$EK$13<=DR$13*TRANSPOSE($CK$14:$CK$65>=$CK29)),$CL$10:$EK$10,1)) -> 4.697332615 | DS29: =PRODUCT(IF(($CL$13:$EK$13<=DS$13*TRANSPOSE($CK$14:$CK$65>=$CK29)),$CL$10:$EK$10,1)) -> 6.050032382 | DT29: =PRODUCT(IF(($CL$13:$EK$13<=DT$13*TRANSPOSE($CK$14:$CK$65>=$CK29)),$CL$10:$EK$10,1)) -> 6.951861611 | DU29: =PRODUCT(IF(($CL$13:$EK$13<=DU$13*TRANSPOSE($CK$14:$CK$65>=$CK29)),$CL$10:$EK$10,1)) -> 7.987720347 | DV29: =PRODUCT(IF(($CL$13:$EK$13<=DV$13*TRANSPOSE($CK$14:$CK$65>=$CK29)),$CL$10:$EK$10,1)) -> 9.274755886 | DW29: =PRODUCT(IF(($CL$13:$EK$13<=DW$13*TRANSPOSE($CK$14:$CK$65>=$CK29)),$CL$10:$EK$10,1)) -> 9.35888051 | DX29: =PRODUCT(IF(($CL$13:$EK$13<=DX$13*TRANSPOSE($CK$14:$CK$65>=$CK29)),$CL$10:$EK$10,1)) -> 10.22097822 | DY29: =PRODUCT(IF(($CL$13:$EK$13<=DY$13*TRANSPOSE($CK$14:$CK$65>=$CK29)),$CL$10:$EK$10,1)) -> 11.97486362 | DZ29: =PRODUCT(IF(($CL$13:$EK$13<=DZ$13*TRANSPOSE($CK$14:$CK$65>=$CK29)),$CL$10:$EK$10,1)) -> 14.15499367 | EA29: =PRODUCT(IF(($CL$13:$EK$13<=EA$13*TRANSPOSE($CK$14:$CK$65>=$CK29)),$CL$10:$EK$10,1)) -> 16.58286152 | EB29: =PRODUCT(IF(($CL$13:$EK$13<=EB$13*TRANSPOSE($CK$14:$CK$65>=$CK29)),$CL$10:$EK$10,1)) -> 17.91896986 | EC29: =PRODUCT(IF(($CL$13:$EK$13<=EC$13*TRANSPOSE($CK$14:$CK$65>=$CK29)),$CL$10:$EK$10,1)) -> 18.28656523 | ED29: =PRODUCT(IF(($CL$13:$EK$13<=ED$13*TRANSPOSE($CK$14:$CK$65>=$CK29)),$CL$10:$EK$10,1)) -> 18.47555714 | EE29: =PRODUCT(IF(($CL$13:$EK$13<=EE$13*TRANSPOSE($CK$14:$CK$65>=$CK29)),$CL$10:$EK$10,1)) -> 18.63396018 | EF29: =PRODUCT(IF(($CL$13:$EK$13<=EF$13*TRANSPOSE($CK$14:$CK$65>=$CK29)),$CL$10:$EK$10,1)) -> 19.46017398 | EG29: =PRODUCT(IF(($CL$13:$EK$13<=EG$13*TRANSPOSE($CK$14:$CK$65>=$CK29)),$CL$10:$EK$10,1)) -> 19.92863597 | EH29: =PRODUCT(IF(($CL$13:$EK$13<=EH$13*TRANSPOSE($CK$14:$CK$65>=$CK29)),$CL$10:$EK$10,1)) -> 20.70539298 | EI29: =PRODUCT(IF(($CL$13:$EK$13<=EI$13*TRANSPOSE($CK$14:$CK$65>=$CK29)),$CL$10:$EK$10,1)) -> 22.56051981 | EJ29: =PRODUCT(IF(($CL$13:$EK$13<=EJ$13*TRANSPOSE($CK$14:$CK$65>=$CK29)),$CL$10:$EK$10,1)) -> 25.90062287 | EK29: =PRODUCT(IF(($CL$13:$EK$13<=EK$13*TRANSPOSE($CK$14:$CK$65>=$CK29)),$CL$10:$EK$10,1)) -> 27.61224268
C30: 1989 | BE30: 1988 | BF30: 0.1549830327 | BG30: 0.0700543621 | BH30: 0.03218901398 | BI30: -0.02655678051 | BJ30: -0.009848445694 | BK30: -0.01464110558 | BL30: -0.01610799682 | BM30: -0.0005646566985 | BN30: 0.01437908938 | BO30: 0.0304948939 | BP30: 0.04181188687 | BQ30: 0.06928404845 | BR30: 0.08637221771 | BS30: 0.09638234371 | BT30: 0.1104616414 | BU30: 0.1123083867 | BV30: =PRODUCT($CH14:$CH30)^(1/BV$13)-1 -> 0.1121835768 | CG30: 1988 | CH30: =HLOOKUP($W$7,dat,MATCH(CG30,Data!$B$3:$B$60,0),0)+1 -> 1.154983033 | CK30: 1988 | CL30: =PRODUCT(IF(($CL$13:$EK$13<=CL$13*TRANSPOSE($CK$14:$CK$65>=$CK30)),$CL$10:$EK$10,1)) -> 1 | CM30: =PRODUCT(IF(($CL$13:$EK$13<=CM$13*TRANSPOSE($CK$14:$CK$65>=$CK30)),$CL$10:$EK$10,1)) -> 1 | CN30: =PRODUCT(IF(($CL$13:$EK$13<=CN$13*TRANSPOSE($CK$14:$CK$65>=$CK30)),$CL$10:$EK$10,1)) -> 1 | CO30: =PRODUCT(IF(($CL$13:$EK$13<=CO$13*TRANSPOSE($CK$14:$CK$65>=$CK30)),$CL$10:$EK$10,1)) -> 1 | CP30: =PRODUCT(IF(($CL$13:$EK$13<=CP$13*TRANSPOSE($CK$14:$CK$65>=$CK30)),$CL$10:$EK$10,1)) -> 1 | CQ30: =PRODUCT(IF(($CL$13:$EK$13<=CQ$13*TRANSPOSE($CK$14:$CK$65>=$CK30)),$CL$10:$EK$10,1)) -> 1 | CR30: =PRODUCT(IF(($CL$13:$EK$13<=CR$13*TRANSPOSE($CK$14:$CK$65>=$CK30)),$CL$10:$EK$10,1)) -> 1 | CS30: =PRODUCT(IF(($CL$13:$EK$13<=CS$13*TRANSPOSE($CK$14:$CK$65>=$CK30)),$CL$10:$EK$10,1)) -> 1 | CT30: =PRODUCT(IF(($CL$13:$EK$13<=CT$13*TRANSPOSE($CK$14:$CK$65>=$CK30)),$CL$10:$EK$10,1)) -> 1 | CU30: =PRODUCT(IF(($CL$13:$EK$13<=CU$13*TRANSPOSE($CK$14:$CK$65>=$CK30)),$CL$10:$EK$10,1)) -> 1 | CV30: =PRODUCT(IF(($CL$13:$EK$13<=CV$13*TRANSPOSE($CK$14:$CK$65>=$CK30)),$CL$10:$EK$10,1)) -> 1 | CW30: =PRODUCT(IF(($CL$13:$EK$13<=CW$13*TRANSPOSE($CK$14:$CK$65>=$CK30)),$CL$10:$EK$10,1)) -> 1 | CX30: =PRODUCT(IF(($CL$13:$EK$13<=CX$13*TRANSPOSE($CK$14:$CK$65>=$CK30)),$CL$10:$EK$10,1)) -> 1 | CY30: =PRODUCT(IF(($CL$13:$EK$13<=CY$13*TRANSPOSE($CK$14:$CK$65>=$CK30)),$CL$10:$EK$10,1)) -> 1 | CZ30: =PRODUCT(IF(($CL$13:$EK$13<=CZ$13*TRANSPOSE($CK$14:$CK$65>=$CK30)),$CL$10:$EK$10,1)) -> 1 | DA30: =PRODUCT(IF(($CL$13:$EK$13<=DA$13*TRANSPOSE($CK$14:$CK$65>=$CK30)),$CL$10:$EK$10,1)) -> 1 | DB30: =PRODUCT(IF(($CL$13:$EK$13<=DB$13*TRANSPOSE($CK$14:$CK$65>=$CK30)),$CL$10:$EK$10,1)) -> 1.154983033 | DC30: =PRODUCT(IF(($CL$13:$EK$13<=DC$13*TRANSPOSE($CK$14:$CK$65>=$CK30)),$CL$10:$EK$10,1)) -> 1.335979205 | DD30: =PRODUCT(IF(($CL$13:$EK$13<=DD$13*TRANSPOSE($CK$14:$CK$65>=$CK30)),$CL$10:$EK$10,1)) -> 1.425367615 | DE30: =PRODUCT(IF(($CL$13:$EK$13<=DE$13*TRANSPOSE($CK$14:$CK$65>=$CK30)),$CL$10:$EK$10,1)) -> 1.56038744 | DF30: =PRODUCT(IF(($CL$13:$EK$13<=DF$13*TRANSPOSE($CK$14:$CK$65>=$CK30)),$CL$10:$EK$10,1)) -> 1.728942359 | DG30: =PRODUCT(IF(($CL$13:$EK$13<=DG$13*TRANSPOSE($CK$14:$CK$65>=$CK30)),$CL$10:$EK$10,1)) -> 1.836056609 | DH30: =PRODUCT(IF(($CL$13:$EK$13<=DH$13*TRANSPOSE($CK$14:$CK$65>=$CK30)),$CL$10:$EK$10,1)) -> 2.076537555 | DI30: =PRODUCT(IF(($CL$13:$EK$13<=DI$13*TRANSPOSE($CK$14:$CK$65>=$CK30)),$CL$10:$EK$10,1)) -> 2.35402746 | DJ30: =PRODUCT(IF(($CL$13:$EK$13<=DJ$13*TRANSPOSE($CK$14:$CK$65>=$CK30)),$CL$10:$EK$10,1)) -> 2.563191006 | DK30: =PRODUCT(IF(($CL$13:$EK$13<=DK$13*TRANSPOSE($CK$14:$CK$65>=$CK30)),$CL$10:$EK$10,1)) -> 2.784445523 | DL30: =PRODUCT(IF(($CL$13:$EK$13<=DL$13*TRANSPOSE($CK$14:$CK$65>=$CK30)),$CL$10:$EK$10,1)) -> 3.110741423 | DM30: =PRODUCT(IF(($CL$13:$EK$13<=DM$13*TRANSPOSE($CK$14:$CK$65>=$CK30)),$CL$10:$EK$10,1)) -> 3.366094853 | DN30: =PRODUCT(IF(($CL$13:$EK$13<=DN$13*TRANSPOSE($CK$14:$CK$65>=$CK30)),$CL$10:$EK$10,1)) -> 3.569937922 | DO30: =PRODUCT(IF(($CL$13:$EK$13<=DO$13*TRANSPOSE($CK$14:$CK$65>=$CK30)),$CL$10:$EK$10,1)) -> 3.768524325 | DP30: =PRODUCT(IF(($CL$13:$EK$13<=DP$13*TRANSPOSE($CK$14:$CK$65>=$CK30)),$CL$10:$EK$10,1)) -> 4.026455703 | DQ30: =PRODUCT(IF(($CL$13:$EK$13<=DQ$13*TRANSPOSE($CK$14:$CK$65>=$CK30)),$CL$10:$EK$10,1)) -> 4.329761029 | DR30: =PRODUCT(IF(($CL$13:$EK$13<=DR$13*TRANSPOSE($CK$14:$CK$65>=$CK30)),$CL$10:$EK$10,1)) -> 4.738220137 | DS30: =PRODUCT(IF(($CL$13:$EK$13<=DS$13*TRANSPOSE($CK$14:$CK$65>=$CK30)),$CL$10:$EK$10,1)) -> 6.102694361 | DT30: =PRODUCT(IF(($CL$13:$EK$13<=DT$13*TRANSPOSE($CK$14:$CK$65>=$CK30)),$CL$10:$EK$10,1)) -> 7.012373484 | DU30: =PRODUCT(IF(($CL$13:$EK$13<=DU$13*TRANSPOSE($CK$14:$CK$65>=$CK30)),$CL$10:$EK$10,1)) -> 8.057248762 | DV30: =PRODUCT(IF(($CL$13:$EK$13<=DV$13*TRANSPOSE($CK$14:$CK$65>=$CK30)),$CL$10:$EK$10,1)) -> 9.35548719 | DW30: =PRODUCT(IF(($CL$13:$EK$13<=DW$13*TRANSPOSE($CK$14:$CK$65>=$CK30)),$CL$10:$EK$10,1)) -> 9.440344069 | DX30: =PRODUCT(IF(($CL$13:$EK$13<=DX$13*TRANSPOSE($CK$14:$CK$65>=$CK30)),$CL$10:$EK$10,1)) -> 10.30994583 | DY30: =PRODUCT(IF(($CL$13:$EK$13<=DY$13*TRANSPOSE($CK$14:$CK$65>=$CK30)),$CL$10:$EK$10,1)) -> 12.07909778 | DZ30: =PRODUCT(IF(($CL$13:$EK$13<=DZ$13*TRANSPOSE($CK$14:$CK$65>=$CK30)),$CL$10:$EK$10,1)) -> 14.27820458 | EA30: =PRODUCT(IF(($CL$13:$EK$13<=EA$13*TRANSPOSE($CK$14:$CK$65>=$CK30)),$CL$10:$EK$10,1)) -> 16.72720559 | EB30: =PRODUCT(IF(($CL$13:$EK$13<=EB$13*TRANSPOSE($CK$14:$CK$65>=$CK30)),$CL$10:$EK$10,1)) -> 18.07494397 | EC30: =PRODUCT(IF(($CL$13:$EK$13<=EC$13*TRANSPOSE($CK$14:$CK$65>=$CK30)),$CL$10:$EK$10,1)) -> 18.44573904 | ED30: =PRODUCT(IF(($CL$13:$EK$13<=ED$13*TRANSPOSE($CK$14:$CK$65>=$CK30)),$CL$10:$EK$10,1)) -> 18.63637602 | EE30: =PRODUCT(IF(($CL$13:$EK$13<=EE$13*TRANSPOSE($CK$14:$CK$65>=$CK30)),$CL$10:$EK$10,1)) -> 18.79615786 | EF30: =PRODUCT(IF(($CL$13:$EK$13<=EF$13*TRANSPOSE($CK$14:$CK$65>=$CK30)),$CL$10:$EK$10,1)) -> 19.62956337 | EG30: =PRODUCT(IF(($CL$13:$EK$13<=EG$13*TRANSPOSE($CK$14:$CK$65>=$CK30)),$CL$10:$EK$10,1)) -> 20.10210304 | EH30: =PRODUCT(IF(($CL$13:$EK$13<=EH$13*TRANSPOSE($CK$14:$CK$65>=$CK30)),$CL$10:$EK$10,1)) -> 20.88562127 | EI30: =PRODUCT(IF(($CL$13:$EK$13<=EI$13*TRANSPOSE($CK$14:$CK$65>=$CK30)),$CL$10:$EK$10,1)) -> 22.75689589 | EJ30: =PRODUCT(IF(($CL$13:$EK$13<=EJ$13*TRANSPOSE($CK$14:$CK$65>=$CK30)),$CL$10:$EK$10,1)) -> 26.12607259 | EK30: =PRODUCT(IF(($CL$13:$EK$13<=EK$13*TRANSPOSE($CK$14:$CK$65>=$CK30)),$CL$10:$EK$10,1)) -> 27.85259104
C31: 1990 | BE31: 1989 | BF31: 0.1567089448 | BG31: 0.1558456666 | BH31: 0.09819280114 | BI31: 0.0620022767 | BJ31: 0.007611970506 | BK31: 0.01614435834 | BL31: 0.00818802431 | BM31: 0.003996071909 | BN31: 0.01579684114 | BO31: 0.02778593125 | BP31: 0.04137585313 | BQ31: 0.05093423676 | BR31: 0.07576782299 | BS31: 0.09125124893 | BT31: 0.1003043681 | BU31: 0.1132971432 | BV31: 0.1148723536 | BW31: =PRODUCT($CH14:$CH31)^(1/BW$13)-1 -> 0.114611623 | CG31: 1989 | CH31: =HLOOKUP($W$7,dat,MATCH(CG31,Data!$B$3:$B$60,0),0)+1 -> 1.156708945 | CK31: 1989 | CL31: =PRODUCT(IF(($CL$13:$EK$13<=CL$13*TRANSPOSE($CK$14:$CK$65>=$CK31)),$CL$10:$EK$10,1)) -> 1 | CM31: =PRODUCT(IF(($CL$13:$EK$13<=CM$13*TRANSPOSE($CK$14:$CK$65>=$CK31)),$CL$10:$EK$10,1)) -> 1 | CN31: =PRODUCT(IF(($CL$13:$EK$13<=CN$13*TRANSPOSE($CK$14:$CK$65>=$CK31)),$CL$10:$EK$10,1)) -> 1 | CO31: =PRODUCT(IF(($CL$13:$EK$13<=CO$13*TRANSPOSE($CK$14:$CK$65>=$CK31)),$CL$10:$EK$10,1)) -> 1 | CP31: =PRODUCT(IF(($CL$13:$EK$13<=CP$13*TRANSPOSE($CK$14:$CK$65>=$CK31)),$CL$10:$EK$10,1)) -> 1 | CQ31: =PRODUCT(IF(($CL$13:$EK$13<=CQ$13*TRANSPOSE($CK$14:$CK$65>=$CK31)),$CL$10:$EK$10,1)) -> 1 | CR31: =PRODUCT(IF(($CL$13:$EK$13<=CR$13*TRANSPOSE($CK$14:$CK$65>=$CK31)),$CL$10:$EK$10,1)) -> 1 | CS31: =PRODUCT(IF(($CL$13:$EK$13<=CS$13*TRANSPOSE($CK$14:$CK$65>=$CK31)),$CL$10:$EK$10,1)) -> 1 | CT31: =PRODUCT(IF(($CL$13:$EK$13<=CT$13*TRANSPOSE($CK$14:$CK$65>=$CK31)),$CL$10:$EK$10,1)) -> 1 | CU31: =PRODUCT(IF(($CL$13:$EK$13<=CU$13*TRANSPOSE($CK$14:$CK$65>=$CK31)),$CL$10:$EK$10,1)) -> 1 | CV31: =PRODUCT(IF(($CL$13:$EK$13<=CV$13*TRANSPOSE($CK$14:$CK$65>=$CK31)),$CL$10:$EK$10,1)) -> 1 | CW31: =PRODUCT(IF(($CL$13:$EK$13<=CW$13*TRANSPOSE($CK$14:$CK$65>=$CK31)),$CL$10:$EK$10,1)) -> 1 | CX31: =PRODUCT(IF(($CL$13:$EK$13<=CX$13*TRANSPOSE($CK$14:$CK$65>=$CK31)),$CL$10:$EK$10,1)) -> 1 | CY31: =PRODUCT(IF(($CL$13:$EK$13<=CY$13*TRANSPOSE($CK$14:$CK$65>=$CK31)),$CL$10:$EK$10,1)) -> 1 | CZ31: =PRODUCT(IF(($CL$13:$EK$13<=CZ$13*TRANSPOSE($CK$14:$CK$65>=$CK31)),$CL$10:$EK$10,1)) -> 1 | DA31: =PRODUCT(IF(($CL$13:$EK$13<=DA$13*TRANSPOSE($CK$14:$CK$65>=$CK31)),$CL$10:$EK$10,1)) -> 1 | DB31: =PRODUCT(IF(($CL$13:$EK$13<=DB$13*TRANSPOSE($CK$14:$CK$65>=$CK31)),$CL$10:$EK$10,1)) -> 1 | DC31: =PRODUCT(IF(($CL$13:$EK$13<=DC$13*TRANSPOSE($CK$14:$CK$65>=$CK31)),$CL$10:$EK$10,1)) -> 1.156708945 | DD31: =PRODUCT(IF(($CL$13:$EK$13<=DD$13*TRANSPOSE($CK$14:$CK$65>=$CK31)),$CL$10:$EK$10,1)) -> 1.234102645 | DE31: =PRODUCT(IF(($CL$13:$EK$13<=DE$13*TRANSPOSE($CK$14:$CK$65>=$CK31)),$CL$10:$EK$10,1)) -> 1.351004643 | DF31: =PRODUCT(IF(($CL$13:$EK$13<=DF$13*TRANSPOSE($CK$14:$CK$65>=$CK31)),$CL$10:$EK$10,1)) -> 1.496941782 | DG31: =PRODUCT(IF(($CL$13:$EK$13<=DG$13*TRANSPOSE($CK$14:$CK$65>=$CK31)),$CL$10:$EK$10,1)) -> 1.589682755 | DH31: =PRODUCT(IF(($CL$13:$EK$13<=DH$13*TRANSPOSE($CK$14:$CK$65>=$CK31)),$CL$10:$EK$10,1)) -> 1.797894424 | DI31: =PRODUCT(IF(($CL$13:$EK$13<=DI$13*TRANSPOSE($CK$14:$CK$65>=$CK31)),$CL$10:$EK$10,1)) -> 2.038148954 | DJ31: =PRODUCT(IF(($CL$13:$EK$13<=DJ$13*TRANSPOSE($CK$14:$CK$65>=$CK31)),$CL$10:$EK$10,1)) -> 2.219245593 | DK31: =PRODUCT(IF(($CL$13:$EK$13<=DK$13*TRANSPOSE($CK$14:$CK$65>=$CK31)),$CL$10:$EK$10,1)) -> 2.41081076 | DL31: =PRODUCT(IF(($CL$13:$EK$13<=DL$13*TRANSPOSE($CK$14:$CK$65>=$CK31)),$CL$10:$EK$10,1)) -> 2.693322183 | DM31: =PRODUCT(IF(($CL$13:$EK$13<=DM$13*TRANSPOSE($CK$14:$CK$65>=$CK31)),$CL$10:$EK$10,1)) -> 2.914410651 | DN31: =PRODUCT(IF(($CL$13:$EK$13<=DN$13*TRANSPOSE($CK$14:$CK$65>=$CK31)),$CL$10:$EK$10,1)) -> 3.09090075 | DO31: =PRODUCT(IF(($CL$13:$EK$13<=DO$13*TRANSPOSE($CK$14:$CK$65>=$CK31)),$CL$10:$EK$10,1)) -> 3.262839556 | DP31: =PRODUCT(IF(($CL$13:$EK$13<=DP$13*TRANSPOSE($CK$14:$CK$65>=$CK31)),$CL$10:$EK$10,1)) -> 3.486160047 | DQ31: =PRODUCT(IF(($CL$13:$EK$13<=DQ$13*TRANSPOSE($CK$14:$CK$65>=$CK31)),$CL$10:$EK$10,1)) -> 3.748765918 | DR31: =PRODUCT(IF(($CL$13:$EK$13<=DR$13*TRANSPOSE($CK$14:$CK$65>=$CK31)),$CL$10:$EK$10,1)) -> 4.102415363 | DS31: =PRODUCT(IF(($CL$13:$EK$13<=DS$13*TRANSPOSE($CK$14:$CK$65>=$CK31)),$CL$10:$EK$10,1)) -> 5.283795682 | DT31: =PRODUCT(IF(($CL$13:$EK$13<=DT$13*TRANSPOSE($CK$14:$CK$65>=$CK31)),$CL$10:$EK$10,1)) -> 6.071408225 | DU31: =PRODUCT(IF(($CL$13:$EK$13<=DU$13*TRANSPOSE($CK$14:$CK$65>=$CK31)),$CL$10:$EK$10,1)) -> 6.976075435 | DV31: =PRODUCT(IF(($CL$13:$EK$13<=DV$13*TRANSPOSE($CK$14:$CK$65>=$CK31)),$CL$10:$EK$10,1)) -> 8.100107902 | DW31: =PRODUCT(IF(($CL$13:$EK$13<=DW$13*TRANSPOSE($CK$14:$CK$65>=$CK31)),$CL$10:$EK$10,1)) -> 8.173578141 | DX31: =PRODUCT(IF(($CL$13:$EK$13<=DX$13*TRANSPOSE($CK$14:$CK$65>=$CK31)),$CL$10:$EK$10,1)) -> 8.926491159 | DY31: =PRODUCT(IF(($CL$13:$EK$13<=DY$13*TRANSPOSE($CK$14:$CK$65>=$CK31)),$CL$10:$EK$10,1)) -> 10.45824695 | DZ31: =PRODUCT(IF(($CL$13:$EK$13<=DZ$13*TRANSPOSE($CK$14:$CK$65>=$CK31)),$CL$10:$EK$10,1)) -> 12.36226349 | EA31: =PRODUCT(IF(($CL$13:$EK$13<=EA$13*TRANSPOSE($CK$14:$CK$65>=$CK31)),$CL$10:$EK$10,1)) -> 14.48264184 | EB31: =PRODUCT(IF(($CL$13:$EK$13<=EB$13*TRANSPOSE($CK$14:$CK$65>=$CK31)),$CL$10:$EK$10,1)) -> 15.64953203 | EC31: =PRODUCT(IF(($CL$13:$EK$13<=EC$13*TRANSPOSE($CK$14:$CK$65>=$CK31)),$CL$10:$EK$10,1)) -> 15.97057144 | ED31: =PRODUCT(IF(($CL$13:$EK$13<=ED$13*TRANSPOSE($CK$14:$CK$65>=$CK31)),$CL$10:$EK$10,1)) -> 16.13562753 | EE31: =PRODUCT(IF(($CL$13:$EK$13<=EE$13*TRANSPOSE($CK$14:$CK$65>=$CK31)),$CL$10:$EK$10,1)) -> 16.27396882 | EF31: =PRODUCT(IF(($CL$13:$EK$13<=EF$13*TRANSPOSE($CK$14:$CK$65>=$CK31)),$CL$10:$EK$10,1)) -> 16.99554263 | EG31: =PRODUCT(IF(($CL$13:$EK$13<=EG$13*TRANSPOSE($CK$14:$CK$65>=$CK31)),$CL$10:$EK$10,1)) -> 17.4046739 | EH31: =PRODUCT(IF(($CL$13:$EK$13<=EH$13*TRANSPOSE($CK$14:$CK$65>=$CK31)),$CL$10:$EK$10,1)) -> 18.08305462 | EI31: =PRODUCT(IF(($CL$13:$EK$13<=EI$13*TRANSPOSE($CK$14:$CK$65>=$CK31)),$CL$10:$EK$10,1)) -> 19.70322961 | EJ31: =PRODUCT(IF(($CL$13:$EK$13<=EJ$13*TRANSPOSE($CK$14:$CK$65>=$CK31)),$CL$10:$EK$10,1)) -> 22.62030856 | EK31: =PRODUCT(IF(($CL$13:$EK$13<=EK$13*TRANSPOSE($CK$14:$CK$65>=$CK31)),$CL$10:$EK$10,1)) -> 24.1151517
C32: 1991 | W32: =IF(DE33=1,"",DE33^(1/(DE$13-$CK33+1))-1) -> 0.0947263172 | X32: =IF(DF33=1,"",DF33^(1/(DF$13-$CK33+1))-1) -> 0.1013536963 | Y32: =IF(DG33=1,"",DG33^(1/(DG$13-$CK33+1))-1) -> 0.08806053907 | Z32: =IF(DH33=1,"",DH33^(1/(DH$13-$CK33+1))-1) -> 0.09863448164 | AA32: =IF(DI33=1,"",DI33^(1/(DI$13-$CK33+1))-1) -> 0.1055462797 | AB32: =IF(DJ33=1,"",DJ33^(1/(DJ$13-$CK33+1))-1) -> 0.1027464809 | AC32: =IF(DK33=1,"",DK33^(1/(DK$13-$CK33+1))-1) -> 0.1003847128 | AD32: =IF(DL33=1,"",DL33^(1/(DL$13-$CK33+1))-1) -> 0.1024708826 | AE32: =IF(DM33=1,"",DM33^(1/(DM$13-$CK33+1))-1) -> 0.1001872482 | AF32: =IF(DN33=1,"",DN33^(1/(DN$13-$CK33+1))-1) -> 0.09615855503 | AG32: =IF(DO33=1,"",DO33^(1/(DO$13-$CK33+1))-1) -> 0.09241047976 | AH32: =IF(DP33=1,"",DP33^(1/(DP$13-$CK33+1))-1) -> 0.09039287044 | AI32: =IF(DQ33=1,"",DQ33^(1/(DQ$13-$CK33+1))-1) -> 0.08922658779 | AJ32: =IF(DR33=1,"",DR33^(1/(DR$13-$CK33+1))-1) -> 0.08959086458 | AK32: =IF(DS33=1,"",DS33^(1/(DS$13-$CK33+1))-1) -> 0.1018089999 | AL32: =IF(DT33=1,"",DT33^(1/(DT$13-$CK33+1))-1) -> 0.1047045289 | AM32: =IF(DU33=1,"",DU33^(1/(DU$13-$CK33+1))-1) -> 0.1072624737 | AN32: =IF(DV33=1,"",DV33^(1/(DV$13-$CK33+1))-1) -> 0.1101882846 | AO32: =IF(DW33=1,"",DW33^(1/(DW$13-$CK33+1))-1) -> 0.1046221143 | AP32: =IF(DX33=1,"",DX33^(1/(DX$13-$CK33+1))-1) -> 0.1039933943 | AQ32: =IF(DY33=1,"",DY33^(1/(DY$13-$CK33+1))-1) -> 0.1071223048 | AR32: 0.1104230979 | AS32: =IF(EA33=1,"",EA33^(1/(EA$13-$CK33+1))-1) -> 0.1130120036 | AT32: =IF(EB33=1,"",EB33^(1/(EB$13-$CK33+1))-1) -> 0.1116410771 | AU32: 0.1078444004 | AV32: =IF(ED33=1,"",ED33^(1/(ED$13-$CK33+1))-1) -> 0.1039255662 | AW32: =IF(EE33=1,"",EE33^(1/(EE$13-$CK33+1))-1) -> 0.1002382723 | AX32: =IF(EF33=1,"",EF33^(1/(EF$13-$CK33+1))-1) -> 0.09819128051 | AY32: =IF(EG33=1,"",EG33^(1/(EG$13-$CK33+1))-1) -> 0.09554832247 | AZ32: =IF(EH33=1,"",EH33^(1/(EH$13-$CK33+1))-1) -> 0.09361388865 | BA32: 0.09348405844 | BB32: =IF(EJ33=1,"",EJ33^(1/(EJ$13-$CK33+1))-1) -> 0.09514935397 | BC32: =IF(EK33=1,"",EK33^(1/(EK$13-$CK33+1))-1) -> 0.09425705421 | BE32: 1990 | BF32: 0.06690853426 | BG32: 0.110901726 | BH32: 0.1254053165 | BI32: 0.0902867686 | BJ32: 0.06298171994 | BK32: 0.01726077055 | BL32: 0.02324575145 | BM32: 0.01534758745 | BN32: 0.01079901706 | BO32: 0.02079583893 | BP32: 0.03128244491 | BQ32: 0.0434800342 | BR32: 0.05215449145 | BS32: 0.0751325842 | BT32: 0.08961126052 | BU32: 0.0981868374 | BV32: 0.110513407 | BW32: 0.1121520032 | BX32: =PRODUCT($CH14:$CH32)^(1/BX$13)-1 -> 0.1120485755 | CG32: 1990 | CH32: =HLOOKUP($W$7,dat,MATCH(CG32,Data!$B$3:$B$60,0),0)+1 -> 1.066908534 | CK32: 1990 | CL32: =PRODUCT(IF(($CL$13:$EK$13<=CL$13*TRANSPOSE($CK$14:$CK$65>=$CK32)),$CL$10:$EK$10,1)) -> 1 | CM32: =PRODUCT(IF(($CL$13:$EK$13<=CM$13*TRANSPOSE($CK$14:$CK$65>=$CK32)),$CL$10:$EK$10,1)) -> 1 | CN32: =PRODUCT(IF(($CL$13:$EK$13<=CN$13*TRANSPOSE($CK$14:$CK$65>=$CK32)),$CL$10:$EK$10,1)) -> 1 | CO32: =PRODUCT(IF(($CL$13:$EK$13<=CO$13*TRANSPOSE($CK$14:$CK$65>=$CK32)),$CL$10:$EK$10,1)) -> 1 | CP32: =PRODUCT(IF(($CL$13:$EK$13<=CP$13*TRANSPOSE($CK$14:$CK$65>=$CK32)),$CL$10:$EK$10,1)) -> 1 | CQ32: =PRODUCT(IF(($CL$13:$EK$13<=CQ$13*TRANSPOSE($CK$14:$CK$65>=$CK32)),$CL$10:$EK$10,1)) -> 1 | CR32: =PRODUCT(IF(($CL$13:$EK$13<=CR$13*TRANSPOSE($CK$14:$CK$65>=$CK32)),$CL$10:$EK$10,1)) -> 1 | CS32: =PRODUCT(IF(($CL$13:$EK$13<=CS$13*TRANSPOSE($CK$14:$CK$65>=$CK32)),$CL$10:$EK$10,1)) -> 1 | CT32: =PRODUCT(IF(($CL$13:$EK$13<=CT$13*TRANSPOSE($CK$14:$CK$65>=$CK32)),$CL$10:$EK$10,1)) -> 1 | CU32: =PRODUCT(IF(($CL$13:$EK$13<=CU$13*TRANSPOSE($CK$14:$CK$65>=$CK32)),$CL$10:$EK$10,1)) -> 1 | CV32: =PRODUCT(IF(($CL$13:$EK$13<=CV$13*TRANSPOSE($CK$14:$CK$65>=$CK32)),$CL$10:$EK$10,1)) -> 1 | CW32: =PRODUCT(IF(($CL$13:$EK$13<=CW$13*TRANSPOSE($CK$14:$CK$65>=$CK32)),$CL$10:$EK$10,1)) -> 1 | CX32: =PRODUCT(IF(($CL$13:$EK$13<=CX$13*TRANSPOSE($CK$14:$CK$65>=$CK32)),$CL$10:$EK$10,1)) -> 1 | CY32: =PRODUCT(IF(($CL$13:$EK$13<=CY$13*TRANSPOSE($CK$14:$CK$65>=$CK32)),$CL$10:$EK$10,1)) -> 1 | CZ32: =PRODUCT(IF(($CL$13:$EK$13<=CZ$13*TRANSPOSE($CK$14:$CK$65>=$CK32)),$CL$10:$EK$10,1)) -> 1 | DA32: =PRODUCT(IF(($CL$13:$EK$13<=DA$13*TRANSPOSE($CK$14:$CK$65>=$CK32)),$CL$10:$EK$10,1)) -> 1 | DB32: =PRODUCT(IF(($CL$13:$EK$13<=DB$13*TRANSPOSE($CK$14:$CK$65>=$CK32)),$CL$10:$EK$10,1)) -> 1 | DC32: =PRODUCT(IF(($CL$13:$EK$13<=DC$13*TRANSPOSE($CK$14:$CK$65>=$CK32)),$CL$10:$EK$10,1)) -> 1 | DD32: =PRODUCT(IF(($CL$13:$EK$13<=DD$13*TRANSPOSE($CK$14:$CK$65>=$CK32)),$CL$10:$EK$10,1)) -> 1.066908534 | DE32: =PRODUCT(IF(($CL$13:$EK$13<=DE$13*TRANSPOSE($CK$14:$CK$65>=$CK32)),$CL$10:$EK$10,1)) -> 1.167972851 | DF32: =PRODUCT(IF(($CL$13:$EK$13<=DF$13*TRANSPOSE($CK$14:$CK$65>=$CK32)),$CL$10:$EK$10,1)) -> 1.294138676 | DG32: =PRODUCT(IF(($CL$13:$EK$13<=DG$13*TRANSPOSE($CK$14:$CK$65>=$CK32)),$CL$10:$EK$10,1)) -> 1.37431526 | DH32: =PRODUCT(IF(($CL$13:$EK$13<=DH$13*TRANSPOSE($CK$14:$CK$65>=$CK32)),$CL$10:$EK$10,1)) -> 1.55431877 | DI32: =PRODUCT(IF(($CL$13:$EK$13<=DI$13*TRANSPOSE($CK$14:$CK$65>=$CK32)),$CL$10:$EK$10,1)) -> 1.762024028 | DJ32: =PRODUCT(IF(($CL$13:$EK$13<=DJ$13*TRANSPOSE($CK$14:$CK$65>=$CK32)),$CL$10:$EK$10,1)) -> 1.918586005 | DK32: =PRODUCT(IF(($CL$13:$EK$13<=DK$13*TRANSPOSE($CK$14:$CK$65>=$CK32)),$CL$10:$EK$10,1)) -> 2.084198251 | DL32: =PRODUCT(IF(($CL$13:$EK$13<=DL$13*TRANSPOSE($CK$14:$CK$65>=$CK32)),$CL$10:$EK$10,1)) -> 2.328435511 | DM32: =PRODUCT(IF(($CL$13:$EK$13<=DM$13*TRANSPOSE($CK$14:$CK$65>=$CK32)),$CL$10:$EK$10,1)) -> 2.519571293 | DN32: =PRODUCT(IF(($CL$13:$EK$13<=DN$13*TRANSPOSE($CK$14:$CK$65>=$CK32)),$CL$10:$EK$10,1)) -> 2.672150815 | DO32: =PRODUCT(IF(($CL$13:$EK$13<=DO$13*TRANSPOSE($CK$14:$CK$65>=$CK32)),$CL$10:$EK$10,1)) -> 2.820795646 | DP32: =PRODUCT(IF(($CL$13:$EK$13<=DP$13*TRANSPOSE($CK$14:$CK$65>=$CK32)),$CL$10:$EK$10,1)) -> 3.01386106 | DQ32: =PRODUCT(IF(($CL$13:$EK$13<=DQ$13*TRANSPOSE($CK$14:$CK$65>=$CK32)),$CL$10:$EK$10,1)) -> 3.240889538 | DR32: =PRODUCT(IF(($CL$13:$EK$13<=DR$13*TRANSPOSE($CK$14:$CK$65>=$CK32)),$CL$10:$EK$10,1)) -> 3.546627163 | DS32: =PRODUCT(IF(($CL$13:$EK$13<=DS$13*TRANSPOSE($CK$14:$CK$65>=$CK32)),$CL$10:$EK$10,1)) -> 4.567956101 | DT32: =PRODUCT(IF(($CL$13:$EK$13<=DT$13*TRANSPOSE($CK$14:$CK$65>=$CK32)),$CL$10:$EK$10,1)) -> 5.248864247 | DU32: =PRODUCT(IF(($CL$13:$EK$13<=DU$13*TRANSPOSE($CK$14:$CK$65>=$CK32)),$CL$10:$EK$10,1)) -> 6.030968695 | DV32: =PRODUCT(IF(($CL$13:$EK$13<=DV$13*TRANSPOSE($CK$14:$CK$65>=$CK32)),$CL$10:$EK$10,1)) -> 7.00271917 | DW32: =PRODUCT(IF(($CL$13:$EK$13<=DW$13*TRANSPOSE($CK$14:$CK$65>=$CK32)),$CL$10:$EK$10,1)) -> 7.066235787 | DX32: =PRODUCT(IF(($CL$13:$EK$13<=DX$13*TRANSPOSE($CK$14:$CK$65>=$CK32)),$CL$10:$EK$10,1)) -> 7.71714544 | DY32: =PRODUCT(IF(($CL$13:$EK$13<=DY$13*TRANSPOSE($CK$14:$CK$65>=$CK32)),$CL$10:$EK$10,1)) -> 9.04138158 | DZ32: =PRODUCT(IF(($CL$13:$EK$13<=DZ$13*TRANSPOSE($CK$14:$CK$65>=$CK32)),$CL$10:$EK$10,1)) -> 10.68744523 | EA32: =PRODUCT(IF(($CL$13:$EK$13<=EA$13*TRANSPOSE($CK$14:$CK$65>=$CK32)),$CL$10:$EK$10,1)) -> 12.52055835 | EB32: =PRODUCT(IF(($CL$13:$EK$13<=EB$13*TRANSPOSE($CK$14:$CK$65>=$CK32)),$CL$10:$EK$10,1)) -> 13.52936026 | EC32: =PRODUCT(IF(($CL$13:$EK$13<=EC$13*TRANSPOSE($CK$14:$CK$65>=$CK32)),$CL$10:$EK$10,1)) -> 13.8069058 | ED32: =PRODUCT(IF(($CL$13:$EK$13<=ED$13*TRANSPOSE($CK$14:$CK$65>=$CK32)),$CL$10:$EK$10,1)) -> 13.94960037 | EE32: =PRODUCT(IF(($CL$13:$EK$13<=EE$13*TRANSPOSE($CK$14:$CK$65>=$CK32)),$CL$10:$EK$10,1)) -> 14.06919943 | EF32: =PRODUCT(IF(($CL$13:$EK$13<=EF$13*TRANSPOSE($CK$14:$CK$65>=$CK32)),$CL$10:$EK$10,1)) -> 14.69301565 | EG32: =PRODUCT(IF(($CL$13:$EK$13<=EG$13*TRANSPOSE($CK$14:$CK$65>=$CK32)),$CL$10:$EK$10,1)) -> 15.04671852 | EH32: =PRODUCT(IF(($CL$13:$EK$13<=EH$13*TRANSPOSE($CK$14:$CK$65>=$CK32)),$CL$10:$EK$10,1)) -> 15.63319339 | EI32: =PRODUCT(IF(($CL$13:$EK$13<=EI$13*TRANSPOSE($CK$14:$CK$65>=$CK32)),$CL$10:$EK$10,1)) -> 17.03386984 | EJ32: =PRODUCT(IF(($CL$13:$EK$13<=EJ$13*TRANSPOSE($CK$14:$CK$65>=$CK32)),$CL$10:$EK$10,1)) -> 19.55574794 | EK32: =PRODUCT(IF(($CL$13:$EK$13<=EK$13*TRANSPOSE($CK$14:$CK$65>=$CK32)),$CL$10:$EK$10,1)) -> 20.84807229
C33: 1992 | X33: 0.1080211969 | Y33: 0.08474288594 | Z33: 0.09994030113 | AA33: 0.1082679388 | AB33: 0.1043575508 | AC33: 0.1013306182 | AD33: 0.1035817126 | AE33: 0.1008717772 | AF33: 0.09631780819 | AG33: 0.09217916563 | AH33: 0.08999977236 | AI33: 0.0887695261 | AJ33: 0.08919682905 | AK33: 0.1023166558 | AL33: 0.1053729677 | AM33: 0.1080507331 | AN33: 0.1111045831 | AO33: 0.1051744963 | AP33: 0.1044833024 | AQ33: 0.1077457756 | AR33: 0.1111761522 | AS33: 0.1138503901 | AT33: 0.112382401 | AU33: 0.1083943856 | AV33: 0.1042951397 | AW33: 0.1004508239 | AX33: 0.09831982289 | AY33: 0.09557769121 | AZ33: 0.09357554922 | BA33: =IF(EI34=1,"",EI34^(1/(EI$13-$CK34+1))-1) -> 0.0934426741 | BB33: =IF(EJ34=1,"",EJ34^(1/(EJ$13-$CK34+1))-1) -> 0.09516300304 | BC33: =IF(EK34=1,"",EK34^(1/(EK$13-$CK34+1))-1) -> 0.09424239298 | BE33: 1991 | BF33: 0.0947263172 | BG33: 0.08072792622 | BH33: 0.10548354 | BI33: 0.1176558908 | BJ33: 0.09117323565 | BK33: 0.06820782861 | BL33: 0.02798225962 | BM33: 0.0319191005 | BN33: 0.02387527192 | BO33: 0.01889372057 | BP33: 0.02730522551 | BQ33: 0.0364259687 | BR33: 0.04733541951 | BS33: 0.05513965486 | BT33: 0.07642785249 | BU33: 0.08993025021 | BV33: 0.09798297491 | BW33: 0.1096304038 | BX33: 0.1112279848 | BY33: =PRODUCT($CH14:$CH33)^(1/BY$13)-1 -> 0.1111759885 | CG33: 1991 | CH33: =HLOOKUP($W$7,dat,MATCH(CG33,Data!$B$3:$B$60,0),0)+1 -> 1.094726317 | CK33: 1991 | CL33: =PRODUCT(IF(($CL$13:$EK$13<=CL$13*TRANSPOSE($CK$14:$CK$65>=$CK33)),$CL$10:$EK$10,1)) -> 1 | CM33: =PRODUCT(IF(($CL$13:$EK$13<=CM$13*TRANSPOSE($CK$14:$CK$65>=$CK33)),$CL$10:$EK$10,1)) -> 1 | CN33: =PRODUCT(IF(($CL$13:$EK$13<=CN$13*TRANSPOSE($CK$14:$CK$65>=$CK33)),$CL$10:$EK$10,1)) -> 1 | CO33: =PRODUCT(IF(($CL$13:$EK$13<=CO$13*TRANSPOSE($CK$14:$CK$65>=$CK33)),$CL$10:$EK$10,1)) -> 1 | CP33: =PRODUCT(IF(($CL$13:$EK$13<=CP$13*TRANSPOSE($CK$14:$CK$65>=$CK33)),$CL$10:$EK$10,1)) -> 1 | CQ33: =PRODUCT(IF(($CL$13:$EK$13<=CQ$13*TRANSPOSE($CK$14:$CK$65>=$CK33)),$CL$10:$EK$10,1)) -> 1 | CR33: =PRODUCT(IF(($CL$13:$EK$13<=CR$13*TRANSPOSE($CK$14:$CK$65>=$CK33)),$CL$10:$EK$10,1)) -> 1 | CS33: =PRODUCT(IF(($CL$13:$EK$13<=CS$13*TRANSPOSE($CK$14:$CK$65>=$CK33)),$CL$10:$EK$10,1)) -> 1 | CT33: =PRODUCT(IF(($CL$13:$EK$13<=CT$13*TRANSPOSE($CK$14:$CK$65>=$CK33)),$CL$10:$EK$10,1)) -> 1 | CU33: =PRODUCT(IF(($CL$13:$EK$13<=CU$13*TRANSPOSE($CK$14:$CK$65>=$CK33)),$CL$10:$EK$10,1)) -> 1 | CV33: =PRODUCT(IF(($CL$13:$EK$13<=CV$13*TRANSPOSE($CK$14:$CK$65>=$CK33)),$CL$10:$EK$10,1)) -> 1 | CW33: =PRODUCT(IF(($CL$13:$EK$13<=CW$13*TRANSPOSE($CK$14:$CK$65>=$CK33)),$CL$10:$EK$10,1)) -> 1 | CX33: =PRODUCT(IF(($CL$13:$EK$13<=CX$13*TRANSPOSE($CK$14:$CK$65>=$CK33)),$CL$10:$EK$10,1)) -> 1 | CY33: =PRODUCT(IF(($CL$13:$EK$13<=CY$13*TRANSPOSE($CK$14:$CK$65>=$CK33)),$CL$10:$EK$10,1)) -> 1 | CZ33: =PRODUCT(IF(($CL$13:$EK$13<=CZ$13*TRANSPOSE($CK$14:$CK$65>=$CK33)),$CL$10:$EK$10,1)) -> 1 | DA33: =PRODUCT(IF(($CL$13:$EK$13<=DA$13*TRANSPOSE($CK$14:$CK$65>=$CK33)),$CL$10:$EK$10,1)) -> 1 | DB33: =PRODUCT(IF(($CL$13:$EK$13<=DB$13*TRANSPOSE($CK$14:$CK$65>=$CK33)),$CL$10:$EK$10,1)) -> 1 | DC33: =PRODUCT(IF(($CL$13:$EK$13<=DC$13*TRANSPOSE($CK$14:$CK$65>=$CK33)),$CL$10:$EK$10,1)) -> 1 | DD33: =PRODUCT(IF(($CL$13:$EK$13<=DD$13*TRANSPOSE($CK$14:$CK$65>=$CK33)),$CL$10:$EK$10,1)) -> 1 | DE33: =PRODUCT(IF(($CL$13:$EK$13<=DE$13*TRANSPOSE($CK$14:$CK$65>=$CK33)),$CL$10:$EK$10,1)) -> 1.094726317 | DF33: =PRODUCT(IF(($CL$13:$EK$13<=DF$13*TRANSPOSE($CK$14:$CK$65>=$CK33)),$CL$10:$EK$10,1)) -> 1.212979964 | DG33: =PRODUCT(IF(($CL$13:$EK$13<=DG$13*TRANSPOSE($CK$14:$CK$65>=$CK33)),$CL$10:$EK$10,1)) -> 1.288128472 | DH33: =PRODUCT(IF(($CL$13:$EK$13<=DH$13*TRANSPOSE($CK$14:$CK$65>=$CK33)),$CL$10:$EK$10,1)) -> 1.456843506 | DI33: =PRODUCT(IF(($CL$13:$EK$13<=DI$13*TRANSPOSE($CK$14:$CK$65>=$CK33)),$CL$10:$EK$10,1)) -> 1.651523042 | DJ33: =PRODUCT(IF(($CL$13:$EK$13<=DJ$13*TRANSPOSE($CK$14:$CK$65>=$CK33)),$CL$10:$EK$10,1)) -> 1.798266621 | DK33: =PRODUCT(IF(($CL$13:$EK$13<=DK$13*TRANSPOSE($CK$14:$CK$65>=$CK33)),$CL$10:$EK$10,1)) -> 1.953492904 | DL33: =PRODUCT(IF(($CL$13:$EK$13<=DL$13*TRANSPOSE($CK$14:$CK$65>=$CK33)),$CL$10:$EK$10,1)) -> 2.182413428 | DM33: =PRODUCT(IF(($CL$13:$EK$13<=DM$13*TRANSPOSE($CK$14:$CK$65>=$CK33)),$CL$10:$EK$10,1)) -> 2.361562601 | DN33: =PRODUCT(IF(($CL$13:$EK$13<=DN$13*TRANSPOSE($CK$14:$CK$65>=$CK33)),$CL$10:$EK$10,1)) -> 2.504573475 | DO33: =PRODUCT(IF(($CL$13:$EK$13<=DO$13*TRANSPOSE($CK$14:$CK$65>=$CK33)),$CL$10:$EK$10,1)) -> 2.643896413 | DP33: =PRODUCT(IF(($CL$13:$EK$13<=DP$13*TRANSPOSE($CK$14:$CK$65>=$CK33)),$CL$10:$EK$10,1)) -> 2.824854206 | DQ33: =PRODUCT(IF(($CL$13:$EK$13<=DQ$13*TRANSPOSE($CK$14:$CK$65>=$CK33)),$CL$10:$EK$10,1)) -> 3.037645154 | DR33: =PRODUCT(IF(($CL$13:$EK$13<=DR$13*TRANSPOSE($CK$14:$CK$65>=$CK33)),$CL$10:$EK$10,1)) -> 3.324209198 | DS33: =PRODUCT(IF(($CL$13:$EK$13<=DS$13*TRANSPOSE($CK$14:$CK$65>=$CK33)),$CL$10:$EK$10,1)) -> 4.281488014 | DT33: =PRODUCT(IF(($CL$13:$EK$13<=DT$13*TRANSPOSE($CK$14:$CK$65>=$CK33)),$CL$10:$EK$10,1)) -> 4.919694687 | DU33: =PRODUCT(IF(($CL$13:$EK$13<=DU$13*TRANSPOSE($CK$14:$CK$65>=$CK33)),$CL$10:$EK$10,1)) -> 5.652751385 | DV33: =PRODUCT(IF(($CL$13:$EK$13<=DV$13*TRANSPOSE($CK$14:$CK$65>=$CK33)),$CL$10:$EK$10,1)) -> 6.563560929 | DW33: =PRODUCT(IF(($CL$13:$EK$13<=DW$13*TRANSPOSE($CK$14:$CK$65>=$CK33)),$CL$10:$EK$10,1)) -> 6.623094258 | DX33: =PRODUCT(IF(($CL$13:$EK$13<=DX$13*TRANSPOSE($CK$14:$CK$65>=$CK33)),$CL$10:$EK$10,1)) -> 7.23318372 | DY33: =PRODUCT(IF(($CL$13:$EK$13<=DY$13*TRANSPOSE($CK$14:$CK$65>=$CK33)),$CL$10:$EK$10,1)) -> 8.47437366 | DZ33: =PRODUCT(IF(($CL$13:$EK$13<=DZ$13*TRANSPOSE($CK$14:$CK$65>=$CK33)),$CL$10:$EK$10,1)) -> 10.01720849 | EA33: =PRODUCT(IF(($CL$13:$EK$13<=EA$13*TRANSPOSE($CK$14:$CK$65>=$CK33)),$CL$10:$EK$10,1)) -> 11.73536245 | EB33: =PRODUCT(IF(($CL$13:$EK$13<=EB$13*TRANSPOSE($CK$14:$CK$65>=$CK33)),$CL$10:$EK$10,1)) -> 12.68089984 | EC33: =PRODUCT(IF(($CL$13:$EK$13<=EC$13*TRANSPOSE($CK$14:$CK$65>=$CK33)),$CL$10:$EK$10,1)) -> 12.9410398 | ED33: =PRODUCT(IF(($CL$13:$EK$13<=ED$13*TRANSPOSE($CK$14:$CK$65>=$CK33)),$CL$10:$EK$10,1)) -> 13.07478563 | EE33: =PRODUCT(IF(($CL$13:$EK$13<=EE$13*TRANSPOSE($CK$14:$CK$65>=$CK33)),$CL$10:$EK$10,1)) -> 13.18688432 | EF33: =PRODUCT(IF(($CL$13:$EK$13<=EF$13*TRANSPOSE($CK$14:$CK$65>=$CK33)),$CL$10:$EK$10,1)) -> 13.77157946 | EG33: =PRODUCT(IF(($CL$13:$EK$13<=EG$13*TRANSPOSE($CK$14:$CK$65>=$CK33)),$CL$10:$EK$10,1)) -> 14.10310072 | EH33: =PRODUCT(IF(($CL$13:$EK$13<=EH$13*TRANSPOSE($CK$14:$CK$65>=$CK33)),$CL$10:$EK$10,1)) -> 14.65279626 | EI33: =PRODUCT(IF(($CL$13:$EK$13<=EI$13*TRANSPOSE($CK$14:$CK$65>=$CK33)),$CL$10:$EK$10,1)) -> 15.96563275 | EJ33: =PRODUCT(IF(($CL$13:$EK$13<=EJ$13*TRANSPOSE($CK$14:$CK$65>=$CK33)),$CL$10:$EK$10,1)) -> 18.3293575 | EK33: =PRODUCT(IF(($CL$13:$EK$13<=EK$13*TRANSPOSE($CK$14:$CK$65>=$CK33)),$CL$10:$EK$10,1)) -> 19.54063691
C34: 1993 | Y34: 0.06195362673 | Z34: 0.09592198067 | AA34: 0.1083501983 | AB34: 0.1034435335 | AC34: 0.09999735821 | AD34: 0.1028435298 | AE34: 0.09985420432 | AF34: 0.09486360327 | AG34: 0.09043298122 | AH34: 0.0882138302 | AI34: 0.08703604876 | AJ34: 0.08764264317 | AK34: 0.1018790633 | AL34: 0.1051840508 | AM34: 0.1080527022 | AN34: 0.1112975793 | AO34: 0.1050072712 | AP34: 0.1042870843 | AQ34: 0.1077312817 | AR34: 0.1113341356 | AS34: 0.1141287344 | AT34: 0.1125810449 | AU34: 0.108410614 | AV34: 0.1041401596 | AW34: 0.1001490872 | AX34: 0.09794839421 | AY34: 0.09511951408 | AZ34: 0.09306313111 | BA34: 0.09294340216 | BB34: 0.09473697605 | BC34: 0.09380077975 | BE34: 1992 | BF34: 0.1080211969 | BG34: 0.1013536963 | BH34: 0.08975015338 | BI34: 0.1061174088 | BJ34: 0.115722273 | BK34: 0.09396333279 | BL34: 0.07380664409 | BM34: 0.03766203149 | BN34: 0.04010995514 | BO34: 0.03199396057 | BP34: 0.02669091848 | BQ34: 0.03380083395 | BR34: 0.04176510902 | BS34: 0.05155767278 | BT34: 0.05858520557 | BU34: 0.0783757745 | BV34: 0.09098619955 | BW34: 0.09853826045 | BX34: 0.1095456505 | BY34: 0.1110674252 | BZ34: =PRODUCT($CH14:$CH34)^(1/BZ$13)-1 -> 0.1110255569 | CG34: 1992 | CH34: =HLOOKUP($W$7,dat,MATCH(CG34,Data!$B$3:$B$60,0),0)+1 -> 1.108021197 | CK34: 1992 | CL34: =PRODUCT(IF(($CL$13:$EK$13<=CL$13*TRANSPOSE($CK$14:$CK$65>=$CK34)),$CL$10:$EK$10,1)) -> 1 | CM34: =PRODUCT(IF(($CL$13:$EK$13<=CM$13*TRANSPOSE($CK$14:$CK$65>=$CK34)),$CL$10:$EK$10,1)) -> 1 | CN34: =PRODUCT(IF(($CL$13:$EK$13<=CN$13*TRANSPOSE($CK$14:$CK$65>=$CK34)),$CL$10:$EK$10,1)) -> 1 | CO34: =PRODUCT(IF(($CL$13:$EK$13<=CO$13*TRANSPOSE($CK$14:$CK$65>=$CK34)),$CL$10:$EK$10,1)) -> 1 | CP34: =PRODUCT(IF(($CL$13:$EK$13<=CP$13*TRANSPOSE($CK$14:$CK$65>=$CK34)),$CL$10:$EK$10,1)) -> 1 | CQ34: =PRODUCT(IF(($CL$13:$EK$13<=CQ$13*TRANSPOSE($CK$14:$CK$65>=$CK34)),$CL$10:$EK$10,1)) -> 1 | CR34: =PRODUCT(IF(($CL$13:$EK$13<=CR$13*TRANSPOSE($CK$14:$CK$65>=$CK34)),$CL$10:$EK$10,1)) -> 1 | CS34: =PRODUCT(IF(($CL$13:$EK$13<=CS$13*TRANSPOSE($CK$14:$CK$65>=$CK34)),$CL$10:$EK$10,1)) -> 1 | CT34: =PRODUCT(IF(($CL$13:$EK$13<=CT$13*TRANSPOSE($CK$14:$CK$65>=$CK34)),$CL$10:$EK$10,1)) -> 1 | CU34: =PRODUCT(IF(($CL$13:$EK$13<=CU$13*TRANSPOSE($CK$14:$CK$65>=$CK34)),$CL$10:$EK$10,1)) -> 1 | CV34: =PRODUCT(IF(($CL$13:$EK$13<=CV$13*TRANSPOSE($CK$14:$CK$65>=$CK34)),$CL$10:$EK$10,1)) -> 1 | CW34: =PRODUCT(IF(($CL$13:$EK$13<=CW$13*TRANSPOSE($CK$14:$CK$65>=$CK34)),$CL$10:$EK$10,1)) -> 1 | CX34: =PRODUCT(IF(($CL$13:$EK$13<=CX$13*TRANSPOSE($CK$14:$CK$65>=$CK34)),$CL$10:$EK$10,1)) -> 1 | CY34: =PRODUCT(IF(($CL$13:$EK$13<=CY$13*TRANSPOSE($CK$14:$CK$65>=$CK34)),$CL$10:$EK$10,1)) -> 1 | CZ34: =PRODUCT(IF(($CL$13:$EK$13<=CZ$13*TRANSPOSE($CK$14:$CK$65>=$CK34)),$CL$10:$EK$10,1)) -> 1 | DA34: =PRODUCT(IF(($CL$13:$EK$13<=DA$13*TRANSPOSE($CK$14:$CK$65>=$CK34)),$CL$10:$EK$10,1)) -> 1 | DB34: =PRODUCT(IF(($CL$13:$EK$13<=DB$13*TRANSPOSE($CK$14:$CK$65>=$CK34)),$CL$10:$EK$10,1)) -> 1 | DC34: =PRODUCT(IF(($CL$13:$EK$13<=DC$13*TRANSPOSE($CK$14:$CK$65>=$CK34)),$CL$10:$EK$10,1)) -> 1 | DD34: =PRODUCT(IF(($CL$13:$EK$13<=DD$13*TRANSPOSE($CK$14:$CK$65>=$CK34)),$CL$10:$EK$10,1)) -> 1 | DE34: =PRODUCT(IF(($CL$13:$EK$13<=DE$13*TRANSPOSE($CK$14:$CK$65>=$CK34)),$CL$10:$EK$10,1)) -> 1 | DF34: =PRODUCT(IF(($CL$13:$EK$13<=DF$13*TRANSPOSE($CK$14:$CK$65>=$CK34)),$CL$10:$EK$10,1)) -> 1.108021197 | DG34: =PRODUCT(IF(($CL$13:$EK$13<=DG$13*TRANSPOSE($CK$14:$CK$65>=$CK34)),$CL$10:$EK$10,1)) -> 1.176667129 | DH34: =PRODUCT(IF(($CL$13:$EK$13<=DH$13*TRANSPOSE($CK$14:$CK$65>=$CK34)),$CL$10:$EK$10,1)) -> 1.330783305 | DI34: =PRODUCT(IF(($CL$13:$EK$13<=DI$13*TRANSPOSE($CK$14:$CK$65>=$CK34)),$CL$10:$EK$10,1)) -> 1.508617283 | DJ34: =PRODUCT(IF(($CL$13:$EK$13<=DJ$13*TRANSPOSE($CK$14:$CK$65>=$CK34)),$CL$10:$EK$10,1)) -> 1.642663187 | DK34: =PRODUCT(IF(($CL$13:$EK$13<=DK$13*TRANSPOSE($CK$14:$CK$65>=$CK34)),$CL$10:$EK$10,1)) -> 1.78445779 | DL34: =PRODUCT(IF(($CL$13:$EK$13<=DL$13*TRANSPOSE($CK$14:$CK$65>=$CK34)),$CL$10:$EK$10,1)) -> 1.993569894 | DM34: =PRODUCT(IF(($CL$13:$EK$13<=DM$13*TRANSPOSE($CK$14:$CK$65>=$CK34)),$CL$10:$EK$10,1)) -> 2.157217346 | DN34: =PRODUCT(IF(($CL$13:$EK$13<=DN$13*TRANSPOSE($CK$14:$CK$65>=$CK34)),$CL$10:$EK$10,1)) -> 2.287853535 | DO34: =PRODUCT(IF(($CL$13:$EK$13<=DO$13*TRANSPOSE($CK$14:$CK$65>=$CK34)),$CL$10:$EK$10,1)) -> 2.415120904 | DP34: =PRODUCT(IF(($CL$13:$EK$13<=DP$13*TRANSPOSE($CK$14:$CK$65>=$CK34)),$CL$10:$EK$10,1)) -> 2.580420477 | DQ34: =PRODUCT(IF(($CL$13:$EK$13<=DQ$13*TRANSPOSE($CK$14:$CK$65>=$CK34)),$CL$10:$EK$10,1)) -> 2.774798693 | DR34: =PRODUCT(IF(($CL$13:$EK$13<=DR$13*TRANSPOSE($CK$14:$CK$65>=$CK34)),$CL$10:$EK$10,1)) -> 3.036566442 | DS34: =PRODUCT(IF(($CL$13:$EK$13<=DS$13*TRANSPOSE($CK$14:$CK$65>=$CK34)),$CL$10:$EK$10,1)) -> 3.911012229 | DT34: =PRODUCT(IF(($CL$13:$EK$13<=DT$13*TRANSPOSE($CK$14:$CK$65>=$CK34)),$CL$10:$EK$10,1)) -> 4.493995083 | DU34: =PRODUCT(IF(($CL$13:$EK$13<=DU$13*TRANSPOSE($CK$14:$CK$65>=$CK34)),$CL$10:$EK$10,1)) -> 5.16362062 | DV34: =PRODUCT(IF(($CL$13:$EK$13<=DV$13*TRANSPOSE($CK$14:$CK$65>=$CK34)),$CL$10:$EK$10,1)) -> 5.995618106 | DW34: =PRODUCT(IF(($CL$13:$EK$13<=DW$13*TRANSPOSE($CK$14:$CK$65>=$CK34)),$CL$10:$EK$10,1)) -> 6.050000035 | DX34: =PRODUCT(IF(($CL$13:$EK$13<=DX$13*TRANSPOSE($CK$14:$CK$65>=$CK34)),$CL$10:$EK$10,1)) -> 6.607298652 | DY34: =PRODUCT(IF(($CL$13:$EK$13<=DY$13*TRANSPOSE($CK$14:$CK$65>=$CK34)),$CL$10:$EK$10,1)) -> 7.741088824 | DZ34: =PRODUCT(IF(($CL$13:$EK$13<=DZ$13*TRANSPOSE($CK$14:$CK$65>=$CK34)),$CL$10:$EK$10,1)) -> 9.150422652 | EA34: =PRODUCT(IF(($CL$13:$EK$13<=EA$13*TRANSPOSE($CK$14:$CK$65>=$CK34)),$CL$10:$EK$10,1)) -> 10.7199053 | EB34: =PRODUCT(IF(($CL$13:$EK$13<=EB$13*TRANSPOSE($CK$14:$CK$65>=$CK34)),$CL$10:$EK$10,1)) -> 11.58362564 | EC34: =PRODUCT(IF(($CL$13:$EK$13<=EC$13*TRANSPOSE($CK$14:$CK$65>=$CK34)),$CL$10:$EK$10,1)) -> 11.82125577 | ED34: =PRODUCT(IF(($CL$13:$EK$13<=ED$13*TRANSPOSE($CK$14:$CK$65>=$CK34)),$CL$10:$EK$10,1)) -> 11.94342862 | EE34: =PRODUCT(IF(($CL$13:$EK$13<=EE$13*TRANSPOSE($CK$14:$CK$65>=$CK34)),$CL$10:$EK$10,1)) -> 12.04582745 | EF34: =PRODUCT(IF(($CL$13:$EK$13<=EF$13*TRANSPOSE($CK$14:$CK$65>=$CK34)),$CL$10:$EK$10,1)) -> 12.5799291 | EG34: =PRODUCT(IF(($CL$13:$EK$13<=EG$13*TRANSPOSE($CK$14:$CK$65>=$CK34)),$CL$10:$EK$10,1)) -> 12.88276394 | EH34: =PRODUCT(IF(($CL$13:$EK$13<=EH$13*TRANSPOSE($CK$14:$CK$65>=$CK34)),$CL$10:$EK$10,1)) -> 13.3848945 | EI34: =PRODUCT(IF(($CL$13:$EK$13<=EI$13*TRANSPOSE($CK$14:$CK$65>=$CK34)),$CL$10:$EK$10,1)) -> 14.58413167 | EJ34: =PRODUCT(IF(($CL$13:$EK$13<=EJ$13*TRANSPOSE($CK$14:$CK$65>=$CK34)),$CL$10:$EK$10,1)) -> 16.74332407 | EK34: =PRODUCT(IF(($CL$13:$EK$13<=EK$13*TRANSPOSE($CK$14:$CK$65>=$CK34)),$CL$10:$EK$10,1)) -> 17.84979187
C35: 1994 | Z35: 0.1309768689 | AA35: 0.1323031846 | AB35: 0.1176306441 | AC35: 0.1097193647 | AD35: 0.1112085364 | AE35: 0.1063011923 | AF35: 0.09964755735 | AG35: 0.09404618729 | AH35: 0.0911714247 | AI35: 0.08957664602 | AJ35: 0.0900085995 | AK35: 0.1052731739 | AL35: 0.1085814653 | AM35: 0.1114210599 | AN35: 0.1146675445 | AO35: 0.1077553591 | AP35: 0.106829197 | AQ35: 0.1103315758 | AR35: 0.1139958024 | AS35: 0.1168037573 | AT35: 0.1150511871 | AU35: 0.1105699262 | AV35: 0.1060119004 | AW35: 0.1017700411 | AX35: 0.09941329092 | AY35: 0.09641560663 | AZ35: 0.09423267447 | BA35: 0.09406675084 | BB35: 0.0958853105 | BC35: 0.09487864332 | BE35: 1993 | BF35: 0.06195362673 | BG35: 0.08474288594 | BH35: 0.08806053907 | BI35: 0.08273354506 | BJ35: 0.09714010997 | BK35: 0.1065753997 | BL35: 0.08933211302 | BM35: 0.07231781199 | BN35: 0.04033342248 | BO35: 0.0422739492 | BP35: 0.03468227657 | BQ35: 0.02958420928 | BR35: 0.03593968038 | BS35: 0.04319433071 | BT35: 0.0522475591 | BU35: 0.05879541852 | BV35: 0.07740277402 | BW35: 0.08935265355 | BX35: 0.09658170513 | BY35: 0.1071161706 | BZ35: 0.108677979 | CA35: =PRODUCT($CH14:$CH35)^(1/CA$13)-1 -> 0.1087465954 | CG35: 1993 | CH35: =HLOOKUP($W$7,dat,MATCH(CG35,Data!$B$3:$B$60,0),0)+1 -> 1.061953627 | CK35: 1993 | CL35: =PRODUCT(IF(($CL$13:$EK$13<=CL$13*TRANSPOSE($CK$14:$CK$65>=$CK35)),$CL$10:$EK$10,1)) -> 1 | CM35: =PRODUCT(IF(($CL$13:$EK$13<=CM$13*TRANSPOSE($CK$14:$CK$65>=$CK35)),$CL$10:$EK$10,1)) -> 1 | CN35: =PRODUCT(IF(($CL$13:$EK$13<=CN$13*TRANSPOSE($CK$14:$CK$65>=$CK35)),$CL$10:$EK$10,1)) -> 1 | CO35: =PRODUCT(IF(($CL$13:$EK$13<=CO$13*TRANSPOSE($CK$14:$CK$65>=$CK35)),$CL$10:$EK$10,1)) -> 1 | CP35: =PRODUCT(IF(($CL$13:$EK$13<=CP$13*TRANSPOSE($CK$14:$CK$65>=$CK35)),$CL$10:$EK$10,1)) -> 1 | CQ35: =PRODUCT(IF(($CL$13:$EK$13<=CQ$13*TRANSPOSE($CK$14:$CK$65>=$CK35)),$CL$10:$EK$10,1)) -> 1 | CR35: =PRODUCT(IF(($CL$13:$EK$13<=CR$13*TRANSPOSE($CK$14:$CK$65>=$CK35)),$CL$10:$EK$10,1)) -> 1 | CS35: =PRODUCT(IF(($CL$13:$EK$13<=CS$13*TRANSPOSE($CK$14:$CK$65>=$CK35)),$CL$10:$EK$10,1)) -> 1 | CT35: =PRODUCT(IF(($CL$13:$EK$13<=CT$13*TRANSPOSE($CK$14:$CK$65>=$CK35)),$CL$10:$EK$10,1)) -> 1 | CU35: =PRODUCT(IF(($CL$13:$EK$13<=CU$13*TRANSPOSE($CK$14:$CK$65>=$CK35)),$CL$10:$EK$10,1)) -> 1 | CV35: =PRODUCT(IF(($CL$13:$EK$13<=CV$13*TRANSPOSE($CK$14:$CK$65>=$CK35)),$CL$10:$EK$10,1)) -> 1 | CW35: =PRODUCT(IF(($CL$13:$EK$13<=CW$13*TRANSPOSE($CK$14:$CK$65>=$CK35)),$CL$10:$EK$10,1)) -> 1 | CX35: =PRODUCT(IF(($CL$13:$EK$13<=CX$13*TRANSPOSE($CK$14:$CK$65>=$CK35)),$CL$10:$EK$10,1)) -> 1 | CY35: =PRODUCT(IF(($CL$13:$EK$13<=CY$13*TRANSPOSE($CK$14:$CK$65>=$CK35)),$CL$10:$EK$10,1)) -> 1 | CZ35: =PRODUCT(IF(($CL$13:$EK$13<=CZ$13*TRANSPOSE($CK$14:$CK$65>=$CK35)),$CL$10:$EK$10,1)) -> 1 | DA35: =PRODUCT(IF(($CL$13:$EK$13<=DA$13*TRANSPOSE($CK$14:$CK$65>=$CK35)),$CL$10:$EK$10,1)) -> 1 | DB35: =PRODUCT(IF(($CL$13:$EK$13<=DB$13*TRANSPOSE($CK$14:$CK$65>=$CK35)),$CL$10:$EK$10,1)) -> 1 | DC35: =PRODUCT(IF(($CL$13:$EK$13<=DC$13*TRANSPOSE($CK$14:$CK$65>=$CK35)),$CL$10:$EK$10,1)) -> 1 | DD35: =PRODUCT(IF(($CL$13:$EK$13<=DD$13*TRANSPOSE($CK$14:$CK$65>=$CK35)),$CL$10:$EK$10,1)) -> 1 | DE35: =PRODUCT(IF(($CL$13:$EK$13<=DE$13*TRANSPOSE($CK$14:$CK$65>=$CK35)),$CL$10:$EK$10,1)) -> 1 | DF35: =PRODUCT(IF(($CL$13:$EK$13<=DF$13*TRANSPOSE($CK$14:$CK$65>=$CK35)),$CL$10:$EK$10,1)) -> 1 | DG35: =PRODUCT(IF(($CL$13:$EK$13<=DG$13*TRANSPOSE($CK$14:$CK$65>=$CK35)),$CL$10:$EK$10,1)) -> 1.061953627 | DH35: =PRODUCT(IF(($CL$13:$EK$13<=DH$13*TRANSPOSE($CK$14:$CK$65>=$CK35)),$CL$10:$EK$10,1)) -> 1.201044988 | DI35: =PRODUCT(IF(($CL$13:$EK$13<=DI$13*TRANSPOSE($CK$14:$CK$65>=$CK35)),$CL$10:$EK$10,1)) -> 1.361541897 | DJ35: =PRODUCT(IF(($CL$13:$EK$13<=DJ$13*TRANSPOSE($CK$14:$CK$65>=$CK35)),$CL$10:$EK$10,1)) -> 1.482519641 | DK35: =PRODUCT(IF(($CL$13:$EK$13<=DK$13*TRANSPOSE($CK$14:$CK$65>=$CK35)),$CL$10:$EK$10,1)) -> 1.610490661 | DL35: =PRODUCT(IF(($CL$13:$EK$13<=DL$13*TRANSPOSE($CK$14:$CK$65>=$CK35)),$CL$10:$EK$10,1)) -> 1.799216386 | DM35: =PRODUCT(IF(($CL$13:$EK$13<=DM$13*TRANSPOSE($CK$14:$CK$65>=$CK35)),$CL$10:$EK$10,1)) -> 1.946909817 | DN35: =PRODUCT(IF(($CL$13:$EK$13<=DN$13*TRANSPOSE($CK$14:$CK$65>=$CK35)),$CL$10:$EK$10,1)) -> 2.06481026 | DO35: =PRODUCT(IF(($CL$13:$EK$13<=DO$13*TRANSPOSE($CK$14:$CK$65>=$CK35)),$CL$10:$EK$10,1)) -> 2.179670308 | DP35: =PRODUCT(IF(($CL$13:$EK$13<=DP$13*TRANSPOSE($CK$14:$CK$65>=$CK35)),$CL$10:$EK$10,1)) -> 2.328854795 | DQ35: =PRODUCT(IF(($CL$13:$EK$13<=DQ$13*TRANSPOSE($CK$14:$CK$65>=$CK35)),$CL$10:$EK$10,1)) -> 2.504283041 | DR35: =PRODUCT(IF(($CL$13:$EK$13<=DR$13*TRANSPOSE($CK$14:$CK$65>=$CK35)),$CL$10:$EK$10,1)) -> 2.740531002 | DS35: =PRODUCT(IF(($CL$13:$EK$13<=DS$13*TRANSPOSE($CK$14:$CK$65>=$CK35)),$CL$10:$EK$10,1)) -> 3.529726904 | DT35: =PRODUCT(IF(($CL$13:$EK$13<=DT$13*TRANSPOSE($CK$14:$CK$65>=$CK35)),$CL$10:$EK$10,1)) -> 4.055874649 | DU35: =PRODUCT(IF(($CL$13:$EK$13<=DU$13*TRANSPOSE($CK$14:$CK$65>=$CK35)),$CL$10:$EK$10,1)) -> 4.660218265 | DV35: =PRODUCT(IF(($CL$13:$EK$13<=DV$13*TRANSPOSE($CK$14:$CK$65>=$CK35)),$CL$10:$EK$10,1)) -> 5.411104158 | DW35: =PRODUCT(IF(($CL$13:$EK$13<=DW$13*TRANSPOSE($CK$14:$CK$65>=$CK35)),$CL$10:$EK$10,1)) -> 5.460184383 | DX35: =PRODUCT(IF(($CL$13:$EK$13<=DX$13*TRANSPOSE($CK$14:$CK$65>=$CK35)),$CL$10:$EK$10,1)) -> 5.963151851 | DY35: =PRODUCT(IF(($CL$13:$EK$13<=DY$13*TRANSPOSE($CK$14:$CK$65>=$CK35)),$CL$10:$EK$10,1)) -> 6.986408605 | DZ35: =PRODUCT(IF(($CL$13:$EK$13<=DZ$13*TRANSPOSE($CK$14:$CK$65>=$CK35)),$CL$10:$EK$10,1)) -> 8.258346209 | EA35: =PRODUCT(IF(($CL$13:$EK$13<=EA$13*TRANSPOSE($CK$14:$CK$65>=$CK35)),$CL$10:$EK$10,1)) -> 9.674819696 | EB35: =PRODUCT(IF(($CL$13:$EK$13<=EB$13*TRANSPOSE($CK$14:$CK$65>=$CK35)),$CL$10:$EK$10,1)) -> 10.45433578 | EC35: =PRODUCT(IF(($CL$13:$EK$13<=EC$13*TRANSPOSE($CK$14:$CK$65>=$CK35)),$CL$10:$EK$10,1)) -> 10.6687993 | ED35: =PRODUCT(IF(($CL$13:$EK$13<=ED$13*TRANSPOSE($CK$14:$CK$65>=$CK35)),$CL$10:$EK$10,1)) -> 10.7790615 | EE35: =PRODUCT(IF(($CL$13:$EK$13<=EE$13*TRANSPOSE($CK$14:$CK$65>=$CK35)),$CL$10:$EK$10,1)) -> 10.87147745 | EF35: =PRODUCT(IF(($CL$13:$EK$13<=EF$13*TRANSPOSE($CK$14:$CK$65>=$CK35)),$CL$10:$EK$10,1)) -> 11.35350942 | EG35: =PRODUCT(IF(($CL$13:$EK$13<=EG$13*TRANSPOSE($CK$14:$CK$65>=$CK35)),$CL$10:$EK$10,1)) -> 11.62682083 | EH35: =PRODUCT(IF(($CL$13:$EK$13<=EH$13*TRANSPOSE($CK$14:$CK$65>=$CK35)),$CL$10:$EK$10,1)) -> 12.0799986 | EI35: =PRODUCT(IF(($CL$13:$EK$13<=EI$13*TRANSPOSE($CK$14:$CK$65>=$CK35)),$CL$10:$EK$10,1)) -> 13.1623219 | EJ35: =PRODUCT(IF(($CL$13:$EK$13<=EJ$13*TRANSPOSE($CK$14:$CK$65>=$CK35)),$CL$10:$EK$10,1)) -> 15.11101423 | EK35: =PRODUCT(IF(($CL$13:$EK$13<=EK$13*TRANSPOSE($CK$14:$CK$65>=$CK35)),$CL$10:$EK$10,1)) -> 16.10961227
C36: 1995 | AA36: 0.1336310557 | AB36: 0.1110167085 | AC36: 0.1027226925 | AD36: 0.1063206802 | AE36: 0.1014310415 | AF36: 0.09451103799 | AG36: 0.08886975125 | AH36: 0.08629527865 | AI36: 0.08507120227 | AJ36: 0.08599429657 | AK36: 0.1029656431 | AL36: 0.1067353217 | AM36: 0.1099308479 | AN36: 0.1135116329 | AO36: 0.1062243204 | AP36: 0.1053372018 | AQ36: 0.109128951 | AR36: 0.1130599211 | AS36: 0.1160627437 | AT36: 0.1142608162 | AU36: 0.1096074046 | AV36: 0.1048903157 | AW36: 0.1005174313 | AX36: 0.09811743104 | AY36: 0.09505534214 | AZ36: 0.09284352875 | BA36: 0.09272308903 | BB36: 0.09465238191 | BC36: 0.09365464146 | BE36: 1994 | BF36: 0.1309768689 | BG36: 0.09592198067 | BH36: 0.09994030113 | BI36: 0.09863448164 | BJ36: 0.0922147024 | BK36: 0.1027084374 | BL36: 0.1100288227 | BM36: 0.09445266634 | BN36: 0.07868227524 | BO36: 0.04906082212 | BP36: 0.05004181928 | BQ36: 0.04238359864 | BR36: 0.03705002848 | BS36: 0.04245489355 | BT36: 0.04882843197 | BU36: 0.05700347287 | BV36: 0.06291089213 | BW36: 0.08031139727 | BX36: 0.09150470689 | BY36: 0.09827635165 | BZ36: 0.1082408944 | CA36: 0.1096819607 | CB36: =PRODUCT($CH14:$CH36)^(1/CB$13)-1 -> 0.1097039803 | CG36: 1994 | CH36: =HLOOKUP($W$7,dat,MATCH(CG36,Data!$B$3:$B$60,0),0)+1 -> 1.130976869 | CK36: 1994 | CL36: =PRODUCT(IF(($CL$13:$EK$13<=CL$13*TRANSPOSE($CK$14:$CK$65>=$CK36)),$CL$10:$EK$10,1)) -> 1 | CM36: =PRODUCT(IF(($CL$13:$EK$13<=CM$13*TRANSPOSE($CK$14:$CK$65>=$CK36)),$CL$10:$EK$10,1)) -> 1 | CN36: =PRODUCT(IF(($CL$13:$EK$13<=CN$13*TRANSPOSE($CK$14:$CK$65>=$CK36)),$CL$10:$EK$10,1)) -> 1 | CO36: =PRODUCT(IF(($CL$13:$EK$13<=CO$13*TRANSPOSE($CK$14:$CK$65>=$CK36)),$CL$10:$EK$10,1)) -> 1 | CP36: =PRODUCT(IF(($CL$13:$EK$13<=CP$13*TRANSPOSE($CK$14:$CK$65>=$CK36)),$CL$10:$EK$10,1)) -> 1 | CQ36: =PRODUCT(IF(($CL$13:$EK$13<=CQ$13*TRANSPOSE($CK$14:$CK$65>=$CK36)),$CL$10:$EK$10,1)) -> 1 | CR36: =PRODUCT(IF(($CL$13:$EK$13<=CR$13*TRANSPOSE($CK$14:$CK$65>=$CK36)),$CL$10:$EK$10,1)) -> 1 | CS36: =PRODUCT(IF(($CL$13:$EK$13<=CS$13*TRANSPOSE($CK$14:$CK$65>=$CK36)),$CL$10:$EK$10,1)) -> 1 | CT36: =PRODUCT(IF(($CL$13:$EK$13<=CT$13*TRANSPOSE($CK$14:$CK$65>=$CK36)),$CL$10:$EK$10,1)) -> 1 | CU36: =PRODUCT(IF(($CL$13:$EK$13<=CU$13*TRANSPOSE($CK$14:$CK$65>=$CK36)),$CL$10:$EK$10,1)) -> 1 | CV36: =PRODUCT(IF(($CL$13:$EK$13<=CV$13*TRANSPOSE($CK$14:$CK$65>=$CK36)),$CL$10:$EK$10,1)) -> 1 | CW36: =PRODUCT(IF(($CL$13:$EK$13<=CW$13*TRANSPOSE($CK$14:$CK$65>=$CK36)),$CL$10:$EK$10,1)) -> 1 | CX36: =PRODUCT(IF(($CL$13:$EK$13<=CX$13*TRANSPOSE($CK$14:$CK$65>=$CK36)),$CL$10:$EK$10,1)) -> 1 | CY36: =PRODUCT(IF(($CL$13:$EK$13<=CY$13*TRANSPOSE($CK$14:$CK$65>=$CK36)),$CL$10:$EK$10,1)) -> 1 | CZ36: =PRODUCT(IF(($CL$13:$EK$13<=CZ$13*TRANSPOSE($CK$14:$CK$65>=$CK36)),$CL$10:$EK$10,1)) -> 1 | DA36: =PRODUCT(IF(($CL$13:$EK$13<=DA$13*TRANSPOSE($CK$14:$CK$65>=$CK36)),$CL$10:$EK$10,1)) -> 1 | DB36: =PRODUCT(IF(($CL$13:$EK$13<=DB$13*TRANSPOSE($CK$14:$CK$65>=$CK36)),$CL$10:$EK$10,1)) -> 1 | DC36: =PRODUCT(IF(($CL$13:$EK$13<=DC$13*TRANSPOSE($CK$14:$CK$65>=$CK36)),$CL$10:$EK$10,1)) -> 1 | DD36: =PRODUCT(IF(($CL$13:$EK$13<=DD$13*TRANSPOSE($CK$14:$CK$65>=$CK36)),$CL$10:$EK$10,1)) -> 1 | DE36: =PRODUCT(IF(($CL$13:$EK$13<=DE$13*TRANSPOSE($CK$14:$CK$65>=$CK36)),$CL$10:$EK$10,1)) -> 1 | DF36: =PRODUCT(IF(($CL$13:$EK$13<=DF$13*TRANSPOSE($CK$14:$CK$65>=$CK36)),$CL$10:$EK$10,1)) -> 1 | DG36: =PRODUCT(IF(($CL$13:$EK$13<=DG$13*TRANSPOSE($CK$14:$CK$65>=$CK36)),$CL$10:$EK$10,1)) -> 1 | DH36: =PRODUCT(IF(($CL$13:$EK$13<=DH$13*TRANSPOSE($CK$14:$CK$65>=$CK36)),$CL$10:$EK$10,1)) -> 1.130976869 | DI36: =PRODUCT(IF(($CL$13:$EK$13<=DI$13*TRANSPOSE($CK$14:$CK$65>=$CK36)),$CL$10:$EK$10,1)) -> 1.282110502 | DJ36: =PRODUCT(IF(($CL$13:$EK$13<=DJ$13*TRANSPOSE($CK$14:$CK$65>=$CK36)),$CL$10:$EK$10,1)) -> 1.396030489 | DK36: =PRODUCT(IF(($CL$13:$EK$13<=DK$13*TRANSPOSE($CK$14:$CK$65>=$CK36)),$CL$10:$EK$10,1)) -> 1.51653577 | DL36: =PRODUCT(IF(($CL$13:$EK$13<=DL$13*TRANSPOSE($CK$14:$CK$65>=$CK36)),$CL$10:$EK$10,1)) -> 1.694251369 | DM36: =PRODUCT(IF(($CL$13:$EK$13<=DM$13*TRANSPOSE($CK$14:$CK$65>=$CK36)),$CL$10:$EK$10,1)) -> 1.833328469 | DN36: =PRODUCT(IF(($CL$13:$EK$13<=DN$13*TRANSPOSE($CK$14:$CK$65>=$CK36)),$CL$10:$EK$10,1)) -> 1.944350683 | DO36: =PRODUCT(IF(($CL$13:$EK$13<=DO$13*TRANSPOSE($CK$14:$CK$65>=$CK36)),$CL$10:$EK$10,1)) -> 2.052509877 | DP36: =PRODUCT(IF(($CL$13:$EK$13<=DP$13*TRANSPOSE($CK$14:$CK$65>=$CK36)),$CL$10:$EK$10,1)) -> 2.192991046 | DQ36: =PRODUCT(IF(($CL$13:$EK$13<=DQ$13*TRANSPOSE($CK$14:$CK$65>=$CK36)),$CL$10:$EK$10,1)) -> 2.358184932 | DR36: =PRODUCT(IF(($CL$13:$EK$13<=DR$13*TRANSPOSE($CK$14:$CK$65>=$CK36)),$CL$10:$EK$10,1)) -> 2.580650354 | DS36: =PRODUCT(IF(($CL$13:$EK$13<=DS$13*TRANSPOSE($CK$14:$CK$65>=$CK36)),$CL$10:$EK$10,1)) -> 3.323805122 | DT36: =PRODUCT(IF(($CL$13:$EK$13<=DT$13*TRANSPOSE($CK$14:$CK$65>=$CK36)),$CL$10:$EK$10,1)) -> 3.819257778 | DU36: =PRODUCT(IF(($CL$13:$EK$13<=DU$13*TRANSPOSE($CK$14:$CK$65>=$CK36)),$CL$10:$EK$10,1)) -> 4.388344413 | DV36: =PRODUCT(IF(($CL$13:$EK$13<=DV$13*TRANSPOSE($CK$14:$CK$65>=$CK36)),$CL$10:$EK$10,1)) -> 5.095424152 | DW36: =PRODUCT(IF(($CL$13:$EK$13<=DW$13*TRANSPOSE($CK$14:$CK$65>=$CK36)),$CL$10:$EK$10,1)) -> 5.141641071 | DX36: =PRODUCT(IF(($CL$13:$EK$13<=DX$13*TRANSPOSE($CK$14:$CK$65>=$CK36)),$CL$10:$EK$10,1)) -> 5.615265772 | DY36: =PRODUCT(IF(($CL$13:$EK$13<=DY$13*TRANSPOSE($CK$14:$CK$65>=$CK36)),$CL$10:$EK$10,1)) -> 6.578826447 | DZ36: =PRODUCT(IF(($CL$13:$EK$13<=DZ$13*TRANSPOSE($CK$14:$CK$65>=$CK36)),$CL$10:$EK$10,1)) -> 7.776560107 | EA36: =PRODUCT(IF(($CL$13:$EK$13<=EA$13*TRANSPOSE($CK$14:$CK$65>=$CK36)),$CL$10:$EK$10,1)) -> 9.110397528 | EB36: =PRODUCT(IF(($CL$13:$EK$13<=EB$13*TRANSPOSE($CK$14:$CK$65>=$CK36)),$CL$10:$EK$10,1)) -> 9.844437192 | EC36: =PRODUCT(IF(($CL$13:$EK$13<=EC$13*TRANSPOSE($CK$14:$CK$65>=$CK36)),$CL$10:$EK$10,1)) -> 10.04638907 | ED36: =PRODUCT(IF(($CL$13:$EK$13<=ED$13*TRANSPOSE($CK$14:$CK$65>=$CK36)),$CL$10:$EK$10,1)) -> 10.15021864 | EE36: =PRODUCT(IF(($CL$13:$EK$13<=EE$13*TRANSPOSE($CK$14:$CK$65>=$CK36)),$CL$10:$EK$10,1)) -> 10.23724311 | EF36: =PRODUCT(IF(($CL$13:$EK$13<=EF$13*TRANSPOSE($CK$14:$CK$65>=$CK36)),$CL$10:$EK$10,1)) -> 10.69115368 | EG36: =PRODUCT(IF(($CL$13:$EK$13<=EG$13*TRANSPOSE($CK$14:$CK$65>=$CK36)),$CL$10:$EK$10,1)) -> 10.94852029 | EH36: =PRODUCT(IF(($CL$13:$EK$13<=EH$13*TRANSPOSE($CK$14:$CK$65>=$CK36)),$CL$10:$EK$10,1)) -> 11.37525998 | EI36: =PRODUCT(IF(($CL$13:$EK$13<=EI$13*TRANSPOSE($CK$14:$CK$65>=$CK36)),$CL$10:$EK$10,1)) -> 12.39444131 | EJ36: =PRODUCT(IF(($CL$13:$EK$13<=EJ$13*TRANSPOSE($CK$14:$CK$65>=$CK36)),$CL$10:$EK$10,1)) -> 14.2294483 | EK36: =PRODUCT(IF(($CL$13:$EK$13<=EK$13*TRANSPOSE($CK$14:$CK$65>=$CK36)),$CL$10:$EK$10,1)) -> 15.16978883
C37: 1996 | AB37: 0.08885348578 | AC37: 0.08758597971 | AD37: 0.0973642204 | AE37: 0.09352497483 | AF37: 0.08685054604 | AG37: 0.08158328349 | AH37: 0.07969633881 | AI37: 0.07914934213 | AJ37: 0.08082645874 | AK37: 0.09994510037 | AL37: 0.1043221268 | AM37: 0.1079783406 | AN37: 0.1119788565 | AO37: 0.1042922425 | AP37: 0.1034762507 | AQ37: 0.1076152733 | AR37: 0.111861546 | AS37: 0.1150947486 | AT37: 0.1132505481 | AU37: 0.1084196767 | AV37: 0.1035400323 | AW37: 0.09903546563 | AX37: 0.09659885377 | AY37: 0.09347682248 | AZ37: 0.09124290979 | BA37: 0.09117953308 | BB37: 0.09323475477 | BC37: 0.09225328595 | BE37: 1995 | BF37: 0.1336310557 | BG37: 0.1323031846 | BH37: 0.1083501983 | BI37: 0.1082679388 | BJ37: 0.1055462797 | BK37: 0.09901082734 | BL37: 0.1070737673 | BM37: 0.1129520162 | BN37: 0.09873808426 | BO37: 0.08405511201 | BP37: 0.05648095951 | BQ37: 0.05676565612 | BR37: 0.04913401201 | BS37: 0.04366710525 | BT37: 0.04829835235 | BU37: 0.05393762052 | BV37: 0.06136405225 | BW37: 0.06672142352 | BX37: 0.08305411482 | BY37: 0.09357335219 | BZ37: 0.09993462972 | CA37: 0.1093825584 | CB37: 0.1107126269 | CC37: =PRODUCT($CH14:$CH37)^(1/CC$13)-1 -> 0.1106907842 | CG37: 1995 | CH37: =HLOOKUP($W$7,dat,MATCH(CG37,Data!$B$3:$B$60,0),0)+1 -> 1.133631056 | CK37: 1995 | CL37: =PRODUCT(IF(($CL$13:$EK$13<=CL$13*TRANSPOSE($CK$14:$CK$65>=$CK37)),$CL$10:$EK$10,1)) -> 1 | CM37: =PRODUCT(IF(($CL$13:$EK$13<=CM$13*TRANSPOSE($CK$14:$CK$65>=$CK37)),$CL$10:$EK$10,1)) -> 1 | CN37: =PRODUCT(IF(($CL$13:$EK$13<=CN$13*TRANSPOSE($CK$14:$CK$65>=$CK37)),$CL$10:$EK$10,1)) -> 1 | CO37: =PRODUCT(IF(($CL$13:$EK$13<=CO$13*TRANSPOSE($CK$14:$CK$65>=$CK37)),$CL$10:$EK$10,1)) -> 1 | CP37: =PRODUCT(IF(($CL$13:$EK$13<=CP$13*TRANSPOSE($CK$14:$CK$65>=$CK37)),$CL$10:$EK$10,1)) -> 1 | CQ37: =PRODUCT(IF(($CL$13:$EK$13<=CQ$13*TRANSPOSE($CK$14:$CK$65>=$CK37)),$CL$10:$EK$10,1)) -> 1 | CR37: =PRODUCT(IF(($CL$13:$EK$13<=CR$13*TRANSPOSE($CK$14:$CK$65>=$CK37)),$CL$10:$EK$10,1)) -> 1 | CS37: =PRODUCT(IF(($CL$13:$EK$13<=CS$13*TRANSPOSE($CK$14:$CK$65>=$CK37)),$CL$10:$EK$10,1)) -> 1 | CT37: =PRODUCT(IF(($CL$13:$EK$13<=CT$13*TRANSPOSE($CK$14:$CK$65>=$CK37)),$CL$10:$EK$10,1)) -> 1 | CU37: =PRODUCT(IF(($CL$13:$EK$13<=CU$13*TRANSPOSE($CK$14:$CK$65>=$CK37)),$CL$10:$EK$10,1)) -> 1 | CV37: =PRODUCT(IF(($CL$13:$EK$13<=CV$13*TRANSPOSE($CK$14:$CK$65>=$CK37)),$CL$10:$EK$10,1)) -> 1 | CW37: =PRODUCT(IF(($CL$13:$EK$13<=CW$13*TRANSPOSE($CK$14:$CK$65>=$CK37)),$CL$10:$EK$10,1)) -> 1 | CX37: =PRODUCT(IF(($CL$13:$EK$13<=CX$13*TRANSPOSE($CK$14:$CK$65>=$CK37)),$CL$10:$EK$10,1)) -> 1 | CY37: =PRODUCT(IF(($CL$13:$EK$13<=CY$13*TRANSPOSE($CK$14:$CK$65>=$CK37)),$CL$10:$EK$10,1)) -> 1 | CZ37: =PRODUCT(IF(($CL$13:$EK$13<=CZ$13*TRANSPOSE($CK$14:$CK$65>=$CK37)),$CL$10:$EK$10,1)) -> 1 | DA37: =PRODUCT(IF(($CL$13:$EK$13<=DA$13*TRANSPOSE($CK$14:$CK$65>=$CK37)),$CL$10:$EK$10,1)) -> 1 | DB37: =PRODUCT(IF(($CL$13:$EK$13<=DB$13*TRANSPOSE($CK$14:$CK$65>=$CK37)),$CL$10:$EK$10,1)) -> 1 | DC37: =PRODUCT(IF(($CL$13:$EK$13<=DC$13*TRANSPOSE($CK$14:$CK$65>=$CK37)),$CL$10:$EK$10,1)) -> 1 | DD37: =PRODUCT(IF(($CL$13:$EK$13<=DD$13*TRANSPOSE($CK$14:$CK$65>=$CK37)),$CL$10:$EK$10,1)) -> 1 | DE37: =PRODUCT(IF(($CL$13:$EK$13<=DE$13*TRANSPOSE($CK$14:$CK$65>=$CK37)),$CL$10:$EK$10,1)) -> 1 | DF37: =PRODUCT(IF(($CL$13:$EK$13<=DF$13*TRANSPOSE($CK$14:$CK$65>=$CK37)),$CL$10:$EK$10,1)) -> 1 | DG37: =PRODUCT(IF(($CL$13:$EK$13<=DG$13*TRANSPOSE($CK$14:$CK$65>=$CK37)),$CL$10:$EK$10,1)) -> 1 | DH37: =PRODUCT(IF(($CL$13:$EK$13<=DH$13*TRANSPOSE($CK$14:$CK$65>=$CK37)),$CL$10:$EK$10,1)) -> 1 | DI37: =PRODUCT(IF(($CL$13:$EK$13<=DI$13*TRANSPOSE($CK$14:$CK$65>=$CK37)),$CL$10:$EK$10,1)) -> 1.133631056 | DJ37: =PRODUCT(IF(($CL$13:$EK$13<=DJ$13*TRANSPOSE($CK$14:$CK$65>=$CK37)),$CL$10:$EK$10,1)) -> 1.234358127 | DK37: =PRODUCT(IF(($CL$13:$EK$13<=DK$13*TRANSPOSE($CK$14:$CK$65>=$CK37)),$CL$10:$EK$10,1)) -> 1.340907857 | DL37: =PRODUCT(IF(($CL$13:$EK$13<=DL$13*TRANSPOSE($CK$14:$CK$65>=$CK37)),$CL$10:$EK$10,1)) -> 1.498042458 | DM37: =PRODUCT(IF(($CL$13:$EK$13<=DM$13*TRANSPOSE($CK$14:$CK$65>=$CK37)),$CL$10:$EK$10,1)) -> 1.621013232 | DN37: =PRODUCT(IF(($CL$13:$EK$13<=DN$13*TRANSPOSE($CK$14:$CK$65>=$CK37)),$CL$10:$EK$10,1)) -> 1.719178116 | DO37: =PRODUCT(IF(($CL$13:$EK$13<=DO$13*TRANSPOSE($CK$14:$CK$65>=$CK37)),$CL$10:$EK$10,1)) -> 1.814811544 | DP37: =PRODUCT(IF(($CL$13:$EK$13<=DP$13*TRANSPOSE($CK$14:$CK$65>=$CK37)),$CL$10:$EK$10,1)) -> 1.939023782 | DQ37: =PRODUCT(IF(($CL$13:$EK$13<=DQ$13*TRANSPOSE($CK$14:$CK$65>=$CK37)),$CL$10:$EK$10,1)) -> 2.085086792 | DR37: =PRODUCT(IF(($CL$13:$EK$13<=DR$13*TRANSPOSE($CK$14:$CK$65>=$CK37)),$CL$10:$EK$10,1)) -> 2.281788801 | DS37: =PRODUCT(IF(($CL$13:$EK$13<=DS$13*TRANSPOSE($CK$14:$CK$65>=$CK37)),$CL$10:$EK$10,1)) -> 2.938879842 | DT37: =PRODUCT(IF(($CL$13:$EK$13<=DT$13*TRANSPOSE($CK$14:$CK$65>=$CK37)),$CL$10:$EK$10,1)) -> 3.376954811 | DU37: =PRODUCT(IF(($CL$13:$EK$13<=DU$13*TRANSPOSE($CK$14:$CK$65>=$CK37)),$CL$10:$EK$10,1)) -> 3.880136309 | DV37: =PRODUCT(IF(($CL$13:$EK$13<=DV$13*TRANSPOSE($CK$14:$CK$65>=$CK37)),$CL$10:$EK$10,1)) -> 4.50533012 | DW37: =PRODUCT(IF(($CL$13:$EK$13<=DW$13*TRANSPOSE($CK$14:$CK$65>=$CK37)),$CL$10:$EK$10,1)) -> 4.546194721 | DX37: =PRODUCT(IF(($CL$13:$EK$13<=DX$13*TRANSPOSE($CK$14:$CK$65>=$CK37)),$CL$10:$EK$10,1)) -> 4.964969599 | DY37: =PRODUCT(IF(($CL$13:$EK$13<=DY$13*TRANSPOSE($CK$14:$CK$65>=$CK37)),$CL$10:$EK$10,1)) -> 5.816941643 | DZ37: =PRODUCT(IF(($CL$13:$EK$13<=DZ$13*TRANSPOSE($CK$14:$CK$65>=$CK37)),$CL$10:$EK$10,1)) -> 6.875967423 | EA37: =PRODUCT(IF(($CL$13:$EK$13<=EA$13*TRANSPOSE($CK$14:$CK$65>=$CK37)),$CL$10:$EK$10,1)) -> 8.055334975 | EB37: =PRODUCT(IF(($CL$13:$EK$13<=EB$13*TRANSPOSE($CK$14:$CK$65>=$CK37)),$CL$10:$EK$10,1)) -> 8.704366519 | EC37: =PRODUCT(IF(($CL$13:$EK$13<=EC$13*TRANSPOSE($CK$14:$CK$65>=$CK37)),$CL$10:$EK$10,1)) -> 8.882930625 | ED37: =PRODUCT(IF(($CL$13:$EK$13<=ED$13*TRANSPOSE($CK$14:$CK$65>=$CK37)),$CL$10:$EK$10,1)) -> 8.974735842 | EE37: =PRODUCT(IF(($CL$13:$EK$13<=EE$13*TRANSPOSE($CK$14:$CK$65>=$CK37)),$CL$10:$EK$10,1)) -> 9.051682124 | EF37: =PRODUCT(IF(($CL$13:$EK$13<=EF$13*TRANSPOSE($CK$14:$CK$65>=$CK37)),$CL$10:$EK$10,1)) -> 9.453025939 | EG37: =PRODUCT(IF(($CL$13:$EK$13<=EG$13*TRANSPOSE($CK$14:$CK$65>=$CK37)),$CL$10:$EK$10,1)) -> 9.680587282 | EH37: =PRODUCT(IF(($CL$13:$EK$13<=EH$13*TRANSPOSE($CK$14:$CK$65>=$CK37)),$CL$10:$EK$10,1)) -> 10.05790684 | EI37: =PRODUCT(IF(($CL$13:$EK$13<=EI$13*TRANSPOSE($CK$14:$CK$65>=$CK37)),$CL$10:$EK$10,1)) -> 10.95905819 | EJ37: =PRODUCT(IF(($CL$13:$EK$13<=EJ$13*TRANSPOSE($CK$14:$CK$65>=$CK37)),$CL$10:$EK$10,1)) -> 12.58155555 | EK37: =PRODUCT(IF(($CL$13:$EK$13<=EK$13*TRANSPOSE($CK$14:$CK$65>=$CK37)),$CL$10:$EK$10,1)) -> 13.41299654
B38: Buy (beginning of year) | C38: 1997 | AC38: 0.08631994912 | AD38: 0.101644501 | AE38: 0.09508658738 | AF38: 0.08635038706 | AG38: 0.08013507856 | AH38: 0.07817765235 | AI38: 0.07777011401 | AJ38: 0.0798272501 | AK38: 0.1011844554 | AL38: 0.1058810262 | AM38: 0.1097335327 | AN38: 0.113927998 | AO38: 0.105488867 | AP38: 0.1045282172 | AQ38: 0.1088774924 | AR38: 0.1133155868 | AS38: 0.1166578996 | AT38: 0.1146218568 | AU38: 0.1094591609 | AV38: 0.1042795375 | AW38: 0.09952268972 | AX38: 0.09695222209 | AY38: 0.09367828183 | AZ38: 0.09134258284 | BA38: 0.09127267825 | BB38: 0.09340361672 | BC38: 0.09237940813 | BE38: 1996 | BF38: 0.08885348578 | BG38: 0.1110167085 | BH38: 0.1176306441 | BI38: 0.1034435335 | BJ38: 0.1043575508 | BK38: 0.1027464809 | BL38: 0.09755399789 | BM38: 0.1047796623 | BN38: 0.1102482769 | BO38: 0.09774559984 | BP38: 0.08449045262 | BQ38: 0.05914150842 | BR38: 0.05920001814 | BS38: 0.05192242903 | BT38: 0.04662031158 | BU38: 0.05078819988 | BV38: 0.05596014494 | BW38: 0.06287287224 | BX38: 0.06787497281 | BY38: 0.08334334841 | BZ38: 0.09334813342 | CA38: 0.0994285035 | CB38: 0.1084819939 | CC38: 0.1097931284 | CD38: =PRODUCT($CH14:$CH38)^(1/CD$13)-1 -> 0.1098089414 | CG38: 1996 | CH38: =HLOOKUP($W$7,dat,MATCH(CG38,Data!$B$3:$B$60,0),0)+1 -> 1.088853486 | CK38: 1996 | CL38: =PRODUCT(IF(($CL$13:$EK$13<=CL$13*TRANSPOSE($CK$14:$CK$65>=$CK38)),$CL$10:$EK$10,1)) -> 1 | CM38: =PRODUCT(IF(($CL$13:$EK$13<=CM$13*TRANSPOSE($CK$14:$CK$65>=$CK38)),$CL$10:$EK$10,1)) -> 1 | CN38: =PRODUCT(IF(($CL$13:$EK$13<=CN$13*TRANSPOSE($CK$14:$CK$65>=$CK38)),$CL$10:$EK$10,1)) -> 1 | CO38: =PRODUCT(IF(($CL$13:$EK$13<=CO$13*TRANSPOSE($CK$14:$CK$65>=$CK38)),$CL$10:$EK$10,1)) -> 1 | CP38: =PRODUCT(IF(($CL$13:$EK$13<=CP$13*TRANSPOSE($CK$14:$CK$65>=$CK38)),$CL$10:$EK$10,1)) -> 1 | CQ38: =PRODUCT(IF(($CL$13:$EK$13<=CQ$13*TRANSPOSE($CK$14:$CK$65>=$CK38)),$CL$10:$EK$10,1)) -> 1 | CR38: =PRODUCT(IF(($CL$13:$EK$13<=CR$13*TRANSPOSE($CK$14:$CK$65>=$CK38)),$CL$10:$EK$10,1)) -> 1 | CS38: =PRODUCT(IF(($CL$13:$EK$13<=CS$13*TRANSPOSE($CK$14:$CK$65>=$CK38)),$CL$10:$EK$10,1)) -> 1 | CT38: =PRODUCT(IF(($CL$13:$EK$13<=CT$13*TRANSPOSE($CK$14:$CK$65>=$CK38)),$CL$10:$EK$10,1)) -> 1 | CU38: =PRODUCT(IF(($CL$13:$EK$13<=CU$13*TRANSPOSE($CK$14:$CK$65>=$CK38)),$CL$10:$EK$10,1)) -> 1 | CV38: =PRODUCT(IF(($CL$13:$EK$13<=CV$13*TRANSPOSE($CK$14:$CK$65>=$CK38)),$CL$10:$EK$10,1)) -> 1 | CW38: =PRODUCT(IF(($CL$13:$EK$13<=CW$13*TRANSPOSE($CK$14:$CK$65>=$CK38)),$CL$10:$EK$10,1)) -> 1 | CX38: =PRODUCT(IF(($CL$13:$EK$13<=CX$13*TRANSPOSE($CK$14:$CK$65>=$CK38)),$CL$10:$EK$10,1)) -> 1 | CY38: =PRODUCT(IF(($CL$13:$EK$13<=CY$13*TRANSPOSE($CK$14:$CK$65>=$CK38)),$CL$10:$EK$10,1)) -> 1 | CZ38: =PRODUCT(IF(($CL$13:$EK$13<=CZ$13*TRANSPOSE($CK$14:$CK$65>=$CK38)),$CL$10:$EK$10,1)) -> 1 | DA38: =PRODUCT(IF(($CL$13:$EK$13<=DA$13*TRANSPOSE($CK$14:$CK$65>=$CK38)),$CL$10:$EK$10,1)) -> 1 | DB38: =PRODUCT(IF(($CL$13:$EK$13<=DB$13*TRANSPOSE($CK$14:$CK$65>=$CK38)),$CL$10:$EK$10,1)) -> 1 | DC38: =PRODUCT(IF(($CL$13:$EK$13<=DC$13*TRANSPOSE($CK$14:$CK$65>=$CK38)),$CL$10:$EK$10,1)) -> 1 | DD38: =PRODUCT(IF(($CL$13:$EK$13<=DD$13*TRANSPOSE($CK$14:$CK$65>=$CK38)),$CL$10:$EK$10,1)) -> 1 | DE38: =PRODUCT(IF(($CL$13:$EK$13<=DE$13*TRANSPOSE($CK$14:$CK$65>=$CK38)),$CL$10:$EK$10,1)) -> 1 | DF38: =PRODUCT(IF(($CL$13:$EK$13<=DF$13*TRANSPOSE($CK$14:$CK$65>=$CK38)),$CL$10:$EK$10,1)) -> 1 | DG38: =PRODUCT(IF(($CL$13:$EK$13<=DG$13*TRANSPOSE($CK$14:$CK$65>=$CK38)),$CL$10:$EK$10,1)) -> 1 | DH38: =PRODUCT(IF(($CL$13:$EK$13<=DH$13*TRANSPOSE($CK$14:$CK$65>=$CK38)),$CL$10:$EK$10,1)) -> 1 | DI38: =PRODUCT(IF(($CL$13:$EK$13<=DI$13*TRANSPOSE($CK$14:$CK$65>=$CK38)),$CL$10:$EK$10,1)) -> 1 | DJ38: =PRODUCT(IF(($CL$13:$EK$13<=DJ$13*TRANSPOSE($CK$14:$CK$65>=$CK38)),$CL$10:$EK$10,1)) -> 1.088853486 | DK38: =PRODUCT(IF(($CL$13:$EK$13<=DK$13*TRANSPOSE($CK$14:$CK$65>=$CK38)),$CL$10:$EK$10,1)) -> 1.182843263 | DL38: =PRODUCT(IF(($CL$13:$EK$13<=DL$13*TRANSPOSE($CK$14:$CK$65>=$CK38)),$CL$10:$EK$10,1)) -> 1.321455028 | DM38: =PRODUCT(IF(($CL$13:$EK$13<=DM$13*TRANSPOSE($CK$14:$CK$65>=$CK38)),$CL$10:$EK$10,1)) -> 1.429930156 | DN38: =PRODUCT(IF(($CL$13:$EK$13<=DN$13*TRANSPOSE($CK$14:$CK$65>=$CK38)),$CL$10:$EK$10,1)) -> 1.516523483 | DO38: =PRODUCT(IF(($CL$13:$EK$13<=DO$13*TRANSPOSE($CK$14:$CK$65>=$CK38)),$CL$10:$EK$10,1)) -> 1.600883757 | DP38: =PRODUCT(IF(($CL$13:$EK$13<=DP$13*TRANSPOSE($CK$14:$CK$65>=$CK38)),$CL$10:$EK$10,1)) -> 1.710454008 | DQ38: =PRODUCT(IF(($CL$13:$EK$13<=DQ$13*TRANSPOSE($CK$14:$CK$65>=$CK38)),$CL$10:$EK$10,1)) -> 1.839299287 | DR38: =PRODUCT(IF(($CL$13:$EK$13<=DR$13*TRANSPOSE($CK$14:$CK$65>=$CK38)),$CL$10:$EK$10,1)) -> 2.012814301 | DS38: =PRODUCT(IF(($CL$13:$EK$13<=DS$13*TRANSPOSE($CK$14:$CK$65>=$CK38)),$CL$10:$EK$10,1)) -> 2.592448246 | DT38: =PRODUCT(IF(($CL$13:$EK$13<=DT$13*TRANSPOSE($CK$14:$CK$65>=$CK38)),$CL$10:$EK$10,1)) -> 2.978883468 | DU38: =PRODUCT(IF(($CL$13:$EK$13<=DU$13*TRANSPOSE($CK$14:$CK$65>=$CK38)),$CL$10:$EK$10,1)) -> 3.422750541 | DV38: =PRODUCT(IF(($CL$13:$EK$13<=DV$13*TRANSPOSE($CK$14:$CK$65>=$CK38)),$CL$10:$EK$10,1)) -> 3.974247263 | DW38: =PRODUCT(IF(($CL$13:$EK$13<=DW$13*TRANSPOSE($CK$14:$CK$65>=$CK38)),$CL$10:$EK$10,1)) -> 4.010294794 | DX38: =PRODUCT(IF(($CL$13:$EK$13<=DX$13*TRANSPOSE($CK$14:$CK$65>=$CK38)),$CL$10:$EK$10,1)) -> 4.379704997 | DY38: =PRODUCT(IF(($CL$13:$EK$13<=DY$13*TRANSPOSE($CK$14:$CK$65>=$CK38)),$CL$10:$EK$10,1)) -> 5.131247609 | DZ38: =PRODUCT(IF(($CL$13:$EK$13<=DZ$13*TRANSPOSE($CK$14:$CK$65>=$CK38)),$CL$10:$EK$10,1)) -> 6.065436712 | EA38: =PRODUCT(IF(($CL$13:$EK$13<=EA$13*TRANSPOSE($CK$14:$CK$65>=$CK38)),$CL$10:$EK$10,1)) -> 7.105781846 | EB38: =PRODUCT(IF(($CL$13:$EK$13<=EB$13*TRANSPOSE($CK$14:$CK$65>=$CK38)),$CL$10:$EK$10,1)) -> 7.678306338 | EC38: =PRODUCT(IF(($CL$13:$EK$13<=EC$13*TRANSPOSE($CK$14:$CK$65>=$CK38)),$CL$10:$EK$10,1)) -> 7.835821523 | ED38: =PRODUCT(IF(($CL$13:$EK$13<=ED$13*TRANSPOSE($CK$14:$CK$65>=$CK38)),$CL$10:$EK$10,1)) -> 7.916804852 | EE38: =PRODUCT(IF(($CL$13:$EK$13<=EE$13*TRANSPOSE($CK$14:$CK$65>=$CK38)),$CL$10:$EK$10,1)) -> 7.9846808 | EF38: =PRODUCT(IF(($CL$13:$EK$13<=EF$13*TRANSPOSE($CK$14:$CK$65>=$CK38)),$CL$10:$EK$10,1)) -> 8.338714692 | EG38: =PRODUCT(IF(($CL$13:$EK$13<=EG$13*TRANSPOSE($CK$14:$CK$65>=$CK38)),$CL$10:$EK$10,1)) -> 8.539451379 | EH38: =PRODUCT(IF(($CL$13:$EK$13<=EH$13*TRANSPOSE($CK$14:$CK$65>=$CK38)),$CL$10:$EK$10,1)) -> 8.872292964 | EI38: =PRODUCT(IF(($CL$13:$EK$13<=EI$13*TRANSPOSE($CK$14:$CK$65>=$CK38)),$CL$10:$EK$10,1)) -> 9.667217682 | EJ38: =PRODUCT(IF(($CL$13:$EK$13<=EJ$13*TRANSPOSE($CK$14:$CK$65>=$CK38)),$CL$10:$EK$10,1)) -> 11.09845702 | EK38: =PRODUCT(IF(($CL$13:$EK$13<=EK$13*TRANSPOSE($CK$14:$CK$65>=$CK38)),$CL$10:$EK$10,1)) -> 11.83188876
C39: 1998 | AD39: 0.1171852341 | AE39: 0.09949640109 | AF39: 0.08636053323 | AG39: 0.07859437081 | AH39: 0.07655653117 | AI39: 0.07635169804 | AJ39: 0.07890289488 | AK39: 0.1030567633 | AL39: 0.1080761068 | AM39: 0.1121024684 | AN39: 0.1164723479 | AO39: 0.1071014634 | AP39: 0.1059414298 | AQ39: 0.1105065553 | AR39: 0.1151389664 | AS39: 0.1185819108 | AT39: 0.116309452 | AU39: 0.1107590284 | AV39: 0.1052329613 | AW39: 0.1001870227 | AX39: 0.09746110844 | AY39: 0.09401393323 | AZ39: 0.09156148422 | BA39: 0.09147953128 | BB39: 0.09368792221 | BC39: 0.09261313804 | BE39: 1997 | BF39: 0.08631994912 | BG39: 0.08758597971 | BH39: 0.1027226925 | BI39: 0.1097193647 | BJ39: 0.09999735821 | BK39: 0.1013306182 | BL39: 0.1003847128 | BM39: 0.09614341295 | BN39: 0.1027131891 | BO39: 0.1078319154 | BP39: 0.09670195741 | BQ39: 0.08464279291 | BR39: 0.061207797 | BS39: 0.06111450012 | BT39: 0.05418132383 | BU39: 0.04905847351 | BV39: 0.05284575379 | BW39: 0.05762431921 | BX39: 0.06409421533 | BY39: 0.06878973893 | BZ39: 0.08348490618 | CA39: 0.09302768627 | CB39: 0.09885529088 | CC39: 0.1075496118 | CD39: 0.108844535 | CE39: =PRODUCT($CH14:$CH39)^(1/CE$13)-1 -> 0.1088961967 | CG39: 1997 | CH39: =HLOOKUP($W$7,dat,MATCH(CG39,Data!$B$3:$B$60,0),0)+1 -> 1.086319949 | CK39: 1997 | CL39: =PRODUCT(IF(($CL$13:$EK$13<=CL$13*TRANSPOSE($CK$14:$CK$65>=$CK39)),$CL$10:$EK$10,1)) -> 1 | CM39: =PRODUCT(IF(($CL$13:$EK$13<=CM$13*TRANSPOSE($CK$14:$CK$65>=$CK39)),$CL$10:$EK$10,1)) -> 1 | CN39: =PRODUCT(IF(($CL$13:$EK$13<=CN$13*TRANSPOSE($CK$14:$CK$65>=$CK39)),$CL$10:$EK$10,1)) -> 1 | CO39: =PRODUCT(IF(($CL$13:$EK$13<=CO$13*TRANSPOSE($CK$14:$CK$65>=$CK39)),$CL$10:$EK$10,1)) -> 1 | CP39: =PRODUCT(IF(($CL$13:$EK$13<=CP$13*TRANSPOSE($CK$14:$CK$65>=$CK39)),$CL$10:$EK$10,1)) -> 1 | CQ39: =PRODUCT(IF(($CL$13:$EK$13<=CQ$13*TRANSPOSE($CK$14:$CK$65>=$CK39)),$CL$10:$EK$10,1)) -> 1 | CR39: =PRODUCT(IF(($CL$13:$EK$13<=CR$13*TRANSPOSE($CK$14:$CK$65>=$CK39)),$CL$10:$EK$10,1)) -> 1 | CS39: =PRODUCT(IF(($CL$13:$EK$13<=CS$13*TRANSPOSE($CK$14:$CK$65>=$CK39)),$CL$10:$EK$10,1)) -> 1 | CT39: =PRODUCT(IF(($CL$13:$EK$13<=CT$13*TRANSPOSE($CK$14:$CK$65>=$CK39)),$CL$10:$EK$10,1)) -> 1 | CU39: =PRODUCT(IF(($CL$13:$EK$13<=CU$13*TRANSPOSE($CK$14:$CK$65>=$CK39)),$CL$10:$EK$10,1)) -> 1 | CV39: =PRODUCT(IF(($CL$13:$EK$13<=CV$13*TRANSPOSE($CK$14:$CK$65>=$CK39)),$CL$10:$EK$10,1)) -> 1 | CW39: =PRODUCT(IF(($CL$13:$EK$13<=CW$13*TRANSPOSE($CK$14:$CK$65>=$CK39)),$CL$10:$EK$10,1)) -> 1 | CX39: =PRODUCT(IF(($CL$13:$EK$13<=CX$13*TRANSPOSE($CK$14:$CK$65>=$CK39)),$CL$10:$EK$10,1)) -> 1 | CY39: =PRODUCT(IF(($CL$13:$EK$13<=CY$13*TRANSPOSE($CK$14:$CK$65>=$CK39)),$CL$10:$EK$10,1)) -> 1 | CZ39: =PRODUCT(IF(($CL$13:$EK$13<=CZ$13*TRANSPOSE($CK$14:$CK$65>=$CK39)),$CL$10:$EK$10,1)) -> 1 | DA39: =PRODUCT(IF(($CL$13:$EK$13<=DA$13*TRANSPOSE($CK$14:$CK$65>=$CK39)),$CL$10:$EK$10,1)) -> 1 | DB39: =PRODUCT(IF(($CL$13:$EK$13<=DB$13*TRANSPOSE($CK$14:$CK$65>=$CK39)),$CL$10:$EK$10,1)) -> 1 | DC39: =PRODUCT(IF(($CL$13:$EK$13<=DC$13*TRANSPOSE($CK$14:$CK$65>=$CK39)),$CL$10:$EK$10,1)) -> 1 | DD39: =PRODUCT(IF(($CL$13:$EK$13<=DD$13*TRANSPOSE($CK$14:$CK$65>=$CK39)),$CL$10:$EK$10,1)) -> 1 | DE39: =PRODUCT(IF(($CL$13:$EK$13<=DE$13*TRANSPOSE($CK$14:$CK$65>=$CK39)),$CL$10:$EK$10,1)) -> 1 | DF39: =PRODUCT(IF(($CL$13:$EK$13<=DF$13*TRANSPOSE($CK$14:$CK$65>=$CK39)),$CL$10:$EK$10,1)) -> 1 | DG39: =PRODUCT(IF(($CL$13:$EK$13<=DG$13*TRANSPOSE($CK$14:$CK$65>=$CK39)),$CL$10:$EK$10,1)) -> 1 | DH39: =PRODUCT(IF(($CL$13:$EK$13<=DH$13*TRANSPOSE($CK$14:$CK$65>=$CK39)),$CL$10:$EK$10,1)) -> 1 | DI39: =PRODUCT(IF(($CL$13:$EK$13<=DI$13*TRANSPOSE($CK$14:$CK$65>=$CK39)),$CL$10:$EK$10,1)) -> 1 | DJ39: =PRODUCT(IF(($CL$13:$EK$13<=DJ$13*TRANSPOSE($CK$14:$CK$65>=$CK39)),$CL$10:$EK$10,1)) -> 1 | DK39: =PRODUCT(IF(($CL$13:$EK$13<=DK$13*TRANSPOSE($CK$14:$CK$65>=$CK39)),$CL$10:$EK$10,1)) -> 1.086319949 | DL39: =PRODUCT(IF(($CL$13:$EK$13<=DL$13*TRANSPOSE($CK$14:$CK$65>=$CK39)),$CL$10:$EK$10,1)) -> 1.213620607 | DM39: =PRODUCT(IF(($CL$13:$EK$13<=DM$13*TRANSPOSE($CK$14:$CK$65>=$CK39)),$CL$10:$EK$10,1)) -> 1.313243861 | DN39: =PRODUCT(IF(($CL$13:$EK$13<=DN$13*TRANSPOSE($CK$14:$CK$65>=$CK39)),$CL$10:$EK$10,1)) -> 1.39277093 | DO39: =PRODUCT(IF(($CL$13:$EK$13<=DO$13*TRANSPOSE($CK$14:$CK$65>=$CK39)),$CL$10:$EK$10,1)) -> 1.470247171 | DP39: =PRODUCT(IF(($CL$13:$EK$13<=DP$13*TRANSPOSE($CK$14:$CK$65>=$CK39)),$CL$10:$EK$10,1)) -> 1.570876183 | DQ39: =PRODUCT(IF(($CL$13:$EK$13<=DQ$13*TRANSPOSE($CK$14:$CK$65>=$CK39)),$CL$10:$EK$10,1)) -> 1.689207328 | DR39: =PRODUCT(IF(($CL$13:$EK$13<=DR$13*TRANSPOSE($CK$14:$CK$65>=$CK39)),$CL$10:$EK$10,1)) -> 1.848563032 | DS39: =PRODUCT(IF(($CL$13:$EK$13<=DS$13*TRANSPOSE($CK$14:$CK$65>=$CK39)),$CL$10:$EK$10,1)) -> 2.380897228 | DT39: =PRODUCT(IF(($CL$13:$EK$13<=DT$13*TRANSPOSE($CK$14:$CK$65>=$CK39)),$CL$10:$EK$10,1)) -> 2.735798257 | DU39: =PRODUCT(IF(($CL$13:$EK$13<=DU$13*TRANSPOSE($CK$14:$CK$65>=$CK39)),$CL$10:$EK$10,1)) -> 3.143444536 | DV39: =PRODUCT(IF(($CL$13:$EK$13<=DV$13*TRANSPOSE($CK$14:$CK$65>=$CK39)),$CL$10:$EK$10,1)) -> 3.649937585 | DW39: =PRODUCT(IF(($CL$13:$EK$13<=DW$13*TRANSPOSE($CK$14:$CK$65>=$CK39)),$CL$10:$EK$10,1)) -> 3.683043538 | DX39: =PRODUCT(IF(($CL$13:$EK$13<=DX$13*TRANSPOSE($CK$14:$CK$65>=$CK39)),$CL$10:$EK$10,1)) -> 4.022308836 | DY39: =PRODUCT(IF(($CL$13:$EK$13<=DY$13*TRANSPOSE($CK$14:$CK$65>=$CK39)),$CL$10:$EK$10,1)) -> 4.712523471 | DZ39: =PRODUCT(IF(($CL$13:$EK$13<=DZ$13*TRANSPOSE($CK$14:$CK$65>=$CK39)),$CL$10:$EK$10,1)) -> 5.570480135 | EA39: =PRODUCT(IF(($CL$13:$EK$13<=EA$13*TRANSPOSE($CK$14:$CK$65>=$CK39)),$CL$10:$EK$10,1)) -> 6.525930199 | EB39: =PRODUCT(IF(($CL$13:$EK$13<=EB$13*TRANSPOSE($CK$14:$CK$65>=$CK39)),$CL$10:$EK$10,1)) -> 7.051735094 | EC39: =PRODUCT(IF(($CL$13:$EK$13<=EC$13*TRANSPOSE($CK$14:$CK$65>=$CK39)),$CL$10:$EK$10,1)) -> 7.1963966 | ED39: =PRODUCT(IF(($CL$13:$EK$13<=ED$13*TRANSPOSE($CK$14:$CK$65>=$CK39)),$CL$10:$EK$10,1)) -> 7.270771463 | EE39: =PRODUCT(IF(($CL$13:$EK$13<=EE$13*TRANSPOSE($CK$14:$CK$65>=$CK39)),$CL$10:$EK$10,1)) -> 7.333108544 | EF39: =PRODUCT(IF(($CL$13:$EK$13<=EF$13*TRANSPOSE($CK$14:$CK$65>=$CK39)),$CL$10:$EK$10,1)) -> 7.658252282 | EG39: =PRODUCT(IF(($CL$13:$EK$13<=EG$13*TRANSPOSE($CK$14:$CK$65>=$CK39)),$CL$10:$EK$10,1)) -> 7.842608295 | EH39: =PRODUCT(IF(($CL$13:$EK$13<=EH$13*TRANSPOSE($CK$14:$CK$65>=$CK39)),$CL$10:$EK$10,1)) -> 8.148289076 | EI39: =PRODUCT(IF(($CL$13:$EK$13<=EI$13*TRANSPOSE($CK$14:$CK$65>=$CK39)),$CL$10:$EK$10,1)) -> 8.878345717 | EJ39: =PRODUCT(IF(($CL$13:$EK$13<=EJ$13*TRANSPOSE($CK$14:$CK$65>=$CK39)),$CL$10:$EK$10,1)) -> 10.19279193 | EK39: =PRODUCT(IF(($CL$13:$EK$13<=EK$13*TRANSPOSE($CK$14:$CK$65>=$CK39)),$CL$10:$EK$10,1)) -> 10.86637359
C40: 1999 | AE40: 0.08208764235 | AF40: 0.07126860105 | AG40: 0.06602928853 | AH40: 0.06663235491 | AI40: 0.06836586348 | AJ40: 0.07265127575 | AK40: 0.1010530491 | AL40: 0.1069427007 | AM40: 0.111539146 | AN40: 0.1164010843 | AO40: 0.1061892825 | AP40: 0.10500957 | AQ40: 0.1099944676 | AR40: 0.1149929479 | AS40: 0.1186750846 | AT40: 0.1162547384 | AU40: 0.1103821695 | AV40: 0.1045727082 | AW40: 0.09929957903 | AX40: 0.09648409483 | AY40: 0.09292260522 | AZ40: 0.09041083548 | BA40: 0.09037540871 | BB40: 0.09271966539 | BC40: 0.09164157564 | BE40: 1998 | BF40: 0.1171852341 | BG40: 0.101644501 | BH40: 0.0973642204 | BI40: 0.1063206802 | BJ40: 0.1112085364 | BK40: 0.1028435298 | BL40: 0.1035817126 | BM40: 0.1024708826 | BN40: 0.09846168402 | BO40: 0.104151917 | BP40: 0.1086789714 | BQ40: 0.09839445713 | BR40: 0.08711204606 | BS40: 0.06511146018 | BT40: 0.06476339354 | BU40: 0.05801283116 | BV40: 0.05294837296 | BW40: 0.05632093075 | BX40: 0.06067841649 | BY40: 0.0666878234 | BZ40: 0.07104601224 | CA40: 0.0849944498 | CB40: 0.09406706963 | CC40: 0.09961299958 | CD40: 0.1079334363 | CE40: =PRODUCT($CH15:$CH40)^(1/CE$13)-1 -> 0.1091641767 | CG40: 1998 | CH40: =HLOOKUP($W$7,dat,MATCH(CG40,Data!$B$3:$B$60,0),0)+1 -> 1.117185234 | CK40: 1998 | CL40: =PRODUCT(IF(($CL$13:$EK$13<=CL$13*TRANSPOSE($CK$14:$CK$65>=$CK40)),$CL$10:$EK$10,1)) -> 1 | CM40: =PRODUCT(IF(($CL$13:$EK$13<=CM$13*TRANSPOSE($CK$14:$CK$65>=$CK40)),$CL$10:$EK$10,1)) -> 1 | CN40: =PRODUCT(IF(($CL$13:$EK$13<=CN$13*TRANSPOSE($CK$14:$CK$65>=$CK40)),$CL$10:$EK$10,1)) -> 1 | CO40: =PRODUCT(IF(($CL$13:$EK$13<=CO$13*TRANSPOSE($CK$14:$CK$65>=$CK40)),$CL$10:$EK$10,1)) -> 1 | CP40: =PRODUCT(IF(($CL$13:$EK$13<=CP$13*TRANSPOSE($CK$14:$CK$65>=$CK40)),$CL$10:$EK$10,1)) -> 1 | CQ40: =PRODUCT(IF(($CL$13:$EK$13<=CQ$13*TRANSPOSE($CK$14:$CK$65>=$CK40)),$CL$10:$EK$10,1)) -> 1 | CR40: =PRODUCT(IF(($CL$13:$EK$13<=CR$13*TRANSPOSE($CK$14:$CK$65>=$CK40)),$CL$10:$EK$10,1)) -> 1 | CS40: =PRODUCT(IF(($CL$13:$EK$13<=CS$13*TRANSPOSE($CK$14:$CK$65>=$CK40)),$CL$10:$EK$10,1)) -> 1 | CT40: =PRODUCT(IF(($CL$13:$EK$13<=CT$13*TRANSPOSE($CK$14:$CK$65>=$CK40)),$CL$10:$EK$10,1)) -> 1 | CU40: =PRODUCT(IF(($CL$13:$EK$13<=CU$13*TRANSPOSE($CK$14:$CK$65>=$CK40)),$CL$10:$EK$10,1)) -> 1 | CV40: =PRODUCT(IF(($CL$13:$EK$13<=CV$13*TRANSPOSE($CK$14:$CK$65>=$CK40)),$CL$10:$EK$10,1)) -> 1 | CW40: =PRODUCT(IF(($CL$13:$EK$13<=CW$13*TRANSPOSE($CK$14:$CK$65>=$CK40)),$CL$10:$EK$10,1)) -> 1 | CX40: =PRODUCT(IF(($CL$13:$EK$13<=CX$13*TRANSPOSE($CK$14:$CK$65>=$CK40)),$CL$10:$EK$10,1)) -> 1 | CY40: =PRODUCT(IF(($CL$13:$EK$13<=CY$13*TRANSPOSE($CK$14:$CK$65>=$CK40)),$CL$10:$EK$10,1)) -> 1 | CZ40: =PRODUCT(IF(($CL$13:$EK$13<=CZ$13*TRANSPOSE($CK$14:$CK$65>=$CK40)),$CL$10:$EK$10,1)) -> 1 | DA40: =PRODUCT(IF(($CL$13:$EK$13<=DA$13*TRANSPOSE($CK$14:$CK$65>=$CK40)),$CL$10:$EK$10,1)) -> 1 | DB40: =PRODUCT(IF(($CL$13:$EK$13<=DB$13*TRANSPOSE($CK$14:$CK$65>=$CK40)),$CL$10:$EK$10,1)) -> 1 | DC40: =PRODUCT(IF(($CL$13:$EK$13<=DC$13*TRANSPOSE($CK$14:$CK$65>=$CK40)),$CL$10:$EK$10,1)) -> 1 | DD40: =PRODUCT(IF(($CL$13:$EK$13<=DD$13*TRANSPOSE($CK$14:$CK$65>=$CK40)),$CL$10:$EK$10,1)) -> 1 | DE40: =PRODUCT(IF(($CL$13:$EK$13<=DE$13*TRANSPOSE($CK$14:$CK$65>=$CK40)),$CL$10:$EK$10,1)) -> 1 | DF40: =PRODUCT(IF(($CL$13:$EK$13<=DF$13*TRANSPOSE($CK$14:$CK$65>=$CK40)),$CL$10:$EK$10,1)) -> 1 | DG40: =PRODUCT(IF(($CL$13:$EK$13<=DG$13*TRANSPOSE($CK$14:$CK$65>=$CK40)),$CL$10:$EK$10,1)) -> 1 | DH40: =PRODUCT(IF(($CL$13:$EK$13<=DH$13*TRANSPOSE($CK$14:$CK$65>=$CK40)),$CL$10:$EK$10,1)) -> 1 | DI40: =PRODUCT(IF(($CL$13:$EK$13<=DI$13*TRANSPOSE($CK$14:$CK$65>=$CK40)),$CL$10:$EK$10,1)) -> 1 | DJ40: =PRODUCT(IF(($CL$13:$EK$13<=DJ$13*TRANSPOSE($CK$14:$CK$65>=$CK40)),$CL$10:$EK$10,1)) -> 1 | DK40: =PRODUCT(IF(($CL$13:$EK$13<=DK$13*TRANSPOSE($CK$14:$CK$65>=$CK40)),$CL$10:$EK$10,1)) -> 1 | DL40: =PRODUCT(IF(($CL$13:$EK$13<=DL$13*TRANSPOSE($CK$14:$CK$65>=$CK40)),$CL$10:$EK$10,1)) -> 1.117185234 | DM40: =PRODUCT(IF(($CL$13:$EK$13<=DM$13*TRANSPOSE($CK$14:$CK$65>=$CK40)),$CL$10:$EK$10,1)) -> 1.208892336 | DN40: =PRODUCT(IF(($CL$13:$EK$13<=DN$13*TRANSPOSE($CK$14:$CK$65>=$CK40)),$CL$10:$EK$10,1)) -> 1.282100114 | DO40: =PRODUCT(IF(($CL$13:$EK$13<=DO$13*TRANSPOSE($CK$14:$CK$65>=$CK40)),$CL$10:$EK$10,1)) -> 1.353420024 | DP40: =PRODUCT(IF(($CL$13:$EK$13<=DP$13*TRANSPOSE($CK$14:$CK$65>=$CK40)),$CL$10:$EK$10,1)) -> 1.446052965 | DQ40: =PRODUCT(IF(($CL$13:$EK$13<=DQ$13*TRANSPOSE($CK$14:$CK$65>=$CK40)),$CL$10:$EK$10,1)) -> 1.554981411 | DR40: =PRODUCT(IF(($CL$13:$EK$13<=DR$13*TRANSPOSE($CK$14:$CK$65>=$CK40)),$CL$10:$EK$10,1)) -> 1.70167457 | DS40: =PRODUCT(IF(($CL$13:$EK$13<=DS$13*TRANSPOSE($CK$14:$CK$65>=$CK40)),$CL$10:$EK$10,1)) -> 2.191709017 | DT40: =PRODUCT(IF(($CL$13:$EK$13<=DT$13*TRANSPOSE($CK$14:$CK$65>=$CK40)),$CL$10:$EK$10,1)) -> 2.518409294 | DU40: =PRODUCT(IF(($CL$13:$EK$13<=DU$13*TRANSPOSE($CK$14:$CK$65>=$CK40)),$CL$10:$EK$10,1)) -> 2.893663638 | DV40: =PRODUCT(IF(($CL$13:$EK$13<=DV$13*TRANSPOSE($CK$14:$CK$65>=$CK40)),$CL$10:$EK$10,1)) -> 3.359910299 | DW40: =PRODUCT(IF(($CL$13:$EK$13<=DW$13*TRANSPOSE($CK$14:$CK$65>=$CK40)),$CL$10:$EK$10,1)) -> 3.390385623 | DX40: =PRODUCT(IF(($CL$13:$EK$13<=DX$13*TRANSPOSE($CK$14:$CK$65>=$CK40)),$CL$10:$EK$10,1)) -> 3.702692599 | DY40: =PRODUCT(IF(($CL$13:$EK$13<=DY$13*TRANSPOSE($CK$14:$CK$65>=$CK40)),$CL$10:$EK$10,1)) -> 4.338062166 | DZ40: =PRODUCT(IF(($CL$13:$EK$13<=DZ$13*TRANSPOSE($CK$14:$CK$65>=$CK40)),$CL$10:$EK$10,1)) -> 5.12784483 | EA40: =PRODUCT(IF(($CL$13:$EK$13<=EA$13*TRANSPOSE($CK$14:$CK$65>=$CK40)),$CL$10:$EK$10,1)) -> 6.007373983 | EB40: =PRODUCT(IF(($CL$13:$EK$13<=EB$13*TRANSPOSE($CK$14:$CK$65>=$CK40)),$CL$10:$EK$10,1)) -> 6.491397953 | EC40: =PRODUCT(IF(($CL$13:$EK$13<=EC$13*TRANSPOSE($CK$14:$CK$65>=$CK40)),$CL$10:$EK$10,1)) -> 6.624564527 | ED40: =PRODUCT(IF(($CL$13:$EK$13<=ED$13*TRANSPOSE($CK$14:$CK$65>=$CK40)),$CL$10:$EK$10,1)) -> 6.693029497 | EE40: =PRODUCT(IF(($CL$13:$EK$13<=EE$13*TRANSPOSE($CK$14:$CK$65>=$CK40)),$CL$10:$EK$10,1)) -> 6.750413218 | EF40: =PRODUCT(IF(($CL$13:$EK$13<=EF$13*TRANSPOSE($CK$14:$CK$65>=$CK40)),$CL$10:$EK$10,1)) -> 7.049720746 | EG40: =PRODUCT(IF(($CL$13:$EK$13<=EG$13*TRANSPOSE($CK$14:$CK$65>=$CK40)),$CL$10:$EK$10,1)) -> 7.219427666 | EH40: =PRODUCT(IF(($CL$13:$EK$13<=EH$13*TRANSPOSE($CK$14:$CK$65>=$CK40)),$CL$10:$EK$10,1)) -> 7.500818781 | EI40: =PRODUCT(IF(($CL$13:$EK$13<=EI$13*TRANSPOSE($CK$14:$CK$65>=$CK40)),$CL$10:$EK$10,1)) -> 8.172864471 | EJ40: =PRODUCT(IF(($CL$13:$EK$13<=EJ$13*TRANSPOSE($CK$14:$CK$65>=$CK40)),$CL$10:$EK$10,1)) -> 9.382863616 | EK40: =PRODUCT(IF(($CL$13:$EK$13<=EK$13*TRANSPOSE($CK$14:$CK$65>=$CK40)),$CL$10:$EK$10,1)) -> 10.00292188
C41: 2000 | AF41: 0.06055773182 | AG41: 0.0580896996 | AH41: 0.06152980361 | AI41: 0.06496269351 | AJ41: 0.07077390029 | AK41: 0.1042461109 | AL41: 0.1105397255 | AM41: 0.115276504 | AN41: 0.1202802334 | AO41: 0.1086287766 | AP41: 0.1071173057 | AQ41: 0.1123522704 | AR41: 0.1175651888 | AS41: 0.1213353235 | AT41: 0.1185705321 | AU41: 0.1121749445 | AV41: 0.1059098154 | AW41: 0.1002637853 | AX41: 0.09724708639 | AY41: 0.09346719226 | AZ41: 0.090808771 | BA41: 0.09075362992 | BB41: 0.09318428958 | BC41: 0.09204148163 | BE41: 1999 | BF41: 0.08208764235 | BG41: 0.09949640109 | BH41: 0.09508658738 | BI41: 0.09352497483 | BJ41: 0.1014310415 | BK41: 0.1063011923 | BL41: 0.09985420432 | BM41: 0.1008717772 | BN41: 0.1001872482 | BO41: 0.09681319156 | BP41: 0.1021276193 | BQ41: 0.1064382875 | BR41: 0.09713140909 | BS41: 0.08675238768 | BT41: 0.06623487329 | BU41: 0.06583798681 | BV41: 0.05941405167 | BW41: 0.05454643762 | BX41: 0.05766164762 | BY41: 0.06173874729 | BZ41: 0.06741615353 | CA41: 0.07154545151 | CB41: 0.08486790465 | CC41: 0.09356528915 | CD41: 0.09890656594 | CE41: 0.1069280454 | CG41: 1999 | CH41: =HLOOKUP($W$7,dat,MATCH(CG41,Data!$B$3:$B$60,0),0)+1 -> 1.082087642 | CK41: 1999 | CL41: =PRODUCT(IF(($CL$13:$EK$13<=CL$13*TRANSPOSE($CK$14:$CK$65>=$CK41)),$CL$10:$EK$10,1)) -> 1 | CM41: =PRODUCT(IF(($CL$13:$EK$13<=CM$13*TRANSPOSE($CK$14:$CK$65>=$CK41)),$CL$10:$EK$10,1)) -> 1 | CN41: =PRODUCT(IF(($CL$13:$EK$13<=CN$13*TRANSPOSE($CK$14:$CK$65>=$CK41)),$CL$10:$EK$10,1)) -> 1 | CO41: =PRODUCT(IF(($CL$13:$EK$13<=CO$13*TRANSPOSE($CK$14:$CK$65>=$CK41)),$CL$10:$EK$10,1)) -> 1 | CP41: =PRODUCT(IF(($CL$13:$EK$13<=CP$13*TRANSPOSE($CK$14:$CK$65>=$CK41)),$CL$10:$EK$10,1)) -> 1 | CQ41: =PRODUCT(IF(($CL$13:$EK$13<=CQ$13*TRANSPOSE($CK$14:$CK$65>=$CK41)),$CL$10:$EK$10,1)) -> 1 | CR41: =PRODUCT(IF(($CL$13:$EK$13<=CR$13*TRANSPOSE($CK$14:$CK$65>=$CK41)),$CL$10:$EK$10,1)) -> 1 | CS41: =PRODUCT(IF(($CL$13:$EK$13<=CS$13*TRANSPOSE($CK$14:$CK$65>=$CK41)),$CL$10:$EK$10,1)) -> 1 | CT41: =PRODUCT(IF(($CL$13:$EK$13<=CT$13*TRANSPOSE($CK$14:$CK$65>=$CK41)),$CL$10:$EK$10,1)) -> 1 | CU41: =PRODUCT(IF(($CL$13:$EK$13<=CU$13*TRANSPOSE($CK$14:$CK$65>=$CK41)),$CL$10:$EK$10,1)) -> 1 | CV41: =PRODUCT(IF(($CL$13:$EK$13<=CV$13*TRANSPOSE($CK$14:$CK$65>=$CK41)),$CL$10:$EK$10,1)) -> 1 | CW41: =PRODUCT(IF(($CL$13:$EK$13<=CW$13*TRANSPOSE($CK$14:$CK$65>=$CK41)),$CL$10:$EK$10,1)) -> 1 | CX41: =PRODUCT(IF(($CL$13:$EK$13<=CX$13*TRANSPOSE($CK$14:$CK$65>=$CK41)),$CL$10:$EK$10,1)) -> 1 | CY41: =PRODUCT(IF(($CL$13:$EK$13<=CY$13*TRANSPOSE($CK$14:$CK$65>=$CK41)),$CL$10:$EK$10,1)) -> 1 | CZ41: =PRODUCT(IF(($CL$13:$EK$13<=CZ$13*TRANSPOSE($CK$14:$CK$65>=$CK41)),$CL$10:$EK$10,1)) -> 1 | DA41: =PRODUCT(IF(($CL$13:$EK$13<=DA$13*TRANSPOSE($CK$14:$CK$65>=$CK41)),$CL$10:$EK$10,1)) -> 1 | DB41: =PRODUCT(IF(($CL$13:$EK$13<=DB$13*TRANSPOSE($CK$14:$CK$65>=$CK41)),$CL$10:$EK$10,1)) -> 1 | DC41: =PRODUCT(IF(($CL$13:$EK$13<=DC$13*TRANSPOSE($CK$14:$CK$65>=$CK41)),$CL$10:$EK$10,1)) -> 1 | DD41: =PRODUCT(IF(($CL$13:$EK$13<=DD$13*TRANSPOSE($CK$14:$CK$65>=$CK41)),$CL$10:$EK$10,1)) -> 1 | DE41: =PRODUCT(IF(($CL$13:$EK$13<=DE$13*TRANSPOSE($CK$14:$CK$65>=$CK41)),$CL$10:$EK$10,1)) -> 1 | DF41: =PRODUCT(IF(($CL$13:$EK$13<=DF$13*TRANSPOSE($CK$14:$CK$65>=$CK41)),$CL$10:$EK$10,1)) -> 1 | DG41: =PRODUCT(IF(($CL$13:$EK$13<=DG$13*TRANSPOSE($CK$14:$CK$65>=$CK41)),$CL$10:$EK$10,1)) -> 1 | DH41: =PRODUCT(IF(($CL$13:$EK$13<=DH$13*TRANSPOSE($CK$14:$CK$65>=$CK41)),$CL$10:$EK$10,1)) -> 1 | DI41: =PRODUCT(IF(($CL$13:$EK$13<=DI$13*TRANSPOSE($CK$14:$CK$65>=$CK41)),$CL$10:$EK$10,1)) -> 1 | DJ41: =PRODUCT(IF(($CL$13:$EK$13<=DJ$13*TRANSPOSE($CK$14:$CK$65>=$CK41)),$CL$10:$EK$10,1)) -> 1 | DK41: =PRODUCT(IF(($CL$13:$EK$13<=DK$13*TRANSPOSE($CK$14:$CK$65>=$CK41)),$CL$10:$EK$10,1)) -> 1 | DL41: =PRODUCT(IF(($CL$13:$EK$13<=DL$13*TRANSPOSE($CK$14:$CK$65>=$CK41)),$CL$10:$EK$10,1)) -> 1 | DM41: =PRODUCT(IF(($CL$13:$EK$13<=DM$13*TRANSPOSE($CK$14:$CK$65>=$CK41)),$CL$10:$EK$10,1)) -> 1.082087642 | DN41: =PRODUCT(IF(($CL$13:$EK$13<=DN$13*TRANSPOSE($CK$14:$CK$65>=$CK41)),$CL$10:$EK$10,1)) -> 1.147616416 | DO41: =PRODUCT(IF(($CL$13:$EK$13<=DO$13*TRANSPOSE($CK$14:$CK$65>=$CK41)),$CL$10:$EK$10,1)) -> 1.211455345 | DP41: =PRODUCT(IF(($CL$13:$EK$13<=DP$13*TRANSPOSE($CK$14:$CK$65>=$CK41)),$CL$10:$EK$10,1)) -> 1.294371713 | DQ41: =PRODUCT(IF(($CL$13:$EK$13<=DQ$13*TRANSPOSE($CK$14:$CK$65>=$CK41)),$CL$10:$EK$10,1)) -> 1.391874296 | DR41: =PRODUCT(IF(($CL$13:$EK$13<=DR$13*TRANSPOSE($CK$14:$CK$65>=$CK41)),$CL$10:$EK$10,1)) -> 1.523180327 | DS41: =PRODUCT(IF(($CL$13:$EK$13<=DS$13*TRANSPOSE($CK$14:$CK$65>=$CK41)),$CL$10:$EK$10,1)) -> 1.961813449 | DT41: =PRODUCT(IF(($CL$13:$EK$13<=DT$13*TRANSPOSE($CK$14:$CK$65>=$CK41)),$CL$10:$EK$10,1)) -> 2.254245059 | DU41: =PRODUCT(IF(($CL$13:$EK$13<=DU$13*TRANSPOSE($CK$14:$CK$65>=$CK41)),$CL$10:$EK$10,1)) -> 2.590137741 | DV41: =PRODUCT(IF(($CL$13:$EK$13<=DV$13*TRANSPOSE($CK$14:$CK$65>=$CK41)),$CL$10:$EK$10,1)) -> 3.007478256 | DW41: =PRODUCT(IF(($CL$13:$EK$13<=DW$13*TRANSPOSE($CK$14:$CK$65>=$CK41)),$CL$10:$EK$10,1)) -> 3.034756923 | DX41: =PRODUCT(IF(($CL$13:$EK$13<=DX$13*TRANSPOSE($CK$14:$CK$65>=$CK41)),$CL$10:$EK$10,1)) -> 3.314304993 | DY41: =PRODUCT(IF(($CL$13:$EK$13<=DY$13*TRANSPOSE($CK$14:$CK$65>=$CK41)),$CL$10:$EK$10,1)) -> 3.883028556 | DZ41: =PRODUCT(IF(($CL$13:$EK$13<=DZ$13*TRANSPOSE($CK$14:$CK$65>=$CK41)),$CL$10:$EK$10,1)) -> 4.589968318 | EA41: =PRODUCT(IF(($CL$13:$EK$13<=EA$13*TRANSPOSE($CK$14:$CK$65>=$CK41)),$CL$10:$EK$10,1)) -> 5.377240765 | EB41: =PRODUCT(IF(($CL$13:$EK$13<=EB$13*TRANSPOSE($CK$14:$CK$65>=$CK41)),$CL$10:$EK$10,1)) -> 5.810493869 | EC41: =PRODUCT(IF(($CL$13:$EK$13<=EC$13*TRANSPOSE($CK$14:$CK$65>=$CK41)),$CL$10:$EK$10,1)) -> 5.929692163 | ED41: =PRODUCT(IF(($CL$13:$EK$13<=ED$13*TRANSPOSE($CK$14:$CK$65>=$CK41)),$CL$10:$EK$10,1)) -> 5.990975617 | EE41: =PRODUCT(IF(($CL$13:$EK$13<=EE$13*TRANSPOSE($CK$14:$CK$65>=$CK41)),$CL$10:$EK$10,1)) -> 6.042340171 | EF41: =PRODUCT(IF(($CL$13:$EK$13<=EF$13*TRANSPOSE($CK$14:$CK$65>=$CK41)),$CL$10:$EK$10,1)) -> 6.310252348 | EG41: =PRODUCT(IF(($CL$13:$EK$13<=EG$13*TRANSPOSE($CK$14:$CK$65>=$CK41)),$CL$10:$EK$10,1)) -> 6.462158151 | EH41: =PRODUCT(IF(($CL$13:$EK$13<=EH$13*TRANSPOSE($CK$14:$CK$65>=$CK41)),$CL$10:$EK$10,1)) -> 6.714033225 | EI41: =PRODUCT(IF(($CL$13:$EK$13<=EI$13*TRANSPOSE($CK$14:$CK$65>=$CK41)),$CL$10:$EK$10,1)) -> 7.315585833 | EJ41: =PRODUCT(IF(($CL$13:$EK$13<=EJ$13*TRANSPOSE($CK$14:$CK$65>=$CK41)),$CL$10:$EK$10,1)) -> 8.398664187 | EK41: =PRODUCT(IF(($CL$13:$EK$13<=EK$13*TRANSPOSE($CK$14:$CK$65>=$CK41)),$CL$10:$EK$10,1)) -> 8.953682499
C42: 2001 | AG42: 0.05562741076 | AH42: 0.06201617356 | AI42: 0.06643507605 | AJ42: 0.07334328219 | AK42: 0.1131974201 | AL42: 0.1190961349 | AM42: 0.1233206168 | AN42: 0.1279782305 | AO42: 0.1141027337 | AP42: 0.1118842334 | AQ42: 0.1171844801 | AR42: 0.1224519136 | AS42: 0.1261523129 | AT42: 0.1228337281 | AU42: 0.1157040932 | AV42: 0.1088078706 | AW42: 0.1026451953 | AX42: 0.09932220079 | AY42: 0.0952272839 | AZ42: 0.09234377155 | BA42: 0.09221278313 | BB42: 0.09469093342 | BC42: 0.09343134389 | BE42: 2000 | BF42: 0.06055773182 | BG42: 0.07126860105 | BH42: 0.08636053323 | BI42: 0.08635038706 | BJ42: 0.08685054604 | BK42: 0.09451103799 | BL42: 0.09964755735 | BM42: 0.09486360327 | BN42: 0.09631780819 | BO42: 0.09615855503 | BP42: 0.09346665119 | BQ42: 0.09860209193 | BR42: 0.1028396171 | BS42: 0.09447768238 | BT42: 0.08498612355 | BU42: 0.06587916331 | BV42: 0.06552665712 | BW42: 0.05947755709 | BX42: 0.05486197038 | BY42: 0.05780626383 | BZ42: 0.06168247865 | CA42: 0.06710344707 | CB42: 0.07106536595 | CC42: 0.08384394287 | CD42: 0.0922254724 | CE42: 0.09740628503 | CG42: 2000 | CH42: =HLOOKUP($W$7,dat,MATCH(CG42,Data!$B$3:$B$60,0),0)+1 -> 1.060557732 | CK42: 2000 | CL42: =PRODUCT(IF(($CL$13:$EK$13<=CL$13*TRANSPOSE($CK$14:$CK$65>=$CK42)),$CL$10:$EK$10,1)) -> 1 | CM42: =PRODUCT(IF(($CL$13:$EK$13<=CM$13*TRANSPOSE($CK$14:$CK$65>=$CK42)),$CL$10:$EK$10,1)) -> 1 | CN42: =PRODUCT(IF(($CL$13:$EK$13<=CN$13*TRANSPOSE($CK$14:$CK$65>=$CK42)),$CL$10:$EK$10,1)) -> 1 | CO42: =PRODUCT(IF(($CL$13:$EK$13<=CO$13*TRANSPOSE($CK$14:$CK$65>=$CK42)),$CL$10:$EK$10,1)) -> 1 | CP42: =PRODUCT(IF(($CL$13:$EK$13<=CP$13*TRANSPOSE($CK$14:$CK$65>=$CK42)),$CL$10:$EK$10,1)) -> 1 | CQ42: =PRODUCT(IF(($CL$13:$EK$13<=CQ$13*TRANSPOSE($CK$14:$CK$65>=$CK42)),$CL$10:$EK$10,1)) -> 1 | CR42: =PRODUCT(IF(($CL$13:$EK$13<=CR$13*TRANSPOSE($CK$14:$CK$65>=$CK42)),$CL$10:$EK$10,1)) -> 1 | CS42: =PRODUCT(IF(($CL$13:$EK$13<=CS$13*TRANSPOSE($CK$14:$CK$65>=$CK42)),$CL$10:$EK$10,1)) -> 1 | CT42: =PRODUCT(IF(($CL$13:$EK$13<=CT$13*TRANSPOSE($CK$14:$CK$65>=$CK42)),$CL$10:$EK$10,1)) -> 1 | CU42: =PRODUCT(IF(($CL$13:$EK$13<=CU$13*TRANSPOSE($CK$14:$CK$65>=$CK42)),$CL$10:$EK$10,1)) -> 1 | CV42: =PRODUCT(IF(($CL$13:$EK$13<=CV$13*TRANSPOSE($CK$14:$CK$65>=$CK42)),$CL$10:$EK$10,1)) -> 1 | CW42: =PRODUCT(IF(($CL$13:$EK$13<=CW$13*TRANSPOSE($CK$14:$CK$65>=$CK42)),$CL$10:$EK$10,1)) -> 1 | CX42: =PRODUCT(IF(($CL$13:$EK$13<=CX$13*TRANSPOSE($CK$14:$CK$65>=$CK42)),$CL$10:$EK$10,1)) -> 1 | CY42: =PRODUCT(IF(($CL$13:$EK$13<=CY$13*TRANSPOSE($CK$14:$CK$65>=$CK42)),$CL$10:$EK$10,1)) -> 1 | CZ42: =PRODUCT(IF(($CL$13:$EK$13<=CZ$13*TRANSPOSE($CK$14:$CK$65>=$CK42)),$CL$10:$EK$10,1)) -> 1 | DA42: =PRODUCT(IF(($CL$13:$EK$13<=DA$13*TRANSPOSE($CK$14:$CK$65>=$CK42)),$CL$10:$EK$10,1)) -> 1 | DB42: =PRODUCT(IF(($CL$13:$EK$13<=DB$13*TRANSPOSE($CK$14:$CK$65>=$CK42)),$CL$10:$EK$10,1)) -> 1 | DC42: =PRODUCT(IF(($CL$13:$EK$13<=DC$13*TRANSPOSE($CK$14:$CK$65>=$CK42)),$CL$10:$EK$10,1)) -> 1 | DD42: =PRODUCT(IF(($CL$13:$EK$13<=DD$13*TRANSPOSE($CK$14:$CK$65>=$CK42)),$CL$10:$EK$10,1)) -> 1 | DE42: =PRODUCT(IF(($CL$13:$EK$13<=DE$13*TRANSPOSE($CK$14:$CK$65>=$CK42)),$CL$10:$EK$10,1)) -> 1 | DF42: =PRODUCT(IF(($CL$13:$EK$13<=DF$13*TRANSPOSE($CK$14:$CK$65>=$CK42)),$CL$10:$EK$10,1)) -> 1 | DG42: =PRODUCT(IF(($CL$13:$EK$13<=DG$13*TRANSPOSE($CK$14:$CK$65>=$CK42)),$CL$10:$EK$10,1)) -> 1 | DH42: =PRODUCT(IF(($CL$13:$EK$13<=DH$13*TRANSPOSE($CK$14:$CK$65>=$CK42)),$CL$10:$EK$10,1)) -> 1 | DI42: =PRODUCT(IF(($CL$13:$EK$13<=DI$13*TRANSPOSE($CK$14:$CK$65>=$CK42)),$CL$10:$EK$10,1)) -> 1 | DJ42: =PRODUCT(IF(($CL$13:$EK$13<=DJ$13*TRANSPOSE($CK$14:$CK$65>=$CK42)),$CL$10:$EK$10,1)) -> 1 | DK42: =PRODUCT(IF(($CL$13:$EK$13<=DK$13*TRANSPOSE($CK$14:$CK$65>=$CK42)),$CL$10:$EK$10,1)) -> 1 | DL42: =PRODUCT(IF(($CL$13:$EK$13<=DL$13*TRANSPOSE($CK$14:$CK$65>=$CK42)),$CL$10:$EK$10,1)) -> 1 | DM42: =PRODUCT(IF(($CL$13:$EK$13<=DM$13*TRANSPOSE($CK$14:$CK$65>=$CK42)),$CL$10:$EK$10,1)) -> 1 | DN42: =PRODUCT(IF(($CL$13:$EK$13<=DN$13*TRANSPOSE($CK$14:$CK$65>=$CK42)),$CL$10:$EK$10,1)) -> 1.060557732 | DO42: =PRODUCT(IF(($CL$13:$EK$13<=DO$13*TRANSPOSE($CK$14:$CK$65>=$CK42)),$CL$10:$EK$10,1)) -> 1.119553812 | DP42: =PRODUCT(IF(($CL$13:$EK$13<=DP$13*TRANSPOSE($CK$14:$CK$65>=$CK42)),$CL$10:$EK$10,1)) -> 1.196180108 | DQ42: =PRODUCT(IF(($CL$13:$EK$13<=DQ$13*TRANSPOSE($CK$14:$CK$65>=$CK42)),$CL$10:$EK$10,1)) -> 1.286286103 | DR42: =PRODUCT(IF(($CL$13:$EK$13<=DR$13*TRANSPOSE($CK$14:$CK$65>=$CK42)),$CL$10:$EK$10,1)) -> 1.4076312 | DS42: =PRODUCT(IF(($CL$13:$EK$13<=DS$13*TRANSPOSE($CK$14:$CK$65>=$CK42)),$CL$10:$EK$10,1)) -> 1.812989422 | DT42: =PRODUCT(IF(($CL$13:$EK$13<=DT$13*TRANSPOSE($CK$14:$CK$65>=$CK42)),$CL$10:$EK$10,1)) -> 2.083237042 | DU42: =PRODUCT(IF(($CL$13:$EK$13<=DU$13*TRANSPOSE($CK$14:$CK$65>=$CK42)),$CL$10:$EK$10,1)) -> 2.393648758 | DV42: =PRODUCT(IF(($CL$13:$EK$13<=DV$13*TRANSPOSE($CK$14:$CK$65>=$CK42)),$CL$10:$EK$10,1)) -> 2.779329638 | DW42: =PRODUCT(IF(($CL$13:$EK$13<=DW$13*TRANSPOSE($CK$14:$CK$65>=$CK42)),$CL$10:$EK$10,1)) -> 2.804538934 | DX42: =PRODUCT(IF(($CL$13:$EK$13<=DX$13*TRANSPOSE($CK$14:$CK$65>=$CK42)),$CL$10:$EK$10,1)) -> 3.062880365 | DY42: =PRODUCT(IF(($CL$13:$EK$13<=DY$13*TRANSPOSE($CK$14:$CK$65>=$CK42)),$CL$10:$EK$10,1)) -> 3.588460309 | DZ42: =PRODUCT(IF(($CL$13:$EK$13<=DZ$13*TRANSPOSE($CK$14:$CK$65>=$CK42)),$CL$10:$EK$10,1)) -> 4.241771312 | EA42: =PRODUCT(IF(($CL$13:$EK$13<=EA$13*TRANSPOSE($CK$14:$CK$65>=$CK42)),$CL$10:$EK$10,1)) -> 4.969320926 | EB42: =PRODUCT(IF(($CL$13:$EK$13<=EB$13*TRANSPOSE($CK$14:$CK$65>=$CK42)),$CL$10:$EK$10,1)) -> 5.36970726 | EC42: =PRODUCT(IF(($CL$13:$EK$13<=EC$13*TRANSPOSE($CK$14:$CK$65>=$CK42)),$CL$10:$EK$10,1)) -> 5.479863119 | ED42: =PRODUCT(IF(($CL$13:$EK$13<=ED$13*TRANSPOSE($CK$14:$CK$65>=$CK42)),$CL$10:$EK$10,1)) -> 5.536497584 | EE42: =PRODUCT(IF(($CL$13:$EK$13<=EE$13*TRANSPOSE($CK$14:$CK$65>=$CK42)),$CL$10:$EK$10,1)) -> 5.5839656 | EF42: =PRODUCT(IF(($CL$13:$EK$13<=EF$13*TRANSPOSE($CK$14:$CK$65>=$CK42)),$CL$10:$EK$10,1)) -> 5.831553842 | EG42: =PRODUCT(IF(($CL$13:$EK$13<=EG$13*TRANSPOSE($CK$14:$CK$65>=$CK42)),$CL$10:$EK$10,1)) -> 5.971936004 | EH42: =PRODUCT(IF(($CL$13:$EK$13<=EH$13*TRANSPOSE($CK$14:$CK$65>=$CK42)),$CL$10:$EK$10,1)) -> 6.204703725 | EI42: =PRODUCT(IF(($CL$13:$EK$13<=EI$13*TRANSPOSE($CK$14:$CK$65>=$CK42)),$CL$10:$EK$10,1)) -> 6.760622289 | EJ42: =PRODUCT(IF(($CL$13:$EK$13<=EJ$13*TRANSPOSE($CK$14:$CK$65>=$CK42)),$CL$10:$EK$10,1)) -> 7.761537845 | EK42: =PRODUCT(IF(($CL$13:$EK$13<=EK$13*TRANSPOSE($CK$14:$CK$65>=$CK42)),$CL$10:$EK$10,1)) -> 8.274452225
C43: 2002 | AH43: 0.0684436018 | AI43: 0.07188033207 | AJ43: 0.0793143976 | AK43: 0.12807396 | AL43: 0.1322406506 | AM43: 0.1350175451 | AN43: 0.1387111774 | AO43: 0.1216363166 | AP43: 0.1183172057 | AQ43: 0.1235342534 | AR43: 0.1287327238 | AS43: 0.1322378596 | AT43: 0.128177299 | AU43: 0.1201238712 | AV43: 0.1124470348 | AW43: 0.1056523926 | AX43: 0.1019480895 | AY43: 0.09747032839 | AZ43: 0.0943112049 | BA43: 0.09407497637 | BB43: 0.0965867418 | BC43: 0.09518151162 | BE43: 2001 | BF43: 0.05562741076 | BG43: 0.0580896996 | BH43: 0.06602928853 | BI43: 0.07859437081 | BJ43: 0.08013507856 | BK43: 0.08158328349 | BL43: 0.08886975125 | BM43: 0.09404618729 | BN43: 0.09043298122 | BO43: 0.09217916563 | BP43: 0.09241047976 | BQ43: 0.09026223416 | BR43: 0.09523512368 | BS43: 0.09939838458 | BT43: 0.09184375264 | BU43: 0.08312751501 | BV43: 0.06527337245 | BW43: 0.0649742716 | BX43: 0.05927456816 | BY43: 0.05490022921 | BZ43: 0.05770240701 | CA43: 0.06140649631 | CB43: 0.06660190448 | CC43: 0.07041763295 | CD43: 0.08270093299 | CE43: 0.09079466914 | CG43: 2001 | CH43: =HLOOKUP($W$7,dat,MATCH(CG43,Data!$B$3:$B$60,0),0)+1 -> 1.055627411 | CK43: 2001 | CL43: =PRODUCT(IF(($CL$13:$EK$13<=CL$13*TRANSPOSE($CK$14:$CK$65>=$CK43)),$CL$10:$EK$10,1)) -> 1 | CM43: =PRODUCT(IF(($CL$13:$EK$13<=CM$13*TRANSPOSE($CK$14:$CK$65>=$CK43)),$CL$10:$EK$10,1)) -> 1 | CN43: =PRODUCT(IF(($CL$13:$EK$13<=CN$13*TRANSPOSE($CK$14:$CK$65>=$CK43)),$CL$10:$EK$10,1)) -> 1 | CO43: =PRODUCT(IF(($CL$13:$EK$13<=CO$13*TRANSPOSE($CK$14:$CK$65>=$CK43)),$CL$10:$EK$10,1)) -> 1 | CP43: =PRODUCT(IF(($CL$13:$EK$13<=CP$13*TRANSPOSE($CK$14:$CK$65>=$CK43)),$CL$10:$EK$10,1)) -> 1 | CQ43: =PRODUCT(IF(($CL$13:$EK$13<=CQ$13*TRANSPOSE($CK$14:$CK$65>=$CK43)),$CL$10:$EK$10,1)) -> 1 | CR43: =PRODUCT(IF(($CL$13:$EK$13<=CR$13*TRANSPOSE($CK$14:$CK$65>=$CK43)),$CL$10:$EK$10,1)) -> 1 | CS43: =PRODUCT(IF(($CL$13:$EK$13<=CS$13*TRANSPOSE($CK$14:$CK$65>=$CK43)),$CL$10:$EK$10,1)) -> 1 | CT43: =PRODUCT(IF(($CL$13:$EK$13<=CT$13*TRANSPOSE($CK$14:$CK$65>=$CK43)),$CL$10:$EK$10,1)) -> 1 | CU43: =PRODUCT(IF(($CL$13:$EK$13<=CU$13*TRANSPOSE($CK$14:$CK$65>=$CK43)),$CL$10:$EK$10,1)) -> 1 | CV43: =PRODUCT(IF(($CL$13:$EK$13<=CV$13*TRANSPOSE($CK$14:$CK$65>=$CK43)),$CL$10:$EK$10,1)) -> 1 | CW43: =PRODUCT(IF(($CL$13:$EK$13<=CW$13*TRANSPOSE($CK$14:$CK$65>=$CK43)),$CL$10:$EK$10,1)) -> 1 | CX43: =PRODUCT(IF(($CL$13:$EK$13<=CX$13*TRANSPOSE($CK$14:$CK$65>=$CK43)),$CL$10:$EK$10,1)) -> 1 | CY43: =PRODUCT(IF(($CL$13:$EK$13<=CY$13*TRANSPOSE($CK$14:$CK$65>=$CK43)),$CL$10:$EK$10,1)) -> 1 | CZ43: =PRODUCT(IF(($CL$13:$EK$13<=CZ$13*TRANSPOSE($CK$14:$CK$65>=$CK43)),$CL$10:$EK$10,1)) -> 1 | DA43: =PRODUCT(IF(($CL$13:$EK$13<=DA$13*TRANSPOSE($CK$14:$CK$65>=$CK43)),$CL$10:$EK$10,1)) -> 1 | DB43: =PRODUCT(IF(($CL$13:$EK$13<=DB$13*TRANSPOSE($CK$14:$CK$65>=$CK43)),$CL$10:$EK$10,1)) -> 1 | DC43: =PRODUCT(IF(($CL$13:$EK$13<=DC$13*TRANSPOSE($CK$14:$CK$65>=$CK43)),$CL$10:$EK$10,1)) -> 1 | DD43: =PRODUCT(IF(($CL$13:$EK$13<=DD$13*TRANSPOSE($CK$14:$CK$65>=$CK43)),$CL$10:$EK$10,1)) -> 1 | DE43: =PRODUCT(IF(($CL$13:$EK$13<=DE$13*TRANSPOSE($CK$14:$CK$65>=$CK43)),$CL$10:$EK$10,1)) -> 1 | DF43: =PRODUCT(IF(($CL$13:$EK$13<=DF$13*TRANSPOSE($CK$14:$CK$65>=$CK43)),$CL$10:$EK$10,1)) -> 1 | DG43: =PRODUCT(IF(($CL$13:$EK$13<=DG$13*TRANSPOSE($CK$14:$CK$65>=$CK43)),$CL$10:$EK$10,1)) -> 1 | DH43: =PRODUCT(IF(($CL$13:$EK$13<=DH$13*TRANSPOSE($CK$14:$CK$65>=$CK43)),$CL$10:$EK$10,1)) -> 1 | DI43: =PRODUCT(IF(($CL$13:$EK$13<=DI$13*TRANSPOSE($CK$14:$CK$65>=$CK43)),$CL$10:$EK$10,1)) -> 1 | DJ43: =PRODUCT(IF(($CL$13:$EK$13<=DJ$13*TRANSPOSE($CK$14:$CK$65>=$CK43)),$CL$10:$EK$10,1)) -> 1 | DK43: =PRODUCT(IF(($CL$13:$EK$13<=DK$13*TRANSPOSE($CK$14:$CK$65>=$CK43)),$CL$10:$EK$10,1)) -> 1 | DL43: =PRODUCT(IF(($CL$13:$EK$13<=DL$13*TRANSPOSE($CK$14:$CK$65>=$CK43)),$CL$10:$EK$10,1)) -> 1 | DM43: =PRODUCT(IF(($CL$13:$EK$13<=DM$13*TRANSPOSE($CK$14:$CK$65>=$CK43)),$CL$10:$EK$10,1)) -> 1 | DN43: =PRODUCT(IF(($CL$13:$EK$13<=DN$13*TRANSPOSE($CK$14:$CK$65>=$CK43)),$CL$10:$EK$10,1)) -> 1 | DO43: =PRODUCT(IF(($CL$13:$EK$13<=DO$13*TRANSPOSE($CK$14:$CK$65>=$CK43)),$CL$10:$EK$10,1)) -> 1.055627411 | DP43: =PRODUCT(IF(($CL$13:$EK$13<=DP$13*TRANSPOSE($CK$14:$CK$65>=$CK43)),$CL$10:$EK$10,1)) -> 1.127878353 | DQ43: =PRODUCT(IF(($CL$13:$EK$13<=DQ$13*TRANSPOSE($CK$14:$CK$65>=$CK43)),$CL$10:$EK$10,1)) -> 1.212839305 | DR43: =PRODUCT(IF(($CL$13:$EK$13<=DR$13*TRANSPOSE($CK$14:$CK$65>=$CK43)),$CL$10:$EK$10,1)) -> 1.327255611 | DS43: =PRODUCT(IF(($CL$13:$EK$13<=DS$13*TRANSPOSE($CK$14:$CK$65>=$CK43)),$CL$10:$EK$10,1)) -> 1.709467922 | DT43: =PRODUCT(IF(($CL$13:$EK$13<=DT$13*TRANSPOSE($CK$14:$CK$65>=$CK43)),$CL$10:$EK$10,1)) -> 1.964284432 | DU43: =PRODUCT(IF(($CL$13:$EK$13<=DU$13*TRANSPOSE($CK$14:$CK$65>=$CK43)),$CL$10:$EK$10,1)) -> 2.256971672 | DV43: =PRODUCT(IF(($CL$13:$EK$13<=DV$13*TRANSPOSE($CK$14:$CK$65>=$CK43)),$CL$10:$EK$10,1)) -> 2.620630217 | DW43: =PRODUCT(IF(($CL$13:$EK$13<=DW$13*TRANSPOSE($CK$14:$CK$65>=$CK43)),$CL$10:$EK$10,1)) -> 2.644400064 | DX43: =PRODUCT(IF(($CL$13:$EK$13<=DX$13*TRANSPOSE($CK$14:$CK$65>=$CK43)),$CL$10:$EK$10,1)) -> 2.887990227 | DY43: =PRODUCT(IF(($CL$13:$EK$13<=DY$13*TRANSPOSE($CK$14:$CK$65>=$CK43)),$CL$10:$EK$10,1)) -> 3.383559614 | DZ43: =PRODUCT(IF(($CL$13:$EK$13<=DZ$13*TRANSPOSE($CK$14:$CK$65>=$CK43)),$CL$10:$EK$10,1)) -> 3.999566629 | EA43: =PRODUCT(IF(($CL$13:$EK$13<=EA$13*TRANSPOSE($CK$14:$CK$65>=$CK43)),$CL$10:$EK$10,1)) -> 4.685573239 | EB43: =PRODUCT(IF(($CL$13:$EK$13<=EB$13*TRANSPOSE($CK$14:$CK$65>=$CK43)),$CL$10:$EK$10,1)) -> 5.063097556 | EC43: =PRODUCT(IF(($CL$13:$EK$13<=EC$13*TRANSPOSE($CK$14:$CK$65>=$CK43)),$CL$10:$EK$10,1)) -> 5.166963528 | ED43: =PRODUCT(IF(($CL$13:$EK$13<=ED$13*TRANSPOSE($CK$14:$CK$65>=$CK43)),$CL$10:$EK$10,1)) -> 5.22036417 | EE43: =PRODUCT(IF(($CL$13:$EK$13<=EE$13*TRANSPOSE($CK$14:$CK$65>=$CK43)),$CL$10:$EK$10,1)) -> 5.265121768 | EF43: =PRODUCT(IF(($CL$13:$EK$13<=EF$13*TRANSPOSE($CK$14:$CK$65>=$CK43)),$CL$10:$EK$10,1)) -> 5.498572748 | EG43: =PRODUCT(IF(($CL$13:$EK$13<=EG$13*TRANSPOSE($CK$14:$CK$65>=$CK43)),$CL$10:$EK$10,1)) -> 5.630939104 | EH43: =PRODUCT(IF(($CL$13:$EK$13<=EH$13*TRANSPOSE($CK$14:$CK$65>=$CK43)),$CL$10:$EK$10,1)) -> 5.850415813 | EI43: =PRODUCT(IF(($CL$13:$EK$13<=EI$13*TRANSPOSE($CK$14:$CK$65>=$CK43)),$CL$10:$EK$10,1)) -> 6.374591487 | EJ43: =PRODUCT(IF(($CL$13:$EK$13<=EJ$13*TRANSPOSE($CK$14:$CK$65>=$CK43)),$CL$10:$EK$10,1)) -> 7.318354873 | EK43: =PRODUCT(IF(($CL$13:$EK$13<=EK$13*TRANSPOSE($CK$14:$CK$65>=$CK43)),$CL$10:$EK$10,1)) -> 7.801981897
C44: 2003 | AI44: 0.07532811686 | AJ44: 0.08479120196 | AK44: 0.1486813364 | AL44: 0.1487764616 | AM44: 0.1488220678 | AN44: 0.1508637579 | AO44: 0.1294484505 | AP44: 0.1247129152 | AQ44: 0.1298281648 | AR44: 0.1349456574 | AS44: 0.1382228906 | AT44: 0.1333033421 | AU44: 0.1242013106 | AV44: 0.1156586172 | AW44: 0.1081785608 | AX44: 0.1040766678 | AY44: 0.09920213409 | AZ44: 0.09576651844 | BA44: 0.0954409013 | BB44: 0.09801319764 | BC44: 0.09647130447 | BE44: 2002 | BF44: 0.0684436018 | BG44: 0.06201617356 | BH44: 0.06152980361 | BI44: 0.06663235491 | BJ44: 0.07655653117 | BK44: 0.07817765235 | BL44: 0.07969633881 | BM44: 0.08629527865 | BN44: 0.0911714247 | BO44: 0.0882138302 | BP44: 0.08999977236 | BQ44: 0.09039287044 | BR44: 0.08856817397 | BS44: 0.09329936127 | BT44: 0.0973071146 | BU44: 0.09036634401 | BV44: 0.08225819602 | BW44: 0.06544924927 | BX44: 0.06515658676 | BY44: 0.05973114542 | BZ44: 0.05554124156 | CA44: 0.05818829229 | CB44: 0.06171149143 | CC44: 0.06667857845 | CD44: 0.07033860172 | CE44: 0.0821490723 | CG44: 2002 | CH44: =HLOOKUP($W$7,dat,MATCH(CG44,Data!$B$3:$B$60,0),0)+1 -> 1.068443602 | CK44: 2002 | CL44: =PRODUCT(IF(($CL$13:$EK$13<=CL$13*TRANSPOSE($CK$14:$CK$65>=$CK44)),$CL$10:$EK$10,1)) -> 1 | CM44: =PRODUCT(IF(($CL$13:$EK$13<=CM$13*TRANSPOSE($CK$14:$CK$65>=$CK44)),$CL$10:$EK$10,1)) -> 1 | CN44: =PRODUCT(IF(($CL$13:$EK$13<=CN$13*TRANSPOSE($CK$14:$CK$65>=$CK44)),$CL$10:$EK$10,1)) -> 1 | CO44: =PRODUCT(IF(($CL$13:$EK$13<=CO$13*TRANSPOSE($CK$14:$CK$65>=$CK44)),$CL$10:$EK$10,1)) -> 1 | CP44: =PRODUCT(IF(($CL$13:$EK$13<=CP$13*TRANSPOSE($CK$14:$CK$65>=$CK44)),$CL$10:$EK$10,1)) -> 1 | CQ44: =PRODUCT(IF(($CL$13:$EK$13<=CQ$13*TRANSPOSE($CK$14:$CK$65>=$CK44)),$CL$10:$EK$10,1)) -> 1 | CR44: =PRODUCT(IF(($CL$13:$EK$13<=CR$13*TRANSPOSE($CK$14:$CK$65>=$CK44)),$CL$10:$EK$10,1)) -> 1 | CS44: =PRODUCT(IF(($CL$13:$EK$13<=CS$13*TRANSPOSE($CK$14:$CK$65>=$CK44)),$CL$10:$EK$10,1)) -> 1 | CT44: =PRODUCT(IF(($CL$13:$EK$13<=CT$13*TRANSPOSE($CK$14:$CK$65>=$CK44)),$CL$10:$EK$10,1)) -> 1 | CU44: =PRODUCT(IF(($CL$13:$EK$13<=CU$13*TRANSPOSE($CK$14:$CK$65>=$CK44)),$CL$10:$EK$10,1)) -> 1 | CV44: =PRODUCT(IF(($CL$13:$EK$13<=CV$13*TRANSPOSE($CK$14:$CK$65>=$CK44)),$CL$10:$EK$10,1)) -> 1 | CW44: =PRODUCT(IF(($CL$13:$EK$13<=CW$13*TRANSPOSE($CK$14:$CK$65>=$CK44)),$CL$10:$EK$10,1)) -> 1 | CX44: =PRODUCT(IF(($CL$13:$EK$13<=CX$13*TRANSPOSE($CK$14:$CK$65>=$CK44)),$CL$10:$EK$10,1)) -> 1 | CY44: =PRODUCT(IF(($CL$13:$EK$13<=CY$13*TRANSPOSE($CK$14:$CK$65>=$CK44)),$CL$10:$EK$10,1)) -> 1 | CZ44: =PRODUCT(IF(($CL$13:$EK$13<=CZ$13*TRANSPOSE($CK$14:$CK$65>=$CK44)),$CL$10:$EK$10,1)) -> 1 | DA44: =PRODUCT(IF(($CL$13:$EK$13<=DA$13*TRANSPOSE($CK$14:$CK$65>=$CK44)),$CL$10:$EK$10,1)) -> 1 | DB44: =PRODUCT(IF(($CL$13:$EK$13<=DB$13*TRANSPOSE($CK$14:$CK$65>=$CK44)),$CL$10:$EK$10,1)) -> 1 | DC44: =PRODUCT(IF(($CL$13:$EK$13<=DC$13*TRANSPOSE($CK$14:$CK$65>=$CK44)),$CL$10:$EK$10,1)) -> 1 | DD44: =PRODUCT(IF(($CL$13:$EK$13<=DD$13*TRANSPOSE($CK$14:$CK$65>=$CK44)),$CL$10:$EK$10,1)) -> 1 | DE44: =PRODUCT(IF(($CL$13:$EK$13<=DE$13*TRANSPOSE($CK$14:$CK$65>=$CK44)),$CL$10:$EK$10,1)) -> 1 | DF44: =PRODUCT(IF(($CL$13:$EK$13<=DF$13*TRANSPOSE($CK$14:$CK$65>=$CK44)),$CL$10:$EK$10,1)) -> 1 | DG44: =PRODUCT(IF(($CL$13:$EK$13<=DG$13*TRANSPOSE($CK$14:$CK$65>=$CK44)),$CL$10:$EK$10,1)) -> 1 | DH44: =PRODUCT(IF(($CL$13:$EK$13<=DH$13*TRANSPOSE($CK$14:$CK$65>=$CK44)),$CL$10:$EK$10,1)) -> 1 | DI44: =PRODUCT(IF(($CL$13:$EK$13<=DI$13*TRANSPOSE($CK$14:$CK$65>=$CK44)),$CL$10:$EK$10,1)) -> 1 | DJ44: =PRODUCT(IF(($CL$13:$EK$13<=DJ$13*TRANSPOSE($CK$14:$CK$65>=$CK44)),$CL$10:$EK$10,1)) -> 1 | DK44: =PRODUCT(IF(($CL$13:$EK$13<=DK$13*TRANSPOSE($CK$14:$CK$65>=$CK44)),$CL$10:$EK$10,1)) -> 1 | DL44: =PRODUCT(IF(($CL$13:$EK$13<=DL$13*TRANSPOSE($CK$14:$CK$65>=$CK44)),$CL$10:$EK$10,1)) -> 1 | DM44: =PRODUCT(IF(($CL$13:$EK$13<=DM$13*TRANSPOSE($CK$14:$CK$65>=$CK44)),$CL$10:$EK$10,1)) -> 1 | DN44: =PRODUCT(IF(($CL$13:$EK$13<=DN$13*TRANSPOSE($CK$14:$CK$65>=$CK44)),$CL$10:$EK$10,1)) -> 1 | DO44: =PRODUCT(IF(($CL$13:$EK$13<=DO$13*TRANSPOSE($CK$14:$CK$65>=$CK44)),$CL$10:$EK$10,1)) -> 1 | DP44: =PRODUCT(IF(($CL$13:$EK$13<=DP$13*TRANSPOSE($CK$14:$CK$65>=$CK44)),$CL$10:$EK$10,1)) -> 1.068443602 | DQ44: =PRODUCT(IF(($CL$13:$EK$13<=DQ$13*TRANSPOSE($CK$14:$CK$65>=$CK44)),$CL$10:$EK$10,1)) -> 1.148927446 | DR44: =PRODUCT(IF(($CL$13:$EK$13<=DR$13*TRANSPOSE($CK$14:$CK$65>=$CK44)),$CL$10:$EK$10,1)) -> 1.257314463 | DS44: =PRODUCT(IF(($CL$13:$EK$13<=DS$13*TRANSPOSE($CK$14:$CK$65>=$CK44)),$CL$10:$EK$10,1)) -> 1.619385689 | DT44: =PRODUCT(IF(($CL$13:$EK$13<=DT$13*TRANSPOSE($CK$14:$CK$65>=$CK44)),$CL$10:$EK$10,1)) -> 1.860774372 | DU44: =PRODUCT(IF(($CL$13:$EK$13<=DU$13*TRANSPOSE($CK$14:$CK$65>=$CK44)),$CL$10:$EK$10,1)) -> 2.138038146 | DV44: =PRODUCT(IF(($CL$13:$EK$13<=DV$13*TRANSPOSE($CK$14:$CK$65>=$CK44)),$CL$10:$EK$10,1)) -> 2.482533316 | DW44: =PRODUCT(IF(($CL$13:$EK$13<=DW$13*TRANSPOSE($CK$14:$CK$65>=$CK44)),$CL$10:$EK$10,1)) -> 2.505050586 | DX44: =PRODUCT(IF(($CL$13:$EK$13<=DX$13*TRANSPOSE($CK$14:$CK$65>=$CK44)),$CL$10:$EK$10,1)) -> 2.735804506 | DY44: =PRODUCT(IF(($CL$13:$EK$13<=DY$13*TRANSPOSE($CK$14:$CK$65>=$CK44)),$CL$10:$EK$10,1)) -> 3.205259336 | DZ44: =PRODUCT(IF(($CL$13:$EK$13<=DZ$13*TRANSPOSE($CK$14:$CK$65>=$CK44)),$CL$10:$EK$10,1)) -> 3.788805205 | EA44: =PRODUCT(IF(($CL$13:$EK$13<=EA$13*TRANSPOSE($CK$14:$CK$65>=$CK44)),$CL$10:$EK$10,1)) -> 4.438661966 | EB44: =PRODUCT(IF(($CL$13:$EK$13<=EB$13*TRANSPOSE($CK$14:$CK$65>=$CK44)),$CL$10:$EK$10,1)) -> 4.796292237 | EC44: =PRODUCT(IF(($CL$13:$EK$13<=EC$13*TRANSPOSE($CK$14:$CK$65>=$CK44)),$CL$10:$EK$10,1)) -> 4.894684881 | ED44: =PRODUCT(IF(($CL$13:$EK$13<=ED$13*TRANSPOSE($CK$14:$CK$65>=$CK44)),$CL$10:$EK$10,1)) -> 4.94527152 | EE44: =PRODUCT(IF(($CL$13:$EK$13<=EE$13*TRANSPOSE($CK$14:$CK$65>=$CK44)),$CL$10:$EK$10,1)) -> 4.987670569 | EF44: =PRODUCT(IF(($CL$13:$EK$13<=EF$13*TRANSPOSE($CK$14:$CK$65>=$CK44)),$CL$10:$EK$10,1)) -> 5.2088196 | EG44: =PRODUCT(IF(($CL$13:$EK$13<=EG$13*TRANSPOSE($CK$14:$CK$65>=$CK44)),$CL$10:$EK$10,1)) -> 5.33421077 | EH44: =PRODUCT(IF(($CL$13:$EK$13<=EH$13*TRANSPOSE($CK$14:$CK$65>=$CK44)),$CL$10:$EK$10,1)) -> 5.542121921 | EI44: =PRODUCT(IF(($CL$13:$EK$13<=EI$13*TRANSPOSE($CK$14:$CK$65>=$CK44)),$CL$10:$EK$10,1)) -> 6.038675599 | EJ44: =PRODUCT(IF(($CL$13:$EK$13<=EJ$13*TRANSPOSE($CK$14:$CK$65>=$CK44)),$CL$10:$EK$10,1)) -> 6.932706368 | EK44: =PRODUCT(IF(($CL$13:$EK$13<=EK$13*TRANSPOSE($CK$14:$CK$65>=$CK44)),$CL$10:$EK$10,1)) -> 7.390848151
C45: 2004 | AJ45: 0.09433756394 | AK45: 0.1872135546 | AL45: 0.1743576213 | AM45: 0.1679673739 | AN45: 0.1665960356 | AO45: 0.1387297037 | AP45: 0.1319506515 | AQ45: 0.1368320822 | AR45: 0.1417705911 | AS45: 0.1447112388 | AT45: 0.1387263403 | AU45: 0.1283729793 | AV45: 0.1188229055 | AW45: 0.1105630646 | AX45: 0.1060203408 | AY45: 0.1007117384 | AZ45: 0.09698080343 | BA45: 0.09656924401 | BB45: 0.09922031845 | BC45: 0.09753930917 | BE45: 2003 | BF45: 0.07532811686 | BG45: 0.07188033207 | BH45: 0.06643507605 | BI45: 0.06496269351 | BJ45: 0.06836586348 | BK45: 0.07635169804 | BL45: 0.07777011401 | BM45: 0.07914934213 | BN45: 0.08507120227 | BO45: 0.08957664602 | BP45: 0.08703604876 | BQ45: 0.0887695261 | BR45: 0.08922658779 | BS45: 0.08761707298 | BT45: 0.0920919894 | BU45: 0.09592036031 | BV45: 0.08947594931 | BW45: 0.08187202259 | BX45: 0.06596691973 | BY45: 0.06566287061 | BZ45: 0.06046870237 | CA45: 0.05643269512 | CB45: 0.05892778951 | CC45: 0.0622753931 | CD45: 0.06702322044 | CE45: 0.07053007737 | CG45: 2003 | CH45: =HLOOKUP($W$7,dat,MATCH(CG45,Data!$B$3:$B$60,0),0)+1 -> 1.075328117 | CK45: 2003 | CL45: =PRODUCT(IF(($CL$13:$EK$13<=CL$13*TRANSPOSE($CK$14:$CK$65>=$CK45)),$CL$10:$EK$10,1)) -> 1 | CM45: =PRODUCT(IF(($CL$13:$EK$13<=CM$13*TRANSPOSE($CK$14:$CK$65>=$CK45)),$CL$10:$EK$10,1)) -> 1 | CN45: =PRODUCT(IF(($CL$13:$EK$13<=CN$13*TRANSPOSE($CK$14:$CK$65>=$CK45)),$CL$10:$EK$10,1)) -> 1 | CO45: =PRODUCT(IF(($CL$13:$EK$13<=CO$13*TRANSPOSE($CK$14:$CK$65>=$CK45)),$CL$10:$EK$10,1)) -> 1 | CP45: =PRODUCT(IF(($CL$13:$EK$13<=CP$13*TRANSPOSE($CK$14:$CK$65>=$CK45)),$CL$10:$EK$10,1)) -> 1 | CQ45: =PRODUCT(IF(($CL$13:$EK$13<=CQ$13*TRANSPOSE($CK$14:$CK$65>=$CK45)),$CL$10:$EK$10,1)) -> 1 | CR45: =PRODUCT(IF(($CL$13:$EK$13<=CR$13*TRANSPOSE($CK$14:$CK$65>=$CK45)),$CL$10:$EK$10,1)) -> 1 | CS45: =PRODUCT(IF(($CL$13:$EK$13<=CS$13*TRANSPOSE($CK$14:$CK$65>=$CK45)),$CL$10:$EK$10,1)) -> 1 | CT45: =PRODUCT(IF(($CL$13:$EK$13<=CT$13*TRANSPOSE($CK$14:$CK$65>=$CK45)),$CL$10:$EK$10,1)) -> 1 | CU45: =PRODUCT(IF(($CL$13:$EK$13<=CU$13*TRANSPOSE($CK$14:$CK$65>=$CK45)),$CL$10:$EK$10,1)) -> 1 | CV45: =PRODUCT(IF(($CL$13:$EK$13<=CV$13*TRANSPOSE($CK$14:$CK$65>=$CK45)),$CL$10:$EK$10,1)) -> 1 | CW45: =PRODUCT(IF(($CL$13:$EK$13<=CW$13*TRANSPOSE($CK$14:$CK$65>=$CK45)),$CL$10:$EK$10,1)) -> 1 | CX45: =PRODUCT(IF(($CL$13:$EK$13<=CX$13*TRANSPOSE($CK$14:$CK$65>=$CK45)),$CL$10:$EK$10,1)) -> 1 | CY45: =PRODUCT(IF(($CL$13:$EK$13<=CY$13*TRANSPOSE($CK$14:$CK$65>=$CK45)),$CL$10:$EK$10,1)) -> 1 | CZ45: =PRODUCT(IF(($CL$13:$EK$13<=CZ$13*TRANSPOSE($CK$14:$CK$65>=$CK45)),$CL$10:$EK$10,1)) -> 1 | DA45: =PRODUCT(IF(($CL$13:$EK$13<=DA$13*TRANSPOSE($CK$14:$CK$65>=$CK45)),$CL$10:$EK$10,1)) -> 1 | DB45: =PRODUCT(IF(($CL$13:$EK$13<=DB$13*TRANSPOSE($CK$14:$CK$65>=$CK45)),$CL$10:$EK$10,1)) -> 1 | DC45: =PRODUCT(IF(($CL$13:$EK$13<=DC$13*TRANSPOSE($CK$14:$CK$65>=$CK45)),$CL$10:$EK$10,1)) -> 1 | DD45: =PRODUCT(IF(($CL$13:$EK$13<=DD$13*TRANSPOSE($CK$14:$CK$65>=$CK45)),$CL$10:$EK$10,1)) -> 1 | DE45: =PRODUCT(IF(($CL$13:$EK$13<=DE$13*TRANSPOSE($CK$14:$CK$65>=$CK45)),$CL$10:$EK$10,1)) -> 1 | DF45: =PRODUCT(IF(($CL$13:$EK$13<=DF$13*TRANSPOSE($CK$14:$CK$65>=$CK45)),$CL$10:$EK$10,1)) -> 1 | DG45: =PRODUCT(IF(($CL$13:$EK$13<=DG$13*TRANSPOSE($CK$14:$CK$65>=$CK45)),$CL$10:$EK$10,1)) -> 1 | DH45: =PRODUCT(IF(($CL$13:$EK$13<=DH$13*TRANSPOSE($CK$14:$CK$65>=$CK45)),$CL$10:$EK$10,1)) -> 1 | DI45: =PRODUCT(IF(($CL$13:$EK$13<=DI$13*TRANSPOSE($CK$14:$CK$65>=$CK45)),$CL$10:$EK$10,1)) -> 1 | DJ45: =PRODUCT(IF(($CL$13:$EK$13<=DJ$13*TRANSPOSE($CK$14:$CK$65>=$CK45)),$CL$10:$EK$10,1)) -> 1 | DK45: =PRODUCT(IF(($CL$13:$EK$13<=DK$13*TRANSPOSE($CK$14:$CK$65>=$CK45)),$CL$10:$EK$10,1)) -> 1 | DL45: =PRODUCT(IF(($CL$13:$EK$13<=DL$13*TRANSPOSE($CK$14:$CK$65>=$CK45)),$CL$10:$EK$10,1)) -> 1 | DM45: =PRODUCT(IF(($CL$13:$EK$13<=DM$13*TRANSPOSE($CK$14:$CK$65>=$CK45)),$CL$10:$EK$10,1)) -> 1 | DN45: =PRODUCT(IF(($CL$13:$EK$13<=DN$13*TRANSPOSE($CK$14:$CK$65>=$CK45)),$CL$10:$EK$10,1)) -> 1 | DO45: =PRODUCT(IF(($CL$13:$EK$13<=DO$13*TRANSPOSE($CK$14:$CK$65>=$CK45)),$CL$10:$EK$10,1)) -> 1 | DP45: =PRODUCT(IF(($CL$13:$EK$13<=DP$13*TRANSPOSE($CK$14:$CK$65>=$CK45)),$CL$10:$EK$10,1)) -> 1 | DQ45: =PRODUCT(IF(($CL$13:$EK$13<=DQ$13*TRANSPOSE($CK$14:$CK$65>=$CK45)),$CL$10:$EK$10,1)) -> 1.075328117 | DR45: =PRODUCT(IF(($CL$13:$EK$13<=DR$13*TRANSPOSE($CK$14:$CK$65>=$CK45)),$CL$10:$EK$10,1)) -> 1.176771952 | DS45: =PRODUCT(IF(($CL$13:$EK$13<=DS$13*TRANSPOSE($CK$14:$CK$65>=$CK45)),$CL$10:$EK$10,1)) -> 1.515649199 | DT45: =PRODUCT(IF(($CL$13:$EK$13<=DT$13*TRANSPOSE($CK$14:$CK$65>=$CK45)),$CL$10:$EK$10,1)) -> 1.741574725 | DU45: =PRODUCT(IF(($CL$13:$EK$13<=DU$13*TRANSPOSE($CK$14:$CK$65>=$CK45)),$CL$10:$EK$10,1)) -> 2.001077214 | DV45: =PRODUCT(IF(($CL$13:$EK$13<=DV$13*TRANSPOSE($CK$14:$CK$65>=$CK45)),$CL$10:$EK$10,1)) -> 2.323504312 | DW45: =PRODUCT(IF(($CL$13:$EK$13<=DW$13*TRANSPOSE($CK$14:$CK$65>=$CK45)),$CL$10:$EK$10,1)) -> 2.344579145 | DX45: =PRODUCT(IF(($CL$13:$EK$13<=DX$13*TRANSPOSE($CK$14:$CK$65>=$CK45)),$CL$10:$EK$10,1)) -> 2.560551162 | DY45: =PRODUCT(IF(($CL$13:$EK$13<=DY$13*TRANSPOSE($CK$14:$CK$65>=$CK45)),$CL$10:$EK$10,1)) -> 2.999933109 | DZ45: =PRODUCT(IF(($CL$13:$EK$13<=DZ$13*TRANSPOSE($CK$14:$CK$65>=$CK45)),$CL$10:$EK$10,1)) -> 3.546097519 | EA45: =PRODUCT(IF(($CL$13:$EK$13<=EA$13*TRANSPOSE($CK$14:$CK$65>=$CK45)),$CL$10:$EK$10,1)) -> 4.154325 | EB45: =PRODUCT(IF(($CL$13:$EK$13<=EB$13*TRANSPOSE($CK$14:$CK$65>=$CK45)),$CL$10:$EK$10,1)) -> 4.489045776 | EC45: =PRODUCT(IF(($CL$13:$EK$13<=EC$13*TRANSPOSE($CK$14:$CK$65>=$CK45)),$CL$10:$EK$10,1)) -> 4.581135469 | ED45: =PRODUCT(IF(($CL$13:$EK$13<=ED$13*TRANSPOSE($CK$14:$CK$65>=$CK45)),$CL$10:$EK$10,1)) -> 4.628481571 | EE45: =PRODUCT(IF(($CL$13:$EK$13<=EE$13*TRANSPOSE($CK$14:$CK$65>=$CK45)),$CL$10:$EK$10,1)) -> 4.668164571 | EF45: =PRODUCT(IF(($CL$13:$EK$13<=EF$13*TRANSPOSE($CK$14:$CK$65>=$CK45)),$CL$10:$EK$10,1)) -> 4.875146982 | EG45: =PRODUCT(IF(($CL$13:$EK$13<=EG$13*TRANSPOSE($CK$14:$CK$65>=$CK45)),$CL$10:$EK$10,1)) -> 4.992505698 | EH45: =PRODUCT(IF(($CL$13:$EK$13<=EH$13*TRANSPOSE($CK$14:$CK$65>=$CK45)),$CL$10:$EK$10,1)) -> 5.187098235 | EI45: =PRODUCT(IF(($CL$13:$EK$13<=EI$13*TRANSPOSE($CK$14:$CK$65>=$CK45)),$CL$10:$EK$10,1)) -> 5.6518431 | EJ45: =PRODUCT(IF(($CL$13:$EK$13<=EJ$13*TRANSPOSE($CK$14:$CK$65>=$CK45)),$CL$10:$EK$10,1)) -> 6.488603008 | EK45: =PRODUCT(IF(($CL$13:$EK$13<=EK$13*TRANSPOSE($CK$14:$CK$65>=$CK45)),$CL$10:$EK$10,1)) -> 6.917396612
C46: 2005 | AK46: 0.2879718933 | AL46: 0.2165358241 | AM46: 0.1935955182 | AN46: 0.1853941881 | AO46: 0.1478219295 | AP46: 0.1383440055 | AQ46: 0.1430359629 | AR46: 0.1478424865 | AS46: 0.1504495364 | AT46: 0.1432630635 | AU46: 0.1315191105 | AV46: 0.1208879126 | AW46: 0.1118210994 | AX46: 0.1068595817 | AY46: 0.1011380011 | AZ46: 0.09714621772 | BA46: 0.09670066095 | BB46: 0.09949222048 | BC46: 0.09770808132 | BE46: 2004 | BF46: 0.09433756394 | BG46: 0.08479120196 | BH46: 0.0793143976 | BI46: 0.07334328219 | BJ46: 0.07077390029 | BK46: 0.07265127575 | BL46: 0.07890289488 | BM46: 0.0798272501 | BN46: 0.08082645874 | BO46: 0.08599429657 | BP46: 0.0900085995 | BQ46: 0.08764264317 | BR46: 0.08919682905 | BS46: 0.08959086458 | BT46: 0.0880638189 | BU46: 0.09223220272 | BV46: 0.0958271913 | BW46: 0.08974547152 | BX46: 0.08252454945 | BY46: 0.067367823 | BZ46: 0.06701113661 | CA46: 0.06198520668 | CB46: 0.05805309722 | CC46: 0.06038005995 | CD46: 0.06353965814 | CE46: 0.06806105531 | CG46: 2004 | CH46: =HLOOKUP($W$7,dat,MATCH(CG46,Data!$B$3:$B$60,0),0)+1 -> 1.094337564 | CK46: 2004 | CL46: =PRODUCT(IF(($CL$13:$EK$13<=CL$13*TRANSPOSE($CK$14:$CK$65>=$CK46)),$CL$10:$EK$10,1)) -> 1 | CM46: =PRODUCT(IF(($CL$13:$EK$13<=CM$13*TRANSPOSE($CK$14:$CK$65>=$CK46)),$CL$10:$EK$10,1)) -> 1 | CN46: =PRODUCT(IF(($CL$13:$EK$13<=CN$13*TRANSPOSE($CK$14:$CK$65>=$CK46)),$CL$10:$EK$10,1)) -> 1 | CO46: =PRODUCT(IF(($CL$13:$EK$13<=CO$13*TRANSPOSE($CK$14:$CK$65>=$CK46)),$CL$10:$EK$10,1)) -> 1 | CP46: =PRODUCT(IF(($CL$13:$EK$13<=CP$13*TRANSPOSE($CK$14:$CK$65>=$CK46)),$CL$10:$EK$10,1)) -> 1 | CQ46: =PRODUCT(IF(($CL$13:$EK$13<=CQ$13*TRANSPOSE($CK$14:$CK$65>=$CK46)),$CL$10:$EK$10,1)) -> 1 | CR46: =PRODUCT(IF(($CL$13:$EK$13<=CR$13*TRANSPOSE($CK$14:$CK$65>=$CK46)),$CL$10:$EK$10,1)) -> 1 | CS46: =PRODUCT(IF(($CL$13:$EK$13<=CS$13*TRANSPOSE($CK$14:$CK$65>=$CK46)),$CL$10:$EK$10,1)) -> 1 | CT46: =PRODUCT(IF(($CL$13:$EK$13<=CT$13*TRANSPOSE($CK$14:$CK$65>=$CK46)),$CL$10:$EK$10,1)) -> 1 | CU46: =PRODUCT(IF(($CL$13:$EK$13<=CU$13*TRANSPOSE($CK$14:$CK$65>=$CK46)),$CL$10:$EK$10,1)) -> 1 | CV46: =PRODUCT(IF(($CL$13:$EK$13<=CV$13*TRANSPOSE($CK$14:$CK$65>=$CK46)),$CL$10:$EK$10,1)) -> 1 | CW46: =PRODUCT(IF(($CL$13:$EK$13<=CW$13*TRANSPOSE($CK$14:$CK$65>=$CK46)),$CL$10:$EK$10,1)) -> 1 | CX46: =PRODUCT(IF(($CL$13:$EK$13<=CX$13*TRANSPOSE($CK$14:$CK$65>=$CK46)),$CL$10:$EK$10,1)) -> 1 | CY46: =PRODUCT(IF(($CL$13:$EK$13<=CY$13*TRANSPOSE($CK$14:$CK$65>=$CK46)),$CL$10:$EK$10,1)) -> 1 | CZ46: =PRODUCT(IF(($CL$13:$EK$13<=CZ$13*TRANSPOSE($CK$14:$CK$65>=$CK46)),$CL$10:$EK$10,1)) -> 1 | DA46: =PRODUCT(IF(($CL$13:$EK$13<=DA$13*TRANSPOSE($CK$14:$CK$65>=$CK46)),$CL$10:$EK$10,1)) -> 1 | DB46: =PRODUCT(IF(($CL$13:$EK$13<=DB$13*TRANSPOSE($CK$14:$CK$65>=$CK46)),$CL$10:$EK$10,1)) -> 1 | DC46: =PRODUCT(IF(($CL$13:$EK$13<=DC$13*TRANSPOSE($CK$14:$CK$65>=$CK46)),$CL$10:$EK$10,1)) -> 1 | DD46: =PRODUCT(IF(($CL$13:$EK$13<=DD$13*TRANSPOSE($CK$14:$CK$65>=$CK46)),$CL$10:$EK$10,1)) -> 1 | DE46: =PRODUCT(IF(($CL$13:$EK$13<=DE$13*TRANSPOSE($CK$14:$CK$65>=$CK46)),$CL$10:$EK$10,1)) -> 1 | DF46: =PRODUCT(IF(($CL$13:$EK$13<=DF$13*TRANSPOSE($CK$14:$CK$65>=$CK46)),$CL$10:$EK$10,1)) -> 1 | DG46: =PRODUCT(IF(($CL$13:$EK$13<=DG$13*TRANSPOSE($CK$14:$CK$65>=$CK46)),$CL$10:$EK$10,1)) -> 1 | DH46: =PRODUCT(IF(($CL$13:$EK$13<=DH$13*TRANSPOSE($CK$14:$CK$65>=$CK46)),$CL$10:$EK$10,1)) -> 1 | DI46: =PRODUCT(IF(($CL$13:$EK$13<=DI$13*TRANSPOSE($CK$14:$CK$65>=$CK46)),$CL$10:$EK$10,1)) -> 1 | DJ46: =PRODUCT(IF(($CL$13:$EK$13<=DJ$13*TRANSPOSE($CK$14:$CK$65>=$CK46)),$CL$10:$EK$10,1)) -> 1 | DK46: =PRODUCT(IF(($CL$13:$EK$13<=DK$13*TRANSPOSE($CK$14:$CK$65>=$CK46)),$CL$10:$EK$10,1)) -> 1 | DL46: =PRODUCT(IF(($CL$13:$EK$13<=DL$13*TRANSPOSE($CK$14:$CK$65>=$CK46)),$CL$10:$EK$10,1)) -> 1 | DM46: =PRODUCT(IF(($CL$13:$EK$13<=DM$13*TRANSPOSE($CK$14:$CK$65>=$CK46)),$CL$10:$EK$10,1)) -> 1 | DN46: =PRODUCT(IF(($CL$13:$EK$13<=DN$13*TRANSPOSE($CK$14:$CK$65>=$CK46)),$CL$10:$EK$10,1)) -> 1 | DO46: =PRODUCT(IF(($CL$13:$EK$13<=DO$13*TRANSPOSE($CK$14:$CK$65>=$CK46)),$CL$10:$EK$10,1)) -> 1 | DP46: =PRODUCT(IF(($CL$13:$EK$13<=DP$13*TRANSPOSE($CK$14:$CK$65>=$CK46)),$CL$10:$EK$10,1)) -> 1 | DQ46: =PRODUCT(IF(($CL$13:$EK$13<=DQ$13*TRANSPOSE($CK$14:$CK$65>=$CK46)),$CL$10:$EK$10,1)) -> 1 | DR46: =PRODUCT(IF(($CL$13:$EK$13<=DR$13*TRANSPOSE($CK$14:$CK$65>=$CK46)),$CL$10:$EK$10,1)) -> 1.094337564 | DS46: =PRODUCT(IF(($CL$13:$EK$13<=DS$13*TRANSPOSE($CK$14:$CK$65>=$CK46)),$CL$10:$EK$10,1)) -> 1.409476024 | DT46: =PRODUCT(IF(($CL$13:$EK$13<=DT$13*TRANSPOSE($CK$14:$CK$65>=$CK46)),$CL$10:$EK$10,1)) -> 1.619575177 | DU46: =PRODUCT(IF(($CL$13:$EK$13<=DU$13*TRANSPOSE($CK$14:$CK$65>=$CK46)),$CL$10:$EK$10,1)) -> 1.860899183 | DV46: =PRODUCT(IF(($CL$13:$EK$13<=DV$13*TRANSPOSE($CK$14:$CK$65>=$CK46)),$CL$10:$EK$10,1)) -> 2.160739848 | DW46: =PRODUCT(IF(($CL$13:$EK$13<=DW$13*TRANSPOSE($CK$14:$CK$65>=$CK46)),$CL$10:$EK$10,1)) -> 2.180338362 | DX46: =PRODUCT(IF(($CL$13:$EK$13<=DX$13*TRANSPOSE($CK$14:$CK$65>=$CK46)),$CL$10:$EK$10,1)) -> 2.381181262 | DY46: =PRODUCT(IF(($CL$13:$EK$13<=DY$13*TRANSPOSE($CK$14:$CK$65>=$CK46)),$CL$10:$EK$10,1)) -> 2.789783938 | DZ46: =PRODUCT(IF(($CL$13:$EK$13<=DZ$13*TRANSPOSE($CK$14:$CK$65>=$CK46)),$CL$10:$EK$10,1)) -> 3.297688829 | EA46: =PRODUCT(IF(($CL$13:$EK$13<=EA$13*TRANSPOSE($CK$14:$CK$65>=$CK46)),$CL$10:$EK$10,1)) -> 3.863309194 | EB46: =PRODUCT(IF(($CL$13:$EK$13<=EB$13*TRANSPOSE($CK$14:$CK$65>=$CK46)),$CL$10:$EK$10,1)) -> 4.174582349 | EC46: =PRODUCT(IF(($CL$13:$EK$13<=EC$13*TRANSPOSE($CK$14:$CK$65>=$CK46)),$CL$10:$EK$10,1)) -> 4.260221041 | ED46: =PRODUCT(IF(($CL$13:$EK$13<=ED$13*TRANSPOSE($CK$14:$CK$65>=$CK46)),$CL$10:$EK$10,1)) -> 4.304250487 | EE46: =PRODUCT(IF(($CL$13:$EK$13<=EE$13*TRANSPOSE($CK$14:$CK$65>=$CK46)),$CL$10:$EK$10,1)) -> 4.341153643 | EF46: =PRODUCT(IF(($CL$13:$EK$13<=EF$13*TRANSPOSE($CK$14:$CK$65>=$CK46)),$CL$10:$EK$10,1)) -> 4.533636669 | EG46: =PRODUCT(IF(($CL$13:$EK$13<=EG$13*TRANSPOSE($CK$14:$CK$65>=$CK46)),$CL$10:$EK$10,1)) -> 4.642774256 | EH46: =PRODUCT(IF(($CL$13:$EK$13<=EH$13*TRANSPOSE($CK$14:$CK$65>=$CK46)),$CL$10:$EK$10,1)) -> 4.823735336 | EI46: =PRODUCT(IF(($CL$13:$EK$13<=EI$13*TRANSPOSE($CK$14:$CK$65>=$CK46)),$CL$10:$EK$10,1)) -> 5.255924226 | EJ46: =PRODUCT(IF(($CL$13:$EK$13<=EJ$13*TRANSPOSE($CK$14:$CK$65>=$CK46)),$CL$10:$EK$10,1)) -> 6.034068026 | EK46: =PRODUCT(IF(($CL$13:$EK$13<=EK$13*TRANSPOSE($CK$14:$CK$65>=$CK46)),$CL$10:$EK$10,1)) -> 6.432824087
C47: 2006 | AL47: 0.1490618847 | AM47: 0.1490331972 | AN47: 0.1530503258 | AO47: 0.1152354113 | AP47: 0.1105725958 | AQ47: 0.1205179365 | AR47: 0.129109333 | AS47: 0.1343255694 | AT47: 0.1282232305 | AU47: 0.1169595457 | AV47: 0.1068183469 | AW47: 0.09827801134 | AX47: 0.09403174672 | AY47: 0.08887992501 | AZ47: 0.08547973155 | BA47: 0.0857365615 | BB47: 0.08930663164 | BC47: 0.08800332165 | BE47: 2005 | BF47: 0.2879718933 | BG47: 0.1872135546 | BH47: 0.1486813364 | BI47: 0.12807396 | BJ47: 0.1131974201 | BK47: 0.1042461109 | BL47: 0.1010530491 | BM47: 0.1030567633 | BN47: 0.1011844554 | BO47: 0.09994510037 | BP47: 0.1029656431 | BQ47: 0.1052731739 | BR47: 0.1018790633 | BS47: 0.1023166558 | BT47: 0.1018089999 | BU47: 0.09959465495 | BV47: 0.1028748577 | BW47: 0.1057070788 | BX47: 0.0993731907 | BY47: 0.09197120337 | BZ47: 0.07695970192 | CA47: 0.0761784473 | CB47: 0.07093082722 | CC47: 0.0667576139 | CD47: 0.06865948744 | CE47: 0.0714005612 | CG47: 2005 | CH47: =HLOOKUP($W$7,dat,MATCH(CG47,Data!$B$3:$B$60,0),0)+1 -> 1.287971893 | CK47: 2005 | CL47: =PRODUCT(IF(($CL$13:$EK$13<=CL$13*TRANSPOSE($CK$14:$CK$65>=$CK47)),$CL$10:$EK$10,1)) -> 1 | CM47: =PRODUCT(IF(($CL$13:$EK$13<=CM$13*TRANSPOSE($CK$14:$CK$65>=$CK47)),$CL$10:$EK$10,1)) -> 1 | CN47: =PRODUCT(IF(($CL$13:$EK$13<=CN$13*TRANSPOSE($CK$14:$CK$65>=$CK47)),$CL$10:$EK$10,1)) -> 1 | CO47: =PRODUCT(IF(($CL$13:$EK$13<=CO$13*TRANSPOSE($CK$14:$CK$65>=$CK47)),$CL$10:$EK$10,1)) -> 1 | CP47: =PRODUCT(IF(($CL$13:$EK$13<=CP$13*TRANSPOSE($CK$14:$CK$65>=$CK47)),$CL$10:$EK$10,1)) -> 1 | CQ47: =PRODUCT(IF(($CL$13:$EK$13<=CQ$13*TRANSPOSE($CK$14:$CK$65>=$CK47)),$CL$10:$EK$10,1)) -> 1 | CR47: =PRODUCT(IF(($CL$13:$EK$13<=CR$13*TRANSPOSE($CK$14:$CK$65>=$CK47)),$CL$10:$EK$10,1)) -> 1 | CS47: =PRODUCT(IF(($CL$13:$EK$13<=CS$13*TRANSPOSE($CK$14:$CK$65>=$CK47)),$CL$10:$EK$10,1)) -> 1 | CT47: =PRODUCT(IF(($CL$13:$EK$13<=CT$13*TRANSPOSE($CK$14:$CK$65>=$CK47)),$CL$10:$EK$10,1)) -> 1 | CU47: =PRODUCT(IF(($CL$13:$EK$13<=CU$13*TRANSPOSE($CK$14:$CK$65>=$CK47)),$CL$10:$EK$10,1)) -> 1 | CV47: =PRODUCT(IF(($CL$13:$EK$13<=CV$13*TRANSPOSE($CK$14:$CK$65>=$CK47)),$CL$10:$EK$10,1)) -> 1 | CW47: =PRODUCT(IF(($CL$13:$EK$13<=CW$13*TRANSPOSE($CK$14:$CK$65>=$CK47)),$CL$10:$EK$10,1)) -> 1 | CX47: =PRODUCT(IF(($CL$13:$EK$13<=CX$13*TRANSPOSE($CK$14:$CK$65>=$CK47)),$CL$10:$EK$10,1)) -> 1 | CY47: =PRODUCT(IF(($CL$13:$EK$13<=CY$13*TRANSPOSE($CK$14:$CK$65>=$CK47)),$CL$10:$EK$10,1)) -> 1 | CZ47: =PRODUCT(IF(($CL$13:$EK$13<=CZ$13*TRANSPOSE($CK$14:$CK$65>=$CK47)),$CL$10:$EK$10,1)) -> 1 | DA47: =PRODUCT(IF(($CL$13:$EK$13<=DA$13*TRANSPOSE($CK$14:$CK$65>=$CK47)),$CL$10:$EK$10,1)) -> 1 | DB47: =PRODUCT(IF(($CL$13:$EK$13<=DB$13*TRANSPOSE($CK$14:$CK$65>=$CK47)),$CL$10:$EK$10,1)) -> 1 | DC47: =PRODUCT(IF(($CL$13:$EK$13<=DC$13*TRANSPOSE($CK$14:$CK$65>=$CK47)),$CL$10:$EK$10,1)) -> 1 | DD47: =PRODUCT(IF(($CL$13:$EK$13<=DD$13*TRANSPOSE($CK$14:$CK$65>=$CK47)),$CL$10:$EK$10,1)) -> 1 | DE47: =PRODUCT(IF(($CL$13:$EK$13<=DE$13*TRANSPOSE($CK$14:$CK$65>=$CK47)),$CL$10:$EK$10,1)) -> 1 | DF47: =PRODUCT(IF(($CL$13:$EK$13<=DF$13*TRANSPOSE($CK$14:$CK$65>=$CK47)),$CL$10:$EK$10,1)) -> 1 | DG47: =PRODUCT(IF(($CL$13:$EK$13<=DG$13*TRANSPOSE($CK$14:$CK$65>=$CK47)),$CL$10:$EK$10,1)) -> 1 | DH47: =PRODUCT(IF(($CL$13:$EK$13<=DH$13*TRANSPOSE($CK$14:$CK$65>=$CK47)),$CL$10:$EK$10,1)) -> 1 | DI47: =PRODUCT(IF(($CL$13:$EK$13<=DI$13*TRANSPOSE($CK$14:$CK$65>=$CK47)),$CL$10:$EK$10,1)) -> 1 | DJ47: =PRODUCT(IF(($CL$13:$EK$13<=DJ$13*TRANSPOSE($CK$14:$CK$65>=$CK47)),$CL$10:$EK$10,1)) -> 1 | DK47: =PRODUCT(IF(($CL$13:$EK$13<=DK$13*TRANSPOSE($CK$14:$CK$65>=$CK47)),$CL$10:$EK$10,1)) -> 1 | DL47: =PRODUCT(IF(($CL$13:$EK$13<=DL$13*TRANSPOSE($CK$14:$CK$65>=$CK47)),$CL$10:$EK$10,1)) -> 1 | DM47: =PRODUCT(IF(($CL$13:$EK$13<=DM$13*TRANSPOSE($CK$14:$CK$65>=$CK47)),$CL$10:$EK$10,1)) -> 1 | DN47: =PRODUCT(IF(($CL$13:$EK$13<=DN$13*TRANSPOSE($CK$14:$CK$65>=$CK47)),$CL$10:$EK$10,1)) -> 1 | DO47: =PRODUCT(IF(($CL$13:$EK$13<=DO$13*TRANSPOSE($CK$14:$CK$65>=$CK47)),$CL$10:$EK$10,1)) -> 1 | DP47: =PRODUCT(IF(($CL$13:$EK$13<=DP$13*TRANSPOSE($CK$14:$CK$65>=$CK47)),$CL$10:$EK$10,1)) -> 1 | DQ47: =PRODUCT(IF(($CL$13:$EK$13<=DQ$13*TRANSPOSE($CK$14:$CK$65>=$CK47)),$CL$10:$EK$10,1)) -> 1 | DR47: =PRODUCT(IF(($CL$13:$EK$13<=DR$13*TRANSPOSE($CK$14:$CK$65>=$CK47)),$CL$10:$EK$10,1)) -> 1 | DS47: =PRODUCT(IF(($CL$13:$EK$13<=DS$13*TRANSPOSE($CK$14:$CK$65>=$CK47)),$CL$10:$EK$10,1)) -> 1.287971893 | DT47: =PRODUCT(IF(($CL$13:$EK$13<=DT$13*TRANSPOSE($CK$14:$CK$65>=$CK47)),$CL$10:$EK$10,1)) -> 1.479959411 | DU47: =PRODUCT(IF(($CL$13:$EK$13<=DU$13*TRANSPOSE($CK$14:$CK$65>=$CK47)),$CL$10:$EK$10,1)) -> 1.700480039 | DV47: =PRODUCT(IF(($CL$13:$EK$13<=DV$13*TRANSPOSE($CK$14:$CK$65>=$CK47)),$CL$10:$EK$10,1)) -> 1.974472886 | DW47: =PRODUCT(IF(($CL$13:$EK$13<=DW$13*TRANSPOSE($CK$14:$CK$65>=$CK47)),$CL$10:$EK$10,1)) -> 1.992381906 | DX47: =PRODUCT(IF(($CL$13:$EK$13<=DX$13*TRANSPOSE($CK$14:$CK$65>=$CK47)),$CL$10:$EK$10,1)) -> 2.175911108 | DY47: =PRODUCT(IF(($CL$13:$EK$13<=DY$13*TRANSPOSE($CK$14:$CK$65>=$CK47)),$CL$10:$EK$10,1)) -> 2.549290119 | DZ47: =PRODUCT(IF(($CL$13:$EK$13<=DZ$13*TRANSPOSE($CK$14:$CK$65>=$CK47)),$CL$10:$EK$10,1)) -> 3.013410978 | EA47: =PRODUCT(IF(($CL$13:$EK$13<=EA$13*TRANSPOSE($CK$14:$CK$65>=$CK47)),$CL$10:$EK$10,1)) -> 3.530271939 | EB47: =PRODUCT(IF(($CL$13:$EK$13<=EB$13*TRANSPOSE($CK$14:$CK$65>=$CK47)),$CL$10:$EK$10,1)) -> 3.814711736 | EC47: =PRODUCT(IF(($CL$13:$EK$13<=EC$13*TRANSPOSE($CK$14:$CK$65>=$CK47)),$CL$10:$EK$10,1)) -> 3.89296793 | ED47: =PRODUCT(IF(($CL$13:$EK$13<=ED$13*TRANSPOSE($CK$14:$CK$65>=$CK47)),$CL$10:$EK$10,1)) -> 3.93320181 | EE47: =PRODUCT(IF(($CL$13:$EK$13<=EE$13*TRANSPOSE($CK$14:$CK$65>=$CK47)),$CL$10:$EK$10,1)) -> 3.966923722 | EF47: =PRODUCT(IF(($CL$13:$EK$13<=EF$13*TRANSPOSE($CK$14:$CK$65>=$CK47)),$CL$10:$EK$10,1)) -> 4.142813715 | EG47: =PRODUCT(IF(($CL$13:$EK$13<=EG$13*TRANSPOSE($CK$14:$CK$65>=$CK47)),$CL$10:$EK$10,1)) -> 4.242543078 | EH47: =PRODUCT(IF(($CL$13:$EK$13<=EH$13*TRANSPOSE($CK$14:$CK$65>=$CK47)),$CL$10:$EK$10,1)) -> 4.407904375 | EI47: =PRODUCT(IF(($CL$13:$EK$13<=EI$13*TRANSPOSE($CK$14:$CK$65>=$CK47)),$CL$10:$EK$10,1)) -> 4.802836345 | EJ47: =PRODUCT(IF(($CL$13:$EK$13<=EJ$13*TRANSPOSE($CK$14:$CK$65>=$CK47)),$CL$10:$EK$10,1)) -> 5.513900121 | EK47: =PRODUCT(IF(($CL$13:$EK$13<=EK$13*TRANSPOSE($CK$14:$CK$65>=$CK47)),$CL$10:$EK$10,1)) -> 5.878281345
C48: 2007 | AM48: 0.1490045104 | AN48: 0.1550497349 | AO48: 0.1041826736 | AP48: 0.1011534306 | AQ48: 0.1148948044 | AR48: 0.1258177551 | AS48: 0.132235866 | AT48: 0.1256451127 | AU48: 0.113448446 | AV48: 0.1026803681 | AW48: 0.09377411299 | AX48: 0.08956664593 | AY48: 0.08438325924 | AZ48: 0.08107514557 | BA48: 0.08164114423 | BB48: 0.0856768268 | BC48: 0.08451441097 | BE48: 2006 | BF48: 0.1490618847 | BG48: 0.2165358241 | BH48: 0.1743576213 | BI48: 0.1487764616 | BJ48: 0.1322406506 | BK48: 0.1190961349 | BL48: 0.1105397255 | BM48: 0.1069427007 | BN48: 0.1080761068 | BO48: 0.1058810262 | BP48: 0.1043221268 | BQ48: 0.1067353217 | BR48: 0.1085814653 | BS48: 0.1051840508 | BT48: 0.1053729677 | BU48: 0.1047045289 | BV48: 0.1024446259 | BW48: 0.1053913956 | BX48: 0.1079475783 | BY48: 0.1018058043 | BZ48: 0.09462434165 | CA48: 0.08013670438 | CB48: 0.07924897181 | CC48: 0.07407762631 | CD48: 0.06993367824 | CE48: 0.07164524392 | CG48: 2006 | CH48: =HLOOKUP($W$7,dat,MATCH(CG48,Data!$B$3:$B$60,0),0)+1 -> 1.149061885 | CK48: 2006 | CL48: =PRODUCT(IF(($CL$13:$EK$13<=CL$13*TRANSPOSE($CK$14:$CK$65>=$CK48)),$CL$10:$EK$10,1)) -> 1 | CM48: =PRODUCT(IF(($CL$13:$EK$13<=CM$13*TRANSPOSE($CK$14:$CK$65>=$CK48)),$CL$10:$EK$10,1)) -> 1 | CN48: =PRODUCT(IF(($CL$13:$EK$13<=CN$13*TRANSPOSE($CK$14:$CK$65>=$CK48)),$CL$10:$EK$10,1)) -> 1 | CO48: =PRODUCT(IF(($CL$13:$EK$13<=CO$13*TRANSPOSE($CK$14:$CK$65>=$CK48)),$CL$10:$EK$10,1)) -> 1 | CP48: =PRODUCT(IF(($CL$13:$EK$13<=CP$13*TRANSPOSE($CK$14:$CK$65>=$CK48)),$CL$10:$EK$10,1)) -> 1 | CQ48: =PRODUCT(IF(($CL$13:$EK$13<=CQ$13*TRANSPOSE($CK$14:$CK$65>=$CK48)),$CL$10:$EK$10,1)) -> 1 | CR48: =PRODUCT(IF(($CL$13:$EK$13<=CR$13*TRANSPOSE($CK$14:$CK$65>=$CK48)),$CL$10:$EK$10,1)) -> 1 | CS48: =PRODUCT(IF(($CL$13:$EK$13<=CS$13*TRANSPOSE($CK$14:$CK$65>=$CK48)),$CL$10:$EK$10,1)) -> 1 | CT48: =PRODUCT(IF(($CL$13:$EK$13<=CT$13*TRANSPOSE($CK$14:$CK$65>=$CK48)),$CL$10:$EK$10,1)) -> 1 | CU48: =PRODUCT(IF(($CL$13:$EK$13<=CU$13*TRANSPOSE($CK$14:$CK$65>=$CK48)),$CL$10:$EK$10,1)) -> 1 | CV48: =PRODUCT(IF(($CL$13:$EK$13<=CV$13*TRANSPOSE($CK$14:$CK$65>=$CK48)),$CL$10:$EK$10,1)) -> 1 | CW48: =PRODUCT(IF(($CL$13:$EK$13<=CW$13*TRANSPOSE($CK$14:$CK$65>=$CK48)),$CL$10:$EK$10,1)) -> 1 | CX48: =PRODUCT(IF(($CL$13:$EK$13<=CX$13*TRANSPOSE($CK$14:$CK$65>=$CK48)),$CL$10:$EK$10,1)) -> 1 | CY48: =PRODUCT(IF(($CL$13:$EK$13<=CY$13*TRANSPOSE($CK$14:$CK$65>=$CK48)),$CL$10:$EK$10,1)) -> 1 | CZ48: =PRODUCT(IF(($CL$13:$EK$13<=CZ$13*TRANSPOSE($CK$14:$CK$65>=$CK48)),$CL$10:$EK$10,1)) -> 1 | DA48: =PRODUCT(IF(($CL$13:$EK$13<=DA$13*TRANSPOSE($CK$14:$CK$65>=$CK48)),$CL$10:$EK$10,1)) -> 1 | DB48: =PRODUCT(IF(($CL$13:$EK$13<=DB$13*TRANSPOSE($CK$14:$CK$65>=$CK48)),$CL$10:$EK$10,1)) -> 1 | DC48: =PRODUCT(IF(($CL$13:$EK$13<=DC$13*TRANSPOSE($CK$14:$CK$65>=$CK48)),$CL$10:$EK$10,1)) -> 1 | DD48: =PRODUCT(IF(($CL$13:$EK$13<=DD$13*TRANSPOSE($CK$14:$CK$65>=$CK48)),$CL$10:$EK$10,1)) -> 1 | DE48: =PRODUCT(IF(($CL$13:$EK$13<=DE$13*TRANSPOSE($CK$14:$CK$65>=$CK48)),$CL$10:$EK$10,1)) -> 1 | DF48: =PRODUCT(IF(($CL$13:$EK$13<=DF$13*TRANSPOSE($CK$14:$CK$65>=$CK48)),$CL$10:$EK$10,1)) -> 1 | DG48: =PRODUCT(IF(($CL$13:$EK$13<=DG$13*TRANSPOSE($CK$14:$CK$65>=$CK48)),$CL$10:$EK$10,1)) -> 1 | DH48: =PRODUCT(IF(($CL$13:$EK$13<=DH$13*TRANSPOSE($CK$14:$CK$65>=$CK48)),$CL$10:$EK$10,1)) -> 1 | DI48: =PRODUCT(IF(($CL$13:$EK$13<=DI$13*TRANSPOSE($CK$14:$CK$65>=$CK48)),$CL$10:$EK$10,1)) -> 1 | DJ48: =PRODUCT(IF(($CL$13:$EK$13<=DJ$13*TRANSPOSE($CK$14:$CK$65>=$CK48)),$CL$10:$EK$10,1)) -> 1 | DK48: =PRODUCT(IF(($CL$13:$EK$13<=DK$13*TRANSPOSE($CK$14:$CK$65>=$CK48)),$CL$10:$EK$10,1)) -> 1 | DL48: =PRODUCT(IF(($CL$13:$EK$13<=DL$13*TRANSPOSE($CK$14:$CK$65>=$CK48)),$CL$10:$EK$10,1)) -> 1 | DM48: =PRODUCT(IF(($CL$13:$EK$13<=DM$13*TRANSPOSE($CK$14:$CK$65>=$CK48)),$CL$10:$EK$10,1)) -> 1 | DN48: =PRODUCT(IF(($CL$13:$EK$13<=DN$13*TRANSPOSE($CK$14:$CK$65>=$CK48)),$CL$10:$EK$10,1)) -> 1 | DO48: =PRODUCT(IF(($CL$13:$EK$13<=DO$13*TRANSPOSE($CK$14:$CK$65>=$CK48)),$CL$10:$EK$10,1)) -> 1 | DP48: =PRODUCT(IF(($CL$13:$EK$13<=DP$13*TRANSPOSE($CK$14:$CK$65>=$CK48)),$CL$10:$EK$10,1)) -> 1 | DQ48: =PRODUCT(IF(($CL$13:$EK$13<=DQ$13*TRANSPOSE($CK$14:$CK$65>=$CK48)),$CL$10:$EK$10,1)) -> 1 | DR48: =PRODUCT(IF(($CL$13:$EK$13<=DR$13*TRANSPOSE($CK$14:$CK$65>=$CK48)),$CL$10:$EK$10,1)) -> 1 | DS48: =PRODUCT(IF(($CL$13:$EK$13<=DS$13*TRANSPOSE($CK$14:$CK$65>=$CK48)),$CL$10:$EK$10,1)) -> 1 | DT48: =PRODUCT(IF(($CL$13:$EK$13<=DT$13*TRANSPOSE($CK$14:$CK$65>=$CK48)),$CL$10:$EK$10,1)) -> 1.149061885 | DU48: =PRODUCT(IF(($CL$13:$EK$13<=DU$13*TRANSPOSE($CK$14:$CK$65>=$CK48)),$CL$10:$EK$10,1)) -> 1.320277288 | DV48: =PRODUCT(IF(($CL$13:$EK$13<=DV$13*TRANSPOSE($CK$14:$CK$65>=$CK48)),$CL$10:$EK$10,1)) -> 1.533009297 | DW48: =PRODUCT(IF(($CL$13:$EK$13<=DW$13*TRANSPOSE($CK$14:$CK$65>=$CK48)),$CL$10:$EK$10,1)) -> 1.546914119 | DX48: =PRODUCT(IF(($CL$13:$EK$13<=DX$13*TRANSPOSE($CK$14:$CK$65>=$CK48)),$CL$10:$EK$10,1)) -> 1.689408845 | DY48: =PRODUCT(IF(($CL$13:$EK$13<=DY$13*TRANSPOSE($CK$14:$CK$65>=$CK48)),$CL$10:$EK$10,1)) -> 1.979305707 | DZ48: =PRODUCT(IF(($CL$13:$EK$13<=DZ$13*TRANSPOSE($CK$14:$CK$65>=$CK48)),$CL$10:$EK$10,1)) -> 2.339655853 | EA48: =PRODUCT(IF(($CL$13:$EK$13<=EA$13*TRANSPOSE($CK$14:$CK$65>=$CK48)),$CL$10:$EK$10,1)) -> 2.740954175 | EB48: =PRODUCT(IF(($CL$13:$EK$13<=EB$13*TRANSPOSE($CK$14:$CK$65>=$CK48)),$CL$10:$EK$10,1)) -> 2.961797347 | EC48: =PRODUCT(IF(($CL$13:$EK$13<=EC$13*TRANSPOSE($CK$14:$CK$65>=$CK48)),$CL$10:$EK$10,1)) -> 3.022556587 | ED48: =PRODUCT(IF(($CL$13:$EK$13<=ED$13*TRANSPOSE($CK$14:$CK$65>=$CK48)),$CL$10:$EK$10,1)) -> 3.053794753 | EE48: =PRODUCT(IF(($CL$13:$EK$13<=EE$13*TRANSPOSE($CK$14:$CK$65>=$CK48)),$CL$10:$EK$10,1)) -> 3.079976933 | EF48: =PRODUCT(IF(($CL$13:$EK$13<=EF$13*TRANSPOSE($CK$14:$CK$65>=$CK48)),$CL$10:$EK$10,1)) -> 3.216540467 | EG48: =PRODUCT(IF(($CL$13:$EK$13<=EG$13*TRANSPOSE($CK$14:$CK$65>=$CK48)),$CL$10:$EK$10,1)) -> 3.293971786 | EH48: =PRODUCT(IF(($CL$13:$EK$13<=EH$13*TRANSPOSE($CK$14:$CK$65>=$CK48)),$CL$10:$EK$10,1)) -> 3.422360688 | EI48: =PRODUCT(IF(($CL$13:$EK$13<=EI$13*TRANSPOSE($CK$14:$CK$65>=$CK48)),$CL$10:$EK$10,1)) -> 3.72899158 | EJ48: =PRODUCT(IF(($CL$13:$EK$13<=EJ$13*TRANSPOSE($CK$14:$CK$65>=$CK48)),$CL$10:$EK$10,1)) -> 4.281071776 | EK48: =PRODUCT(IF(($CL$13:$EK$13<=EK$13*TRANSPOSE($CK$14:$CK$65>=$CK48)),$CL$10:$EK$10,1)) -> 4.563982627
C49: 2008 | AN49: 0.161126765 | AO49: 0.08243175708 | AP49: 0.08565008413 | AQ49: 0.106526785 | AR49: 0.1212368576 | AS49: 0.1294649815 | AT49: 0.1223470505 | AU49: 0.1090820104 | AV49: 0.0976499316 | AW49: 0.08839924325 | AX49: 0.08431811968 | AY49: 0.0791651041 | AZ49: 0.0760192679 | BA49: 0.07698342105 | BB49: 0.08158126809 | BC49: 0.08060613007 | BE49: 2007 | BF49: 0.1490045104 | BG49: 0.1490331972 | BH49: 0.1935955182 | BI49: 0.1679673739 | BJ49: 0.1488220678 | BK49: 0.1350175451 | BL49: 0.1233206168 | BM49: 0.115276504 | BN49: 0.111539146 | BO49: 0.1121024684 | BP49: 0.1097335327 | BQ49: 0.1079783406 | BR49: 0.1099308479 | BS49: 0.1114210599 | BT49: 0.1080527022 | BU49: 0.1080507331 | BV49: 0.1072624737 | BW49: 0.1049810687 | BX49: 0.1076449908 | BY49: 0.1099651381 | BZ49: 0.1040087532 | CA49: 0.09703938907 | CB49: 0.08304327884 | CC49: 0.08206906346 | CD49: 0.07697869627 | CE49: 0.07287176185 | CG49: 2007 | CH49: =HLOOKUP($W$7,dat,MATCH(CG49,Data!$B$3:$B$60,0),0)+1 -> 1.14900451 | CK49: 2007 | CL49: =PRODUCT(IF(($CL$13:$EK$13<=CL$13*TRANSPOSE($CK$14:$CK$65>=$CK49)),$CL$10:$EK$10,1)) -> 1 | CM49: =PRODUCT(IF(($CL$13:$EK$13<=CM$13*TRANSPOSE($CK$14:$CK$65>=$CK49)),$CL$10:$EK$10,1)) -> 1 | CN49: =PRODUCT(IF(($CL$13:$EK$13<=CN$13*TRANSPOSE($CK$14:$CK$65>=$CK49)),$CL$10:$EK$10,1)) -> 1 | CO49: =PRODUCT(IF(($CL$13:$EK$13<=CO$13*TRANSPOSE($CK$14:$CK$65>=$CK49)),$CL$10:$EK$10,1)) -> 1 | CP49: =PRODUCT(IF(($CL$13:$EK$13<=CP$13*TRANSPOSE($CK$14:$CK$65>=$CK49)),$CL$10:$EK$10,1)) -> 1 | CQ49: =PRODUCT(IF(($CL$13:$EK$13<=CQ$13*TRANSPOSE($CK$14:$CK$65>=$CK49)),$CL$10:$EK$10,1)) -> 1 | CR49: =PRODUCT(IF(($CL$13:$EK$13<=CR$13*TRANSPOSE($CK$14:$CK$65>=$CK49)),$CL$10:$EK$10,1)) -> 1 | CS49: =PRODUCT(IF(($CL$13:$EK$13<=CS$13*TRANSPOSE($CK$14:$CK$65>=$CK49)),$CL$10:$EK$10,1)) -> 1 | CT49: =PRODUCT(IF(($CL$13:$EK$13<=CT$13*TRANSPOSE($CK$14:$CK$65>=$CK49)),$CL$10:$EK$10,1)) -> 1 | CU49: =PRODUCT(IF(($CL$13:$EK$13<=CU$13*TRANSPOSE($CK$14:$CK$65>=$CK49)),$CL$10:$EK$10,1)) -> 1 | CV49: =PRODUCT(IF(($CL$13:$EK$13<=CV$13*TRANSPOSE($CK$14:$CK$65>=$CK49)),$CL$10:$EK$10,1)) -> 1 | CW49: =PRODUCT(IF(($CL$13:$EK$13<=CW$13*TRANSPOSE($CK$14:$CK$65>=$CK49)),$CL$10:$EK$10,1)) -> 1 | CX49: =PRODUCT(IF(($CL$13:$EK$13<=CX$13*TRANSPOSE($CK$14:$CK$65>=$CK49)),$CL$10:$EK$10,1)) -> 1 | CY49: =PRODUCT(IF(($CL$13:$EK$13<=CY$13*TRANSPOSE($CK$14:$CK$65>=$CK49)),$CL$10:$EK$10,1)) -> 1 | CZ49: =PRODUCT(IF(($CL$13:$EK$13<=CZ$13*TRANSPOSE($CK$14:$CK$65>=$CK49)),$CL$10:$EK$10,1)) -> 1 | DA49: =PRODUCT(IF(($CL$13:$EK$13<=DA$13*TRANSPOSE($CK$14:$CK$65>=$CK49)),$CL$10:$EK$10,1)) -> 1 | DB49: =PRODUCT(IF(($CL$13:$EK$13<=DB$13*TRANSPOSE($CK$14:$CK$65>=$CK49)),$CL$10:$EK$10,1)) -> 1 | DC49: =PRODUCT(IF(($CL$13:$EK$13<=DC$13*TRANSPOSE($CK$14:$CK$65>=$CK49)),$CL$10:$EK$10,1)) -> 1 | DD49: =PRODUCT(IF(($CL$13:$EK$13<=DD$13*TRANSPOSE($CK$14:$CK$65>=$CK49)),$CL$10:$EK$10,1)) -> 1 | DE49: =PRODUCT(IF(($CL$13:$EK$13<=DE$13*TRANSPOSE($CK$14:$CK$65>=$CK49)),$CL$10:$EK$10,1)) -> 1 | DF49: =PRODUCT(IF(($CL$13:$EK$13<=DF$13*TRANSPOSE($CK$14:$CK$65>=$CK49)),$CL$10:$EK$10,1)) -> 1 | DG49: =PRODUCT(IF(($CL$13:$EK$13<=DG$13*TRANSPOSE($CK$14:$CK$65>=$CK49)),$CL$10:$EK$10,1)) -> 1 | DH49: =PRODUCT(IF(($CL$13:$EK$13<=DH$13*TRANSPOSE($CK$14:$CK$65>=$CK49)),$CL$10:$EK$10,1)) -> 1 | DI49: =PRODUCT(IF(($CL$13:$EK$13<=DI$13*TRANSPOSE($CK$14:$CK$65>=$CK49)),$CL$10:$EK$10,1)) -> 1 | DJ49: =PRODUCT(IF(($CL$13:$EK$13<=DJ$13*TRANSPOSE($CK$14:$CK$65>=$CK49)),$CL$10:$EK$10,1)) -> 1 | DK49: =PRODUCT(IF(($CL$13:$EK$13<=DK$13*TRANSPOSE($CK$14:$CK$65>=$CK49)),$CL$10:$EK$10,1)) -> 1 | DL49: =PRODUCT(IF(($CL$13:$EK$13<=DL$13*TRANSPOSE($CK$14:$CK$65>=$CK49)),$CL$10:$EK$10,1)) -> 1 | DM49: =PRODUCT(IF(($CL$13:$EK$13<=DM$13*TRANSPOSE($CK$14:$CK$65>=$CK49)),$CL$10:$EK$10,1)) -> 1 | DN49: =PRODUCT(IF(($CL$13:$EK$13<=DN$13*TRANSPOSE($CK$14:$CK$65>=$CK49)),$CL$10:$EK$10,1)) -> 1 | DO49: =PRODUCT(IF(($CL$13:$EK$13<=DO$13*TRANSPOSE($CK$14:$CK$65>=$CK49)),$CL$10:$EK$10,1)) -> 1 | DP49: =PRODUCT(IF(($CL$13:$EK$13<=DP$13*TRANSPOSE($CK$14:$CK$65>=$CK49)),$CL$10:$EK$10,1)) -> 1 | DQ49: =PRODUCT(IF(($CL$13:$EK$13<=DQ$13*TRANSPOSE($CK$14:$CK$65>=$CK49)),$CL$10:$EK$10,1)) -> 1 | DR49: =PRODUCT(IF(($CL$13:$EK$13<=DR$13*TRANSPOSE($CK$14:$CK$65>=$CK49)),$CL$10:$EK$10,1)) -> 1 | DS49: =PRODUCT(IF(($CL$13:$EK$13<=DS$13*TRANSPOSE($CK$14:$CK$65>=$CK49)),$CL$10:$EK$10,1)) -> 1 | DT49: =PRODUCT(IF(($CL$13:$EK$13<=DT$13*TRANSPOSE($CK$14:$CK$65>=$CK49)),$CL$10:$EK$10,1)) -> 1 | DU49: =PRODUCT(IF(($CL$13:$EK$13<=DU$13*TRANSPOSE($CK$14:$CK$65>=$CK49)),$CL$10:$EK$10,1)) -> 1.14900451 | DV49: =PRODUCT(IF(($CL$13:$EK$13<=DV$13*TRANSPOSE($CK$14:$CK$65>=$CK49)),$CL$10:$EK$10,1)) -> 1.33413989 | DW49: =PRODUCT(IF(($CL$13:$EK$13<=DW$13*TRANSPOSE($CK$14:$CK$65>=$CK49)),$CL$10:$EK$10,1)) -> 1.346240911 | DX49: =PRODUCT(IF(($CL$13:$EK$13<=DX$13*TRANSPOSE($CK$14:$CK$65>=$CK49)),$CL$10:$EK$10,1)) -> 1.47025053 | DY49: =PRODUCT(IF(($CL$13:$EK$13<=DY$13*TRANSPOSE($CK$14:$CK$65>=$CK49)),$CL$10:$EK$10,1)) -> 1.722540564 | DZ49: =PRODUCT(IF(($CL$13:$EK$13<=DZ$13*TRANSPOSE($CK$14:$CK$65>=$CK49)),$CL$10:$EK$10,1)) -> 2.03614434 | EA49: =PRODUCT(IF(($CL$13:$EK$13<=EA$13*TRANSPOSE($CK$14:$CK$65>=$CK49)),$CL$10:$EK$10,1)) -> 2.385384296 | EB49: =PRODUCT(IF(($CL$13:$EK$13<=EB$13*TRANSPOSE($CK$14:$CK$65>=$CK49)),$CL$10:$EK$10,1)) -> 2.57757862 | EC49: =PRODUCT(IF(($CL$13:$EK$13<=EC$13*TRANSPOSE($CK$14:$CK$65>=$CK49)),$CL$10:$EK$10,1)) -> 2.630455876 | ED49: =PRODUCT(IF(($CL$13:$EK$13<=ED$13*TRANSPOSE($CK$14:$CK$65>=$CK49)),$CL$10:$EK$10,1)) -> 2.657641676 | EE49: =PRODUCT(IF(($CL$13:$EK$13<=EE$13*TRANSPOSE($CK$14:$CK$65>=$CK49)),$CL$10:$EK$10,1)) -> 2.680427377 | EF49: =PRODUCT(IF(($CL$13:$EK$13<=EF$13*TRANSPOSE($CK$14:$CK$65>=$CK49)),$CL$10:$EK$10,1)) -> 2.799275226 | EG49: =PRODUCT(IF(($CL$13:$EK$13<=EG$13*TRANSPOSE($CK$14:$CK$65>=$CK49)),$CL$10:$EK$10,1)) -> 2.866661778 | EH49: =PRODUCT(IF(($CL$13:$EK$13<=EH$13*TRANSPOSE($CK$14:$CK$65>=$CK49)),$CL$10:$EK$10,1)) -> 2.978395449 | EI49: =PRODUCT(IF(($CL$13:$EK$13<=EI$13*TRANSPOSE($CK$14:$CK$65>=$CK49)),$CL$10:$EK$10,1)) -> 3.245248693 | EJ49: =PRODUCT(IF(($CL$13:$EK$13<=EJ$13*TRANSPOSE($CK$14:$CK$65>=$CK49)),$CL$10:$EK$10,1)) -> 3.725710367 | EK49: =PRODUCT(IF(($CL$13:$EK$13<=EK$13*TRANSPOSE($CK$14:$CK$65>=$CK49)),$CL$10:$EK$10,1)) -> 3.971920649
C50: 2009 | AO50: 0.009070279042 | AP50: 0.04977200635 | AQ50: 0.08890342235 | AR50: 0.1114803725 | AS50: 0.1232369906 | AT50: 0.1160108714 | AU50: 0.1018399675 | AV50: 0.08996331727 | AW50: 0.08060497819 | AX50: 0.07692243153 | AY50: 0.07200728115 | AZ50: 0.06921509766 | BA50: 0.07076925648 | BB50: 0.07611254508 | BC50: 0.07544105815 | BE50: 2008 | BF50: 0.161126765 | BG50: 0.1550497349 | BH50: 0.1530503258 | BI50: 0.1853941881 | BJ50: 0.1665960356 | BK50: 0.1508637579 | BL50: 0.1387111774 | BM50: 0.1279782305 | BN50: 0.1202802334 | BO50: 0.1164010843 | BP50: 0.1164723479 | BQ50: 0.113927998 | BR50: 0.1119788565 | BS50: 0.1135116329 | BT50: 0.1146675445 | BU50: 0.1112975793 | BV50: 0.1111045831 | BW50: 0.1101882846 | BX50: 0.1078672432 | BY50: 0.1102596081 | BZ50: 0.1123494836 | CA50: 0.1065429993 | CB50: 0.09975079011 | CC50: 0.08618938497 | CD50: 0.08512549384 | CE50: 0.08009945792 | CG50: 2008 | CH50: =HLOOKUP($W$7,dat,MATCH(CG50,Data!$B$3:$B$60,0),0)+1 -> 1.161126765 | CK50: 2008 | CL50: =PRODUCT(IF(($CL$13:$EK$13<=CL$13*TRANSPOSE($CK$14:$CK$65>=$CK50)),$CL$10:$EK$10,1)) -> 1 | CM50: =PRODUCT(IF(($CL$13:$EK$13<=CM$13*TRANSPOSE($CK$14:$CK$65>=$CK50)),$CL$10:$EK$10,1)) -> 1 | CN50: =PRODUCT(IF(($CL$13:$EK$13<=CN$13*TRANSPOSE($CK$14:$CK$65>=$CK50)),$CL$10:$EK$10,1)) -> 1 | CO50: =PRODUCT(IF(($CL$13:$EK$13<=CO$13*TRANSPOSE($CK$14:$CK$65>=$CK50)),$CL$10:$EK$10,1)) -> 1 | CP50: =PRODUCT(IF(($CL$13:$EK$13<=CP$13*TRANSPOSE($CK$14:$CK$65>=$CK50)),$CL$10:$EK$10,1)) -> 1 | CQ50: =PRODUCT(IF(($CL$13:$EK$13<=CQ$13*TRANSPOSE($CK$14:$CK$65>=$CK50)),$CL$10:$EK$10,1)) -> 1 | CR50: =PRODUCT(IF(($CL$13:$EK$13<=CR$13*TRANSPOSE($CK$14:$CK$65>=$CK50)),$CL$10:$EK$10,1)) -> 1 | CS50: =PRODUCT(IF(($CL$13:$EK$13<=CS$13*TRANSPOSE($CK$14:$CK$65>=$CK50)),$CL$10:$EK$10,1)) -> 1 | CT50: =PRODUCT(IF(($CL$13:$EK$13<=CT$13*TRANSPOSE($CK$14:$CK$65>=$CK50)),$CL$10:$EK$10,1)) -> 1 | CU50: =PRODUCT(IF(($CL$13:$EK$13<=CU$13*TRANSPOSE($CK$14:$CK$65>=$CK50)),$CL$10:$EK$10,1)) -> 1 | CV50: =PRODUCT(IF(($CL$13:$EK$13<=CV$13*TRANSPOSE($CK$14:$CK$65>=$CK50)),$CL$10:$EK$10,1)) -> 1 | CW50: =PRODUCT(IF(($CL$13:$EK$13<=CW$13*TRANSPOSE($CK$14:$CK$65>=$CK50)),$CL$10:$EK$10,1)) -> 1 | CX50: =PRODUCT(IF(($CL$13:$EK$13<=CX$13*TRANSPOSE($CK$14:$CK$65>=$CK50)),$CL$10:$EK$10,1)) -> 1 | CY50: =PRODUCT(IF(($CL$13:$EK$13<=CY$13*TRANSPOSE($CK$14:$CK$65>=$CK50)),$CL$10:$EK$10,1)) -> 1 | CZ50: =PRODUCT(IF(($CL$13:$EK$13<=CZ$13*TRANSPOSE($CK$14:$CK$65>=$CK50)),$CL$10:$EK$10,1)) -> 1 | DA50: =PRODUCT(IF(($CL$13:$EK$13<=DA$13*TRANSPOSE($CK$14:$CK$65>=$CK50)),$CL$10:$EK$10,1)) -> 1 | DB50: =PRODUCT(IF(($CL$13:$EK$13<=DB$13*TRANSPOSE($CK$14:$CK$65>=$CK50)),$CL$10:$EK$10,1)) -> 1 | DC50: =PRODUCT(IF(($CL$13:$EK$13<=DC$13*TRANSPOSE($CK$14:$CK$65>=$CK50)),$CL$10:$EK$10,1)) -> 1 | DD50: =PRODUCT(IF(($CL$13:$EK$13<=DD$13*TRANSPOSE($CK$14:$CK$65>=$CK50)),$CL$10:$EK$10,1)) -> 1 | DE50: =PRODUCT(IF(($CL$13:$EK$13<=DE$13*TRANSPOSE($CK$14:$CK$65>=$CK50)),$CL$10:$EK$10,1)) -> 1 | DF50: =PRODUCT(IF(($CL$13:$EK$13<=DF$13*TRANSPOSE($CK$14:$CK$65>=$CK50)),$CL$10:$EK$10,1)) -> 1 | DG50: =PRODUCT(IF(($CL$13:$EK$13<=DG$13*TRANSPOSE($CK$14:$CK$65>=$CK50)),$CL$10:$EK$10,1)) -> 1 | DH50: =PRODUCT(IF(($CL$13:$EK$13<=DH$13*TRANSPOSE($CK$14:$CK$65>=$CK50)),$CL$10:$EK$10,1)) -> 1 | DI50: =PRODUCT(IF(($CL$13:$EK$13<=DI$13*TRANSPOSE($CK$14:$CK$65>=$CK50)),$CL$10:$EK$10,1)) -> 1 | DJ50: =PRODUCT(IF(($CL$13:$EK$13<=DJ$13*TRANSPOSE($CK$14:$CK$65>=$CK50)),$CL$10:$EK$10,1)) -> 1 | DK50: =PRODUCT(IF(($CL$13:$EK$13<=DK$13*TRANSPOSE($CK$14:$CK$65>=$CK50)),$CL$10:$EK$10,1)) -> 1 | DL50: =PRODUCT(IF(($CL$13:$EK$13<=DL$13*TRANSPOSE($CK$14:$CK$65>=$CK50)),$CL$10:$EK$10,1)) -> 1 | DM50: =PRODUCT(IF(($CL$13:$EK$13<=DM$13*TRANSPOSE($CK$14:$CK$65>=$CK50)),$CL$10:$EK$10,1)) -> 1 | DN50: =PRODUCT(IF(($CL$13:$EK$13<=DN$13*TRANSPOSE($CK$14:$CK$65>=$CK50)),$CL$10:$EK$10,1)) -> 1 | DO50: =PRODUCT(IF(($CL$13:$EK$13<=DO$13*TRANSPOSE($CK$14:$CK$65>=$CK50)),$CL$10:$EK$10,1)) -> 1 | DP50: =PRODUCT(IF(($CL$13:$EK$13<=DP$13*TRANSPOSE($CK$14:$CK$65>=$CK50)),$CL$10:$EK$10,1)) -> 1 | DQ50: =PRODUCT(IF(($CL$13:$EK$13<=DQ$13*TRANSPOSE($CK$14:$CK$65>=$CK50)),$CL$10:$EK$10,1)) -> 1 | DR50: =PRODUCT(IF(($CL$13:$EK$13<=DR$13*TRANSPOSE($CK$14:$CK$65>=$CK50)),$CL$10:$EK$10,1)) -> 1 | DS50: =PRODUCT(IF(($CL$13:$EK$13<=DS$13*TRANSPOSE($CK$14:$CK$65>=$CK50)),$CL$10:$EK$10,1)) -> 1 | DT50: =PRODUCT(IF(($CL$13:$EK$13<=DT$13*TRANSPOSE($CK$14:$CK$65>=$CK50)),$CL$10:$EK$10,1)) -> 1 | DU50: =PRODUCT(IF(($CL$13:$EK$13<=DU$13*TRANSPOSE($CK$14:$CK$65>=$CK50)),$CL$10:$EK$10,1)) -> 1 | DV50: =PRODUCT(IF(($CL$13:$EK$13<=DV$13*TRANSPOSE($CK$14:$CK$65>=$CK50)),$CL$10:$EK$10,1)) -> 1.161126765 | DW50: =PRODUCT(IF(($CL$13:$EK$13<=DW$13*TRANSPOSE($CK$14:$CK$65>=$CK50)),$CL$10:$EK$10,1)) -> 1.171658509 | DX50: =PRODUCT(IF(($CL$13:$EK$13<=DX$13*TRANSPOSE($CK$14:$CK$65>=$CK50)),$CL$10:$EK$10,1)) -> 1.279586387 | DY50: =PRODUCT(IF(($CL$13:$EK$13<=DY$13*TRANSPOSE($CK$14:$CK$65>=$CK50)),$CL$10:$EK$10,1)) -> 1.499159097 | DZ50: =PRODUCT(IF(($CL$13:$EK$13<=DZ$13*TRANSPOSE($CK$14:$CK$65>=$CK50)),$CL$10:$EK$10,1)) -> 1.772094297 | EA50: =PRODUCT(IF(($CL$13:$EK$13<=EA$13*TRANSPOSE($CK$14:$CK$65>=$CK50)),$CL$10:$EK$10,1)) -> 2.076044328 | EB50: =PRODUCT(IF(($CL$13:$EK$13<=EB$13*TRANSPOSE($CK$14:$CK$65>=$CK50)),$CL$10:$EK$10,1)) -> 2.243314623 | EC50: =PRODUCT(IF(($CL$13:$EK$13<=EC$13*TRANSPOSE($CK$14:$CK$65>=$CK50)),$CL$10:$EK$10,1)) -> 2.289334683 | ED50: =PRODUCT(IF(($CL$13:$EK$13<=ED$13*TRANSPOSE($CK$14:$CK$65>=$CK50)),$CL$10:$EK$10,1)) -> 2.31299499 | EE50: =PRODUCT(IF(($CL$13:$EK$13<=EE$13*TRANSPOSE($CK$14:$CK$65>=$CK50)),$CL$10:$EK$10,1)) -> 2.332825809 | EF50: =PRODUCT(IF(($CL$13:$EK$13<=EF$13*TRANSPOSE($CK$14:$CK$65>=$CK50)),$CL$10:$EK$10,1)) -> 2.436261303 | EG50: =PRODUCT(IF(($CL$13:$EK$13<=EG$13*TRANSPOSE($CK$14:$CK$65>=$CK50)),$CL$10:$EK$10,1)) -> 2.494909073 | EH50: =PRODUCT(IF(($CL$13:$EK$13<=EH$13*TRANSPOSE($CK$14:$CK$65>=$CK50)),$CL$10:$EK$10,1)) -> 2.592152965 | EI50: =PRODUCT(IF(($CL$13:$EK$13<=EI$13*TRANSPOSE($CK$14:$CK$65>=$CK50)),$CL$10:$EK$10,1)) -> 2.824400308 | EJ50: =PRODUCT(IF(($CL$13:$EK$13<=EJ$13*TRANSPOSE($CK$14:$CK$65>=$CK50)),$CL$10:$EK$10,1)) -> 3.242555041 | EK50: =PRODUCT(IF(($CL$13:$EK$13<=EK$13*TRANSPOSE($CK$14:$CK$65>=$CK50)),$CL$10:$EK$10,1)) -> 3.456836429
C51: 2010 | AP51: =IF(DX52=1,"",DX52^(1/(DX$13-$CK52+1))-1) -> 0.09211547323 | AQ51: 0.1311581704 | AR51: 0.1478767489 | AS51: 0.1537425054 | AT51: 0.1387223042 | AU51: 0.1181104492 | AV51: 0.1020371488 | AW51: 0.08989624819 | AX51: 0.08473775761 | AY51: 0.07851295746 | AZ51: 0.0748574488 | BA51: 0.07607803498 | BB51: 0.08145048296 | BC51: 0.08034557769 | BE51: 2009 | BF51: 0.009070279042 | BG51: 0.08243175708 | BH51: 0.1041826736 | BI51: 0.1152354113 | BJ51: 0.1478219295 | BK51: 0.1387297037 | BL51: 0.1294484505 | BM51: 0.1216363166 | BN51: 0.1141027337 | BO51: 0.1086287766 | BP51: 0.1061892825 | BQ51: 0.1071014634 | BR51: 0.105488867 | BS51: 0.1042922425 | BT51: 0.1062243204 | BU51: 0.1077553591 | BV51: 0.1050072712 | BW51: 0.1051744963 | BX51: 0.1046221143 | BY51: 0.1027051586 | BZ51: 0.1052186401 | CA51: 0.1074334273 | CB51: 0.1021155404 | CC51: 0.09581459346 | CD51: 0.08299434439 | CE51: 0.08209695865 | CG51: 2009 | CH51: =HLOOKUP($W$7,dat,MATCH(CG51,Data!$B$3:$B$60,0),0)+1 -> 1.009070279 | CK51: 2009 | CL51: =PRODUCT(IF(($CL$13:$EK$13<=CL$13*TRANSPOSE($CK$14:$CK$65>=$CK51)),$CL$10:$EK$10,1)) -> 1 | CM51: =PRODUCT(IF(($CL$13:$EK$13<=CM$13*TRANSPOSE($CK$14:$CK$65>=$CK51)),$CL$10:$EK$10,1)) -> 1 | CN51: =PRODUCT(IF(($CL$13:$EK$13<=CN$13*TRANSPOSE($CK$14:$CK$65>=$CK51)),$CL$10:$EK$10,1)) -> 1 | CO51: =PRODUCT(IF(($CL$13:$EK$13<=CO$13*TRANSPOSE($CK$14:$CK$65>=$CK51)),$CL$10:$EK$10,1)) -> 1 | CP51: =PRODUCT(IF(($CL$13:$EK$13<=CP$13*TRANSPOSE($CK$14:$CK$65>=$CK51)),$CL$10:$EK$10,1)) -> 1 | CQ51: =PRODUCT(IF(($CL$13:$EK$13<=CQ$13*TRANSPOSE($CK$14:$CK$65>=$CK51)),$CL$10:$EK$10,1)) -> 1 | CR51: =PRODUCT(IF(($CL$13:$EK$13<=CR$13*TRANSPOSE($CK$14:$CK$65>=$CK51)),$CL$10:$EK$10,1)) -> 1 | CS51: =PRODUCT(IF(($CL$13:$EK$13<=CS$13*TRANSPOSE($CK$14:$CK$65>=$CK51)),$CL$10:$EK$10,1)) -> 1 | CT51: =PRODUCT(IF(($CL$13:$EK$13<=CT$13*TRANSPOSE($CK$14:$CK$65>=$CK51)),$CL$10:$EK$10,1)) -> 1 | CU51: =PRODUCT(IF(($CL$13:$EK$13<=CU$13*TRANSPOSE($CK$14:$CK$65>=$CK51)),$CL$10:$EK$10,1)) -> 1 | CV51: =PRODUCT(IF(($CL$13:$EK$13<=CV$13*TRANSPOSE($CK$14:$CK$65>=$CK51)),$CL$10:$EK$10,1)) -> 1 | CW51: =PRODUCT(IF(($CL$13:$EK$13<=CW$13*TRANSPOSE($CK$14:$CK$65>=$CK51)),$CL$10:$EK$10,1)) -> 1 | CX51: =PRODUCT(IF(($CL$13:$EK$13<=CX$13*TRANSPOSE($CK$14:$CK$65>=$CK51)),$CL$10:$EK$10,1)) -> 1 | CY51: =PRODUCT(IF(($CL$13:$EK$13<=CY$13*TRANSPOSE($CK$14:$CK$65>=$CK51)),$CL$10:$EK$10,1)) -> 1 | CZ51: =PRODUCT(IF(($CL$13:$EK$13<=CZ$13*TRANSPOSE($CK$14:$CK$65>=$CK51)),$CL$10:$EK$10,1)) -> 1 | DA51: =PRODUCT(IF(($CL$13:$EK$13<=DA$13*TRANSPOSE($CK$14:$CK$65>=$CK51)),$CL$10:$EK$10,1)) -> 1 | DB51: =PRODUCT(IF(($CL$13:$EK$13<=DB$13*TRANSPOSE($CK$14:$CK$65>=$CK51)),$CL$10:$EK$10,1)) -> 1 | DC51: =PRODUCT(IF(($CL$13:$EK$13<=DC$13*TRANSPOSE($CK$14:$CK$65>=$CK51)),$CL$10:$EK$10,1)) -> 1 | DD51: =PRODUCT(IF(($CL$13:$EK$13<=DD$13*TRANSPOSE($CK$14:$CK$65>=$CK51)),$CL$10:$EK$10,1)) -> 1 | DE51: =PRODUCT(IF(($CL$13:$EK$13<=DE$13*TRANSPOSE($CK$14:$CK$65>=$CK51)),$CL$10:$EK$10,1)) -> 1 | DF51: =PRODUCT(IF(($CL$13:$EK$13<=DF$13*TRANSPOSE($CK$14:$CK$65>=$CK51)),$CL$10:$EK$10,1)) -> 1 | DG51: =PRODUCT(IF(($CL$13:$EK$13<=DG$13*TRANSPOSE($CK$14:$CK$65>=$CK51)),$CL$10:$EK$10,1)) -> 1 | DH51: =PRODUCT(IF(($CL$13:$EK$13<=DH$13*TRANSPOSE($CK$14:$CK$65>=$CK51)),$CL$10:$EK$10,1)) -> 1 | DI51: =PRODUCT(IF(($CL$13:$EK$13<=DI$13*TRANSPOSE($CK$14:$CK$65>=$CK51)),$CL$10:$EK$10,1)) -> 1 | DJ51: =PRODUCT(IF(($CL$13:$EK$13<=DJ$13*TRANSPOSE($CK$14:$CK$65>=$CK51)),$CL$10:$EK$10,1)) -> 1 | DK51: =PRODUCT(IF(($CL$13:$EK$13<=DK$13*TRANSPOSE($CK$14:$CK$65>=$CK51)),$CL$10:$EK$10,1)) -> 1 | DL51: =PRODUCT(IF(($CL$13:$EK$13<=DL$13*TRANSPOSE($CK$14:$CK$65>=$CK51)),$CL$10:$EK$10,1)) -> 1 | DM51: =PRODUCT(IF(($CL$13:$EK$13<=DM$13*TRANSPOSE($CK$14:$CK$65>=$CK51)),$CL$10:$EK$10,1)) -> 1 | DN51: =PRODUCT(IF(($CL$13:$EK$13<=DN$13*TRANSPOSE($CK$14:$CK$65>=$CK51)),$CL$10:$EK$10,1)) -> 1 | DO51: =PRODUCT(IF(($CL$13:$EK$13<=DO$13*TRANSPOSE($CK$14:$CK$65>=$CK51)),$CL$10:$EK$10,1)) -> 1 | DP51: =PRODUCT(IF(($CL$13:$EK$13<=DP$13*TRANSPOSE($CK$14:$CK$65>=$CK51)),$CL$10:$EK$10,1)) -> 1 | DQ51: =PRODUCT(IF(($CL$13:$EK$13<=DQ$13*TRANSPOSE($CK$14:$CK$65>=$CK51)),$CL$10:$EK$10,1)) -> 1 | DR51: =PRODUCT(IF(($CL$13:$EK$13<=DR$13*TRANSPOSE($CK$14:$CK$65>=$CK51)),$CL$10:$EK$10,1)) -> 1 | DS51: =PRODUCT(IF(($CL$13:$EK$13<=DS$13*TRANSPOSE($CK$14:$CK$65>=$CK51)),$CL$10:$EK$10,1)) -> 1 | DT51: =PRODUCT(IF(($CL$13:$EK$13<=DT$13*TRANSPOSE($CK$14:$CK$65>=$CK51)),$CL$10:$EK$10,1)) -> 1 | DU51: =PRODUCT(IF(($CL$13:$EK$13<=DU$13*TRANSPOSE($CK$14:$CK$65>=$CK51)),$CL$10:$EK$10,1)) -> 1 | DV51: =PRODUCT(IF(($CL$13:$EK$13<=DV$13*TRANSPOSE($CK$14:$CK$65>=$CK51)),$CL$10:$EK$10,1)) -> 1 | DW51: =PRODUCT(IF(($CL$13:$EK$13<=DW$13*TRANSPOSE($CK$14:$CK$65>=$CK51)),$CL$10:$EK$10,1)) -> 1.009070279 | DX51: =PRODUCT(IF(($CL$13:$EK$13<=DX$13*TRANSPOSE($CK$14:$CK$65>=$CK51)),$CL$10:$EK$10,1)) -> 1.102021265 | DY51: =PRODUCT(IF(($CL$13:$EK$13<=DY$13*TRANSPOSE($CK$14:$CK$65>=$CK51)),$CL$10:$EK$10,1)) -> 1.291124399 | DZ51: =PRODUCT(IF(($CL$13:$EK$13<=DZ$13*TRANSPOSE($CK$14:$CK$65>=$CK51)),$CL$10:$EK$10,1)) -> 1.526185039 | EA51: =PRODUCT(IF(($CL$13:$EK$13<=EA$13*TRANSPOSE($CK$14:$CK$65>=$CK51)),$CL$10:$EK$10,1)) -> 1.787956656 | EB51: =PRODUCT(IF(($CL$13:$EK$13<=EB$13*TRANSPOSE($CK$14:$CK$65>=$CK51)),$CL$10:$EK$10,1)) -> 1.932015255 | EC51: =PRODUCT(IF(($CL$13:$EK$13<=EC$13*TRANSPOSE($CK$14:$CK$65>=$CK51)),$CL$10:$EK$10,1)) -> 1.971649222 | ED51: =PRODUCT(IF(($CL$13:$EK$13<=ED$13*TRANSPOSE($CK$14:$CK$65>=$CK51)),$CL$10:$EK$10,1)) -> 1.992026245 | EE51: =PRODUCT(IF(($CL$13:$EK$13<=EE$13*TRANSPOSE($CK$14:$CK$65>=$CK51)),$CL$10:$EK$10,1)) -> 2.00910519 | EF51: =PRODUCT(IF(($CL$13:$EK$13<=EF$13*TRANSPOSE($CK$14:$CK$65>=$CK51)),$CL$10:$EK$10,1)) -> 2.098187189 | EG51: =PRODUCT(IF(($CL$13:$EK$13<=EG$13*TRANSPOSE($CK$14:$CK$65>=$CK51)),$CL$10:$EK$10,1)) -> 2.148696549 | EH51: =PRODUCT(IF(($CL$13:$EK$13<=EH$13*TRANSPOSE($CK$14:$CK$65>=$CK51)),$CL$10:$EK$10,1)) -> 2.232446141 | EI51: =PRODUCT(IF(($CL$13:$EK$13<=EI$13*TRANSPOSE($CK$14:$CK$65>=$CK51)),$CL$10:$EK$10,1)) -> 2.432465079 | EJ51: =PRODUCT(IF(($CL$13:$EK$13<=EJ$13*TRANSPOSE($CK$14:$CK$65>=$CK51)),$CL$10:$EK$10,1)) -> 2.792593486 | EK51: =PRODUCT(IF(($CL$13:$EK$13<=EK$13*TRANSPOSE($CK$14:$CK$65>=$CK51)),$CL$10:$EK$10,1)) -> 2.977139563
C52: 2011 | AQ52: 0.1715966286 | AR52: 0.1768161192 | AS52: 0.1750481699 | AT52: 0.1506815351 | AU52: 0.1233832273 | AV52: 0.1036995026 | AW52: 0.08957958438 | AX52: 0.08381905443 | AY52: 0.07701206379 | AZ52: 0.07314671749 | BA52: 0.07463181635 | BB52: 0.080566449 | BC52: 0.0794454726 | BE52: 2010 | BF52: 0.09211547323 | BG52: 0.04977200635 | BH52: 0.08565008413 | BI52: 0.1011534306 | BJ52: 0.1105725958 | BK52: 0.1383440055 | BL52: 0.1319506515 | BM52: 0.1247129152 | BN52: 0.1183172057 | BO52: 0.1118842334 | BP52: 0.1071173057 | BQ52: 0.10500957 | BR52: 0.1059414298 | BS52: 0.1045282172 | BT52: 0.1034762507 | BU52: 0.1053372018 | BV52: 0.106829197 | BW52: 0.1042870843 | BX52: 0.1044833024 | BY52: 0.1039933943 | BZ52: 0.1021985673 | CA52: 0.1046196452 | CB52: 0.1067629834 | CC52: 0.1016970485 | CD52: 0.09566638837 | CE52: 0.08334374433 | CG52: 2010 | CH52: =HLOOKUP($W$7,dat,MATCH(CG52,Data!$B$3:$B$60,0),0)+1 -> 1.092115473 | CK52: 2010 | CL52: =PRODUCT(IF(($CL$13:$EK$13<=CL$13*TRANSPOSE($CK$14:$CK$65>=$CK52)),$CL$10:$EK$10,1)) -> 1 | CM52: =PRODUCT(IF(($CL$13:$EK$13<=CM$13*TRANSPOSE($CK$14:$CK$65>=$CK52)),$CL$10:$EK$10,1)) -> 1 | CN52: =PRODUCT(IF(($CL$13:$EK$13<=CN$13*TRANSPOSE($CK$14:$CK$65>=$CK52)),$CL$10:$EK$10,1)) -> 1 | CO52: =PRODUCT(IF(($CL$13:$EK$13<=CO$13*TRANSPOSE($CK$14:$CK$65>=$CK52)),$CL$10:$EK$10,1)) -> 1 | CP52: =PRODUCT(IF(($CL$13:$EK$13<=CP$13*TRANSPOSE($CK$14:$CK$65>=$CK52)),$CL$10:$EK$10,1)) -> 1 | CQ52: =PRODUCT(IF(($CL$13:$EK$13<=CQ$13*TRANSPOSE($CK$14:$CK$65>=$CK52)),$CL$10:$EK$10,1)) -> 1 | CR52: =PRODUCT(IF(($CL$13:$EK$13<=CR$13*TRANSPOSE($CK$14:$CK$65>=$CK52)),$CL$10:$EK$10,1)) -> 1 | CS52: =PRODUCT(IF(($CL$13:$EK$13<=CS$13*TRANSPOSE($CK$14:$CK$65>=$CK52)),$CL$10:$EK$10,1)) -> 1 | CT52: =PRODUCT(IF(($CL$13:$EK$13<=CT$13*TRANSPOSE($CK$14:$CK$65>=$CK52)),$CL$10:$EK$10,1)) -> 1 | CU52: =PRODUCT(IF(($CL$13:$EK$13<=CU$13*TRANSPOSE($CK$14:$CK$65>=$CK52)),$CL$10:$EK$10,1)) -> 1 | CV52: =PRODUCT(IF(($CL$13:$EK$13<=CV$13*TRANSPOSE($CK$14:$CK$65>=$CK52)),$CL$10:$EK$10,1)) -> 1 | CW52: =PRODUCT(IF(($CL$13:$EK$13<=CW$13*TRANSPOSE($CK$14:$CK$65>=$CK52)),$CL$10:$EK$10,1)) -> 1 | CX52: =PRODUCT(IF(($CL$13:$EK$13<=CX$13*TRANSPOSE($CK$14:$CK$65>=$CK52)),$CL$10:$EK$10,1)) -> 1 | CY52: =PRODUCT(IF(($CL$13:$EK$13<=CY$13*TRANSPOSE($CK$14:$CK$65>=$CK52)),$CL$10:$EK$10,1)) -> 1 | CZ52: =PRODUCT(IF(($CL$13:$EK$13<=CZ$13*TRANSPOSE($CK$14:$CK$65>=$CK52)),$CL$10:$EK$10,1)) -> 1 | DA52: =PRODUCT(IF(($CL$13:$EK$13<=DA$13*TRANSPOSE($CK$14:$CK$65>=$CK52)),$CL$10:$EK$10,1)) -> 1 | DB52: =PRODUCT(IF(($CL$13:$EK$13<=DB$13*TRANSPOSE($CK$14:$CK$65>=$CK52)),$CL$10:$EK$10,1)) -> 1 | DC52: =PRODUCT(IF(($CL$13:$EK$13<=DC$13*TRANSPOSE($CK$14:$CK$65>=$CK52)),$CL$10:$EK$10,1)) -> 1 | DD52: =PRODUCT(IF(($CL$13:$EK$13<=DD$13*TRANSPOSE($CK$14:$CK$65>=$CK52)),$CL$10:$EK$10,1)) -> 1 | DE52: =PRODUCT(IF(($CL$13:$EK$13<=DE$13*TRANSPOSE($CK$14:$CK$65>=$CK52)),$CL$10:$EK$10,1)) -> 1 | DF52: =PRODUCT(IF(($CL$13:$EK$13<=DF$13*TRANSPOSE($CK$14:$CK$65>=$CK52)),$CL$10:$EK$10,1)) -> 1 | DG52: =PRODUCT(IF(($CL$13:$EK$13<=DG$13*TRANSPOSE($CK$14:$CK$65>=$CK52)),$CL$10:$EK$10,1)) -> 1 | DH52: =PRODUCT(IF(($CL$13:$EK$13<=DH$13*TRANSPOSE($CK$14:$CK$65>=$CK52)),$CL$10:$EK$10,1)) -> 1 | DI52: =PRODUCT(IF(($CL$13:$EK$13<=DI$13*TRANSPOSE($CK$14:$CK$65>=$CK52)),$CL$10:$EK$10,1)) -> 1 | DJ52: =PRODUCT(IF(($CL$13:$EK$13<=DJ$13*TRANSPOSE($CK$14:$CK$65>=$CK52)),$CL$10:$EK$10,1)) -> 1 | DK52: =PRODUCT(IF(($CL$13:$EK$13<=DK$13*TRANSPOSE($CK$14:$CK$65>=$CK52)),$CL$10:$EK$10,1)) -> 1 | DL52: =PRODUCT(IF(($CL$13:$EK$13<=DL$13*TRANSPOSE($CK$14:$CK$65>=$CK52)),$CL$10:$EK$10,1)) -> 1 | DM52: =PRODUCT(IF(($CL$13:$EK$13<=DM$13*TRANSPOSE($CK$14:$CK$65>=$CK52)),$CL$10:$EK$10,1)) -> 1 | DN52: =PRODUCT(IF(($CL$13:$EK$13<=DN$13*TRANSPOSE($CK$14:$CK$65>=$CK52)),$CL$10:$EK$10,1)) -> 1 | DO52: =PRODUCT(IF(($CL$13:$EK$13<=DO$13*TRANSPOSE($CK$14:$CK$65>=$CK52)),$CL$10:$EK$10,1)) -> 1 | DP52: =PRODUCT(IF(($CL$13:$EK$13<=DP$13*TRANSPOSE($CK$14:$CK$65>=$CK52)),$CL$10:$EK$10,1)) -> 1 | DQ52: =PRODUCT(IF(($CL$13:$EK$13<=DQ$13*TRANSPOSE($CK$14:$CK$65>=$CK52)),$CL$10:$EK$10,1)) -> 1 | DR52: =PRODUCT(IF(($CL$13:$EK$13<=DR$13*TRANSPOSE($CK$14:$CK$65>=$CK52)),$CL$10:$EK$10,1)) -> 1 | DS52: =PRODUCT(IF(($CL$13:$EK$13<=DS$13*TRANSPOSE($CK$14:$CK$65>=$CK52)),$CL$10:$EK$10,1)) -> 1 | DT52: =PRODUCT(IF(($CL$13:$EK$13<=DT$13*TRANSPOSE($CK$14:$CK$65>=$CK52)),$CL$10:$EK$10,1)) -> 1 | DU52: =PRODUCT(IF(($CL$13:$EK$13<=DU$13*TRANSPOSE($CK$14:$CK$65>=$CK52)),$CL$10:$EK$10,1)) -> 1 | DV52: =PRODUCT(IF(($CL$13:$EK$13<=DV$13*TRANSPOSE($CK$14:$CK$65>=$CK52)),$CL$10:$EK$10,1)) -> 1 | DW52: =PRODUCT(IF(($CL$13:$EK$13<=DW$13*TRANSPOSE($CK$14:$CK$65>=$CK52)),$CL$10:$EK$10,1)) -> 1 | DX52: =PRODUCT(IF(($CL$13:$EK$13<=DX$13*TRANSPOSE($CK$14:$CK$65>=$CK52)),$CL$10:$EK$10,1)) -> 1.092115473 | DY52: =PRODUCT(IF(($CL$13:$EK$13<=DY$13*TRANSPOSE($CK$14:$CK$65>=$CK52)),$CL$10:$EK$10,1)) -> 1.279518806 | DZ52: =PRODUCT(IF(($CL$13:$EK$13<=DZ$13*TRANSPOSE($CK$14:$CK$65>=$CK52)),$CL$10:$EK$10,1)) -> 1.512466545 | EA52: =PRODUCT(IF(($CL$13:$EK$13<=EA$13*TRANSPOSE($CK$14:$CK$65>=$CK52)),$CL$10:$EK$10,1)) -> 1.771885163 | EB52: =PRODUCT(IF(($CL$13:$EK$13<=EB$13*TRANSPOSE($CK$14:$CK$65>=$CK52)),$CL$10:$EK$10,1)) -> 1.914648855 | EC52: =PRODUCT(IF(($CL$13:$EK$13<=EC$13*TRANSPOSE($CK$14:$CK$65>=$CK52)),$CL$10:$EK$10,1)) -> 1.953926563 | ED52: =PRODUCT(IF(($CL$13:$EK$13<=ED$13*TRANSPOSE($CK$14:$CK$65>=$CK52)),$CL$10:$EK$10,1)) -> 1.974120422 | EE52: =PRODUCT(IF(($CL$13:$EK$13<=EE$13*TRANSPOSE($CK$14:$CK$65>=$CK52)),$CL$10:$EK$10,1)) -> 1.991045848 | EF52: =PRODUCT(IF(($CL$13:$EK$13<=EF$13*TRANSPOSE($CK$14:$CK$65>=$CK52)),$CL$10:$EK$10,1)) -> 2.079327112 | EG52: =PRODUCT(IF(($CL$13:$EK$13<=EG$13*TRANSPOSE($CK$14:$CK$65>=$CK52)),$CL$10:$EK$10,1)) -> 2.129382456 | EH52: =PRODUCT(IF(($CL$13:$EK$13<=EH$13*TRANSPOSE($CK$14:$CK$65>=$CK52)),$CL$10:$EK$10,1)) -> 2.212379244 | EI52: =PRODUCT(IF(($CL$13:$EK$13<=EI$13*TRANSPOSE($CK$14:$CK$65>=$CK52)),$CL$10:$EK$10,1)) -> 2.410600262 | EJ52: =PRODUCT(IF(($CL$13:$EK$13<=EJ$13*TRANSPOSE($CK$14:$CK$65>=$CK52)),$CL$10:$EK$10,1)) -> 2.767491566 | EK52: =PRODUCT(IF(($CL$13:$EK$13<=EK$13*TRANSPOSE($CK$14:$CK$65>=$CK52)),$CL$10:$EK$10,1)) -> 2.950378804
C53: 2012 | AR53: 0.1820588627 | AS53: 0.1767777518 | AT53: 0.1437931404 | AU53: 0.1116431364 | AV53: 0.09059974936 | AW53: 0.07647950198 | AX53: 0.07182816056 | AY53: 0.06573903921 | AZ53: 0.06273175016 | BA53: 0.06538812704 | BB53: 0.0726502749 | BC53: 0.0721015539 | BE53: 2011 | BF53: 0.1715966286 | BG53: 0.1311581704 | BH53: 0.08890342235 | BI53: 0.106526785 | BJ53: 0.1148948044 | BK53: 0.1205179365 | BL53: 0.1430359629 | BM53: 0.1368320822 | BN53: 0.1298281648 | BO53: 0.1235342534 | BP53: 0.1171844801 | BQ53: 0.1123522704 | BR53: 0.1099944676 | BS53: 0.1105065553 | BT53: 0.1088774924 | BU53: 0.1076152733 | BV53: 0.109128951 | BW53: 0.1103315758 | BX53: 0.1077312817 | BY53: 0.1077457756 | BZ53: 0.1071223048 | CA53: 0.1052619473 | CB53: 0.1074504391 | CC53: 0.1093913382 | CD53: 0.1044112529 | CE53: 0.09849367625 | CG53: 2011 | CH53: =HLOOKUP($W$7,dat,MATCH(CG53,Data!$B$3:$B$60,0),0)+1 -> 1.171596629 | CK53: 2011 | CL53: =PRODUCT(IF(($CL$13:$EK$13<=CL$13*TRANSPOSE($CK$14:$CK$65>=$CK53)),$CL$10:$EK$10,1)) -> 1 | CM53: =PRODUCT(IF(($CL$13:$EK$13<=CM$13*TRANSPOSE($CK$14:$CK$65>=$CK53)),$CL$10:$EK$10,1)) -> 1 | CN53: =PRODUCT(IF(($CL$13:$EK$13<=CN$13*TRANSPOSE($CK$14:$CK$65>=$CK53)),$CL$10:$EK$10,1)) -> 1 | CO53: =PRODUCT(IF(($CL$13:$EK$13<=CO$13*TRANSPOSE($CK$14:$CK$65>=$CK53)),$CL$10:$EK$10,1)) -> 1 | CP53: =PRODUCT(IF(($CL$13:$EK$13<=CP$13*TRANSPOSE($CK$14:$CK$65>=$CK53)),$CL$10:$EK$10,1)) -> 1 | CQ53: =PRODUCT(IF(($CL$13:$EK$13<=CQ$13*TRANSPOSE($CK$14:$CK$65>=$CK53)),$CL$10:$EK$10,1)) -> 1 | CR53: =PRODUCT(IF(($CL$13:$EK$13<=CR$13*TRANSPOSE($CK$14:$CK$65>=$CK53)),$CL$10:$EK$10,1)) -> 1 | CS53: =PRODUCT(IF(($CL$13:$EK$13<=CS$13*TRANSPOSE($CK$14:$CK$65>=$CK53)),$CL$10:$EK$10,1)) -> 1 | CT53: =PRODUCT(IF(($CL$13:$EK$13<=CT$13*TRANSPOSE($CK$14:$CK$65>=$CK53)),$CL$10:$EK$10,1)) -> 1 | CU53: =PRODUCT(IF(($CL$13:$EK$13<=CU$13*TRANSPOSE($CK$14:$CK$65>=$CK53)),$CL$10:$EK$10,1)) -> 1 | CV53: =PRODUCT(IF(($CL$13:$EK$13<=CV$13*TRANSPOSE($CK$14:$CK$65>=$CK53)),$CL$10:$EK$10,1)) -> 1 | CW53: =PRODUCT(IF(($CL$13:$EK$13<=CW$13*TRANSPOSE($CK$14:$CK$65>=$CK53)),$CL$10:$EK$10,1)) -> 1 | CX53: =PRODUCT(IF(($CL$13:$EK$13<=CX$13*TRANSPOSE($CK$14:$CK$65>=$CK53)),$CL$10:$EK$10,1)) -> 1 | CY53: =PRODUCT(IF(($CL$13:$EK$13<=CY$13*TRANSPOSE($CK$14:$CK$65>=$CK53)),$CL$10:$EK$10,1)) -> 1 | CZ53: =PRODUCT(IF(($CL$13:$EK$13<=CZ$13*TRANSPOSE($CK$14:$CK$65>=$CK53)),$CL$10:$EK$10,1)) -> 1 | DA53: =PRODUCT(IF(($CL$13:$EK$13<=DA$13*TRANSPOSE($CK$14:$CK$65>=$CK53)),$CL$10:$EK$10,1)) -> 1 | DB53: =PRODUCT(IF(($CL$13:$EK$13<=DB$13*TRANSPOSE($CK$14:$CK$65>=$CK53)),$CL$10:$EK$10,1)) -> 1 | DC53: =PRODUCT(IF(($CL$13:$EK$13<=DC$13*TRANSPOSE($CK$14:$CK$65>=$CK53)),$CL$10:$EK$10,1)) -> 1 | DD53: =PRODUCT(IF(($CL$13:$EK$13<=DD$13*TRANSPOSE($CK$14:$CK$65>=$CK53)),$CL$10:$EK$10,1)) -> 1 | DE53: =PRODUCT(IF(($CL$13:$EK$13<=DE$13*TRANSPOSE($CK$14:$CK$65>=$CK53)),$CL$10:$EK$10,1)) -> 1 | DF53: =PRODUCT(IF(($CL$13:$EK$13<=DF$13*TRANSPOSE($CK$14:$CK$65>=$CK53)),$CL$10:$EK$10,1)) -> 1 | DG53: =PRODUCT(IF(($CL$13:$EK$13<=DG$13*TRANSPOSE($CK$14:$CK$65>=$CK53)),$CL$10:$EK$10,1)) -> 1 | DH53: =PRODUCT(IF(($CL$13:$EK$13<=DH$13*TRANSPOSE($CK$14:$CK$65>=$CK53)),$CL$10:$EK$10,1)) -> 1 | DI53: =PRODUCT(IF(($CL$13:$EK$13<=DI$13*TRANSPOSE($CK$14:$CK$65>=$CK53)),$CL$10:$EK$10,1)) -> 1 | DJ53: =PRODUCT(IF(($CL$13:$EK$13<=DJ$13*TRANSPOSE($CK$14:$CK$65>=$CK53)),$CL$10:$EK$10,1)) -> 1 | DK53: =PRODUCT(IF(($CL$13:$EK$13<=DK$13*TRANSPOSE($CK$14:$CK$65>=$CK53)),$CL$10:$EK$10,1)) -> 1 | DL53: =PRODUCT(IF(($CL$13:$EK$13<=DL$13*TRANSPOSE($CK$14:$CK$65>=$CK53)),$CL$10:$EK$10,1)) -> 1 | DM53: =PRODUCT(IF(($CL$13:$EK$13<=DM$13*TRANSPOSE($CK$14:$CK$65>=$CK53)),$CL$10:$EK$10,1)) -> 1 | DN53: =PRODUCT(IF(($CL$13:$EK$13<=DN$13*TRANSPOSE($CK$14:$CK$65>=$CK53)),$CL$10:$EK$10,1)) -> 1 | DO53: =PRODUCT(IF(($CL$13:$EK$13<=DO$13*TRANSPOSE($CK$14:$CK$65>=$CK53)),$CL$10:$EK$10,1)) -> 1 | DP53: =PRODUCT(IF(($CL$13:$EK$13<=DP$13*TRANSPOSE($CK$14:$CK$65>=$CK53)),$CL$10:$EK$10,1)) -> 1 | DQ53: =PRODUCT(IF(($CL$13:$EK$13<=DQ$13*TRANSPOSE($CK$14:$CK$65>=$CK53)),$CL$10:$EK$10,1)) -> 1 | DR53: =PRODUCT(IF(($CL$13:$EK$13<=DR$13*TRANSPOSE($CK$14:$CK$65>=$CK53)),$CL$10:$EK$10,1)) -> 1 | DS53: =PRODUCT(IF(($CL$13:$EK$13<=DS$13*TRANSPOSE($CK$14:$CK$65>=$CK53)),$CL$10:$EK$10,1)) -> 1 | DT53: =PRODUCT(IF(($CL$13:$EK$13<=DT$13*TRANSPOSE($CK$14:$CK$65>=$CK53)),$CL$10:$EK$10,1)) -> 1 | DU53: =PRODUCT(IF(($CL$13:$EK$13<=DU$13*TRANSPOSE($CK$14:$CK$65>=$CK53)),$CL$10:$EK$10,1)) -> 1 | DV53: =PRODUCT(IF(($CL$13:$EK$13<=DV$13*TRANSPOSE($CK$14:$CK$65>=$CK53)),$CL$10:$EK$10,1)) -> 1 | DW53: =PRODUCT(IF(($CL$13:$EK$13<=DW$13*TRANSPOSE($CK$14:$CK$65>=$CK53)),$CL$10:$EK$10,1)) -> 1 | DX53: =PRODUCT(IF(($CL$13:$EK$13<=DX$13*TRANSPOSE($CK$14:$CK$65>=$CK53)),$CL$10:$EK$10,1)) -> 1 | DY53: =PRODUCT(IF(($CL$13:$EK$13<=DY$13*TRANSPOSE($CK$14:$CK$65>=$CK53)),$CL$10:$EK$10,1)) -> 1.171596629 | DZ53: =PRODUCT(IF(($CL$13:$EK$13<=DZ$13*TRANSPOSE($CK$14:$CK$65>=$CK53)),$CL$10:$EK$10,1)) -> 1.384896178 | EA53: =PRODUCT(IF(($CL$13:$EK$13<=EA$13*TRANSPOSE($CK$14:$CK$65>=$CK53)),$CL$10:$EK$10,1)) -> 1.622433897 | EB53: =PRODUCT(IF(($CL$13:$EK$13<=EB$13*TRANSPOSE($CK$14:$CK$65>=$CK53)),$CL$10:$EK$10,1)) -> 1.753156056 | EC53: =PRODUCT(IF(($CL$13:$EK$13<=EC$13*TRANSPOSE($CK$14:$CK$65>=$CK53)),$CL$10:$EK$10,1)) -> 1.789120849 | ED53: =PRODUCT(IF(($CL$13:$EK$13<=ED$13*TRANSPOSE($CK$14:$CK$65>=$CK53)),$CL$10:$EK$10,1)) -> 1.807611439 | EE53: =PRODUCT(IF(($CL$13:$EK$13<=EE$13*TRANSPOSE($CK$14:$CK$65>=$CK53)),$CL$10:$EK$10,1)) -> 1.823109275 | EF53: =PRODUCT(IF(($CL$13:$EK$13<=EF$13*TRANSPOSE($CK$14:$CK$65>=$CK53)),$CL$10:$EK$10,1)) -> 1.903944375 | EG53: =PRODUCT(IF(($CL$13:$EK$13<=EG$13*TRANSPOSE($CK$14:$CK$65>=$CK53)),$CL$10:$EK$10,1)) -> 1.949777756 | EH53: =PRODUCT(IF(($CL$13:$EK$13<=EH$13*TRANSPOSE($CK$14:$CK$65>=$CK53)),$CL$10:$EK$10,1)) -> 2.025774103 | EI53: =PRODUCT(IF(($CL$13:$EK$13<=EI$13*TRANSPOSE($CK$14:$CK$65>=$CK53)),$CL$10:$EK$10,1)) -> 2.20727599 | EJ53: =PRODUCT(IF(($CL$13:$EK$13<=EJ$13*TRANSPOSE($CK$14:$CK$65>=$CK53)),$CL$10:$EK$10,1)) -> 2.534064971 | EK53: =PRODUCT(IF(($CL$13:$EK$13<=EK$13*TRANSPOSE($CK$14:$CK$65>=$CK53)),$CL$10:$EK$10,1)) -> 2.701526419
C54: 2013 | AS54: 0.1715202355 | AT54: 0.1251273445 | AU54: 0.08911603778 | AV54: 0.06886280889 | AW54: 0.05652334264 | AX54: 0.05448281532 | AY54: 0.05008386387 | AZ54: 0.04868902943 | BA54: 0.05315736479 | BB54: 0.06228256335 | BC54: 0.0626275983 | BE54: 2012 | BF54: 0.1820588627 | BG54: 0.1768161192 | BH54: 0.1478767489 | BI54: 0.1114803725 | BJ54: 0.1212368576 | BK54: 0.1258177551 | BL54: 0.129109333 | BM54: 0.1478424865 | BN54: 0.1417705911 | BO54: 0.1349456574 | BP54: 0.1287327238 | BQ54: 0.1224519136 | BR54: 0.1175651888 | BS54: 0.1149929479 | BT54: 0.1151389664 | BU54: 0.1133155868 | BV54: 0.111861546 | BW54: 0.1130599211 | BX54: 0.1139958024 | BY54: 0.1113341356 | BZ54: 0.1111761522 | CA54: 0.1104230979 | CB54: 0.1084947687 | CC54: 0.1104629757 | CD54: 0.1122103802 | CE54: 0.1073011652 | CG54: 2012 | CH54: =HLOOKUP($W$7,dat,MATCH(CG54,Data!$B$3:$B$60,0),0)+1 -> 1.182058863 | CK54: 2012 | CL54: =PRODUCT(IF(($CL$13:$EK$13<=CL$13*TRANSPOSE($CK$14:$CK$65>=$CK54)),$CL$10:$EK$10,1)) -> 1 | CM54: =PRODUCT(IF(($CL$13:$EK$13<=CM$13*TRANSPOSE($CK$14:$CK$65>=$CK54)),$CL$10:$EK$10,1)) -> 1 | CN54: =PRODUCT(IF(($CL$13:$EK$13<=CN$13*TRANSPOSE($CK$14:$CK$65>=$CK54)),$CL$10:$EK$10,1)) -> 1 | CO54: =PRODUCT(IF(($CL$13:$EK$13<=CO$13*TRANSPOSE($CK$14:$CK$65>=$CK54)),$CL$10:$EK$10,1)) -> 1 | CP54: =PRODUCT(IF(($CL$13:$EK$13<=CP$13*TRANSPOSE($CK$14:$CK$65>=$CK54)),$CL$10:$EK$10,1)) -> 1 | CQ54: =PRODUCT(IF(($CL$13:$EK$13<=CQ$13*TRANSPOSE($CK$14:$CK$65>=$CK54)),$CL$10:$EK$10,1)) -> 1 | CR54: =PRODUCT(IF(($CL$13:$EK$13<=CR$13*TRANSPOSE($CK$14:$CK$65>=$CK54)),$CL$10:$EK$10,1)) -> 1 | CS54: =PRODUCT(IF(($CL$13:$EK$13<=CS$13*TRANSPOSE($CK$14:$CK$65>=$CK54)),$CL$10:$EK$10,1)) -> 1 | CT54: =PRODUCT(IF(($CL$13:$EK$13<=CT$13*TRANSPOSE($CK$14:$CK$65>=$CK54)),$CL$10:$EK$10,1)) -> 1 | CU54: =PRODUCT(IF(($CL$13:$EK$13<=CU$13*TRANSPOSE($CK$14:$CK$65>=$CK54)),$CL$10:$EK$10,1)) -> 1 | CV54: =PRODUCT(IF(($CL$13:$EK$13<=CV$13*TRANSPOSE($CK$14:$CK$65>=$CK54)),$CL$10:$EK$10,1)) -> 1 | CW54: =PRODUCT(IF(($CL$13:$EK$13<=CW$13*TRANSPOSE($CK$14:$CK$65>=$CK54)),$CL$10:$EK$10,1)) -> 1 | CX54: =PRODUCT(IF(($CL$13:$EK$13<=CX$13*TRANSPOSE($CK$14:$CK$65>=$CK54)),$CL$10:$EK$10,1)) -> 1 | CY54: =PRODUCT(IF(($CL$13:$EK$13<=CY$13*TRANSPOSE($CK$14:$CK$65>=$CK54)),$CL$10:$EK$10,1)) -> 1 | CZ54: =PRODUCT(IF(($CL$13:$EK$13<=CZ$13*TRANSPOSE($CK$14:$CK$65>=$CK54)),$CL$10:$EK$10,1)) -> 1 | DA54: =PRODUCT(IF(($CL$13:$EK$13<=DA$13*TRANSPOSE($CK$14:$CK$65>=$CK54)),$CL$10:$EK$10,1)) -> 1 | DB54: =PRODUCT(IF(($CL$13:$EK$13<=DB$13*TRANSPOSE($CK$14:$CK$65>=$CK54)),$CL$10:$EK$10,1)) -> 1 | DC54: =PRODUCT(IF(($CL$13:$EK$13<=DC$13*TRANSPOSE($CK$14:$CK$65>=$CK54)),$CL$10:$EK$10,1)) -> 1 | DD54: =PRODUCT(IF(($CL$13:$EK$13<=DD$13*TRANSPOSE($CK$14:$CK$65>=$CK54)),$CL$10:$EK$10,1)) -> 1 | DE54: =PRODUCT(IF(($CL$13:$EK$13<=DE$13*TRANSPOSE($CK$14:$CK$65>=$CK54)),$CL$10:$EK$10,1)) -> 1 | DF54: =PRODUCT(IF(($CL$13:$EK$13<=DF$13*TRANSPOSE($CK$14:$CK$65>=$CK54)),$CL$10:$EK$10,1)) -> 1 | DG54: =PRODUCT(IF(($CL$13:$EK$13<=DG$13*TRANSPOSE($CK$14:$CK$65>=$CK54)),$CL$10:$EK$10,1)) -> 1 | DH54: =PRODUCT(IF(($CL$13:$EK$13<=DH$13*TRANSPOSE($CK$14:$CK$65>=$CK54)),$CL$10:$EK$10,1)) -> 1 | DI54: =PRODUCT(IF(($CL$13:$EK$13<=DI$13*TRANSPOSE($CK$14:$CK$65>=$CK54)),$CL$10:$EK$10,1)) -> 1 | DJ54: =PRODUCT(IF(($CL$13:$EK$13<=DJ$13*TRANSPOSE($CK$14:$CK$65>=$CK54)),$CL$10:$EK$10,1)) -> 1 | DK54: =PRODUCT(IF(($CL$13:$EK$13<=DK$13*TRANSPOSE($CK$14:$CK$65>=$CK54)),$CL$10:$EK$10,1)) -> 1 | DL54: =PRODUCT(IF(($CL$13:$EK$13<=DL$13*TRANSPOSE($CK$14:$CK$65>=$CK54)),$CL$10:$EK$10,1)) -> 1 | DM54: =PRODUCT(IF(($CL$13:$EK$13<=DM$13*TRANSPOSE($CK$14:$CK$65>=$CK54)),$CL$10:$EK$10,1)) -> 1 | DN54: =PRODUCT(IF(($CL$13:$EK$13<=DN$13*TRANSPOSE($CK$14:$CK$65>=$CK54)),$CL$10:$EK$10,1)) -> 1 | DO54: =PRODUCT(IF(($CL$13:$EK$13<=DO$13*TRANSPOSE($CK$14:$CK$65>=$CK54)),$CL$10:$EK$10,1)) -> 1 | DP54: =PRODUCT(IF(($CL$13:$EK$13<=DP$13*TRANSPOSE($CK$14:$CK$65>=$CK54)),$CL$10:$EK$10,1)) -> 1 | DQ54: =PRODUCT(IF(($CL$13:$EK$13<=DQ$13*TRANSPOSE($CK$14:$CK$65>=$CK54)),$CL$10:$EK$10,1)) -> 1 | DR54: =PRODUCT(IF(($CL$13:$EK$13<=DR$13*TRANSPOSE($CK$14:$CK$65>=$CK54)),$CL$10:$EK$10,1)) -> 1 | DS54: =PRODUCT(IF(($CL$13:$EK$13<=DS$13*TRANSPOSE($CK$14:$CK$65>=$CK54)),$CL$10:$EK$10,1)) -> 1 | DT54: =PRODUCT(IF(($CL$13:$EK$13<=DT$13*TRANSPOSE($CK$14:$CK$65>=$CK54)),$CL$10:$EK$10,1)) -> 1 | DU54: =PRODUCT(IF(($CL$13:$EK$13<=DU$13*TRANSPOSE($CK$14:$CK$65>=$CK54)),$CL$10:$EK$10,1)) -> 1 | DV54: =PRODUCT(IF(($CL$13:$EK$13<=DV$13*TRANSPOSE($CK$14:$CK$65>=$CK54)),$CL$10:$EK$10,1)) -> 1 | DW54: =PRODUCT(IF(($CL$13:$EK$13<=DW$13*TRANSPOSE($CK$14:$CK$65>=$CK54)),$CL$10:$EK$10,1)) -> 1 | DX54: =PRODUCT(IF(($CL$13:$EK$13<=DX$13*TRANSPOSE($CK$14:$CK$65>=$CK54)),$CL$10:$EK$10,1)) -> 1 | DY54: =PRODUCT(IF(($CL$13:$EK$13<=DY$13*TRANSPOSE($CK$14:$CK$65>=$CK54)),$CL$10:$EK$10,1)) -> 1 | DZ54: =PRODUCT(IF(($CL$13:$EK$13<=DZ$13*TRANSPOSE($CK$14:$CK$65>=$CK54)),$CL$10:$EK$10,1)) -> 1.182058863 | EA54: =PRODUCT(IF(($CL$13:$EK$13<=EA$13*TRANSPOSE($CK$14:$CK$65>=$CK54)),$CL$10:$EK$10,1)) -> 1.384805877 | EB54: =PRODUCT(IF(($CL$13:$EK$13<=EB$13*TRANSPOSE($CK$14:$CK$65>=$CK54)),$CL$10:$EK$10,1)) -> 1.496381957 | EC54: =PRODUCT(IF(($CL$13:$EK$13<=EC$13*TRANSPOSE($CK$14:$CK$65>=$CK54)),$CL$10:$EK$10,1)) -> 1.527079206 | ED54: =PRODUCT(IF(($CL$13:$EK$13<=ED$13*TRANSPOSE($CK$14:$CK$65>=$CK54)),$CL$10:$EK$10,1)) -> 1.542861592 | EE54: =PRODUCT(IF(($CL$13:$EK$13<=EE$13*TRANSPOSE($CK$14:$CK$65>=$CK54)),$CL$10:$EK$10,1)) -> 1.556089553 | EF54: =PRODUCT(IF(($CL$13:$EK$13<=EF$13*TRANSPOSE($CK$14:$CK$65>=$CK54)),$CL$10:$EK$10,1)) -> 1.625085228 | EG54: =PRODUCT(IF(($CL$13:$EK$13<=EG$13*TRANSPOSE($CK$14:$CK$65>=$CK54)),$CL$10:$EK$10,1)) -> 1.664205673 | EH54: =PRODUCT(IF(($CL$13:$EK$13<=EH$13*TRANSPOSE($CK$14:$CK$65>=$CK54)),$CL$10:$EK$10,1)) -> 1.729071298 | EI54: =PRODUCT(IF(($CL$13:$EK$13<=EI$13*TRANSPOSE($CK$14:$CK$65>=$CK54)),$CL$10:$EK$10,1)) -> 1.883989708 | EJ54: =PRODUCT(IF(($CL$13:$EK$13<=EJ$13*TRANSPOSE($CK$14:$CK$65>=$CK54)),$CL$10:$EK$10,1)) -> 2.162915896 | EK54: =PRODUCT(IF(($CL$13:$EK$13<=EK$13*TRANSPOSE($CK$14:$CK$65>=$CK54)),$CL$10:$EK$10,1)) -> 2.305850284
C55: 2014 | AT55: =IF(EB56=1,"",EB56^(1/(EB$13-$CK56+1))-1) -> 0.08057163935 | AU55: =IF(EC56=1,"",EC56^(1/(EC$13-$CK56+1))-1) -> 0.05011372003 | AV55: 0.03668311074 | AW55: 0.02958314033 | AX55: 0.03251756597 | AY55: 0.03110529404 | AZ55: 0.03222615133 | BA55: 0.03922887109 | BB55: 0.05079197714 | BC55: 0.05231126796 | BE55: 2013 | BF55: 0.1715202355 | BG55: 0.1767777518 | BH55: 0.1750481699 | BI55: 0.1537425054 | BJ55: 0.1232369906 | BK55: 0.1294649815 | BL55: 0.132235866 | BM55: 0.1343255694 | BN55: 0.1504495364 | BO55: 0.1447112388 | BP55: 0.1382228906 | BQ55: 0.1322378596 | BR55: 0.1261523129 | BS55: 0.1213353235 | BT55: 0.1186750846 | BU55: 0.1185819108 | BV55: 0.1166578996 | BW55: 0.1150947486 | BX55: 0.1160627437 | BY55: 0.1168037573 | BZ55: 0.1141287344 | CA55: 0.1138503901 | CB55: 0.1130120036 | CC55: 0.1110518342 | CD55: 0.112843034 | CE55: 0.1144350073 | CG55: 2013 | CH55: =HLOOKUP($W$7,dat,MATCH(CG55,Data!$B$3:$B$60,0),0)+1 -> 1.171520235 | CK55: 2013 | CL55: =PRODUCT(IF(($CL$13:$EK$13<=CL$13*TRANSPOSE($CK$14:$CK$65>=$CK55)),$CL$10:$EK$10,1)) -> 1 | CM55: =PRODUCT(IF(($CL$13:$EK$13<=CM$13*TRANSPOSE($CK$14:$CK$65>=$CK55)),$CL$10:$EK$10,1)) -> 1 | CN55: =PRODUCT(IF(($CL$13:$EK$13<=CN$13*TRANSPOSE($CK$14:$CK$65>=$CK55)),$CL$10:$EK$10,1)) -> 1 | CO55: =PRODUCT(IF(($CL$13:$EK$13<=CO$13*TRANSPOSE($CK$14:$CK$65>=$CK55)),$CL$10:$EK$10,1)) -> 1 | CP55: =PRODUCT(IF(($CL$13:$EK$13<=CP$13*TRANSPOSE($CK$14:$CK$65>=$CK55)),$CL$10:$EK$10,1)) -> 1 | CQ55: =PRODUCT(IF(($CL$13:$EK$13<=CQ$13*TRANSPOSE($CK$14:$CK$65>=$CK55)),$CL$10:$EK$10,1)) -> 1 | CR55: =PRODUCT(IF(($CL$13:$EK$13<=CR$13*TRANSPOSE($CK$14:$CK$65>=$CK55)),$CL$10:$EK$10,1)) -> 1 | CS55: =PRODUCT(IF(($CL$13:$EK$13<=CS$13*TRANSPOSE($CK$14:$CK$65>=$CK55)),$CL$10:$EK$10,1)) -> 1 | CT55: =PRODUCT(IF(($CL$13:$EK$13<=CT$13*TRANSPOSE($CK$14:$CK$65>=$CK55)),$CL$10:$EK$10,1)) -> 1 | CU55: =PRODUCT(IF(($CL$13:$EK$13<=CU$13*TRANSPOSE($CK$14:$CK$65>=$CK55)),$CL$10:$EK$10,1)) -> 1 | CV55: =PRODUCT(IF(($CL$13:$EK$13<=CV$13*TRANSPOSE($CK$14:$CK$65>=$CK55)),$CL$10:$EK$10,1)) -> 1 | CW55: =PRODUCT(IF(($CL$13:$EK$13<=CW$13*TRANSPOSE($CK$14:$CK$65>=$CK55)),$CL$10:$EK$10,1)) -> 1 | CX55: =PRODUCT(IF(($CL$13:$EK$13<=CX$13*TRANSPOSE($CK$14:$CK$65>=$CK55)),$CL$10:$EK$10,1)) -> 1 | CY55: =PRODUCT(IF(($CL$13:$EK$13<=CY$13*TRANSPOSE($CK$14:$CK$65>=$CK55)),$CL$10:$EK$10,1)) -> 1 | CZ55: =PRODUCT(IF(($CL$13:$EK$13<=CZ$13*TRANSPOSE($CK$14:$CK$65>=$CK55)),$CL$10:$EK$10,1)) -> 1 | DA55: =PRODUCT(IF(($CL$13:$EK$13<=DA$13*TRANSPOSE($CK$14:$CK$65>=$CK55)),$CL$10:$EK$10,1)) -> 1 | DB55: =PRODUCT(IF(($CL$13:$EK$13<=DB$13*TRANSPOSE($CK$14:$CK$65>=$CK55)),$CL$10:$EK$10,1)) -> 1 | DC55: =PRODUCT(IF(($CL$13:$EK$13<=DC$13*TRANSPOSE($CK$14:$CK$65>=$CK55)),$CL$10:$EK$10,1)) -> 1 | DD55: =PRODUCT(IF(($CL$13:$EK$13<=DD$13*TRANSPOSE($CK$14:$CK$65>=$CK55)),$CL$10:$EK$10,1)) -> 1 | DE55: =PRODUCT(IF(($CL$13:$EK$13<=DE$13*TRANSPOSE($CK$14:$CK$65>=$CK55)),$CL$10:$EK$10,1)) -> 1 | DF55: =PRODUCT(IF(($CL$13:$EK$13<=DF$13*TRANSPOSE($CK$14:$CK$65>=$CK55)),$CL$10:$EK$10,1)) -> 1 | DG55: =PRODUCT(IF(($CL$13:$EK$13<=DG$13*TRANSPOSE($CK$14:$CK$65>=$CK55)),$CL$10:$EK$10,1)) -> 1 | DH55: =PRODUCT(IF(($CL$13:$EK$13<=DH$13*TRANSPOSE($CK$14:$CK$65>=$CK55)),$CL$10:$EK$10,1)) -> 1 | DI55: =PRODUCT(IF(($CL$13:$EK$13<=DI$13*TRANSPOSE($CK$14:$CK$65>=$CK55)),$CL$10:$EK$10,1)) -> 1 | DJ55: =PRODUCT(IF(($CL$13:$EK$13<=DJ$13*TRANSPOSE($CK$14:$CK$65>=$CK55)),$CL$10:$EK$10,1)) -> 1 | DK55: =PRODUCT(IF(($CL$13:$EK$13<=DK$13*TRANSPOSE($CK$14:$CK$65>=$CK55)),$CL$10:$EK$10,1)) -> 1 | DL55: =PRODUCT(IF(($CL$13:$EK$13<=DL$13*TRANSPOSE($CK$14:$CK$65>=$CK55)),$CL$10:$EK$10,1)) -> 1 | DM55: =PRODUCT(IF(($CL$13:$EK$13<=DM$13*TRANSPOSE($CK$14:$CK$65>=$CK55)),$CL$10:$EK$10,1)) -> 1 | DN55: =PRODUCT(IF(($CL$13:$EK$13<=DN$13*TRANSPOSE($CK$14:$CK$65>=$CK55)),$CL$10:$EK$10,1)) -> 1 | DO55: =PRODUCT(IF(($CL$13:$EK$13<=DO$13*TRANSPOSE($CK$14:$CK$65>=$CK55)),$CL$10:$EK$10,1)) -> 1 | DP55: =PRODUCT(IF(($CL$13:$EK$13<=DP$13*TRANSPOSE($CK$14:$CK$65>=$CK55)),$CL$10:$EK$10,1)) -> 1 | DQ55: =PRODUCT(IF(($CL$13:$EK$13<=DQ$13*TRANSPOSE($CK$14:$CK$65>=$CK55)),$CL$10:$EK$10,1)) -> 1 | DR55: =PRODUCT(IF(($CL$13:$EK$13<=DR$13*TRANSPOSE($CK$14:$CK$65>=$CK55)),$CL$10:$EK$10,1)) -> 1 | DS55: =PRODUCT(IF(($CL$13:$EK$13<=DS$13*TRANSPOSE($CK$14:$CK$65>=$CK55)),$CL$10:$EK$10,1)) -> 1 | DT55: =PRODUCT(IF(($CL$13:$EK$13<=DT$13*TRANSPOSE($CK$14:$CK$65>=$CK55)),$CL$10:$EK$10,1)) -> 1 | DU55: =PRODUCT(IF(($CL$13:$EK$13<=DU$13*TRANSPOSE($CK$14:$CK$65>=$CK55)),$CL$10:$EK$10,1)) -> 1 | DV55: =PRODUCT(IF(($CL$13:$EK$13<=DV$13*TRANSPOSE($CK$14:$CK$65>=$CK55)),$CL$10:$EK$10,1)) -> 1 | DW55: =PRODUCT(IF(($CL$13:$EK$13<=DW$13*TRANSPOSE($CK$14:$CK$65>=$CK55)),$CL$10:$EK$10,1)) -> 1 | DX55: =PRODUCT(IF(($CL$13:$EK$13<=DX$13*TRANSPOSE($CK$14:$CK$65>=$CK55)),$CL$10:$EK$10,1)) -> 1 | DY55: =PRODUCT(IF(($CL$13:$EK$13<=DY$13*TRANSPOSE($CK$14:$CK$65>=$CK55)),$CL$10:$EK$10,1)) -> 1 | DZ55: =PRODUCT(IF(($CL$13:$EK$13<=DZ$13*TRANSPOSE($CK$14:$CK$65>=$CK55)),$CL$10:$EK$10,1)) -> 1 | EA55: =PRODUCT(IF(($CL$13:$EK$13<=EA$13*TRANSPOSE($CK$14:$CK$65>=$CK55)),$CL$10:$EK$10,1)) -> 1.171520235 | EB55: =PRODUCT(IF(($CL$13:$EK$13<=EB$13*TRANSPOSE($CK$14:$CK$65>=$CK55)),$CL$10:$EK$10,1)) -> 1.265911541 | EC55: =PRODUCT(IF(($CL$13:$EK$13<=EC$13*TRANSPOSE($CK$14:$CK$65>=$CK55)),$CL$10:$EK$10,1)) -> 1.291880848 | ED55: =PRODUCT(IF(($CL$13:$EK$13<=ED$13*TRANSPOSE($CK$14:$CK$65>=$CK55)),$CL$10:$EK$10,1)) -> 1.305232455 | EE55: =PRODUCT(IF(($CL$13:$EK$13<=EE$13*TRANSPOSE($CK$14:$CK$65>=$CK55)),$CL$10:$EK$10,1)) -> 1.316423067 | EF55: =PRODUCT(IF(($CL$13:$EK$13<=EF$13*TRANSPOSE($CK$14:$CK$65>=$CK55)),$CL$10:$EK$10,1)) -> 1.374792136 | EG55: =PRODUCT(IF(($CL$13:$EK$13<=EG$13*TRANSPOSE($CK$14:$CK$65>=$CK55)),$CL$10:$EK$10,1)) -> 1.40788731 | EH55: =PRODUCT(IF(($CL$13:$EK$13<=EH$13*TRANSPOSE($CK$14:$CK$65>=$CK55)),$CL$10:$EK$10,1)) -> 1.462762433 | EI55: =PRODUCT(IF(($CL$13:$EK$13<=EI$13*TRANSPOSE($CK$14:$CK$65>=$CK55)),$CL$10:$EK$10,1)) -> 1.593820551 | EJ55: =PRODUCT(IF(($CL$13:$EK$13<=EJ$13*TRANSPOSE($CK$14:$CK$65>=$CK55)),$CL$10:$EK$10,1)) -> 1.829786962 | EK55: =PRODUCT(IF(($CL$13:$EK$13<=EK$13*TRANSPOSE($CK$14:$CK$65>=$CK55)),$CL$10:$EK$10,1)) -> 1.950706819
C56: 2015 | AU56: =IF(EC57=1,"",EC57^(1/(EC$13-$CK57+1))-1) -> 0.02051431376 | AV56: 0.01541190852 | AW56: 0.01312735432 | AX56: 0.02084174201 | AY56: 0.02148714842 | AZ56: 0.02438153104 | BA56: 0.03345332323 | BB56: 0.04712769497 | BC56: 0.04921720802 | BE56: 2014 | BF56: 0.08057163935 | BG56: 0.1251273445 | BH56: 0.1437931404 | BI56: 0.1506815351 | BJ56: 0.1387223042 | BK56: 0.1160108714 | BL56: 0.1223470505 | BM56: 0.1256451127 | BN56: 0.1282232305 | BO56: 0.1432630635 | BP56: 0.1387263403 | BQ56: 0.1333033421 | BR56: 0.128177299 | BS56: 0.1228337281 | BT56: 0.1185705321 | BU56: 0.1162547384 | BV56: 0.116309452 | BW56: 0.1146218568 | BX56: 0.1132505481 | BY56: 0.1142608162 | BZ56: 0.1150511871 | CA56: 0.1125810449 | CB56: 0.112382401 | CC56: 0.1116410771 | CD56: 0.109816278 | CE56: 0.1115841865 | CG56: 2014 | CH56: =HLOOKUP($W$7,dat,MATCH(CG56,Data!$B$3:$B$60,0),0)+1 -> 1.080571639 | CK56: 2014 | CL56: =PRODUCT(IF(($CL$13:$EK$13<=CL$13*TRANSPOSE($CK$14:$CK$65>=$CK56)),$CL$10:$EK$10,1)) -> 1 | CM56: =PRODUCT(IF(($CL$13:$EK$13<=CM$13*TRANSPOSE($CK$14:$CK$65>=$CK56)),$CL$10:$EK$10,1)) -> 1 | CN56: =PRODUCT(IF(($CL$13:$EK$13<=CN$13*TRANSPOSE($CK$14:$CK$65>=$CK56)),$CL$10:$EK$10,1)) -> 1 | CO56: =PRODUCT(IF(($CL$13:$EK$13<=CO$13*TRANSPOSE($CK$14:$CK$65>=$CK56)),$CL$10:$EK$10,1)) -> 1 | CP56: =PRODUCT(IF(($CL$13:$EK$13<=CP$13*TRANSPOSE($CK$14:$CK$65>=$CK56)),$CL$10:$EK$10,1)) -> 1 | CQ56: =PRODUCT(IF(($CL$13:$EK$13<=CQ$13*TRANSPOSE($CK$14:$CK$65>=$CK56)),$CL$10:$EK$10,1)) -> 1 | CR56: =PRODUCT(IF(($CL$13:$EK$13<=CR$13*TRANSPOSE($CK$14:$CK$65>=$CK56)),$CL$10:$EK$10,1)) -> 1 | CS56: =PRODUCT(IF(($CL$13:$EK$13<=CS$13*TRANSPOSE($CK$14:$CK$65>=$CK56)),$CL$10:$EK$10,1)) -> 1 | CT56: =PRODUCT(IF(($CL$13:$EK$13<=CT$13*TRANSPOSE($CK$14:$CK$65>=$CK56)),$CL$10:$EK$10,1)) -> 1 | CU56: =PRODUCT(IF(($CL$13:$EK$13<=CU$13*TRANSPOSE($CK$14:$CK$65>=$CK56)),$CL$10:$EK$10,1)) -> 1 | CV56: =PRODUCT(IF(($CL$13:$EK$13<=CV$13*TRANSPOSE($CK$14:$CK$65>=$CK56)),$CL$10:$EK$10,1)) -> 1 | CW56: =PRODUCT(IF(($CL$13:$EK$13<=CW$13*TRANSPOSE($CK$14:$CK$65>=$CK56)),$CL$10:$EK$10,1)) -> 1 | CX56: =PRODUCT(IF(($CL$13:$EK$13<=CX$13*TRANSPOSE($CK$14:$CK$65>=$CK56)),$CL$10:$EK$10,1)) -> 1 | CY56: =PRODUCT(IF(($CL$13:$EK$13<=CY$13*TRANSPOSE($CK$14:$CK$65>=$CK56)),$CL$10:$EK$10,1)) -> 1 | CZ56: =PRODUCT(IF(($CL$13:$EK$13<=CZ$13*TRANSPOSE($CK$14:$CK$65>=$CK56)),$CL$10:$EK$10,1)) -> 1 | DA56: =PRODUCT(IF(($CL$13:$EK$13<=DA$13*TRANSPOSE($CK$14:$CK$65>=$CK56)),$CL$10:$EK$10,1)) -> 1 | DB56: =PRODUCT(IF(($CL$13:$EK$13<=DB$13*TRANSPOSE($CK$14:$CK$65>=$CK56)),$CL$10:$EK$10,1)) -> 1 | DC56: =PRODUCT(IF(($CL$13:$EK$13<=DC$13*TRANSPOSE($CK$14:$CK$65>=$CK56)),$CL$10:$EK$10,1)) -> 1 | DD56: =PRODUCT(IF(($CL$13:$EK$13<=DD$13*TRANSPOSE($CK$14:$CK$65>=$CK56)),$CL$10:$EK$10,1)) -> 1 | DE56: =PRODUCT(IF(($CL$13:$EK$13<=DE$13*TRANSPOSE($CK$14:$CK$65>=$CK56)),$CL$10:$EK$10,1)) -> 1 | DF56: =PRODUCT(IF(($CL$13:$EK$13<=DF$13*TRANSPOSE($CK$14:$CK$65>=$CK56)),$CL$10:$EK$10,1)) -> 1 | DG56: =PRODUCT(IF(($CL$13:$EK$13<=DG$13*TRANSPOSE($CK$14:$CK$65>=$CK56)),$CL$10:$EK$10,1)) -> 1 | DH56: =PRODUCT(IF(($CL$13:$EK$13<=DH$13*TRANSPOSE($CK$14:$CK$65>=$CK56)),$CL$10:$EK$10,1)) -> 1 | DI56: =PRODUCT(IF(($CL$13:$EK$13<=DI$13*TRANSPOSE($CK$14:$CK$65>=$CK56)),$CL$10:$EK$10,1)) -> 1 | DJ56: =PRODUCT(IF(($CL$13:$EK$13<=DJ$13*TRANSPOSE($CK$14:$CK$65>=$CK56)),$CL$10:$EK$10,1)) -> 1 | DK56: =PRODUCT(IF(($CL$13:$EK$13<=DK$13*TRANSPOSE($CK$14:$CK$65>=$CK56)),$CL$10:$EK$10,1)) -> 1 | DL56: =PRODUCT(IF(($CL$13:$EK$13<=DL$13*TRANSPOSE($CK$14:$CK$65>=$CK56)),$CL$10:$EK$10,1)) -> 1 | DM56: =PRODUCT(IF(($CL$13:$EK$13<=DM$13*TRANSPOSE($CK$14:$CK$65>=$CK56)),$CL$10:$EK$10,1)) -> 1 | DN56: =PRODUCT(IF(($CL$13:$EK$13<=DN$13*TRANSPOSE($CK$14:$CK$65>=$CK56)),$CL$10:$EK$10,1)) -> 1 | DO56: =PRODUCT(IF(($CL$13:$EK$13<=DO$13*TRANSPOSE($CK$14:$CK$65>=$CK56)),$CL$10:$EK$10,1)) -> 1 | DP56: =PRODUCT(IF(($CL$13:$EK$13<=DP$13*TRANSPOSE($CK$14:$CK$65>=$CK56)),$CL$10:$EK$10,1)) -> 1 | DQ56: =PRODUCT(IF(($CL$13:$EK$13<=DQ$13*TRANSPOSE($CK$14:$CK$65>=$CK56)),$CL$10:$EK$10,1)) -> 1 | DR56: =PRODUCT(IF(($CL$13:$EK$13<=DR$13*TRANSPOSE($CK$14:$CK$65>=$CK56)),$CL$10:$EK$10,1)) -> 1 | DS56: =PRODUCT(IF(($CL$13:$EK$13<=DS$13*TRANSPOSE($CK$14:$CK$65>=$CK56)),$CL$10:$EK$10,1)) -> 1 | DT56: =PRODUCT(IF(($CL$13:$EK$13<=DT$13*TRANSPOSE($CK$14:$CK$65>=$CK56)),$CL$10:$EK$10,1)) -> 1 | DU56: =PRODUCT(IF(($CL$13:$EK$13<=DU$13*TRANSPOSE($CK$14:$CK$65>=$CK56)),$CL$10:$EK$10,1)) -> 1 | DV56: =PRODUCT(IF(($CL$13:$EK$13<=DV$13*TRANSPOSE($CK$14:$CK$65>=$CK56)),$CL$10:$EK$10,1)) -> 1 | DW56: =PRODUCT(IF(($CL$13:$EK$13<=DW$13*TRANSPOSE($CK$14:$CK$65>=$CK56)),$CL$10:$EK$10,1)) -> 1 | DX56: =PRODUCT(IF(($CL$13:$EK$13<=DX$13*TRANSPOSE($CK$14:$CK$65>=$CK56)),$CL$10:$EK$10,1)) -> 1 | DY56: =PRODUCT(IF(($CL$13:$EK$13<=DY$13*TRANSPOSE($CK$14:$CK$65>=$CK56)),$CL$10:$EK$10,1)) -> 1 | DZ56: =PRODUCT(IF(($CL$13:$EK$13<=DZ$13*TRANSPOSE($CK$14:$CK$65>=$CK56)),$CL$10:$EK$10,1)) -> 1 | EA56: =PRODUCT(IF(($CL$13:$EK$13<=EA$13*TRANSPOSE($CK$14:$CK$65>=$CK56)),$CL$10:$EK$10,1)) -> 1 | EB56: =PRODUCT(IF(($CL$13:$EK$13<=EB$13*TRANSPOSE($CK$14:$CK$65>=$CK56)),$CL$10:$EK$10,1)) -> 1.080571639 | EC56: =PRODUCT(IF(($CL$13:$EK$13<=EC$13*TRANSPOSE($CK$14:$CK$65>=$CK56)),$CL$10:$EK$10,1)) -> 1.102738825 | ED56: =PRODUCT(IF(($CL$13:$EK$13<=ED$13*TRANSPOSE($CK$14:$CK$65>=$CK56)),$CL$10:$EK$10,1)) -> 1.114135647 | EE56: =PRODUCT(IF(($CL$13:$EK$13<=EE$13*TRANSPOSE($CK$14:$CK$65>=$CK56)),$CL$10:$EK$10,1)) -> 1.123687861 | EF56: =PRODUCT(IF(($CL$13:$EK$13<=EF$13*TRANSPOSE($CK$14:$CK$65>=$CK56)),$CL$10:$EK$10,1)) -> 1.173511216 | EG56: =PRODUCT(IF(($CL$13:$EK$13<=EG$13*TRANSPOSE($CK$14:$CK$65>=$CK56)),$CL$10:$EK$10,1)) -> 1.201760984 | EH56: =PRODUCT(IF(($CL$13:$EK$13<=EH$13*TRANSPOSE($CK$14:$CK$65>=$CK56)),$CL$10:$EK$10,1)) -> 1.248601935 | EI56: =PRODUCT(IF(($CL$13:$EK$13<=EI$13*TRANSPOSE($CK$14:$CK$65>=$CK56)),$CL$10:$EK$10,1)) -> 1.360472062 | EJ56: =PRODUCT(IF(($CL$13:$EK$13<=EJ$13*TRANSPOSE($CK$14:$CK$65>=$CK56)),$CL$10:$EK$10,1)) -> 1.561891043 | EK56: =PRODUCT(IF(($CL$13:$EK$13<=EK$13*TRANSPOSE($CK$14:$CK$65>=$CK56)),$CL$10:$EK$10,1)) -> 1.665107234
C57: 2016 | AV57: =IF(ED58=1,"",ED58^(1/(ED$13-$CK58+1))-1) -> 0.01033501448 | AW57: 0.009453950204 | AX57: 0.02095090811 | AY57: 0.02173050196 | AZ57: 0.02515673128 | BA57: 0.03562571851 | BB57: 0.05098584534 | BC57: 0.05286137312 | BE57: 2015 | BF57: 0.02051431376 | BG57: 0.05011372003 | BH57: 0.08911603778 | BI57: 0.1116431364 | BJ57: 0.1233832273 | BK57: 0.1181104492 | BL57: 0.1018399675 | BM57: 0.1090820104 | BN57: 0.113448446 | BO57: 0.1169595457 | BP57: 0.1315191105 | BQ57: 0.1283729793 | BR57: 0.1242013106 | BS57: 0.1201238712 | BT57: 0.1157040932 | BU57: 0.1121749445 | BV57: 0.1103821695 | BW57: 0.1107590284 | BX57: 0.1094591609 | BY57: 0.1084196767 | BZ57: 0.1096074046 | CA57: 0.1105699262 | CB57: 0.108410614 | CC57: 0.1083943856 | CD57: 0.1078444004 | CE57: 0.1062412792 | CG57: 2015 | CH57: =HLOOKUP($W$7,dat,MATCH(CG57,Data!$B$3:$B$60,0),0)+1 -> 1.020514314 | CK57: 2015 | CL57: =PRODUCT(IF(($CL$13:$EK$13<=CL$13*TRANSPOSE($CK$14:$CK$65>=$CK57)),$CL$10:$EK$10,1)) -> 1 | CM57: =PRODUCT(IF(($CL$13:$EK$13<=CM$13*TRANSPOSE($CK$14:$CK$65>=$CK57)),$CL$10:$EK$10,1)) -> 1 | CN57: =PRODUCT(IF(($CL$13:$EK$13<=CN$13*TRANSPOSE($CK$14:$CK$65>=$CK57)),$CL$10:$EK$10,1)) -> 1 | CO57: =PRODUCT(IF(($CL$13:$EK$13<=CO$13*TRANSPOSE($CK$14:$CK$65>=$CK57)),$CL$10:$EK$10,1)) -> 1 | CP57: =PRODUCT(IF(($CL$13:$EK$13<=CP$13*TRANSPOSE($CK$14:$CK$65>=$CK57)),$CL$10:$EK$10,1)) -> 1 | CQ57: =PRODUCT(IF(($CL$13:$EK$13<=CQ$13*TRANSPOSE($CK$14:$CK$65>=$CK57)),$CL$10:$EK$10,1)) -> 1 | CR57: =PRODUCT(IF(($CL$13:$EK$13<=CR$13*TRANSPOSE($CK$14:$CK$65>=$CK57)),$CL$10:$EK$10,1)) -> 1 | CS57: =PRODUCT(IF(($CL$13:$EK$13<=CS$13*TRANSPOSE($CK$14:$CK$65>=$CK57)),$CL$10:$EK$10,1)) -> 1 | CT57: =PRODUCT(IF(($CL$13:$EK$13<=CT$13*TRANSPOSE($CK$14:$CK$65>=$CK57)),$CL$10:$EK$10,1)) -> 1 | CU57: =PRODUCT(IF(($CL$13:$EK$13<=CU$13*TRANSPOSE($CK$14:$CK$65>=$CK57)),$CL$10:$EK$10,1)) -> 1 | CV57: =PRODUCT(IF(($CL$13:$EK$13<=CV$13*TRANSPOSE($CK$14:$CK$65>=$CK57)),$CL$10:$EK$10,1)) -> 1 | CW57: =PRODUCT(IF(($CL$13:$EK$13<=CW$13*TRANSPOSE($CK$14:$CK$65>=$CK57)),$CL$10:$EK$10,1)) -> 1 | CX57: =PRODUCT(IF(($CL$13:$EK$13<=CX$13*TRANSPOSE($CK$14:$CK$65>=$CK57)),$CL$10:$EK$10,1)) -> 1 | CY57: =PRODUCT(IF(($CL$13:$EK$13<=CY$13*TRANSPOSE($CK$14:$CK$65>=$CK57)),$CL$10:$EK$10,1)) -> 1 | CZ57: =PRODUCT(IF(($CL$13:$EK$13<=CZ$13*TRANSPOSE($CK$14:$CK$65>=$CK57)),$CL$10:$EK$10,1)) -> 1 | DA57: =PRODUCT(IF(($CL$13:$EK$13<=DA$13*TRANSPOSE($CK$14:$CK$65>=$CK57)),$CL$10:$EK$10,1)) -> 1 | DB57: =PRODUCT(IF(($CL$13:$EK$13<=DB$13*TRANSPOSE($CK$14:$CK$65>=$CK57)),$CL$10:$EK$10,1)) -> 1 | DC57: =PRODUCT(IF(($CL$13:$EK$13<=DC$13*TRANSPOSE($CK$14:$CK$65>=$CK57)),$CL$10:$EK$10,1)) -> 1 | DD57: =PRODUCT(IF(($CL$13:$EK$13<=DD$13*TRANSPOSE($CK$14:$CK$65>=$CK57)),$CL$10:$EK$10,1)) -> 1 | DE57: =PRODUCT(IF(($CL$13:$EK$13<=DE$13*TRANSPOSE($CK$14:$CK$65>=$CK57)),$CL$10:$EK$10,1)) -> 1 | DF57: =PRODUCT(IF(($CL$13:$EK$13<=DF$13*TRANSPOSE($CK$14:$CK$65>=$CK57)),$CL$10:$EK$10,1)) -> 1 | DG57: =PRODUCT(IF(($CL$13:$EK$13<=DG$13*TRANSPOSE($CK$14:$CK$65>=$CK57)),$CL$10:$EK$10,1)) -> 1 | DH57: =PRODUCT(IF(($CL$13:$EK$13<=DH$13*TRANSPOSE($CK$14:$CK$65>=$CK57)),$CL$10:$EK$10,1)) -> 1 | DI57: =PRODUCT(IF(($CL$13:$EK$13<=DI$13*TRANSPOSE($CK$14:$CK$65>=$CK57)),$CL$10:$EK$10,1)) -> 1 | DJ57: =PRODUCT(IF(($CL$13:$EK$13<=DJ$13*TRANSPOSE($CK$14:$CK$65>=$CK57)),$CL$10:$EK$10,1)) -> 1 | DK57: =PRODUCT(IF(($CL$13:$EK$13<=DK$13*TRANSPOSE($CK$14:$CK$65>=$CK57)),$CL$10:$EK$10,1)) -> 1 | DL57: =PRODUCT(IF(($CL$13:$EK$13<=DL$13*TRANSPOSE($CK$14:$CK$65>=$CK57)),$CL$10:$EK$10,1)) -> 1 | DM57: =PRODUCT(IF(($CL$13:$EK$13<=DM$13*TRANSPOSE($CK$14:$CK$65>=$CK57)),$CL$10:$EK$10,1)) -> 1 | DN57: =PRODUCT(IF(($CL$13:$EK$13<=DN$13*TRANSPOSE($CK$14:$CK$65>=$CK57)),$CL$10:$EK$10,1)) -> 1 | DO57: =PRODUCT(IF(($CL$13:$EK$13<=DO$13*TRANSPOSE($CK$14:$CK$65>=$CK57)),$CL$10:$EK$10,1)) -> 1 | DP57: =PRODUCT(IF(($CL$13:$EK$13<=DP$13*TRANSPOSE($CK$14:$CK$65>=$CK57)),$CL$10:$EK$10,1)) -> 1 | DQ57: =PRODUCT(IF(($CL$13:$EK$13<=DQ$13*TRANSPOSE($CK$14:$CK$65>=$CK57)),$CL$10:$EK$10,1)) -> 1 | DR57: =PRODUCT(IF(($CL$13:$EK$13<=DR$13*TRANSPOSE($CK$14:$CK$65>=$CK57)),$CL$10:$EK$10,1)) -> 1 | DS57: =PRODUCT(IF(($CL$13:$EK$13<=DS$13*TRANSPOSE($CK$14:$CK$65>=$CK57)),$CL$10:$EK$10,1)) -> 1 | DT57: =PRODUCT(IF(($CL$13:$EK$13<=DT$13*TRANSPOSE($CK$14:$CK$65>=$CK57)),$CL$10:$EK$10,1)) -> 1 | DU57: =PRODUCT(IF(($CL$13:$EK$13<=DU$13*TRANSPOSE($CK$14:$CK$65>=$CK57)),$CL$10:$EK$10,1)) -> 1 | DV57: =PRODUCT(IF(($CL$13:$EK$13<=DV$13*TRANSPOSE($CK$14:$CK$65>=$CK57)),$CL$10:$EK$10,1)) -> 1 | DW57: =PRODUCT(IF(($CL$13:$EK$13<=DW$13*TRANSPOSE($CK$14:$CK$65>=$CK57)),$CL$10:$EK$10,1)) -> 1 | DX57: =PRODUCT(IF(($CL$13:$EK$13<=DX$13*TRANSPOSE($CK$14:$CK$65>=$CK57)),$CL$10:$EK$10,1)) -> 1 | DY57: =PRODUCT(IF(($CL$13:$EK$13<=DY$13*TRANSPOSE($CK$14:$CK$65>=$CK57)),$CL$10:$EK$10,1)) -> 1 | DZ57: =PRODUCT(IF(($CL$13:$EK$13<=DZ$13*TRANSPOSE($CK$14:$CK$65>=$CK57)),$CL$10:$EK$10,1)) -> 1 | EA57: =PRODUCT(IF(($CL$13:$EK$13<=EA$13*TRANSPOSE($CK$14:$CK$65>=$CK57)),$CL$10:$EK$10,1)) -> 1 | EB57: =PRODUCT(IF(($CL$13:$EK$13<=EB$13*TRANSPOSE($CK$14:$CK$65>=$CK57)),$CL$10:$EK$10,1)) -> 1 | EC57: =PRODUCT(IF(($CL$13:$EK$13<=EC$13*TRANSPOSE($CK$14:$CK$65>=$CK57)),$CL$10:$EK$10,1)) -> 1.020514314 | ED57: =PRODUCT(IF(($CL$13:$EK$13<=ED$13*TRANSPOSE($CK$14:$CK$65>=$CK57)),$CL$10:$EK$10,1)) -> 1.031061344 | EE57: =PRODUCT(IF(($CL$13:$EK$13<=EE$13*TRANSPOSE($CK$14:$CK$65>=$CK57)),$CL$10:$EK$10,1)) -> 1.039901307 | EF57: =PRODUCT(IF(($CL$13:$EK$13<=EF$13*TRANSPOSE($CK$14:$CK$65>=$CK57)),$CL$10:$EK$10,1)) -> 1.086009639 | EG57: =PRODUCT(IF(($CL$13:$EK$13<=EG$13*TRANSPOSE($CK$14:$CK$65>=$CK57)),$CL$10:$EK$10,1)) -> 1.112152994 | EH57: =PRODUCT(IF(($CL$13:$EK$13<=EH$13*TRANSPOSE($CK$14:$CK$65>=$CK57)),$CL$10:$EK$10,1)) -> 1.155501301 | EI57: =PRODUCT(IF(($CL$13:$EK$13<=EI$13*TRANSPOSE($CK$14:$CK$65>=$CK57)),$CL$10:$EK$10,1)) -> 1.259029955 | EJ57: =PRODUCT(IF(($CL$13:$EK$13<=EJ$13*TRANSPOSE($CK$14:$CK$65>=$CK57)),$CL$10:$EK$10,1)) -> 1.44543035 | EK57: =PRODUCT(IF(($CL$13:$EK$13<=EK$13*TRANSPOSE($CK$14:$CK$65>=$CK57)),$CL$10:$EK$10,1)) -> 1.540950339
C58: 2017 | AW58: 0.008573654266 | AX58: 0.0263006111 | AY58: 0.02555748848 | AZ58: 0.02889601107 | BA58: 0.04075932706 | BB58: 0.05791825397 | BC58: 0.05908096524 | BE58: 2016 | BF58: 0.01033501448 | BG58: 0.01541190852 | BH58: 0.03668311074 | BI58: 0.06886280889 | BJ58: 0.09059974936 | BK58: 0.1036995026 | BL58: 0.1020371488 | BM58: 0.08996331727 | BN58: 0.0976499316 | BO58: 0.1026803681 | BP58: 0.1068183469 | BQ58: 0.1208879126 | BR58: 0.1188229055 | BS58: 0.1156586172 | BT58: 0.1124470348 | BU58: 0.1088078706 | BV58: 0.1059098154 | BW58: 0.1045727082 | BX58: 0.1052329613 | BY58: 0.1042795375 | BZ58: 0.1035400323 | CA58: 0.1048903157 | CB58: 0.1060119004 | CC58: 0.1041401596 | CD58: 0.1042951397 | CE58: 0.1039255662 | CG58: 2016 | CH58: =HLOOKUP($W$7,dat,MATCH(CG58,Data!$B$3:$B$60,0),0)+1 -> 1.010335014 | CK58: 2016 | CL58: =PRODUCT(IF(($CL$13:$EK$13<=CL$13*TRANSPOSE($CK$14:$CK$65>=$CK58)),$CL$10:$EK$10,1)) -> 1 | CM58: =PRODUCT(IF(($CL$13:$EK$13<=CM$13*TRANSPOSE($CK$14:$CK$65>=$CK58)),$CL$10:$EK$10,1)) -> 1 | CN58: =PRODUCT(IF(($CL$13:$EK$13<=CN$13*TRANSPOSE($CK$14:$CK$65>=$CK58)),$CL$10:$EK$10,1)) -> 1 | CO58: =PRODUCT(IF(($CL$13:$EK$13<=CO$13*TRANSPOSE($CK$14:$CK$65>=$CK58)),$CL$10:$EK$10,1)) -> 1 | CP58: =PRODUCT(IF(($CL$13:$EK$13<=CP$13*TRANSPOSE($CK$14:$CK$65>=$CK58)),$CL$10:$EK$10,1)) -> 1 | CQ58: =PRODUCT(IF(($CL$13:$EK$13<=CQ$13*TRANSPOSE($CK$14:$CK$65>=$CK58)),$CL$10:$EK$10,1)) -> 1 | CR58: =PRODUCT(IF(($CL$13:$EK$13<=CR$13*TRANSPOSE($CK$14:$CK$65>=$CK58)),$CL$10:$EK$10,1)) -> 1 | CS58: =PRODUCT(IF(($CL$13:$EK$13<=CS$13*TRANSPOSE($CK$14:$CK$65>=$CK58)),$CL$10:$EK$10,1)) -> 1 | CT58: =PRODUCT(IF(($CL$13:$EK$13<=CT$13*TRANSPOSE($CK$14:$CK$65>=$CK58)),$CL$10:$EK$10,1)) -> 1 | CU58: =PRODUCT(IF(($CL$13:$EK$13<=CU$13*TRANSPOSE($CK$14:$CK$65>=$CK58)),$CL$10:$EK$10,1)) -> 1 | CV58: =PRODUCT(IF(($CL$13:$EK$13<=CV$13*TRANSPOSE($CK$14:$CK$65>=$CK58)),$CL$10:$EK$10,1)) -> 1 | CW58: =PRODUCT(IF(($CL$13:$EK$13<=CW$13*TRANSPOSE($CK$14:$CK$65>=$CK58)),$CL$10:$EK$10,1)) -> 1 | CX58: =PRODUCT(IF(($CL$13:$EK$13<=CX$13*TRANSPOSE($CK$14:$CK$65>=$CK58)),$CL$10:$EK$10,1)) -> 1 | CY58: =PRODUCT(IF(($CL$13:$EK$13<=CY$13*TRANSPOSE($CK$14:$CK$65>=$CK58)),$CL$10:$EK$10,1)) -> 1 | CZ58: =PRODUCT(IF(($CL$13:$EK$13<=CZ$13*TRANSPOSE($CK$14:$CK$65>=$CK58)),$CL$10:$EK$10,1)) -> 1 | DA58: =PRODUCT(IF(($CL$13:$EK$13<=DA$13*TRANSPOSE($CK$14:$CK$65>=$CK58)),$CL$10:$EK$10,1)) -> 1 | DB58: =PRODUCT(IF(($CL$13:$EK$13<=DB$13*TRANSPOSE($CK$14:$CK$65>=$CK58)),$CL$10:$EK$10,1)) -> 1 | DC58: =PRODUCT(IF(($CL$13:$EK$13<=DC$13*TRANSPOSE($CK$14:$CK$65>=$CK58)),$CL$10:$EK$10,1)) -> 1 | DD58: =PRODUCT(IF(($CL$13:$EK$13<=DD$13*TRANSPOSE($CK$14:$CK$65>=$CK58)),$CL$10:$EK$10,1)) -> 1 | DE58: =PRODUCT(IF(($CL$13:$EK$13<=DE$13*TRANSPOSE($CK$14:$CK$65>=$CK58)),$CL$10:$EK$10,1)) -> 1 | DF58: =PRODUCT(IF(($CL$13:$EK$13<=DF$13*TRANSPOSE($CK$14:$CK$65>=$CK58)),$CL$10:$EK$10,1)) -> 1 | DG58: =PRODUCT(IF(($CL$13:$EK$13<=DG$13*TRANSPOSE($CK$14:$CK$65>=$CK58)),$CL$10:$EK$10,1)) -> 1 | DH58: =PRODUCT(IF(($CL$13:$EK$13<=DH$13*TRANSPOSE($CK$14:$CK$65>=$CK58)),$CL$10:$EK$10,1)) -> 1 | DI58: =PRODUCT(IF(($CL$13:$EK$13<=DI$13*TRANSPOSE($CK$14:$CK$65>=$CK58)),$CL$10:$EK$10,1)) -> 1 | DJ58: =PRODUCT(IF(($CL$13:$EK$13<=DJ$13*TRANSPOSE($CK$14:$CK$65>=$CK58)),$CL$10:$EK$10,1)) -> 1 | DK58: =PRODUCT(IF(($CL$13:$EK$13<=DK$13*TRANSPOSE($CK$14:$CK$65>=$CK58)),$CL$10:$EK$10,1)) -> 1 | DL58: =PRODUCT(IF(($CL$13:$EK$13<=DL$13*TRANSPOSE($CK$14:$CK$65>=$CK58)),$CL$10:$EK$10,1)) -> 1 | DM58: =PRODUCT(IF(($CL$13:$EK$13<=DM$13*TRANSPOSE($CK$14:$CK$65>=$CK58)),$CL$10:$EK$10,1)) -> 1 | DN58: =PRODUCT(IF(($CL$13:$EK$13<=DN$13*TRANSPOSE($CK$14:$CK$65>=$CK58)),$CL$10:$EK$10,1)) -> 1 | DO58: =PRODUCT(IF(($CL$13:$EK$13<=DO$13*TRANSPOSE($CK$14:$CK$65>=$CK58)),$CL$10:$EK$10,1)) -> 1 | DP58: =PRODUCT(IF(($CL$13:$EK$13<=DP$13*TRANSPOSE($CK$14:$CK$65>=$CK58)),$CL$10:$EK$10,1)) -> 1 | DQ58: =PRODUCT(IF(($CL$13:$EK$13<=DQ$13*TRANSPOSE($CK$14:$CK$65>=$CK58)),$CL$10:$EK$10,1)) -> 1 | DR58: =PRODUCT(IF(($CL$13:$EK$13<=DR$13*TRANSPOSE($CK$14:$CK$65>=$CK58)),$CL$10:$EK$10,1)) -> 1 | DS58: =PRODUCT(IF(($CL$13:$EK$13<=DS$13*TRANSPOSE($CK$14:$CK$65>=$CK58)),$CL$10:$EK$10,1)) -> 1 | DT58: =PRODUCT(IF(($CL$13:$EK$13<=DT$13*TRANSPOSE($CK$14:$CK$65>=$CK58)),$CL$10:$EK$10,1)) -> 1 | DU58: =PRODUCT(IF(($CL$13:$EK$13<=DU$13*TRANSPOSE($CK$14:$CK$65>=$CK58)),$CL$10:$EK$10,1)) -> 1 | DV58: =PRODUCT(IF(($CL$13:$EK$13<=DV$13*TRANSPOSE($CK$14:$CK$65>=$CK58)),$CL$10:$EK$10,1)) -> 1 | DW58: =PRODUCT(IF(($CL$13:$EK$13<=DW$13*TRANSPOSE($CK$14:$CK$65>=$CK58)),$CL$10:$EK$10,1)) -> 1 | DX58: =PRODUCT(IF(($CL$13:$EK$13<=DX$13*TRANSPOSE($CK$14:$CK$65>=$CK58)),$CL$10:$EK$10,1)) -> 1 | DY58: =PRODUCT(IF(($CL$13:$EK$13<=DY$13*TRANSPOSE($CK$14:$CK$65>=$CK58)),$CL$10:$EK$10,1)) -> 1 | DZ58: =PRODUCT(IF(($CL$13:$EK$13<=DZ$13*TRANSPOSE($CK$14:$CK$65>=$CK58)),$CL$10:$EK$10,1)) -> 1 | EA58: =PRODUCT(IF(($CL$13:$EK$13<=EA$13*TRANSPOSE($CK$14:$CK$65>=$CK58)),$CL$10:$EK$10,1)) -> 1 | EB58: =PRODUCT(IF(($CL$13:$EK$13<=EB$13*TRANSPOSE($CK$14:$CK$65>=$CK58)),$CL$10:$EK$10,1)) -> 1 | EC58: =PRODUCT(IF(($CL$13:$EK$13<=EC$13*TRANSPOSE($CK$14:$CK$65>=$CK58)),$CL$10:$EK$10,1)) -> 1 | ED58: =PRODUCT(IF(($CL$13:$EK$13<=ED$13*TRANSPOSE($CK$14:$CK$65>=$CK58)),$CL$10:$EK$10,1)) -> 1.010335014 | EE58: =PRODUCT(IF(($CL$13:$EK$13<=EE$13*TRANSPOSE($CK$14:$CK$65>=$CK58)),$CL$10:$EK$10,1)) -> 1.018997278 | EF58: =PRODUCT(IF(($CL$13:$EK$13<=EF$13*TRANSPOSE($CK$14:$CK$65>=$CK58)),$CL$10:$EK$10,1)) -> 1.064178742 | EG58: =PRODUCT(IF(($CL$13:$EK$13<=EG$13*TRANSPOSE($CK$14:$CK$65>=$CK58)),$CL$10:$EK$10,1)) -> 1.089796565 | EH58: =PRODUCT(IF(($CL$13:$EK$13<=EH$13*TRANSPOSE($CK$14:$CK$65>=$CK58)),$CL$10:$EK$10,1)) -> 1.132273488 | EI58: =PRODUCT(IF(($CL$13:$EK$13<=EI$13*TRANSPOSE($CK$14:$CK$65>=$CK58)),$CL$10:$EK$10,1)) -> 1.233721015 | EJ58: =PRODUCT(IF(($CL$13:$EK$13<=EJ$13*TRANSPOSE($CK$14:$CK$65>=$CK58)),$CL$10:$EK$10,1)) -> 1.416374401 | EK58: =PRODUCT(IF(($CL$13:$EK$13<=EK$13*TRANSPOSE($CK$14:$CK$65>=$CK58)),$CL$10:$EK$10,1)) -> 1.509974254
C59: 2018 | AX59: 0.04433914162 | AY59: 0.03415635594 | AZ59: 0.03576072312 | BA59: 0.04896496863 | BB59: 0.06807317818 | BC59: 0.06774141056 | BE59: 2017 | BF59: 0.008573654266 | BG59: 0.009453950204 | BH59: 0.01312735432 | BI59: 0.02958314033 | BJ59: 0.05652334264 | BK59: 0.07647950198 | BL59: 0.08957958438 | BM59: 0.08989624819 | BN59: 0.08060497819 | BO59: 0.08839924325 | BP59: 0.09377411299 | BQ59: 0.09827801134 | BR59: 0.1118210994 | BS59: 0.1105630646 | BT59: 0.1081785608 | BU59: 0.1056523926 | BV59: 0.1026451953 | BW59: 0.1002637853 | BX59: 0.09929957903 | BY59: 0.1001870227 | BZ59: 0.09952268972 | CA59: 0.09903546563 | CB59: 0.1005174313 | CC59: 0.1017700411 | CD59: 0.1001490872 | CE59: 0.1004508239 | CG59: 2017 | CH59: =HLOOKUP($W$7,dat,MATCH(CG59,Data!$B$3:$B$60,0),0)+1 -> 1.008573654 | CK59: 2017 | CL59: =PRODUCT(IF(($CL$13:$EK$13<=CL$13*TRANSPOSE($CK$14:$CK$65>=$CK59)),$CL$10:$EK$10,1)) -> 1 | CM59: =PRODUCT(IF(($CL$13:$EK$13<=CM$13*TRANSPOSE($CK$14:$CK$65>=$CK59)),$CL$10:$EK$10,1)) -> 1 | CN59: =PRODUCT(IF(($CL$13:$EK$13<=CN$13*TRANSPOSE($CK$14:$CK$65>=$CK59)),$CL$10:$EK$10,1)) -> 1 | CO59: =PRODUCT(IF(($CL$13:$EK$13<=CO$13*TRANSPOSE($CK$14:$CK$65>=$CK59)),$CL$10:$EK$10,1)) -> 1 | CP59: =PRODUCT(IF(($CL$13:$EK$13<=CP$13*TRANSPOSE($CK$14:$CK$65>=$CK59)),$CL$10:$EK$10,1)) -> 1 | CQ59: =PRODUCT(IF(($CL$13:$EK$13<=CQ$13*TRANSPOSE($CK$14:$CK$65>=$CK59)),$CL$10:$EK$10,1)) -> 1 | CR59: =PRODUCT(IF(($CL$13:$EK$13<=CR$13*TRANSPOSE($CK$14:$CK$65>=$CK59)),$CL$10:$EK$10,1)) -> 1 | CS59: =PRODUCT(IF(($CL$13:$EK$13<=CS$13*TRANSPOSE($CK$14:$CK$65>=$CK59)),$CL$10:$EK$10,1)) -> 1 | CT59: =PRODUCT(IF(($CL$13:$EK$13<=CT$13*TRANSPOSE($CK$14:$CK$65>=$CK59)),$CL$10:$EK$10,1)) -> 1 | CU59: =PRODUCT(IF(($CL$13:$EK$13<=CU$13*TRANSPOSE($CK$14:$CK$65>=$CK59)),$CL$10:$EK$10,1)) -> 1 | CV59: =PRODUCT(IF(($CL$13:$EK$13<=CV$13*TRANSPOSE($CK$14:$CK$65>=$CK59)),$CL$10:$EK$10,1)) -> 1 | CW59: =PRODUCT(IF(($CL$13:$EK$13<=CW$13*TRANSPOSE($CK$14:$CK$65>=$CK59)),$CL$10:$EK$10,1)) -> 1 | CX59: =PRODUCT(IF(($CL$13:$EK$13<=CX$13*TRANSPOSE($CK$14:$CK$65>=$CK59)),$CL$10:$EK$10,1)) -> 1 | CY59: =PRODUCT(IF(($CL$13:$EK$13<=CY$13*TRANSPOSE($CK$14:$CK$65>=$CK59)),$CL$10:$EK$10,1)) -> 1 | CZ59: =PRODUCT(IF(($CL$13:$EK$13<=CZ$13*TRANSPOSE($CK$14:$CK$65>=$CK59)),$CL$10:$EK$10,1)) -> 1 | DA59: =PRODUCT(IF(($CL$13:$EK$13<=DA$13*TRANSPOSE($CK$14:$CK$65>=$CK59)),$CL$10:$EK$10,1)) -> 1 | DB59: =PRODUCT(IF(($CL$13:$EK$13<=DB$13*TRANSPOSE($CK$14:$CK$65>=$CK59)),$CL$10:$EK$10,1)) -> 1 | DC59: =PRODUCT(IF(($CL$13:$EK$13<=DC$13*TRANSPOSE($CK$14:$CK$65>=$CK59)),$CL$10:$EK$10,1)) -> 1 | DD59: =PRODUCT(IF(($CL$13:$EK$13<=DD$13*TRANSPOSE($CK$14:$CK$65>=$CK59)),$CL$10:$EK$10,1)) -> 1 | DE59: =PRODUCT(IF(($CL$13:$EK$13<=DE$13*TRANSPOSE($CK$14:$CK$65>=$CK59)),$CL$10:$EK$10,1)) -> 1 | DF59: =PRODUCT(IF(($CL$13:$EK$13<=DF$13*TRANSPOSE($CK$14:$CK$65>=$CK59)),$CL$10:$EK$10,1)) -> 1 | DG59: =PRODUCT(IF(($CL$13:$EK$13<=DG$13*TRANSPOSE($CK$14:$CK$65>=$CK59)),$CL$10:$EK$10,1)) -> 1 | DH59: =PRODUCT(IF(($CL$13:$EK$13<=DH$13*TRANSPOSE($CK$14:$CK$65>=$CK59)),$CL$10:$EK$10,1)) -> 1 | DI59: =PRODUCT(IF(($CL$13:$EK$13<=DI$13*TRANSPOSE($CK$14:$CK$65>=$CK59)),$CL$10:$EK$10,1)) -> 1 | DJ59: =PRODUCT(IF(($CL$13:$EK$13<=DJ$13*TRANSPOSE($CK$14:$CK$65>=$CK59)),$CL$10:$EK$10,1)) -> 1 | DK59: =PRODUCT(IF(($CL$13:$EK$13<=DK$13*TRANSPOSE($CK$14:$CK$65>=$CK59)),$CL$10:$EK$10,1)) -> 1 | DL59: =PRODUCT(IF(($CL$13:$EK$13<=DL$13*TRANSPOSE($CK$14:$CK$65>=$CK59)),$CL$10:$EK$10,1)) -> 1 | DM59: =PRODUCT(IF(($CL$13:$EK$13<=DM$13*TRANSPOSE($CK$14:$CK$65>=$CK59)),$CL$10:$EK$10,1)) -> 1 | DN59: =PRODUCT(IF(($CL$13:$EK$13<=DN$13*TRANSPOSE($CK$14:$CK$65>=$CK59)),$CL$10:$EK$10,1)) -> 1 | DO59: =PRODUCT(IF(($CL$13:$EK$13<=DO$13*TRANSPOSE($CK$14:$CK$65>=$CK59)),$CL$10:$EK$10,1)) -> 1 | DP59: =PRODUCT(IF(($CL$13:$EK$13<=DP$13*TRANSPOSE($CK$14:$CK$65>=$CK59)),$CL$10:$EK$10,1)) -> 1 | DQ59: =PRODUCT(IF(($CL$13:$EK$13<=DQ$13*TRANSPOSE($CK$14:$CK$65>=$CK59)),$CL$10:$EK$10,1)) -> 1 | DR59: =PRODUCT(IF(($CL$13:$EK$13<=DR$13*TRANSPOSE($CK$14:$CK$65>=$CK59)),$CL$10:$EK$10,1)) -> 1 | DS59: =PRODUCT(IF(($CL$13:$EK$13<=DS$13*TRANSPOSE($CK$14:$CK$65>=$CK59)),$CL$10:$EK$10,1)) -> 1 | DT59: =PRODUCT(IF(($CL$13:$EK$13<=DT$13*TRANSPOSE($CK$14:$CK$65>=$CK59)),$CL$10:$EK$10,1)) -> 1 | DU59: =PRODUCT(IF(($CL$13:$EK$13<=DU$13*TRANSPOSE($CK$14:$CK$65>=$CK59)),$CL$10:$EK$10,1)) -> 1 | DV59: =PRODUCT(IF(($CL$13:$EK$13<=DV$13*TRANSPOSE($CK$14:$CK$65>=$CK59)),$CL$10:$EK$10,1)) -> 1 | DW59: =PRODUCT(IF(($CL$13:$EK$13<=DW$13*TRANSPOSE($CK$14:$CK$65>=$CK59)),$CL$10:$EK$10,1)) -> 1 | DX59: =PRODUCT(IF(($CL$13:$EK$13<=DX$13*TRANSPOSE($CK$14:$CK$65>=$CK59)),$CL$10:$EK$10,1)) -> 1 | DY59: =PRODUCT(IF(($CL$13:$EK$13<=DY$13*TRANSPOSE($CK$14:$CK$65>=$CK59)),$CL$10:$EK$10,1)) -> 1 | DZ59: =PRODUCT(IF(($CL$13:$EK$13<=DZ$13*TRANSPOSE($CK$14:$CK$65>=$CK59)),$CL$10:$EK$10,1)) -> 1 | EA59: =PRODUCT(IF(($CL$13:$EK$13<=EA$13*TRANSPOSE($CK$14:$CK$65>=$CK59)),$CL$10:$EK$10,1)) -> 1 | EB59: =PRODUCT(IF(($CL$13:$EK$13<=EB$13*TRANSPOSE($CK$14:$CK$65>=$CK59)),$CL$10:$EK$10,1)) -> 1 | EC59: =PRODUCT(IF(($CL$13:$EK$13<=EC$13*TRANSPOSE($CK$14:$CK$65>=$CK59)),$CL$10:$EK$10,1)) -> 1 | ED59: =PRODUCT(IF(($CL$13:$EK$13<=ED$13*TRANSPOSE($CK$14:$CK$65>=$CK59)),$CL$10:$EK$10,1)) -> 1 | EE59: =PRODUCT(IF(($CL$13:$EK$13<=EE$13*TRANSPOSE($CK$14:$CK$65>=$CK59)),$CL$10:$EK$10,1)) -> 1.008573654 | EF59: =PRODUCT(IF(($CL$13:$EK$13<=EF$13*TRANSPOSE($CK$14:$CK$65>=$CK59)),$CL$10:$EK$10,1)) -> 1.053292944 | EG59: =PRODUCT(IF(($CL$13:$EK$13<=EG$13*TRANSPOSE($CK$14:$CK$65>=$CK59)),$CL$10:$EK$10,1)) -> 1.078648715 | EH59: =PRODUCT(IF(($CL$13:$EK$13<=EH$13*TRANSPOSE($CK$14:$CK$65>=$CK59)),$CL$10:$EK$10,1)) -> 1.120691128 | EI59: =PRODUCT(IF(($CL$13:$EK$13<=EI$13*TRANSPOSE($CK$14:$CK$65>=$CK59)),$CL$10:$EK$10,1)) -> 1.221100919 | EJ59: =PRODUCT(IF(($CL$13:$EK$13<=EJ$13*TRANSPOSE($CK$14:$CK$65>=$CK59)),$CL$10:$EK$10,1)) -> 1.40188589 | EK59: =PRODUCT(IF(($CL$13:$EK$13<=EK$13*TRANSPOSE($CK$14:$CK$65>=$CK59)),$CL$10:$EK$10,1)) -> 1.494528282
C60: 2019 | AY60: 0.02407285709 | AZ60: 0.03149797451 | BA60: 0.05051145978 | BB60: 0.07409049263 | BC60: 0.07248442174 | BE60: 2018 | BF60: 0.04433914162 | BG60: 0.0263006111 | BH60: 0.02095090811 | BI60: 0.02084174201 | BJ60: 0.03251756597 | BK60: 0.05448281532 | BL60: 0.07182816056 | BM60: 0.08381905443 | BN60: 0.08473775761 | BO60: 0.07692243153 | BP60: 0.08431811968 | BQ60: 0.08956664593 | BR60: 0.09403174672 | BS60: 0.1068595817 | BT60: 0.1060203408 | BU60: 0.1040766678 | BV60: 0.1019480895 | BW60: 0.09932220079 | BX60: 0.09724708639 | BY60: 0.09648409483 | BZ60: 0.09746110844 | CA60: 0.09695222209 | CB60: 0.09659885377 | CC60: 0.09811743104 | CD60: 0.09941329092 | CE60: 0.09794839421 | CG60: 2018 | CH60: =HLOOKUP($W$7,dat,MATCH(CG60,Data!$B$3:$B$60,0),0)+1 -> 1.044339142 | CK60: 2018 | CL60: =PRODUCT(IF(($CL$13:$EK$13<=CL$13*TRANSPOSE($CK$14:$CK$65>=$CK60)),$CL$10:$EK$10,1)) -> 1 | CM60: =PRODUCT(IF(($CL$13:$EK$13<=CM$13*TRANSPOSE($CK$14:$CK$65>=$CK60)),$CL$10:$EK$10,1)) -> 1 | CN60: =PRODUCT(IF(($CL$13:$EK$13<=CN$13*TRANSPOSE($CK$14:$CK$65>=$CK60)),$CL$10:$EK$10,1)) -> 1 | CO60: =PRODUCT(IF(($CL$13:$EK$13<=CO$13*TRANSPOSE($CK$14:$CK$65>=$CK60)),$CL$10:$EK$10,1)) -> 1 | CP60: =PRODUCT(IF(($CL$13:$EK$13<=CP$13*TRANSPOSE($CK$14:$CK$65>=$CK60)),$CL$10:$EK$10,1)) -> 1 | CQ60: =PRODUCT(IF(($CL$13:$EK$13<=CQ$13*TRANSPOSE($CK$14:$CK$65>=$CK60)),$CL$10:$EK$10,1)) -> 1 | CR60: =PRODUCT(IF(($CL$13:$EK$13<=CR$13*TRANSPOSE($CK$14:$CK$65>=$CK60)),$CL$10:$EK$10,1)) -> 1 | CS60: =PRODUCT(IF(($CL$13:$EK$13<=CS$13*TRANSPOSE($CK$14:$CK$65>=$CK60)),$CL$10:$EK$10,1)) -> 1 | CT60: =PRODUCT(IF(($CL$13:$EK$13<=CT$13*TRANSPOSE($CK$14:$CK$65>=$CK60)),$CL$10:$EK$10,1)) -> 1 | CU60: =PRODUCT(IF(($CL$13:$EK$13<=CU$13*TRANSPOSE($CK$14:$CK$65>=$CK60)),$CL$10:$EK$10,1)) -> 1 | CV60: =PRODUCT(IF(($CL$13:$EK$13<=CV$13*TRANSPOSE($CK$14:$CK$65>=$CK60)),$CL$10:$EK$10,1)) -> 1 | CW60: =PRODUCT(IF(($CL$13:$EK$13<=CW$13*TRANSPOSE($CK$14:$CK$65>=$CK60)),$CL$10:$EK$10,1)) -> 1 | CX60: =PRODUCT(IF(($CL$13:$EK$13<=CX$13*TRANSPOSE($CK$14:$CK$65>=$CK60)),$CL$10:$EK$10,1)) -> 1 | CY60: =PRODUCT(IF(($CL$13:$EK$13<=CY$13*TRANSPOSE($CK$14:$CK$65>=$CK60)),$CL$10:$EK$10,1)) -> 1 | CZ60: =PRODUCT(IF(($CL$13:$EK$13<=CZ$13*TRANSPOSE($CK$14:$CK$65>=$CK60)),$CL$10:$EK$10,1)) -> 1 | DA60: =PRODUCT(IF(($CL$13:$EK$13<=DA$13*TRANSPOSE($CK$14:$CK$65>=$CK60)),$CL$10:$EK$10,1)) -> 1 | DB60: =PRODUCT(IF(($CL$13:$EK$13<=DB$13*TRANSPOSE($CK$14:$CK$65>=$CK60)),$CL$10:$EK$10,1)) -> 1 | DC60: =PRODUCT(IF(($CL$13:$EK$13<=DC$13*TRANSPOSE($CK$14:$CK$65>=$CK60)),$CL$10:$EK$10,1)) -> 1 | DD60: =PRODUCT(IF(($CL$13:$EK$13<=DD$13*TRANSPOSE($CK$14:$CK$65>=$CK60)),$CL$10:$EK$10,1)) -> 1 | DE60: =PRODUCT(IF(($CL$13:$EK$13<=DE$13*TRANSPOSE($CK$14:$CK$65>=$CK60)),$CL$10:$EK$10,1)) -> 1 | DF60: =PRODUCT(IF(($CL$13:$EK$13<=DF$13*TRANSPOSE($CK$14:$CK$65>=$CK60)),$CL$10:$EK$10,1)) -> 1 | DG60: =PRODUCT(IF(($CL$13:$EK$13<=DG$13*TRANSPOSE($CK$14:$CK$65>=$CK60)),$CL$10:$EK$10,1)) -> 1 | DH60: =PRODUCT(IF(($CL$13:$EK$13<=DH$13*TRANSPOSE($CK$14:$CK$65>=$CK60)),$CL$10:$EK$10,1)) -> 1 | DI60: =PRODUCT(IF(($CL$13:$EK$13<=DI$13*TRANSPOSE($CK$14:$CK$65>=$CK60)),$CL$10:$EK$10,1)) -> 1 | DJ60: =PRODUCT(IF(($CL$13:$EK$13<=DJ$13*TRANSPOSE($CK$14:$CK$65>=$CK60)),$CL$10:$EK$10,1)) -> 1 | DK60: =PRODUCT(IF(($CL$13:$EK$13<=DK$13*TRANSPOSE($CK$14:$CK$65>=$CK60)),$CL$10:$EK$10,1)) -> 1 | DL60: =PRODUCT(IF(($CL$13:$EK$13<=DL$13*TRANSPOSE($CK$14:$CK$65>=$CK60)),$CL$10:$EK$10,1)) -> 1 | DM60: =PRODUCT(IF(($CL$13:$EK$13<=DM$13*TRANSPOSE($CK$14:$CK$65>=$CK60)),$CL$10:$EK$10,1)) -> 1 | DN60: =PRODUCT(IF(($CL$13:$EK$13<=DN$13*TRANSPOSE($CK$14:$CK$65>=$CK60)),$CL$10:$EK$10,1)) -> 1 | DO60: =PRODUCT(IF(($CL$13:$EK$13<=DO$13*TRANSPOSE($CK$14:$CK$65>=$CK60)),$CL$10:$EK$10,1)) -> 1 | DP60: =PRODUCT(IF(($CL$13:$EK$13<=DP$13*TRANSPOSE($CK$14:$CK$65>=$CK60)),$CL$10:$EK$10,1)) -> 1 | DQ60: =PRODUCT(IF(($CL$13:$EK$13<=DQ$13*TRANSPOSE($CK$14:$CK$65>=$CK60)),$CL$10:$EK$10,1)) -> 1 | DR60: =PRODUCT(IF(($CL$13:$EK$13<=DR$13*TRANSPOSE($CK$14:$CK$65>=$CK60)),$CL$10:$EK$10,1)) -> 1 | DS60: =PRODUCT(IF(($CL$13:$EK$13<=DS$13*TRANSPOSE($CK$14:$CK$65>=$CK60)),$CL$10:$EK$10,1)) -> 1 | DT60: =PRODUCT(IF(($CL$13:$EK$13<=DT$13*TRANSPOSE($CK$14:$CK$65>=$CK60)),$CL$10:$EK$10,1)) -> 1 | DU60: =PRODUCT(IF(($CL$13:$EK$13<=DU$13*TRANSPOSE($CK$14:$CK$65>=$CK60)),$CL$10:$EK$10,1)) -> 1 | DV60: =PRODUCT(IF(($CL$13:$EK$13<=DV$13*TRANSPOSE($CK$14:$CK$65>=$CK60)),$CL$10:$EK$10,1)) -> 1 | DW60: =PRODUCT(IF(($CL$13:$EK$13<=DW$13*TRANSPOSE($CK$14:$CK$65>=$CK60)),$CL$10:$EK$10,1)) -> 1 | DX60: =PRODUCT(IF(($CL$13:$EK$13<=DX$13*TRANSPOSE($CK$14:$CK$65>=$CK60)),$CL$10:$EK$10,1)) -> 1 | DY60: =PRODUCT(IF(($CL$13:$EK$13<=DY$13*TRANSPOSE($CK$14:$CK$65>=$CK60)),$CL$10:$EK$10,1)) -> 1 | DZ60: =PRODUCT(IF(($CL$13:$EK$13<=DZ$13*TRANSPOSE($CK$14:$CK$65>=$CK60)),$CL$10:$EK$10,1)) -> 1 | EA60: =PRODUCT(IF(($CL$13:$EK$13<=EA$13*TRANSPOSE($CK$14:$CK$65>=$CK60)),$CL$10:$EK$10,1)) -> 1 | EB60: =PRODUCT(IF(($CL$13:$EK$13<=EB$13*TRANSPOSE($CK$14:$CK$65>=$CK60)),$CL$10:$EK$10,1)) -> 1 | EC60: =PRODUCT(IF(($CL$13:$EK$13<=EC$13*TRANSPOSE($CK$14:$CK$65>=$CK60)),$CL$10:$EK$10,1)) -> 1 | ED60: =PRODUCT(IF(($CL$13:$EK$13<=ED$13*TRANSPOSE($CK$14:$CK$65>=$CK60)),$CL$10:$EK$10,1)) -> 1 | EE60: =PRODUCT(IF(($CL$13:$EK$13<=EE$13*TRANSPOSE($CK$14:$CK$65>=$CK60)),$CL$10:$EK$10,1)) -> 1 | EF60: =PRODUCT(IF(($CL$13:$EK$13<=EF$13*TRANSPOSE($CK$14:$CK$65>=$CK60)),$CL$10:$EK$10,1)) -> 1.044339142 | EG60: =PRODUCT(IF(($CL$13:$EK$13<=EG$13*TRANSPOSE($CK$14:$CK$65>=$CK60)),$CL$10:$EK$10,1)) -> 1.069479369 | EH60: =PRODUCT(IF(($CL$13:$EK$13<=EH$13*TRANSPOSE($CK$14:$CK$65>=$CK60)),$CL$10:$EK$10,1)) -> 1.111164389 | EI60: =PRODUCT(IF(($CL$13:$EK$13<=EI$13*TRANSPOSE($CK$14:$CK$65>=$CK60)),$CL$10:$EK$10,1)) -> 1.210720619 | EJ60: =PRODUCT(IF(($CL$13:$EK$13<=EJ$13*TRANSPOSE($CK$14:$CK$65>=$CK60)),$CL$10:$EK$10,1)) -> 1.389968779 | EK60: =PRODUCT(IF(($CL$13:$EK$13<=EK$13*TRANSPOSE($CK$14:$CK$65>=$CK60)),$CL$10:$EK$10,1)) -> 1.481823639
